{"text_format":"1","workbook":"xlsx","n_sheets":3,"sheets":["Unos podataka","CODEX","KO"],"not_rendered":{"charts":0,"images":0,"macros":1,"external_links":0,"defined_names":2,"comments":1,"pivot_tables":0},"unopened":[],"bounds":{"document_bytes":16777216,"sheet_cells":100000,"rows_first":2000,"rows_last":500,"rows_between":2000,"halvings":0,"cell_chars":16384,"cell_head_chars":4096},"cells_cut":0,"cells_raw":0,"read":"whole","date_system":"1900"}

{"sheet":"Unos podataka","index":0,"n_rows":1,"n_cols":38,"rows_kept":1,"cut":false,"hidden":false,"merged":[]}
["OZNAKA","PARCELA","KATASTARSKA\n ČESTICA","KATASTARSKA\n OPĆINA","POVRŠINA","ARKOD","ZEMLJOPISNA\n ŠIRINA","ZEMLJOPISNA\n DUŽINA","DUBINA","USJEV","CILJANI\n PRINOS","PREDUSJEV","PRINOS\n PREDUSJEVA","ORGANSKO\n GNOJIVO","KOLIČINA\nORGANSKOG\n GNOJIVA ","SEKVENCIJALNA GODINA\nPRIMJENE ORGANSKOG\n GNOJIVA","ŽETVENI\n OSTACI","KOLIČINA\n ŽETVENIH\n OSTATAKA","NAGIB","RELJEF","EKSPOZICIJA","NAVODNJAVANJE","VIŠAK VODE\n NA TABLI","MINERALNA GNOJIDBA\n PREDUSJEVA DUŠIKOM","MINERALNA GNOJIDBA\n PREDUSJEVA FOSFOROM","MINERALNA GNOJIDBA\n PREDUSJEVA KALIJEM","DATUM\n UZORKA","VLASNIŠTVO","TIP\n PROIZVODNJE","KALCIZACIJA\n TLA","KOLIČINA\n KALCIZACIJE\n TLA","DATUM\n KALCIZACIJE\n TLA","POBOLJŠIVAČ\n TLA","KOLIČINA \nPOBOLJŠIVAČA\n TLA","DATUM\n POBOLJŠIVAČA\n TLA","DATUM\n ZADNJE\n ANALIZE","LABORATORIJ","PREPORUKA\n GNOJIDBE"]

{"sheet":"CODEX","index":1,"n_rows":128,"n_cols":23,"rows_kept":128,"cut":false,"hidden":true,"merged":[]}
["ANALIZA","DUBINA","EKSPOZICIJA TLA","IZVOR FINANCIRANJA","KALCIZACIJA TLA","METODA UZORKOVANJA","MINERALNA GNOJIDBA","NAGIB","NAVODNJAVANJE","NUNN","ORGANSKO GNOJIVO","LABORATORIJ","POBOLJŠIVAČ TLA","PREPORUKA GNOJIDBE","PRINOS PREDUSJEVA","RELJEF","TEKSTURA","TIP PROIZVODNJE","VIŠAK VODE NA TABLI","USJEV PREDUSJEV","VLASNIŠTVO PARCELE","ŽETVENI OSTACI","SEKVENCIJALNA GODINA PRIMJENE ORGANSKOG GNOJIVA"]
["Analiza organskog gnojiva (paket)","15-30","ISTOK","OSOBNO","NE","METODA SLUČAJNOG RASPOREDA","40-70% PREPORUKE","BEZ NAGIBA","KAP PO KAP","KLASIČNI","GOVEĐE KRUTO STAJSKO","SVEUČILIŠTE U ZAGREBU, AGRONOMSKI FAKULTET, ANALITIČKI LABORATORIJ ZAVODA ZA OPĆU PROIZVODNJU BILJA, SVETOŠIMUNSKA CESTA 25, ZAGREB","ACTIWAVE","DA","60-90% CILJNOG PRINOSA","MANJE DEPRESIJE/NERAVNINE","NIJE NAVEDENO","EKOLOŠKA PROIZVODNJA","NIJE NAVEDENO","UGAR","PRIVATNO","NIJE NAVEDENO",1]
["Standardna kemijska analiza (paket)","0-30","ZAPAD","SURADNJA","DA","U OBLIKU SLOVA W","> 120% OD PREPORUKE","MANJI NAGIB","KIŠENJEM","PLANTAŽNI","SVINJSKO KRUTO STAJSKO","SVEUČILIŠTE U ZAGREBU, AGRONOMSKI FAKULTET, ANALITIČKI LABORATORIJ ZAVODA ZA MELIORACIJE, SVETOŠIMUNSKA CESTA 25, ZAGREB","AGROCAL (CA + MG)","NE","90-110% CILJNOG PRINOSA","NIJE NAVEDENO","PIJESAK","INTEGRIRANA PROIZVODNJA","NIKADA","SMOKVA","DRŽAVNO","ODNEŠENO",2]
["Standardna kemijska analiza - trajni nasadi (paket)","30-60","SJEVER","PROJEKT",null,"U OBLIKU SLOVA X","BEZ GNOJIDBE","MANJI NAGIB U PODNOŽJU","NIJE NAVEDENO","NIJE NAVEDENO","KONJSKO KRUTO STAJSKO","SVEUČILIŠTE U ZAGREBU, AGRONOMSKI FAKULTET, ANALITIČKI LABORATORIJ ZAVODA ZA PEDOLOGIJU, SVETOŠIMUNSKA CESTA 25, ZAGREB","AGROCAL (CA)",null,"<60% CILJNOG PRINOSA","RAVNO","PJESKOVITA ILOVAČA","KONVENCIONALNA PROIZVODNJA","RIJETKO ILI KRATKOTRAJNO","KESTEN, PITOMI","KONCESIJA","SPALJENO",3]
["pH KCl pH H<sub>2</sub>O","0-15","JUG","CALIS",null,"U OBLIKU SLOVA Z","DO 40% PREPORUKE","NIJE NAVEDENO","OPTIMALNO",null,"PILEĆE KRUTO STAJSKO","EUROINSPEKT- CROATIAKONTROLA D.O.O. ZAGREB, KARLOVAČKA CESTA 4L, ZAGREB","ALGOVITAL",null,">110% CILJNOG PRINOSA","VEĆE DEPRESIJE/NERAVNINE","PRAŠKASTA ILOVAČA","NIJE NAVEDENO","ČESTO ILI DUGOTRAJNO","KRASTAVAC, SALATNI","NEMA","ZAORANO",4]
["pH H<sub>2</sub>O","60-90","NIJE NAVEDENO","NIJE NAVEDENO",null,"U OBLIKU SLOVA N","NIJE NAVEDENO","OGOLJENI TEREN S NAGIBOM","PODZEMNO",null,"KOKOŠJE KRUTO STAJSKO","SVEUČILIŠTE  U ZAGREBU, AGRONOMSKI FAKULTET, ANALITIČKI LABORATORIJ ZAVODA ZA ISHRANU BILJA, SVETOŠIMUNSKA  CESTA 25, ZAGREB","AMALGEROL PREMIUM",null,"NIJE NAVEDENO",null,"ILOVAČA",null,null,"MASLINA"]
["Hidrolitička kiselost",null,null,null,null,"U OBLIKU SLOVA S","PREMA PREPORUCI","VEĆI NAGIB","POVRŠINSKO",null,"KOMPOST","LABOSAN D.O.O. LABORATORIJSKA ANALIZA UZORAKA, RIM 42, ZAGREB,  ODJEL LABORATORIJ U VIROVITICI, MATIJE GUPCA 254, VIROVITICA","AZOMITE",null,null,null,"GLINASTA ILOVAČA",null,null,"KRIZANTEMA"]
["Humus (%)",null,null,null,null,"PO SHEMI ŠAHOVSKIH POLJA",null,null,"REDUCIRANO",null,"LUMBRIPOST","INSPECTO D.O.O. ĐAKOVO, ELEKTRIČNE CENTRALE 1, ZA INSPECTO D.O.O. LABORATORIJ, VUKOVARSKA CESTA 239, NEMETIN, OSIJEK","BIO-ALGEEN BRZI KOMPOSTER - PRAŠAK",null,null,null,"ILOVASTA GLINA",null,null,"BLITVA"]
["C/N analiza",null,null,null,null,"CIK-CAK METODA",null,null,"SUHO RATARENJE",null,"GNOJOVKA GOVEĐA","SVEUČILIŠTE JOSIPA JURJA STROSSMAYERA, FAKULTET AGROBIOTEHNIČKIH ZNANOSTI OSIJEK, LABORATORIJ ZAVODA ZA AGROEKOLOGIJU I ZAŠTITU OKOLIŠA, VLADIMIRA PRELOGA 1, OSIJEK","BIO-ALGEEN BRZI KOMPOSTER - TEKUĆI",null,null,null,"GLINA",null,null,"LIVADA"]
["Ukupni N",null,null,null,null,"KRUŽNI UZORAK",null,null,null,null,"GNOJOVKA SVINJSKA","VISOKO GOSPODARSKO UČILIŠTE KRIŽEVCI, AGROKEMIJSKI LABORATORIJ, MILISLAVA DEMERCA 1, KRIŽEVCI","BIO-ALGEEN TEKUĆI KONCENTRAT",null,null,null,null,null,null,"LUBENICA"]
["N-NO<sub>3</sub>",null,null,null,null,"NIJE NAVEDENO",null,null,null,null,"GNOJNICA","NIJE NAVEDENO","BIO-ALGEEN THK",null,null,null,null,null,null,"LAVANDA"]
["N-NH<sub>4</sub>",null,null,null,null,null,null,null,null,null,"NIJE NAVEDENO","KUTJEVO D.D. - AGROKEMIJSKI LABORATORIJ, INDUSTRIJSKA 18, POŽEGA","BIOFERT",null,null,null,null,null,null,"PAŠNJAK, KONTINENTALNI"]
["AL-P<sub>2</sub>O<sub>5</sub>",null,null,null,null,null,null,null,null,null,null,"BIOTECH - CENTAR ZA BIOTEHNOLOŠKA ISTRAŽIVANJA I RAZVOJ (REGIONALNI CENTAR ZA BIOTEHNOLOŠKA ISTRAŽIVANJA I RAZVOJ BRODSKO-POSAVSKE ŽUPANIJE), IVANA CANKARA 76, SLAVONSKI BROD","BIOZOLFO 620",null,null,null,null,null,null,"TRAVNJAK, KONTINENTALNI"]
["AL-K<sub>2</sub>O",null,null,null,null,null,null,null,null,null,null,"RAZVOJNA AGENCIJA AGRO USTANOVA ZA RAZVOJ GRADA GRUBIŠNOG POLJA, IVANA NEPOMUKA JEMERŠIĆA 37D, GRUBIŠNO POLJE","BIPLANTOL AGRAR",null,null,null,null,null,null,"KOMPOST"]
["Olsen-P",null,null,null,null,null,null,null,null,null,null,null,"BIPLANTOL CONTRA X2 FORTE",null,null,null,null,null,null,"GRAŠAK + TRITIKAL"]
["CaCO<sub>3</sub> %",null,null,null,null,null,null,null,null,null,null,null,"BIPLANTOL MYKOS V FORTE",null,null,null,null,null,null,"DINJA"]
["Tekstura",null,null,null,null,null,null,null,null,null,null,null,"BIPLANTOL PLUS",null,null,null,null,null,null,"KONOPLJA INDUSTRIJSKA"]
["KIK",null,null,null,null,null,null,null,null,null,null,null,"COCANA",null,null,null,null,null,null,"NEKTARINA"]
["Fiksacija K+",null,null,null,null,null,null,null,null,null,null,null,"CUTISAN",null,null,null,null,null,null,"DUNJA"]
["Konduktivitet (EC)",null,null,null,null,null,null,null,null,null,null,null,"EQUISETUM PLUS",null,null,null,null,null,null,"BATAT"]
["Analiza Bor - B",null,null,null,null,null,null,null,null,null,null,null,"FERTDOLOMIT GRANULIRANI",null,null,null,null,null,null,"DJETELINA (2-3 GODINA)"]
["Priprema za analizu teških metala",null,null,null,null,null,null,null,null,null,null,null,"KENDAL",null,null,null,null,null,null,"JAGODA"]
["Mikro i makro elementi",null,null,null,null,null,null,null,null,null,null,null,"MEGAFOL",null,null,null,null,null,null,"KRASTAVAC, KORNIŠON"]
["Toksični elementi",null,null,null,null,null,null,null,null,null,null,null,"MYCOSIN VIN",null,null,null,null,null,null,"ČEŠNJAK"]
["Analize elemenata AAS",null,null,null,null,null,null,null,null,null,null,null,"NEMACEL",null,null,null,null,null,null,"PŠENICA, OZIMA"]
["Sondiranje terena",null,null,null,null,null,null,null,null,null,null,null,"NEMAFLOR",null,null,null,null,null,null,"PŠENICA, JARA"]
["Otvaranje profila",null,null,null,null,null,null,null,null,null,null,null,"NEMAPOM",null,null,null,null,null,null,"KUKURUZ"]
["Infiltracija",null,null,null,null,null,null,null,null,null,null,null,"NEMASTAR",null,null,null,null,null,null,"KUKURUZ, SILAŽNI"]
["Filtracija",null,null,null,null,null,null,null,null,null,null,null,"NEMATOP",null,null,null,null,null,null,"JEČAM, OZIMI, PIVARSKI"]
["Zbijenost tla",null,null,null,null,null,null,null,null,null,null,null,"PHYSIOMAX (76 CACO3 + 3 MGO)",null,null,null,null,null,null,"JEČAM, JARI"]
["Standardna analiza tla s preporukom",null,null,null,null,null,null,null,null,null,null,null,"POTTASOL",null,null,null,null,null,null,"ZOB"]
["Standardna analiza tla s preporukom + dušik",null,null,null,null,null,null,null,null,null,null,null,"PROMOT PLUS",null,null,null,null,null,null,"REPA, ŠEĆERNA"]
[null,null,null,null,null,null,null,null,null,null,null,null,"RHIZOVITAL 42 TB",null,null,null,null,null,null,"SOJA"]
[null,null,null,null,null,null,null,null,null,null,null,null,"STOCKSORB",null,null,null,null,null,null,"SUNCOKRET"]
[null,null,null,null,null,null,null,null,null,null,null,null,"SWEET",null,null,null,null,null,null,"REPICA, ULJANA"]
[null,null,null,null,null,null,null,null,null,null,null,null,"ALUMINJIEV-SULFAT",null,null,null,null,null,null,"KRUMPIR"]
[null,null,null,null,null,null,null,null,null,null,null,null,"DRVENI PEPEO",null,null,null,null,null,null,"LUCERNA"]
[null,null,null,null,null,null,null,null,null,null,null,null,"KALCIJEV KARBONAT (LAPOR, MLJEVENI VAPNENAC, FOSFATNA KREDA)",null,null,null,null,null,null,"DJETELINA"]
[null,null,null,null,null,null,null,null,null,null,null,null,"INDUSTRIJSKO VAPNO",null,null,null,null,null,null,"GRAŠAK, STOČNI"]
[null,null,null,null,null,null,null,null,null,null,null,null,"MAGNEZIJEV-HIDROKSID",null,null,null,null,null,null,"GRAH"]
[null,null,null,null,null,null,null,null,null,null,null,null,"ZEMLJIŠNI SUMPOR",null,null,null,null,null,null,"KUKURUZ, SJEMENSKI"]
[null,null,null,null,null,null,null,null,null,null,null,null,"ŽELJEZO-SULFAT",null,null,null,null,null,null,"TRITICALE"]
[null,null,null,null,null,null,null,null,null,null,null,null,"GLAUKONIT",null,null,null,null,null,null,"SMJESA, PST"]
[null,null,null,null,null,null,null,null,null,null,null,null,"GIPS (KALCIJEV-SULFAT)",null,null,null,null,null,null,"JEČAM, STOČNI"]
[null,null,null,null,null,null,null,null,null,null,null,null,"KISERIT (MAGNEZIJEV-SULFAT)",null,null,null,null,null,null,"DUHAN"]
[null,null,null,null,null,null,null,null,null,null,null,null,"PERLIT",null,null,null,null,null,null,"DTS"]
[null,null,null,null,null,null,null,null,null,null,null,null,"VERMIKULIT",null,null,null,null,null,null,"GRAŠAK + ŠEĆERAC"]
[null,null,null,null,null,null,null,null,null,null,null,null,"VODENI ZEMLJIŠNI KRISTALI",null,null,null,null,null,null,"KAMILICA"]
[null,null,null,null,null,null,null,null,null,null,null,null,"MALČEVI",null,null,null,null,null,null,"RAŽ"]
[null,null,null,null,null,null,null,null,null,null,null,null,"HORTIKULTURNI PIJESAK",null,null,null,null,null,null,"LJULJ, TALIJANSKI"]
[null,null,null,null,null,null,null,null,null,null,null,null,"TRESET",null,null,null,null,null,null,"KELJ"]
[null,null,null,null,null,null,null,null,null,null,null,null,"KOMPOST",null,null,null,null,null,null,"CVJETAČA"]
[null,null,null,null,null,null,null,null,null,null,null,null,"NIJE NAVEDENO",null,null,null,null,null,null,"KUPUS, SVJEŽI"]
[null,null,null,null,null,null,null,null,null,null,null,null,"TILLECUR",null,null,null,null,null,null,"SALATA"]
[null,null,null,null,null,null,null,null,null,null,null,null,"VITISAN",null,null,null,null,null,null,"ŠPINAT"]
[null,null,null,null,null,null,null,null,null,null,null,null,"VIVA",null,null,null,null,null,null,"PAPRIKA, BABURA"]
[null,null,null,null,null,null,null,null,null,null,null,null,null,null,null,null,null,null,null,"RAJČICA"]
[null,null,null,null,null,null,null,null,null,null,null,null,null,null,null,null,null,null,null,"KRASTAVAC, KONZERVIRANI"]
[null,null,null,null,null,null,null,null,null,null,null,null,null,null,null,null,null,null,null,"LUK"]
[null,null,null,null,null,null,null,null,null,null,null,null,null,null,null,null,null,null,null,"NIJE NAVEDENO"]
[null,null,null,null,null,null,null,null,null,null,null,null,null,null,null,null,null,null,null,"MRKVA"]
[null,null,null,null,null,null,null,null,null,null,null,null,null,null,null,null,null,null,null,"PERŠIN, KORJENAŠ"]
[null,null,null,null,null,null,null,null,null,null,null,null,null,null,null,null,null,null,null,"DINJE"]
[null,null,null,null,null,null,null,null,null,null,null,null,null,null,null,null,null,null,null,"CIKLA"]
[null,null,null,null,null,null,null,null,null,null,null,null,null,null,null,null,null,null,null,"ROTKVA"]
[null,null,null,null,null,null,null,null,null,null,null,null,null,null,null,null,null,null,null,"LUBENICA"]
[null,null,null,null,null,null,null,null,null,null,null,null,null,null,null,null,null,null,null,"CELER"]
[null,null,null,null,null,null,null,null,null,null,null,null,null,null,null,null,null,null,null,"GRAŠAK"]
[null,null,null,null,null,null,null,null,null,null,null,null,null,null,null,null,null,null,null,"PAPRIKA, FEFERONA"]
[null,null,null,null,null,null,null,null,null,null,null,null,null,null,null,null,null,null,null,"ŠPAROGA"]
[null,null,null,null,null,null,null,null,null,null,null,null,null,null,null,null,null,null,null,"KELJ, PUPČAR"]
[null,null,null,null,null,null,null,null,null,null,null,null,null,null,null,null,null,null,null,"BROKULA"]
[null,null,null,null,null,null,null,null,null,null,null,null,null,null,null,null,null,null,null,"KUKURUZ, ŠEĆERAC"]
[null,null,null,null,null,null,null,null,null,null,null,null,null,null,null,null,null,null,null,"TIKVICE, GRMOLIKE"]
[null,null,null,null,null,null,null,null,null,null,null,null,null,null,null,null,null,null,null,"HREN"]
[null,null,null,null,null,null,null,null,null,null,null,null,null,null,null,null,null,null,null,"KUPUS, KINESKI"]
[null,null,null,null,null,null,null,null,null,null,null,null,null,null,null,null,null,null,null,"KORABICA"]
[null,null,null,null,null,null,null,null,null,null,null,null,null,null,null,null,null,null,null,"MATOVILAC"]
[null,null,null,null,null,null,null,null,null,null,null,null,null,null,null,null,null,null,null,"PASTRNJAK"]
[null,null,null,null,null,null,null,null,null,null,null,null,null,null,null,null,null,null,null,"PORILUK"]
[null,null,null,null,null,null,null,null,null,null,null,null,null,null,null,null,null,null,null,"RADIČ, GLAVATI"]
[null,null,null,null,null,null,null,null,null,null,null,null,null,null,null,null,null,null,null,"RADIČ, VIŠEKRATNI"]
[null,null,null,null,null,null,null,null,null,null,null,null,null,null,null,null,null,null,null,"ROTKVICA"]
[null,null,null,null,null,null,null,null,null,null,null,null,null,null,null,null,null,null,null,"GRAH, VISOKI"]
[null,null,null,null,null,null,null,null,null,null,null,null,null,null,null,null,null,null,null,"KUPUS"]
[null,null,null,null,null,null,null,null,null,null,null,null,null,null,null,null,null,null,null,"SALATA, BATAVIA"]
[null,null,null,null,null,null,null,null,null,null,null,null,null,null,null,null,null,null,null,"SALATA, KRISTAL"]
[null,null,null,null,null,null,null,null,null,null,null,null,null,null,null,null,null,null,null,"SALATA, MASLENKA"]
[null,null,null,null,null,null,null,null,null,null,null,null,null,null,null,null,null,null,null,"ROTKVA, IZDUŽENA"]
[null,null,null,null,null,null,null,null,null,null,null,null,null,null,null,null,null,null,null,"RABARBARA"]
[null,null,null,null,null,null,null,null,null,null,null,null,null,null,null,null,null,null,null,"PERŠIN, LISTAŠ"]
[null,null,null,null,null,null,null,null,null,null,null,null,null,null,null,null,null,null,null,"MRKVA, MLADA"]
[null,null,null,null,null,null,null,null,null,null,null,null,null,null,null,null,null,null,null,"KOMORAČ"]
[null,null,null,null,null,null,null,null,null,null,null,null,null,null,null,null,null,null,null,"ANIS"]
[null,null,null,null,null,null,null,null,null,null,null,null,null,null,null,null,null,null,null,"ENDIVIJA"]
[null,null,null,null,null,null,null,null,null,null,null,null,null,null,null,null,null,null,null,"LUK, VLASAC"]
[null,null,null,null,null,null,null,null,null,null,null,null,null,null,null,null,null,null,null,"CRNI KORIJEN"]
[null,null,null,null,null,null,null,null,null,null,null,null,null,null,null,null,null,null,null,"RADIČ (POSPJEŠIVANJE)"]
[null,null,null,null,null,null,null,null,null,null,null,null,null,null,null,null,null,null,null,"TIKVICE, PUZAJUĆE"]
[null,null,null,null,null,null,null,null,null,null,null,null,null,null,null,null,null,null,null,"KRUMPIR, RANI"]
[null,null,null,null,null,null,null,null,null,null,null,null,null,null,null,null,null,null,null,"PAPRIKA, PLASTENIK"]
[null,null,null,null,null,null,null,null,null,null,null,null,null,null,null,null,null,null,null,"RAJČICA, PLASTENIK, KRATKO"]
[null,null,null,null,null,null,null,null,null,null,null,null,null,null,null,null,null,null,null,"KRASTAVAC, PLASTENIK"]
[null,null,null,null,null,null,null,null,null,null,null,null,null,null,null,null,null,null,null,"RAJČICA, PLASTENIK, DUGO"]
[null,null,null,null,null,null,null,null,null,null,null,null,null,null,null,null,null,null,null,"PATLIDŽAN, PLASTENIK"]
[null,null,null,null,null,null,null,null,null,null,null,null,null,null,null,null,null,null,null,"KORABICA, PLASTENIK"]
[null,null,null,null,null,null,null,null,null,null,null,null,null,null,null,null,null,null,null,"ROTKVA, PLASTENIK"]
[null,null,null,null,null,null,null,null,null,null,null,null,null,null,null,null,null,null,null,"ROTKVICA, PLASTENIK"]
[null,null,null,null,null,null,null,null,null,null,null,null,null,null,null,null,null,null,null,"SALATA, PLASTENIK"]
[null,null,null,null,null,null,null,null,null,null,null,null,null,null,null,null,null,null,null,"JAGODA, PLASTENIK"]
[null,null,null,null,null,null,null,null,null,null,null,null,null,null,null,null,null,null,null,"MAK"]
[null,null,null,null,null,null,null,null,null,null,null,null,null,null,null,null,null,null,null,"ARONIJA"]
[null,null,null,null,null,null,null,null,null,null,null,null,null,null,null,null,null,null,null,"BOROVNICA"]
[null,null,null,null,null,null,null,null,null,null,null,null,null,null,null,null,null,null,null,"KUPINA"]
[null,null,null,null,null,null,null,null,null,null,null,null,null,null,null,null,null,null,null,"MALINA"]
[null,null,null,null,null,null,null,null,null,null,null,null,null,null,null,null,null,null,null,"LJEŠNJAK"]
[null,null,null,null,null,null,null,null,null,null,null,null,null,null,null,null,null,null,null,"ORAH"]
[null,null,null,null,null,null,null,null,null,null,null,null,null,null,null,null,null,null,null,"LOZA, VINOVA"]
[null,null,null,null,null,null,null,null,null,null,null,null,null,null,null,null,null,null,null,"JABUKA"]
[null,null,null,null,null,null,null,null,null,null,null,null,null,null,null,null,null,null,null,"KRUŠKA"]
[null,null,null,null,null,null,null,null,null,null,null,null,null,null,null,null,null,null,null,"ŠLJIVA"]
[null,null,null,null,null,null,null,null,null,null,null,null,null,null,null,null,null,null,null,"VIŠNJA"]
[null,null,null,null,null,null,null,null,null,null,null,null,null,null,null,null,null,null,null,"BRESKVA"]
[null,null,null,null,null,null,null,null,null,null,null,null,null,null,null,null,null,null,null,"KAJSIJA"]
[null,null,null,null,null,null,null,null,null,null,null,null,null,null,null,null,null,null,null,"MARELICA"]
[null,null,null,null,null,null,null,null,null,null,null,null,null,null,null,null,null,null,null,"TREŠNJA"]
[null,null,null,null,null,null,null,null,null,null,null,null,null,null,null,null,null,null,null,"LUCERNA (2-3 GODINA)"]
[null,null,null,null,null,null,null,null,null,null,null,null,null,null,null,null,null,null,null,"PIR"]

{"sheet":"KO","index":2,"n_rows":3438,"n_cols":5,"rows_kept":3438,"cut":false,"hidden":true,"merged":[]}
["SIFRA","KO","ISPOSTAVA","PU","STRING"]
[320471,"ADA","OSIJEK","PUK OSIJEK",{"$f":"B2&\" / \"&C2&\" / \"&D2","v":"ADA / OSIJEK / PUK OSIJEK"}]
[325333,"ADAMOVEC","GU ZAGREB","PUK ZAGREB","ADAMOVEC / GU ZAGREB / PUK ZAGREB"]
[317560,"ADŽAMOVCI","NOVA GRADIŠKA","PUK SLAVONSKI BROD","ADŽAMOVCI / NOVA GRADIŠKA / PUK SLAVONSKI BROD"]
[326950,"ALILOVCI","POŽEGA","PUK POŽEGA","ALILOVCI / POŽEGA / PUK POŽEGA"]
[320480,"ALJMAŠ","OSIJEK","PUK OSIJEK","ALJMAŠ / OSIJEK / PUK OSIJEK"]
[304735,"ANDRAŠEVEC","DONJA STUBICA","PUK KRAPINA","ANDRAŠEVEC / DONJA STUBICA / PUK KRAPINA"]
[331961,"ANDRIJAŠEVCI","VINKOVCI","PUK VUKOVAR","ANDRIJAŠEVCI / VINKOVCI / PUK VUKOVAR"]
[336718,"ANDRIJEVAC","NAŠICE","PUK OSIJEK","ANDRIJEVAC / NAŠICE / PUK OSIJEK"]
[308013,"ANDRILOVEC","DUGO SELO","PUK ZAGREB","ANDRILOVEC / DUGO SELO / PUK ZAGREB"]
[331970,"ANTIN","VINKOVCI","PUK VUKOVAR","ANTIN / VINKOVCI / PUK VUKOVAR"]
[320498,"ANTUNOVAC","OSIJEK","PUK OSIJEK","ANTUNOVAC / OSIJEK / PUK OSIJEK"]
[321567,"ANTUNOVAC","PAKRAC","PUK POŽEGA","ANTUNOVAC / PAKRAC / PUK POŽEGA"]
[337838,"ANTUNOVAC","VIROVITICA","PUK VIROVITICA","ANTUNOVAC / VIROVITICA / PUK VIROVITICA"]
[315273,"APATOVEC","KRIŽEVCI","PUK KOPRIVNICA","APATOVEC / KRIŽEVCI / PUK KOPRIVNICA"]
[331988,"APŠEVCI","VINKOVCI","PUK VUKOVAR","APŠEVCI / VINKOVCI / PUK VUKOVAR"]
[311804,"ARŽANO","IMOTSKI","PUK SPLIT","ARŽANO / IMOTSKI / PUK SPLIT"]
[326968,"AŠIKOVCI","POŽEGA","PUK POŽEGA","AŠIKOVCI / POŽEGA / PUK POŽEGA"]
[331406,"AUGUŠTANOVEC","VELIKA GORICA","PUK ZAGREB","AUGUŠTANOVEC / VELIKA GORICA / PUK ZAGREB"]
[320773,"BABIN POTOK","OTOČAC","PUK GOSPIĆ","BABIN POTOK / OTOČAC / PUK GOSPIĆ"]
[336220,"BABINA GREDA - NEAŽURNO","ŽUPANJA","PUK VUKOVAR","BABINA GREDA - NEAŽURNO / ŽUPANJA / PUK VUKOVAR"]
[336220,"BABINA GREDA","ŽUPANJA","PUK VUKOVAR","BABINA GREDA / ŽUPANJA / PUK VUKOVAR"]
[314790,"BABINA RIJEKA","HRVATSKA KOSTAJNICA","PUK SISAK","BABINA RIJEKA / HRVATSKA KOSTAJNICA / PUK SISAK"]
[331015,"BABINEC","VARAŽDIN","PUK VARAŽDIN","BABINEC / VARAŽDIN / PUK VARAŽDIN"]
[306100,"BABINO POLJE","DUBROVNIK","PUK DUBROVNIK","BABINO POLJE / DUBROVNIK / PUK DUBROVNIK"]
[332402,"BAČEVAC","VIROVITICA","PUK VIROVITICA","BAČEVAC / VIROVITICA / PUK VIROVITICA"]
[300900,"BAČKOVICA","BJELOVAR","PUK BJELOVAR","BAČKOVICA / BJELOVAR / PUK BJELOVAR"]
[322601,"BAČUGA","PETRINJA","PUK SISAK","BAČUGA / PETRINJA / PUK SISAK"]
[323594,"BAČVA","POREČ","PUK PULA","BAČVA / POREČ / PUK PULA"]
[314803,"BAĆIN","HRVATSKA KOSTAJNICA","PUK SISAK","BAĆIN / HRVATSKA KOSTAJNICA / PUK SISAK"]
[317578,"BAĆIN DOL","NOVA GRADIŠKA","PUK SLAVONSKI BROD","BAĆIN DOL / NOVA GRADIŠKA / PUK SLAVONSKI BROD"]
[312894,"BAĆINA","PLOČE","PUK DUBROVNIK","BAĆINA / PLOČE / PUK DUBROVNIK"]
[305499,"BADANJ","DRNIŠ","PUK ŠIBENIK","BADANJ / DRNIŠ / PUK ŠIBENIK"]
[323608,"BADERNA","POREČ","PUK PULA","BADERNA / POREČ / PUK PULA"]
[302767,"BADLIČAN","ČAKOVEC","PUK ČAKOVEC","BADLIČAN / ČAKOVEC / PUK ČAKOVEC"]
[321575,"BADLJEVINA","PAKRAC","PUK POŽEGA","BADLJEVINA / PAKRAC / PUK POŽEGA"]
[332917,"BAĐINEC","VRBOVEC","PUK ZAGREB","BAĐINEC / VRBOVEC / PUK ZAGREB"]
[325473,"BAJAGIĆ","SINJ","PUK SPLIT","BAJAGIĆ / SINJ / PUK SPLIT"]
[337820,"BAJER","VIROVITICA","PUK VIROVITICA","BAJER / VIROVITICA / PUK VIROVITICA"]
[324469,"BAKAR","RIJEKA","PUK RIJEKA","BAKAR / RIJEKA / PUK RIJEKA"]
[324477,"BAKARAC","RIJEKA","PUK RIJEKA","BAKARAC / RIJEKA / PUK RIJEKA"]
[337889,"BAKAR-SVETI KUZAM","RIJEKA","PUK RIJEKA","BAKAR-SVETI KUZAM / RIJEKA / PUK RIJEKA"]
[323098,"BAKIĆ","SLATINA","PUK VIROVITICA","BAKIĆ / SLATINA / PUK VIROVITICA"]
[337382,"BAKOVČICA","KOPRIVNICA","PUK KOPRIVNICA","BAKOVČICA / KOPRIVNICA / PUK KOPRIVNICA"]
[324876,"BALE","ROVINJ","PUK PULA","BALE / ROVINJ / PUK PULA"]
[309915,"BALINAC","GLINA","PUK SISAK","BALINAC / GLINA / PUK SISAK"]
[305502,"BALJCI","DRNIŠ","PUK ŠIBENIK","BALJCI / DRNIŠ / PUK ŠIBENIK"]
[317586,"BANIĆEVAC","NOVA GRADIŠKA","PUK SLAVONSKI BROD","BANIĆEVAC / NOVA GRADIŠKA / PUK SLAVONSKI BROD"]
[338834,"BANIĆEVAC NOVI","NOVA GRADIŠKA","PUK SLAVONSKI BROD","BANIĆEVAC NOVI / NOVA GRADIŠKA / PUK SLAVONSKI BROD"]
[306118,"BANIĆI","DUBROVNIK","PUK DUBROVNIK","BANIĆI / DUBROVNIK / PUK DUBROVNIK"]
[320200,"BANKOVCI","ORAHOVICA","PUK VIROVITICA","BANKOVCI / ORAHOVICA / PUK VIROVITICA"]
[316075,"BANOVA JARUGA","KUTINA","PUK SISAK","BANOVA JARUGA / KUTINA / PUK SISAK"]
[321583,"BANOVAC","PAKRAC","PUK POŽEGA","BANOVAC / PAKRAC / PUK POŽEGA"]
[328090,"BANOVCI","SLAVONSKI BROD","PUK SLAVONSKI BROD","BANOVCI / SLAVONSKI BROD / PUK SLAVONSKI BROD"]
[332321,"BANOVCI","VINKOVCI","PUK VUKOVAR","BANOVCI / VINKOVCI / PUK VUKOVAR"]
[312983,"BANSKA SELNICA","KARLOVAC","PUK KARLOVAC","BANSKA SELNICA / KARLOVAC / PUK KARLOVAC"]
[312991,"BANSKI KOVAČEVAC","KARLOVAC","PUK KARLOVAC","BANSKI KOVAČEVAC / KARLOVAC / PUK KARLOVAC"]
[313009,"BANSKI MORAVCI","KARLOVAC","PUK KARLOVAC","BANSKI MORAVCI / KARLOVAC / PUK KARLOVAC"]
[300748,"BANJ","BIOGRAD NA MORU","PUK ZADAR","BANJ / BIOGRAD NA MORU / PUK ZADAR"]
[300365,"BANJEVCI","BENKOVAC","PUK ZADAR","BANJEVCI / BENKOVAC / PUK ZADAR"]
[324388,"BANJOL","RAB","PUK RIJEKA","BANJOL / RAB / PUK RIJEKA"]
[334014,"BAPSKA","ILOK","PUK VUKOVAR","BAPSKA / ILOK / PUK VUKOVAR"]
[300012,"BARANJSKO PETROVO SELO","BELI MANASTIR","PUK OSIJEK","BARANJSKO PETROVO SELO / BELI MANASTIR / PUK OSIJEK"]
[324051,"BARBAN","PULA","PUK PULA","BARBAN / PULA / PUK PULA"]
[324396,"BARBAT","RAB","PUK RIJEKA","BARBAT / RAB / PUK RIJEKA"]
[321494,"BARBATI","NOVALJA","PUK GOSPIĆ",{"$f":"B66&\" / \"&C66&\" / \"&D66","v":"BARBATI / NOVALJA / PUK GOSPIĆ"}]
[307459,"BARILOVIĆ","DUGA RESA","PUK KARLOVAC","BARILOVIĆ / DUGA RESA / PUK KARLOVAC"]
[310581,"BARLETE","GOSPIĆ","PUK GOSPIĆ","BARLETE / GOSPIĆ / PUK GOSPIĆ"]
[304077,"BASTAJSKI BRĐANI","DARUVAR","PUK BJELOVAR","BASTAJSKI BRĐANI / DARUVAR / PUK BJELOVAR"]
[316997,"BAST-BAŠKA VODA","MAKARSKA","PUK SPLIT","BAST-BAŠKA VODA / MAKARSKA / PUK SPLIT"]
[315834,"BAŠKA","KRK","PUK RIJEKA","BAŠKA / KRK / PUK RIJEKA"]
[337285,"BAŠKA-NOVA","KRK","PUK RIJEKA","BAŠKA-NOVA / KRK / PUK RIJEKA"]
[310590,"BAŠKE OŠTARIJE","GOSPIĆ","PUK GOSPIĆ","BAŠKE OŠTARIJE / GOSPIĆ / PUK GOSPIĆ"]
[300039,"BATINA","BELI MANASTIR","PUK OSIJEK","BATINA / BELI MANASTIR / PUK OSIJEK"]
[316083,"BATINA","KUTINA","PUK SISAK","BATINA / KUTINA / PUK SISAK"]
[333492,"BATINOVA KOSA","TOPUSKO","PUK SISAK","BATINOVA KOSA / TOPUSKO / PUK SISAK"]
[321591,"BATINJANI","PAKRAC","PUK POŽEGA","BATINJANI / PAKRAC / PUK POŽEGA"]
[315842,"BATOMALJ","KRK","PUK RIJEKA","BATOMALJ / KRK / PUK RIJEKA"]
[317594,"BATRINA","NOVA GRADIŠKA","PUK SLAVONSKI BROD","BATRINA / NOVA GRADIŠKA / PUK SLAVONSKI BROD"]
[309966,"BATURI","GLINA","PUK SISAK","BATURI / GLINA / PUK SISAK"]
[328103,"BEBRINA","SLAVONSKI BROD","PUK SLAVONSKI BROD","BEBRINA / SLAVONSKI BROD / PUK SLAVONSKI BROD"]
[328111,"BEČIC","SLAVONSKI BROD","PUK SLAVONSKI BROD","BEČIC / SLAVONSKI BROD / PUK SLAVONSKI BROD"]
[334324,"BEDEKOVČINA","ZABOK","PUK KRAPINA","BEDEKOVČINA / ZABOK / PUK KRAPINA"]
[335789,"BEDENICA","SVETI IVAN ZELINA","PUK ZAGREB","BEDENICA / SVETI IVAN ZELINA / PUK ZAGREB"]
[300918,"BEDENIČKA","BJELOVAR","PUK BJELOVAR","BEDENIČKA / BJELOVAR / PUK BJELOVAR"]
[300926,"BEDENIK","BJELOVAR","PUK BJELOVAR","BEDENIK / BJELOVAR / PUK BJELOVAR"]
[312061,"BEDNJA","IVANEC","PUK VARAŽDIN","BEDNJA / IVANEC / PUK VARAŽDIN"]
[304972,"BEGLUCI","GRAČAC","PUK ZADAR","BEGLUCI / GRAČAC / PUK ZADAR"]
[322610,"BEGOVIĆI","PETRINJA","PUK SISAK","BEGOVIĆI / PETRINJA / PUK SISAK"]
[304476,"BEGOVO RAZDOLJE","DELNICE","PUK RIJEKA","BEGOVO RAZDOLJE / DELNICE / PUK RIJEKA"]
[320501,"BEKETINCI","OSIJEK","PUK OSIJEK","BEKETINCI / OSIJEK / PUK OSIJEK"]
[326976,"BEKTEŽ","POŽEGA","PUK POŽEGA","BEKTEŽ / POŽEGA / PUK POŽEGA"]
[318426,"BELA","NOVI MAROF","PUK VARAŽDIN","BELA / NOVI MAROF / PUK VARAŽDIN"]
[307467,"BELAJ","DUGA RESA","PUK KARLOVAC","BELAJ / DUGA RESA / PUK KARLOVAC"]
[322130,"BELAJ","PAZIN","PUK PULA","BELAJ / PAZIN / PUK PULA"]
[335967,"BELEC","ZLATAR","PUK KRAPINA","BELEC / ZLATAR / PUK KRAPINA"]
[302309,"BELEJ","MALI LOŠINJ","PUK RIJEKA","BELEJ / MALI LOŠINJ / PUK RIJEKA"]
[331031,"BELETINEC","VARAŽDIN","PUK VARAŽDIN","BELETINEC / VARAŽDIN / PUK VARAŽDIN"]
[302562,"BELGRAD","CRIKVENICA","PUK RIJEKA","BELGRAD / CRIKVENICA / PUK RIJEKA"]
[302317,"BELI","CRES","PUK RIJEKA","BELI / CRES / PUK RIJEKA"]
[300047,"BELI MANASTIR","BELI MANASTIR","PUK OSIJEK","BELI MANASTIR / BELI MANASTIR / PUK OSIJEK"]
[302775,"BELICA","ČAKOVEC","PUK ČAKOVEC","BELICA / ČAKOVEC / PUK ČAKOVEC"]
[330809,"BELIŠĆE","VALPOVO","PUK OSIJEK","BELIŠĆE / VALPOVO / PUK OSIJEK"]
[304484,"BELO","DELNICE","PUK RIJEKA","BELO / DELNICE / PUK RIJEKA"]
[317225,"BELJEVINA","NAŠICE","PUK OSIJEK","BELJEVINA / NAŠICE / PUK OSIJEK"]
[305286,"BENIČANCI","DONJI MIHOLJAC","PUK OSIJEK","BENIČANCI / DONJI MIHOLJAC / PUK OSIJEK"]
[300373,"BENKOVAC","BENKOVAC","PUK ZADAR","BENKOVAC / BENKOVAC / PUK ZADAR"]
[317608,"BENKOVAC","NOVA GRADIŠKA","PUK SLAVONSKI BROD","BENKOVAC / NOVA GRADIŠKA / PUK SLAVONSKI BROD"]
[302783,"BENKOVEC","ČAKOVEC","PUK ČAKOVEC","BENKOVEC / ČAKOVEC / PUK ČAKOVEC"]
[334022,"BERAK","VUKOVAR","PUK VUKOVAR","BERAK / VUKOVAR / PUK VUKOVAR"]
[322148,"BERAM","PAZIN","PUK PULA","BERAM / PAZIN / PUK PULA"]
[328120,"BERAVCI","SLAVONSKI BROD","PUK SLAVONSKI BROD","BERAVCI / SLAVONSKI BROD / PUK SLAVONSKI BROD"]
[309613,"BEREK","GAREŠNICA","PUK BJELOVAR","BEREK / GAREŠNICA / PUK BJELOVAR"]
[331040,"BERETINEC","VARAŽDIN","PUK VARAŽDIN","BERETINEC / VARAŽDIN / PUK VARAŽDIN"]
[326984,"BERTELOVCI","POŽEGA","PUK POŽEGA","BERTELOVCI / POŽEGA / PUK POŽEGA"]
[326020,"BESTRMA","SISAK","PUK SISAK","BESTRMA / SISAK / PUK SISAK"]
[312282,"BEŠLINEC","IVANIĆ GRAD","PUK ZAGREB","BEŠLINEC / IVANIĆ GRAD / PUK ZAGREB"]
[334570,"BIBINJE","ZADAR","PUK ZADAR","BIBINJE / ZADAR / PUK ZADAR"]
[328138,"BICKO SELO","SLAVONSKI BROD","PUK SLAVONSKI BROD","BICKO SELO / SLAVONSKI BROD / PUK SLAVONSKI BROD"]
[304034,"BIJELA","DARUVAR","PUK BJELOVAR","BIJELA / DARUVAR / PUK BJELOVAR"]
[336696,"BIJELA LOZA","NAŠICE","PUK OSIJEK","BIJELA LOZA / NAŠICE / PUK OSIJEK"]
[317616,"BIJELA STIJENA","NOVA GRADIŠKA","PUK SLAVONSKI BROD","BIJELA STIJENA / NOVA GRADIŠKA / PUK SLAVONSKI BROD"]
[309923,"BIJELE VODE","GLINA","PUK SISAK","BIJELE VODE / GLINA / PUK SISAK"]
[322628,"BIJELNIK","PETRINJA","PUK SISAK","BIJELNIK / PETRINJA / PUK SISAK"]
[320510,"BIJELO BRDO","OSIJEK","PUK OSIJEK","BIJELO BRDO / OSIJEK / PUK OSIJEK"]
[310603,"BILAJ","GOSPIĆ","PUK GOSPIĆ","BILAJ / GOSPIĆ / PUK GOSPIĆ"]
[317624,"BILI BRIG","NOVA GRADIŠKA","PUK SLAVONSKI BROD","BILI BRIG / NOVA GRADIŠKA / PUK SLAVONSKI BROD"]
[329886,"BILICE","ŠIBENIK","PUK ŠIBENIK","BILICE / ŠIBENIK / PUK ŠIBENIK"]
[319040,"BILIŠANE","OBROVAC","PUK ZADAR","BILIŠANE / OBROVAC / PUK ZADAR"]
[300055,"BILJE","BELI MANASTIR","PUK OSIJEK",{"$f":"B130&\" / \"&C130&\" / \"&D130","v":"BILJE / BELI MANASTIR / PUK OSIJEK"}]
[305529,"BIOČIĆ","DRNIŠ","PUK ŠIBENIK","BIOČIĆ / DRNIŠ / PUK ŠIBENIK"]
[300756,"BIOGRAD NA MORU","BIOGRAD NA MORU","PUK ZADAR","BIOGRAD NA MORU / BIOGRAD NA MORU / PUK ZADAR"]
[311812,"BIORINE","IMOTSKI","PUK SPLIT","BIORINE / IMOTSKI / PUK SPLIT"]
[313769,"BIOVIČINO SELO","KNIN","PUK ŠIBENIK","BIOVIČINO SELO / KNIN / PUK ŠIBENIK"]
[318434,"BISAG","NOVI MAROF","PUK VARAŽDIN","BISAG / NOVI MAROF / PUK VARAŽDIN"]
[325481,"BISKO","SINJ","PUK SPLIT","BISKO / SINJ / PUK SPLIT"]
[313777,"BISKUPIJA","KNIN","PUK ŠIBENIK","BISKUPIJA / KNIN / PUK ŠIBENIK"]
[326038,"BISTRAČ","SISAK","PUK SISAK","BISTRAČ / SISAK / PUK SISAK"]
[335657,"BISTRANSKO PODGORJE","ZAPREŠIĆ","PUK ZAGREB","BISTRANSKO PODGORJE / ZAPREŠIĆ / PUK ZAGREB"]
[323101,"BISTRICA","SLATINA","PUK VIROVITICA","BISTRICA / SLATINA / PUK VIROVITICA"]
[330817,"BISTRINCI","VALPOVO","PUK OSIJEK","BISTRINCI / VALPOVO / PUK OSIJEK"]
[309931,"BIŠĆANOVO","GLINA","PUK SISAK","BIŠĆANOVO / GLINA / PUK SISAK"]
[336645,"BIŠKUPEC","VARAŽDIN","PUK VARAŽDIN","BIŠKUPEC / VARAŽDIN / PUK VARAŽDIN"]
[330825,"BIZOVAC","VALPOVO","PUK OSIJEK","BIZOVAC / VALPOVO / PUK OSIJEK"]
[321605,"BJELAJCI","PAKRAC","PUK POŽEGA","BJELAJCI / PAKRAC / PUK POŽEGA"]
[321613,"BJELANOVAC","PAKRAC","PUK POŽEGA","BJELANOVAC / PAKRAC / PUK POŽEGA"]
[300381,"BJELINA","BENKOVAC","PUK ZADAR","BJELINA / BENKOVAC / PUK ZADAR"]
[330388,"BJELOPOLJE","KORENICA","PUK GOSPIĆ","BJELOPOLJE / KORENICA / PUK GOSPIĆ"]
[314811,"BJELOVAC","HRVATSKA KOSTAJNICA","PUK SISAK","BJELOVAC / HRVATSKA KOSTAJNICA / PUK SISAK"]
[300934,"BJELOVAR","BJELOVAR","PUK BJELOVAR","BJELOVAR / BJELOVAR / PUK BJELOVAR"]
[338869,"BJELOVAR NOVI","BJELOVAR","PUK BJELOVAR","BJELOVAR NOVI / BJELOVAR / PUK BJELOVAR"]
[300942,"BJELOVAR-SREDICE","BJELOVAR","PUK BJELOVAR","BJELOVAR-SREDICE / BJELOVAR / PUK BJELOVAR"]
[329428,"BLACA","SOLIN","PUK SPLIT","BLACA / SOLIN / PUK SPLIT"]
[337137,"BLACE-TRN","METKOVIĆ","PUK DUBROVNIK","BLACE-TRN / METKOVIĆ / PUK DUBROVNIK"]
[326992,"BLACKO","POŽEGA","PUK POŽEGA","BLACKO / POŽEGA / PUK POŽEGA"]
[329037,"BLAGAJ","SLUNJ","PUK KARLOVAC","BLAGAJ / SLUNJ / PUK KARLOVAC"]
[304042,"BLAGORODOVAC","DARUVAR","PUK BJELOVAR","BLAGORODOVAC / DARUVAR / PUK BJELOVAR"]
[325341,"BLAGUŠA","GU ZAGREB","PUK ZAGREB","BLAGUŠA / GU ZAGREB / PUK ZAGREB"]
[335797,"BLAŠKOVEC","SVETI IVAN ZELINA","PUK ZAGREB","BLAŠKOVEC / SVETI IVAN ZELINA / PUK ZAGREB"]
[319171,"BLATA","OGULIN","PUK KARLOVAC","BLATA / OGULIN / PUK KARLOVAC"]
[303747,"BLATNICA","ČAZMA","PUK BJELOVAR","BLATNICA / ČAZMA / PUK BJELOVAR"]
[313017,"BLATNICA POKUPSKA","KARLOVAC","PUK KARLOVAC","BLATNICA POKUPSKA / KARLOVAC / PUK KARLOVAC"]
[314633,"BLATO","BLATO","PUK DUBROVNIK","BLATO / BLATO / PUK DUBROVNIK"]
[306126,"BLATO","DUBROVNIK","PUK DUBROVNIK","BLATO / DUBROVNIK / PUK DUBROVNIK"]
[335371,"BLATO","GU ZAGREB","PUK ZAGREB","BLATO / GU ZAGREB / PUK ZAGREB"]
[319546,"BLATO NA CETINI","OMIŠ","PUK SPLIT","BLATO NA CETINI / OMIŠ / PUK SPLIT"]
[333506,"BLATUŠA","TOPUSKO","PUK SISAK","BLATUŠA / TOPUSKO / PUK SISAK"]
[333344,"BLAŽEVCI","VRBOVSKO","PUK RIJEKA","BLAŽEVCI / VRBOVSKO / PUK RIJEKA"]
[335819,"BLAŽEVDOL","SVETI IVAN ZELINA","PUK ZAGREB","BLAŽEVDOL / SVETI IVAN ZELINA / PUK ZAGREB"]
[322636,"BLINJA","PETRINJA","PUK SISAK","BLINJA / PETRINJA / PUK SISAK"]
[326046,"BLINJSKI KUT","SISAK","PUK SISAK","BLINJSKI KUT / SISAK / PUK SISAK"]
[330663,"BLIZNA","TROGIR","PUK SPLIT","BLIZNA / TROGIR / PUK SPLIT"]
[317632,"BOBARE","NOVA GRADIŠKA","PUK SLAVONSKI BROD","BOBARE / NOVA GRADIŠKA / PUK SLAVONSKI BROD"]
[334049,"BOBOTA","VUKOVAR","PUK VUKOVAR","BOBOTA / VUKOVAR / PUK VUKOVAR"]
[326054,"BOBOVAC","SISAK","PUK SISAK","BOBOVAC / SISAK / PUK SISAK"]
[301540,"BOBOVIŠĆA","SUPETAR","PUK SPLIT","BOBOVIŠĆA / SUPETAR / PUK SPLIT"]
[330833,"BOCANJEVCI","VALPOVO","PUK OSIJEK","BOCANJEVCI / VALPOVO / PUK OSIJEK"]
[305294,"BOČKINCI","DONJI MIHOLJAC","PUK OSIJEK","BOČKINCI / DONJI MIHOLJAC / PUK OSIJEK"]
[315281,"BOČKOVEC","KRIŽEVCI","PUK KOPRIVNICA","BOČKOVEC / KRIŽEVCI / PUK KOPRIVNICA"]
[317659,"BODEGRAJ","NOVA GRADIŠKA","PUK SLAVONSKI BROD","BODEGRAJ / NOVA GRADIŠKA / PUK SLAVONSKI BROD"]
[317667,"BODOVALJCI","NOVA GRADIŠKA","PUK SLAVONSKI BROD","BODOVALJCI / NOVA GRADIŠKA / PUK SLAVONSKI BROD"]
[305545,"BOGATIĆ MILJEVAČKI","DRNIŠ","PUK ŠIBENIK","BOGATIĆ MILJEVAČKI / DRNIŠ / PUK ŠIBENIK"]
[305537,"BOGATIĆ PROMINSKI","DRNIŠ","PUK ŠIBENIK","BOGATIĆ PROMINSKI / DRNIŠ / PUK ŠIBENIK"]
[334057,"BOGDANOVCI","VUKOVAR","PUK VUKOVAR","BOGDANOVCI / VUKOVAR / PUK VUKOVAR"]
[302791,"BOGDANOVEC","ČAKOVEC","PUK ČAKOVEC","BOGDANOVEC / ČAKOVEC / PUK ČAKOVEC"]
[313424,"BOGDANOVIĆI","KAŠTEL SUĆURAC","PUK SPLIT","BOGDANOVIĆI / KAŠTEL SUĆURAC / PUK SPLIT"]
[311634,"BOGOMOLJE","STARI GRAD","PUK SPLIT","BOGOMOLJE / STARI GRAD / PUK SPLIT"]
[315869,"BOGOVIĆI","KRK","PUK RIJEKA","BOGOVIĆI / KRK / PUK RIJEKA"]
[329045,"BOGOVOLJA","SLUNJ","PUK KARLOVAC","BOGOVOLJA / SLUNJ / PUK KARLOVAC"]
[303755,"BOJANA","ČAZMA","PUK BJELOVAR","BOJANA / ČAZMA / PUK BJELOVAR"]
[309940,"BOJNA","GLINA","PUK SISAK","BOJNA / GLINA / PUK SISAK"]
[315290,"BOJNIKOVEC","KRIŽEVCI","PUK KOPRIVNICA","BOJNIKOVEC / KRIŽEVCI / PUK KOPRIVNICA"]
[326062,"BOK PALANJEČKI","SISAK","PUK SISAK","BOK PALANJEČKI / SISAK / PUK SISAK"]
[323110,"BOKANE","SLATINA","PUK VIROVITICA",{"$f":"B194&\" / \"&C194&\" / \"&D194","v":"BOKANE / SLATINA / PUK VIROVITICA"}]
[334588,"BOKANJAC","ZADAR","PUK ZADAR","BOKANJAC / ZADAR / PUK ZADAR"]
[324060,"BOKORDIĆI","PULA","PUK PULA","BOKORDIĆI / PULA / PUK PULA"]
[317233,"BOKŠIĆ","NAŠICE","PUK OSIJEK","BOKŠIĆ / NAŠICE / PUK OSIJEK"]
[301558,"BOL","SUPETAR","PUK SPLIT","BOL / SUPETAR / PUK SPLIT"]
[332925,"BOLČ","VRBOVEC","PUK ZAGREB","BOLČ / VRBOVEC / PUK ZAGREB"]
[316725,"BOLFAN","LUDBREG","PUK VARAŽDIN","BOLFAN / LUDBREG / PUK VARAŽDIN"]
[300063,"BOLMAN","BELI MANASTIR","PUK OSIJEK","BOLMAN / BELI MANASTIR / PUK OSIJEK"]
[327000,"BOLOMAČE","POŽEGA","PUK POŽEGA","BOLOMAČE / POŽEGA / PUK POŽEGA"]
[306134,"BOLJENOVIĆI","DUBROVNIK","PUK DUBROVNIK","BOLJENOVIĆI / DUBROVNIK / PUK DUBROVNIK"]
[322156,"BOLJUN","PAZIN","PUK PULA","BOLJUN / PAZIN / PUK PULA"]
[329894,"BORAJA","ŠIBENIK","PUK ŠIBENIK","BORAJA / ŠIBENIK / PUK ŠIBENIK"]
[304999,"BORIČEVAC","DONJI LAPAC","PUK GOSPIĆ","BORIČEVAC / DONJI LAPAC / PUK GOSPIĆ"]
[315303,"BORJE","KRIŽEVCI","PUK KOPRIVNICA","BORJE / KRIŽEVCI / PUK KOPRIVNICA"]
[304069,"BORKI","DARUVAR","PUK BJELOVAR","BORKI / DARUVAR / PUK BJELOVAR"]
[314820,"BOROJEVIĆI","HRVATSKA KOSTAJNICA","PUK SISAK","BOROJEVIĆI / HRVATSKA KOSTAJNICA / PUK SISAK"]
[332429,"BOROVA","VIROVITICA","PUK VIROVITICA","BOROVA / VIROVITICA / PUK VIROVITICA"]
[318710,"BOROVAC","NOVSKA","PUK SISAK","BOROVAC / NOVSKA / PUK SISAK"]
[317128,"BOROVCI","METKOVIĆ","PUK DUBROVNIK","BOROVCI / METKOVIĆ / PUK DUBROVNIK"]
[309958,"BOROVITA","GLINA","PUK SISAK","BOROVITA / GLINA / PUK SISAK"]
[334065,"BOROVO","VUKOVAR","PUK VUKOVAR","BOROVO / VUKOVAR / PUK VUKOVAR"]
[334073,"BOROVO NASELJE","VUKOVAR","PUK VUKOVAR","BOROVO NASELJE / VUKOVAR / PUK VUKOVAR"]
[322164,"BORUT","PAZIN","PUK PULA","BORUT / PAZIN / PUK PULA"]
[303763,"BOSILJEVO","ČAZMA","PUK BJELOVAR","BOSILJEVO / ČAZMA / PUK BJELOVAR"]
[307475,"BOSILJEVO","DUGA RESA","PUK KARLOVAC","BOSILJEVO / DUGA RESA / PUK KARLOVAC"]
[336238,"BOŠNJACI","ŽUPANJA","PUK VUKOVAR","BOŠNJACI / ŽUPANJA / PUK VUKOVAR"]
[314145,"BOTINOVAC","KOPRIVNICA","PUK KOPRIVNICA","BOTINOVAC / KOPRIVNICA / PUK KOPRIVNICA"]
[314153,"BOTOVO","KOPRIVNICA","PUK KOPRIVNICA","BOTOVO / KOPRIVNICA / PUK KOPRIVNICA"]
[333514,"BOVIĆ","TOPUSKO","PUK SISAK","BOVIĆ / TOPUSKO / PUK SISAK"]
[334596,"BOŽAVA","ZADAR","PUK ZADAR","BOŽAVA / ZADAR / PUK ZADAR"]
[308722,"BRAČEVCI","ĐAKOVO","PUK OSIJEK","BRAČEVCI / ĐAKOVO / PUK OSIJEK"]
[329436,"BRAČEVIĆ","SOLIN","PUK SPLIT","BRAČEVIĆ / SOLIN / PUK SPLIT"]
[307483,"BRAJAKOVO BRDO","DUGA RESA","PUK KARLOVAC","BRAJAKOVO BRDO / DUGA RESA / PUK KARLOVAC"]
[321621,"BRANEŠCI","PAKRAC","PUK POŽEGA","BRANEŠCI / PAKRAC / PUK POŽEGA"]
[300071,"BRANJIN VRH","BELI MANASTIR","PUK OSIJEK","BRANJIN VRH / BELI MANASTIR / PUK OSIJEK"]
[300080,"BRANJINA","BELI MANASTIR","PUK OSIJEK","BRANJINA / BELI MANASTIR / PUK OSIJEK"]
[314161,"BRANJSKA","KOPRIVNICA","PUK KOPRIVNICA","BRANJSKA / KOPRIVNICA / PUK KOPRIVNICA"]
[306142,"BRAŠINA","DUBROVNIK","PUK DUBROVNIK","BRAŠINA / DUBROVNIK / PUK DUBROVNIK"]
[338753,"BRAŠINA NOVA","DUBROVNIK","PUK DUBROVNIK","BRAŠINA NOVA / DUBROVNIK / PUK DUBROVNIK"]
[321095,"BRAŠLJEVICA","OZALJ","PUK KARLOVAC","BRAŠLJEVICA / OZALJ / PUK KARLOVAC"]
[329908,"BRATIŠKOVCI","ŠIBENIK","PUK ŠIBENIK","BRATIŠKOVCI / ŠIBENIK / PUK ŠIBENIK"]
[321109,"BRATOVANCI","OZALJ","PUK KARLOVAC","BRATOVANCI / OZALJ / PUK KARLOVAC"]
[327018,"BRATULJEVCI","POŽEGA","PUK POŽEGA","BRATULJEVCI / POŽEGA / PUK POŽEGA"]
[334600,"BRBINJ","ZADAR","PUK ZADAR","BRBINJ / ZADAR / PUK ZADAR"]
[308021,"BRCKOVLJANI","DUGO SELO","PUK ZAGREB","BRCKOVLJANI / DUGO SELO / PUK ZAGREB"]
[336513,"BRČEVEC","VRBOVEC","PUK ZAGREB","BRČEVEC / VRBOVEC / PUK ZAGREB"]
[319821,"BRDCE","OPATIJA","PUK RIJEKA","BRDCE / OPATIJA / PUK RIJEKA"]
[301779,"BRDO","BUJE","PUK PULA","BRDO / BUJE / PUK PULA"]
[316393,"BRDO","LABIN","PUK PULA","BRDO / LABIN / PUK PULA"]
[335665,"BRDOVEC","ZAPREŠIĆ","PUK ZAGREB","BRDOVEC / ZAPREŠIĆ / PUK ZAGREB"]
[308196,"BRĐANI","DVOR","PUK SISAK","BRĐANI / DVOR / PUK SISAK"]
[317675,"BRĐANI","NOVA GRADIŠKA","PUK SLAVONSKI BROD","BRĐANI / NOVA GRADIŠKA / PUK SLAVONSKI BROD"]
[326089,"BRĐANI","SISAK","PUK SISAK","BRĐANI / SISAK / PUK SISAK"]
[337056,"BREGANA","SAMOBOR","PUK ZAGREB","BREGANA / SAMOBOR / PUK ZAGREB"]
[319830,"BREGI","OPATIJA","PUK RIJEKA","BREGI / OPATIJA / PUK RIJEKA"]
[321630,"BREKINSKA","PAKRAC","PUK POŽEGA","BREKINSKA / PAKRAC / PUK POŽEGA"]
[317004,"BRELA","MAKARSKA","PUK SPLIT","BRELA / MAKARSKA / PUK SPLIT"]
[322172,"BREST POD UČKOM","PAZIN","PUK PULA","BREST POD UČKOM / PAZIN / PUK PULA"]
[322644,"BREST POKUPSKI","PETRINJA","PUK SISAK","BREST POKUPSKI / PETRINJA / PUK SISAK"]
[318728,"BRESTAČA","NOVSKA","PUK SISAK","BRESTAČA / NOVSKA / PUK SISAK"]
[309974,"BRESTIK","GLINA","PUK SISAK","BRESTIK / GLINA / PUK SISAK"]
[304085,"BRESTOVAC","DARUVAR","PUK BJELOVAR","BRESTOVAC / DARUVAR / PUK BJELOVAR"]
[327026,"BRESTOVAC","POŽEGA","PUK POŽEGA","BRESTOVAC / POŽEGA / PUK POŽEGA"]
[312304,"BREŠKA GREDA","IVANIĆ GRAD","PUK ZAGREB","BREŠKA GREDA / IVANIĆ GRAD / PUK ZAGREB"]
[324485,"BREZA","RIJEKA","PUK RIJEKA",{"$f":"B258&\" / \"&C258&\" / \"&D258","v":"BREZA / RIJEKA / PUK RIJEKA"}]
[310611,"BREZIK","GOSPIĆ","PUK GOSPIĆ","BREZIK / GOSPIĆ / PUK GOSPIĆ"]
[321648,"BREZINE","PAKRAC","PUK POŽEGA","BREZINE / PAKRAC / PUK POŽEGA"]
[332933,"BREZINE","VRBOVEC","PUK ZAGREB","BREZINE / VRBOVEC / PUK ZAGREB"]
[332941,"BREZJE","VRBOVEC","PUK ZAGREB","BREZJE / VRBOVEC / PUK ZAGREB"]
[318442,"BREZNICA","NOVI MAROF","PUK VARAŽDIN","BREZNICA / NOVI MAROF / PUK VARAŽDIN"]
[308749,"BREZNICA ĐAKOVAČKA","ĐAKOVO","PUK OSIJEK","BREZNICA ĐAKOVAČKA / ĐAKOVO / PUK OSIJEK"]
[317241,"BREZNICA NAŠIČKA","NAŠICE","PUK OSIJEK","BREZNICA NAŠIČKA / NAŠICE / PUK OSIJEK"]
[321117,"BREZNIK","OZALJ","PUK KARLOVAC","BREZNIK / OZALJ / PUK KARLOVAC"]
[323861,"BREZNO","PREGRADA","PUK KRAPINA","BREZNO / PREGRADA / PUK KRAPINA"]
[300977,"BREZOVAC","BJELOVAR","PUK BJELOVAR","BREZOVAC / BJELOVAR / PUK BJELOVAR"]
[335380,"BREZOVICA","GU ZAGREB","PUK ZAGREB","BREZOVICA / GU ZAGREB / PUK ZAGREB"]
[332526,"BREZOVICA","VIROVITICA","PUK VIROVITICA","BREZOVICA / VIROVITICA / PUK VIROVITICA"]
[320226,"BREZOVLJANI","ORAHOVICA","PUK VIROVITICA","BREZOVLJANI / ORAHOVICA / PUK VIROVITICA"]
[309982,"BREZOVO POLJE","GLINA","PUK SISAK","BREZOVO POLJE / GLINA / PUK SISAK"]
[300390,"BRGUD","BENKOVAC","PUK ZADAR","BRGUD / BENKOVAC / PUK ZADAR"]
[319848,"BRGUD","OPATIJA","PUK RIJEKA","BRGUD / OPATIJA / PUK RIJEKA"]
[302058,"BRGUDAC","BUZET","PUK PULA","BRGUDAC / BUZET / PUK PULA"]
[302589,"BRIBIR","CRIKVENICA","PUK RIJEKA","BRIBIR / CRIKVENICA / PUK RIJEKA"]
[329916,"BRIBIR","ŠIBENIK","PUK ŠIBENIK","BRIBIR / ŠIBENIK / PUK ŠIBENIK"]
[306169,"BRIJESTA","DUBROVNIK","PUK DUBROVNIK","BRIJESTA / DUBROVNIK / PUK DUBROVNIK"]
[320692,"BRIJEŠĆE","OSIJEK","PUK OSIJEK","BRIJEŠĆE / OSIJEK / PUK OSIJEK"]
[320781,"BRINJE","OTOČAC","PUK GOSPIĆ","BRINJE / OTOČAC / PUK GOSPIĆ"]
[324078,"BRIONI","PULA","PUK PULA","BRIONI / PULA / PUK PULA"]
[312908,"BRIST","MAKARSKA","PUK SPLIT","BRIST / MAKARSKA / PUK SPLIT"]
[330671,"BRISTIVICA","TROGIR","PUK SPLIT","BRISTIVICA / TROGIR / PUK SPLIT"]
[334618,"BRIŠEVO","ZADAR","PUK ZADAR","BRIŠEVO / ZADAR / PUK ZADAR"]
[305553,"BRIŠTANI","DRNIŠ","PUK ŠIBENIK","BRIŠTANI / DRNIŠ / PUK ŠIBENIK"]
[322199,"BRKAČ","PAZIN","PUK PULA","BRKAČ / PAZIN / PUK PULA"]
[326097,"BRKIŠEVINA","SISAK","PUK SISAK","BRKIŠEVINA / SISAK / PUK SISAK"]
[312533,"BRLENIĆ","JASTREBARSKO","PUK ZAGREB","BRLENIĆ / JASTREBARSKO / PUK ZAGREB"]
[320790,"BRLOG","OTOČAC","PUK GOSPIĆ","BRLOG / OTOČAC / PUK GOSPIĆ"]
[321125,"BRLOG OZALJSKI","OZALJ","PUK KARLOVAC","BRLOG OZALJSKI / OZALJ / PUK KARLOVAC"]
[320803,"BRLOŠKA DUBRAVA","OTOČAC","PUK GOSPIĆ","BRLOŠKA DUBRAVA / OTOČAC / PUK GOSPIĆ"]
[325490,"BRNAZE","SINJ","PUK SPLIT","BRNAZE / SINJ / PUK SPLIT"]
[333522,"BRNJAVAC","TOPUSKO","PUK SISAK","BRNJAVAC / TOPUSKO / PUK SISAK"]
[310000,"BRNJEUŠKA","GLINA","PUK SISAK","BRNJEUŠKA / GLINA / PUK SISAK"]
[306177,"BROCE","DUBROVNIK","PUK DUBROVNIK","BROCE / DUBROVNIK / PUK DUBROVNIK"]
[318736,"BROČICE","NOVSKA","PUK SISAK","BROČICE / NOVSKA / PUK SISAK"]
[329053,"BROĆANAC","SLUNJ","PUK KARLOVAC","BROĆANAC / SLUNJ / PUK KARLOVAC"]
[304492,"BROD MORAVICE","DELNICE","PUK RIJEKA","BROD MORAVICE / DELNICE / PUK RIJEKA"]
[304506,"BROD NA KUPI","DELNICE","PUK RIJEKA","BROD NA KUPI / DELNICE / PUK RIJEKA"]
[327034,"BRODSKI DRENOVAC","POŽEGA","PUK POŽEGA","BRODSKI DRENOVAC / POŽEGA / PUK POŽEGA"]
[328146,"BRODSKI STUPNIK","SLAVONSKI BROD","PUK SLAVONSKI BROD","BRODSKI STUPNIK / SLAVONSKI BROD / PUK SLAVONSKI BROD"]
[328154,"BRODSKI VAROŠ","SLAVONSKI BROD","PUK SLAVONSKI BROD","BRODSKI VAROŠ / SLAVONSKI BROD / PUK SLAVONSKI BROD"]
[328995,"BRODSKI ZDENCI","SLAVONSKI BROD","PUK SLAVONSKI BROD","BRODSKI ZDENCI / SLAVONSKI BROD / PUK SLAVONSKI BROD"]
[328162,"BRODSKO VINOGORJE","SLAVONSKI BROD","PUK SLAVONSKI BROD","BRODSKO VINOGORJE / SLAVONSKI BROD / PUK SLAVONSKI BROD"]
[330841,"BROĐANCI","VALPOVO","PUK OSIJEK","BROĐANCI / VALPOVO / PUK OSIJEK"]
[306185,"BROTNICE","DUBROVNIK","PUK DUBROVNIK","BROTNICE / DUBROVNIK / PUK DUBROVNIK"]
[305006,"BROTNJA","GRAČAC","PUK ZADAR","BROTNJA / GRAČAC / PUK ZADAR"]
[319856,"BRSEČ","OPATIJA","PUK RIJEKA","BRSEČ / OPATIJA / PUK RIJEKA"]
[306193,"BRSEČINE","DUBROVNIK","PUK DUBROVNIK","BRSEČINE / DUBROVNIK / PUK DUBROVNIK"]
[334081,"BRŠADIN","VUKOVAR","PUK VUKOVAR","BRŠADIN / VUKOVAR / PUK VUKOVAR"]
[309621,"BRŠLJANICA","GAREŠNICA","PUK BJELOVAR","BRŠLJANICA / GAREŠNICA / PUK BJELOVAR"]
[329452,"BRŠTANOVO","SOLIN","PUK SPLIT","BRŠTANOVO / SOLIN / PUK SPLIT"]
[301787,"BRTONIGLA","BUJE","PUK PULA","BRTONIGLA / BUJE / PUK PULA"]
[310018,"BRUBNO","GLINA","PUK SISAK","BRUBNO / GLINA / PUK SISAK"]
[311642,"BRUSJE","HVAR","PUK SPLIT","BRUSJE / HVAR / PUK SPLIT"]
[310620,"BRUŠANE","GOSPIĆ","PUK GOSPIĆ","BRUŠANE / GOSPIĆ / PUK GOSPIĆ"]
[300403,"BRUŠKA","BENKOVAC","PUK ZADAR","BRUŠKA / BENKOVAC / PUK ZADAR"]
[311073,"BRUVNO","GRAČAC","PUK ZADAR","BRUVNO / GRAČAC / PUK ZADAR"]
[311375,"BRZAJA","GRUBIŠNO POLJE","PUK BJELOVAR","BRZAJA / GRUBIŠNO POLJE / PUK BJELOVAR"]
[321133,"BUBNJARCI","OZALJ","PUK KARLOVAC","BUBNJARCI / OZALJ / PUK KARLOVAC"]
[310026,"BUČICA","GLINA","PUK SISAK","BUČICA / GLINA / PUK SISAK"]
[308757,"BUČJE","ĐAKOVO","PUK OSIJEK",{"$f":"B322&\" / \"&C322&\" / \"&D322","v":"BUČJE / ĐAKOVO / PUK OSIJEK"}]
[327042,"BUČJE","POŽEGA","PUK POŽEGA","BUČJE / POŽEGA / PUK POŽEGA"]
[313025,"BUDAČKA RIJEKA","KARLOVAC","PUK KARLOVAC","BUDAČKA RIJEKA / KARLOVAC / PUK KARLOVAC"]
[309249,"BUDANČEVICA","ĐURĐEVAC","PUK KOPRIVNICA","BUDANČEVICA / ĐURĐEVAC / PUK KOPRIVNICA"]
[332437,"BUDANICA","VIROVITICA","PUK VIROVITICA","BUDANICA / VIROVITICA / PUK VIROVITICA"]
[326119,"BUDAŠEVO-TOPOLOVAC","SISAK","PUK SISAK","BUDAŠEVO-TOPOLOVAC / SISAK / PUK SISAK"]
[321656,"BUDIĆI","PAKRAC","PUK POŽEGA","BUDIĆI / PAKRAC / PUK POŽEGA"]
[317250,"BUDIMCI","NAŠICE","PUK OSIJEK","BUDIMCI / NAŠICE / PUK OSIJEK"]
[325503,"BUDIMIRI","SINJ","PUK SPLIT","BUDIMIRI / SINJ / PUK SPLIT"]
[335975,"BUDINŠČINA","ZLATAR","PUK KRAPINA","BUDINŠČINA / ZLATAR / PUK KRAPINA"]
[324965,"BUDINJAK","SAMOBOR","PUK ZAGREB","BUDINJAK / SAMOBOR / PUK ZAGREB"]
[309257,"BUDROVAC","ĐURĐEVAC","PUK KOPRIVNICA","BUDROVAC / ĐURĐEVAC / PUK KOPRIVNICA"]
[332445,"BUDROVAC LUKAČKI","VIROVITICA","PUK VIROVITICA","BUDROVAC LUKAČKI / VIROVITICA / PUK VIROVITICA"]
[308765,"BUDROVCI","ĐAKOVO","PUK OSIJEK","BUDROVCI / ĐAKOVO / PUK OSIJEK"]
[306207,"BUIĆI","DUBROVNIK","PUK DUBROVNIK","BUIĆI / DUBROVNIK / PUK DUBROVNIK"]
[308200,"BUINJA","DVOR","PUK SISAK","BUINJA / DVOR / PUK SISAK"]
[321664,"BUJAVICA","PAKRAC","PUK POŽEGA","BUJAVICA / PAKRAC / PUK POŽEGA"]
[301795,"BUJE","BUJE","PUK PULA","BUJE / BUJE / PUK PULA"]
[327069,"BUK","POŽEGA","PUK POŽEGA","BUK / POŽEGA / PUK POŽEGA"]
[331414,"BUKEVJE","VELIKA GORICA","PUK ZAGREB","BUKEVJE / VELIKA GORICA / PUK ZAGREB"]
[304514,"BUKOV VRH","DELNICE","PUK RIJEKA","BUKOV VRH / DELNICE / PUK RIJEKA"]
[331422,"BUKOVČAK","VELIKA GORICA","PUK ZAGREB","BUKOVČAK / VELIKA GORICA / PUK ZAGREB"]
[321672,"BUKOVČANI","PAKRAC","PUK POŽEGA","BUKOVČANI / PAKRAC / PUK POŽEGA"]
[333549,"BUKOVICA","TOPUSKO","PUK SISAK","BUKOVICA / TOPUSKO / PUK SISAK"]
[332771,"BUKOVICA UTINJSKA","VOJNIĆ","PUK KARLOVAC","BUKOVICA UTINJSKA / VOJNIĆ / PUK KARLOVAC"]
[300411,"BUKOVIĆ","BENKOVAC","PUK ZADAR","BUKOVIĆ / BENKOVAC / PUK ZADAR"]
[307491,"BUKOVLJE","DUGA RESA","PUK KARLOVAC","BUKOVLJE / DUGA RESA / PUK KARLOVAC"]
[328189,"BUKOVLJE","SLAVONSKI BROD","PUK SLAVONSKI BROD","BUKOVLJE / SLAVONSKI BROD / PUK SLAVONSKI BROD"]
[330396,"BUNIĆ","KORENICA","PUK GOSPIĆ","BUNIĆ / KORENICA / PUK GOSPIĆ"]
[313033,"BURIĆ SELO","KARLOVAC","PUK KARLOVAC","BURIĆ SELO / KARLOVAC / PUK KARLOVAC"]
[327077,"BUSNOVI","POŽEGA","PUK POŽEGA","BUSNOVI / POŽEGA / PUK POŽEGA"]
[332453,"BUŠETINA","VIROVITICA","PUK VIROVITICA","BUŠETINA / VIROVITICA / PUK VIROVITICA"]
[331449,"BUŠEVEC","VELIKA GORICA","PUK ZAGREB","BUŠEVEC / VELIKA GORICA / PUK ZAGREB"]
[305014,"BUŠEVIĆ","DONJI LAPAC","PUK GOSPIĆ","BUŠEVIĆ / DONJI LAPAC / PUK GOSPIĆ"]
[318469,"BUTKOVEC","NOVI MAROF","PUK VARAŽDIN","BUTKOVEC / NOVI MAROF / PUK VARAŽDIN"]
[322202,"BUTONIGA","PAZIN","PUK PULA","BUTONIGA / PAZIN / PUK PULA"]
[302066,"BUZET","BUZET","PUK PULA","BUZET / BUZET / PUK PULA"]
[310034,"BUZETA","GLINA","PUK SISAK","BUZETA / GLINA / PUK SISAK"]
[302074,"BUZET-STARI GRAD","BUZET","PUK PULA","BUZET-STARI GRAD / BUZET / PUK PULA"]
[310638,"BUŽIM","GOSPIĆ","PUK GOSPIĆ","BUŽIM / GOSPIĆ / PUK GOSPIĆ"]
[332461,"CABUNA","VIROVITICA","PUK VIROVITICA","CABUNA / VIROVITICA / PUK VIROVITICA"]
[317683,"CAGE","NOVA GRADIŠKA","PUK SLAVONSKI BROD","CAGE / NOVA GRADIŠKA / PUK SLAVONSKI BROD"]
[312312,"CAGINEC","IVANIĆ GRAD","PUK ZAGREB","CAGINEC / IVANIĆ GRAD / PUK ZAGREB"]
[315311,"CAREVDAR","KRIŽEVCI","PUK KOPRIVNICA","CAREVDAR / KRIŽEVCI / PUK KOPRIVNICA"]
[319180,"CAREVO POLJE","OGULIN","PUK KARLOVAC","CAREVO POLJE / OGULIN / PUK KARLOVAC"]
[306215,"CAVTAT","DUBROVNIK","PUK DUBROVNIK","CAVTAT / DUBROVNIK / PUK DUBROVNIK"]
[335240,"CENTAR","GU ZAGREB","PUK ZAGREB","CENTAR / GU ZAGREB / PUK ZAGREB"]
[322679,"CEPELIŠ","PETRINJA","PUK SISAK","CEPELIŠ / PETRINJA / PUK SISAK"]
[300420,"CERANJE","BENKOVAC","PUK ZADAR","CERANJE / BENKOVAC / PUK ZADAR"]
[316407,"CERE","LABIN","PUK PULA","CERE / LABIN / PUK PULA"]
[317268,"CEREMOŠNJAK","NAŠICE","PUK OSIJEK","CEREMOŠNJAK / NAŠICE / PUK OSIJEK"]
[331996,"CERIĆ","VINKOVCI","PUK VUKOVAR","CERIĆ / VINKOVCI / PUK VUKOVAR"]
[303771,"CERINA","ČAZMA","PUK BJELOVAR","CERINA / ČAZMA / PUK BJELOVAR"]
[326127,"CERJE LETOVANIĆKO","SISAK","PUK SISAK","CERJE LETOVANIĆKO / SISAK / PUK SISAK"]
[324973,"CERJE SAMOBORSKO","SAMOBOR","PUK ZAGREB","CERJE SAMOBORSKO / SAMOBOR / PUK ZAGREB"]
[312070,"CERJE TUŽNO","IVANEC","PUK VARAŽDIN","CERJE TUŽNO / IVANEC / PUK VARAŽDIN"]
[336246,"CERNA","ŽUPANJA","PUK VUKOVAR","CERNA / ŽUPANJA / PUK VUKOVAR"]
[317691,"CERNIK","NOVA GRADIŠKA","PUK SLAVONSKI BROD","CERNIK / NOVA GRADIŠKA / PUK SLAVONSKI BROD"]
[324493,"CERNIK-ČAVLE","RIJEKA","PUK RIJEKA","CERNIK-ČAVLE / RIJEKA / PUK RIJEKA"]
[327085,"CEROVAC","POŽEGA","PUK POŽEGA","CEROVAC / POŽEGA / PUK POŽEGA"]
[307505,"CEROVAC BARILOVIĆKI","DUGA RESA","PUK KARLOVAC","CEROVAC BARILOVIĆKI / DUGA RESA / PUK KARLOVAC"]
[313041,"CEROVAC VUKMANIČKI","KARLOVAC","PUK KARLOVAC","CEROVAC VUKMANIČKI / KARLOVAC / PUK KARLOVAC"]
[314838,"CEROVLJANI","HRVATSKA KOSTAJNICA","PUK SISAK","CEROVLJANI / HRVATSKA KOSTAJNICA / PUK SISAK"]
[322229,"CEROVLJE","PAZIN","PUK PULA","CEROVLJE / PAZIN / PUK PULA"]
[319198,"CEROVNIK","OGULIN","PUK KARLOVAC",{"$f":"B386&\" / \"&C386&\" / \"&D386","v":"CEROVNIK / OGULIN / PUK KARLOVAC"}]
[331457,"CEROVSKI VRH","VELIKA GORICA","PUK ZAGREB","CEROVSKI VRH / VELIKA GORICA / PUK ZAGREB"]
[310646,"CESARICA","GOSPIĆ","PUK GOSPIĆ","CESARICA / GOSPIĆ / PUK GOSPIĆ"]
[338788,"CESARICA NOVA","GOSPIĆ","PUK GOSPIĆ","CESARICA NOVA / GOSPIĆ / PUK GOSPIĆ"]
[313785,"CETINA","KNIN","PUK ŠIBENIK","CETINA / KNIN / PUK ŠIBENIK"]
[329061,"CETINGRAD","SLUNJ","PUK KARLOVAC","CETINGRAD / SLUNJ / PUK KARLOVAC"]
[329070,"CETINSKI VAROŠ","SLUNJ","PUK KARLOVAC","CETINSKI VAROŠ / SLUNJ / PUK KARLOVAC"]
[300985,"CIGLENA","BJELOVAR","PUK BJELOVAR","CIGLENA / BJELOVAR / PUK BJELOVAR"]
[309630,"CIGLENICA","GAREŠNICA","PUK BJELOVAR","CIGLENICA / GAREŠNICA / PUK BJELOVAR"]
[327093,"CIGLENIK","POŽEGA","PUK POŽEGA","CIGLENIK / POŽEGA / PUK POŽEGA"]
[328197,"CIGLENIK","SLAVONSKI BROD","PUK SLAVONSKI BROD","CIGLENIK / SLAVONSKI BROD / PUK SLAVONSKI BROD"]
[323870,"CIGROVEC","PREGRADA","PUK KRAPINA","CIGROVEC / PREGRADA / PUK KRAPINA"]
[321699,"CIKOTE","PAKRAC","PUK POŽEGA","CIKOTE / PAKRAC / PUK POŽEGA"]
[302805,"CIRKOVLJAN","PRELOG","PUK ČAKOVEC","CIRKOVLJAN / PRELOG / PUK ČAKOVEC"]
[315320,"CIRKVENA","KRIŽEVCI","PUK KOPRIVNICA","CIRKVENA / KRIŽEVCI / PUK KOPRIVNICA"]
[311839,"CISTA","IMOTSKI","PUK SPLIT","CISTA / IMOTSKI / PUK SPLIT"]
[313793,"CIVLJANE","KNIN","PUK ŠIBENIK","CIVLJANE / KNIN / PUK ŠIBENIK"]
[304093,"CJEPIDLAKE","DARUVAR","PUK BJELOVAR","CJEPIDLAKE / DARUVAR / PUK BJELOVAR"]
[311383,"CREMUŠINA","GRUBIŠNO POLJE","PUK BJELOVAR","CREMUŠINA / GRUBIŠNO POLJE / PUK BJELOVAR"]
[302325,"CRES","CRES","PUK RIJEKA","CRES / CRES / PUK RIJEKA"]
[302333,"CRES-GRAD","CRES","PUK RIJEKA","CRES-GRAD / CRES / PUK RIJEKA"]
[302597,"CRIKVENICA","CRIKVENICA","PUK RIJEKA","CRIKVENICA / CRIKVENICA / PUK RIJEKA"]
[329479,"CRIVAC","SOLIN","PUK SPLIT","CRIVAC / SOLIN / PUK SPLIT"]
[326135,"CRKVENI BOK","SISAK","PUK SISAK","CRKVENI BOK / SISAK / PUK SISAK"]
[320234,"CRNAC","ORAHOVICA","PUK VIROVITICA","CRNAC / ORAHOVICA / PUK VIROVITICA"]
[326143,"CRNAC","SISAK","PUK SISAK","CRNAC / SISAK / PUK SISAK"]
[304522,"CRNI LUG","DELNICE","PUK RIJEKA","CRNI LUG / DELNICE / PUK RIJEKA"]
[328219,"CRNI POTOK","SLAVONSKI BROD","PUK SLAVONSKI BROD","CRNI POTOK / SLAVONSKI BROD / PUK SLAVONSKI BROD"]
[333565,"CRNI POTOK","TOPUSKO","PUK SISAK","CRNI POTOK / TOPUSKO / PUK SISAK"]
[329924,"CRNICA","ŠIBENIK","PUK ŠIBENIK","CRNICA / ŠIBENIK / PUK ŠIBENIK"]
[334626,"CRNO","ZADAR","PUK ZADAR","CRNO / ZADAR / PUK ZADAR"]
[317705,"CRNOGOVCI","NOVA GRADIŠKA","PUK SLAVONSKI BROD","CRNOGOVCI / NOVA GRADIŠKA / PUK SLAVONSKI BROD"]
[315338,"CUBINEC","KRIŽEVCI","PUK KOPRIVNICA","CUBINEC / KRIŽEVCI / PUK KOPRIVNICA"]
[332950,"CUGOVEC","VRBOVEC","PUK ZAGREB","CUGOVEC / VRBOVEC / PUK ZAGREB"]
[312541,"CVETKOVIĆ","JASTREBARSKO","PUK ZAGREB","CVETKOVIĆ / JASTREBARSKO / PUK ZAGREB"]
[331465,"CVETKOVIĆ BRDO","VELIKA GORICA","PUK ZAGREB","CVETKOVIĆ BRDO / VELIKA GORICA / PUK ZAGREB"]
[329088,"CVIJANOVIĆ BRDO","SLUNJ","PUK KARLOVAC","CVIJANOVIĆ BRDO / SLUNJ / PUK KARLOVAC"]
[329096,"CVITOVIĆ","SLUNJ","PUK KARLOVAC","CVITOVIĆ / SLUNJ / PUK KARLOVAC"]
[302694,"ČABAR","ČABAR","PUK RIJEKA","ČABAR / ČABAR / PUK RIJEKA"]
[320242,"ČAČINCI","ORAHOVICA","PUK VIROVITICA","ČAČINCI / ORAHOVICA / PUK VIROVITICA"]
[300993,"ČAĐAVAC","BJELOVAR","PUK BJELOVAR","ČAĐAVAC / BJELOVAR / PUK BJELOVAR"]
[323128,"ČAĐAVICA","SLATINA","PUK VIROVITICA","ČAĐAVICA / SLATINA / PUK VIROVITICA"]
[321702,"ČAGLIĆ","PAKRAC","PUK POŽEGA","ČAGLIĆ / PAKRAC / PUK POŽEGA"]
[327107,"ČAGLIN","POŽEGA","PUK POŽEGA","ČAGLIN / POŽEGA / PUK POŽEGA"]
[316091,"ČAIRE","KUTINA","PUK SISAK","ČAIRE / KUTINA / PUK SISAK"]
[328227,"ČAJKOVCI","SLAVONSKI BROD","PUK SLAVONSKI BROD","ČAJKOVCI / SLAVONSKI BROD / PUK SLAVONSKI BROD"]
[306223,"ČAJKOVICA","DUBROVNIK","PUK DUBROVNIK","ČAJKOVICA / DUBROVNIK / PUK DUBROVNIK"]
[334090,"ČAKOVCI","VUKOVAR","PUK VUKOVAR","ČAKOVCI / VUKOVAR / PUK VUKOVAR"]
[302813,"ČAKOVEC","ČAKOVEC","PUK ČAKOVEC","ČAKOVEC / ČAKOVEC / PUK ČAKOVEC"]
[312088,"ČALINEC","IVANEC","PUK VARAŽDIN","ČALINEC / IVANEC / PUK VARAŽDIN"]
[305308,"ČAMAGAJEVCI","DONJI MIHOLJAC","PUK OSIJEK","ČAMAGAJEVCI / DONJI MIHOLJAC / PUK OSIJEK"]
[330400,"ČANAK","KORENICA","PUK GOSPIĆ","ČANAK / KORENICA / PUK GOSPIĆ"]
[318477,"ČANJEVO","NOVI MAROF","PUK VARAŽDIN","ČANJEVO / NOVI MAROF / PUK VARAŽDIN"]
[326151,"ČAPLJANI","SISAK","PUK SISAK","ČAPLJANI / SISAK / PUK SISAK"]
[325511,"ČAPORICE","SINJ","PUK SPLIT","ČAPORICE / SINJ / PUK SPLIT"]
[317713,"ČAPRGINCI","NOVA GRADIŠKA","PUK SLAVONSKI BROD","ČAPRGINCI / NOVA GRADIŠKA / PUK SLAVONSKI BROD"]
[314641,"ČARA","KORČULA","PUK DUBROVNIK","ČARA / KORČULA / PUK DUBROVNIK"]
[308218,"ČAVLOVICA","DVOR","PUK SISAK","ČAVLOVICA / DVOR / PUK SISAK"]
[305561,"ČAVOGLAVE","DRNIŠ","PUK ŠIBENIK","ČAVOGLAVE / DRNIŠ / PUK ŠIBENIK"]
[303780,"ČAZMA","ČAZMA","PUK BJELOVAR","ČAZMA / ČAZMA / PUK BJELOVAR"]
[328057,"ČEČAVAČKI VUČJAK","POŽEGA","PUK POŽEGA","ČEČAVAČKI VUČJAK / POŽEGA / PUK POŽEGA"]
[312550,"ČEGLJE","JASTREBARSKO","PUK ZAGREB","ČEGLJE / JASTREBARSKO / PUK ZAGREB"]
[335398,"ČEHI","GU ZAGREB","PUK ZAGREB","ČEHI / GU ZAGREB / PUK ZAGREB"]
[302821,"ČEHOVEC","PRELOG","PUK ČAKOVEC","ČEHOVEC / PRELOG / PUK ČAKOVEC"]
[306231,"ČELOPECI","DUBROVNIK","PUK DUBROVNIK",{"$f":"B450&\" / \"&C450&\" / \"&D450","v":"ČELOPECI / DUBROVNIK / PUK DUBROVNIK"}]
[333573,"ČEMERNICA","TOPUSKO","PUK SISAK","ČEMERNICA / TOPUSKO / PUK SISAK"]
[300098,"ČEMINAC","BELI MANASTIR","PUK OSIJEK","ČEMINAC / BELI MANASTIR / PUK OSIJEK"]
[308773,"ČENKOVO","ĐAKOVO","PUK OSIJEK","ČENKOVO / ĐAKOVO / PUK OSIJEK"]
[309265,"ČEPELOVAC","ĐURĐEVAC","PUK KOPRIVNICA","ČEPELOVAC / ĐURĐEVAC / PUK KOPRIVNICA"]
[301809,"ČEPIĆ","BUJE","PUK PULA","ČEPIĆ / BUJE / PUK PULA"]
[316415,"ČEPIĆ","LABIN","PUK PULA","ČEPIĆ / LABIN / PUK PULA"]
[306240,"ČEPIKUĆE","DUBROVNIK","PUK DUBROVNIK","ČEPIKUĆE / DUBROVNIK / PUK DUBROVNIK"]
[320528,"ČEPIN","OSIJEK","PUK OSIJEK","ČEPIN / OSIJEK / PUK OSIJEK"]
[320641,"ČEPINSKI MARTINCI","OSIJEK","PUK OSIJEK","ČEPINSKI MARTINCI / OSIJEK / PUK OSIJEK"]
[306258,"ČESVINICA","DUBROVNIK","PUK DUBROVNIK","ČESVINICA / DUBROVNIK / PUK DUBROVNIK"]
[327115,"ČEŠLJAKOVCI","POŽEGA","PUK POŽEGA","ČEŠLJAKOVCI / POŽEGA / PUK POŽEGA"]
[306266,"ČIBAČA","DUBROVNIK","PUK DUBROVNIK","ČIBAČA / DUBROVNIK / PUK DUBROVNIK"]
[326160,"ČIGOČ","SISAK","PUK SISAK","ČIGOČ / SISAK / PUK SISAK"]
[306274,"ČILIPI","DUBROVNIK","PUK DUBROVNIK","ČILIPI / DUBROVNIK / PUK DUBROVNIK"]
[319554,"ČISLA","OMIŠ","PUK SPLIT","ČISLA / OMIŠ / PUK SPLIT"]
[329932,"ČISTA","ŠIBENIK","PUK ŠIBENIK","ČISTA / ŠIBENIK / PUK ŠIBENIK"]
[305570,"ČITLUK","DRNIŠ","PUK ŠIBENIK","ČITLUK / DRNIŠ / PUK ŠIBENIK"]
[320536,"ČOKADINCI","OSIJEK","PUK OSIJEK","ČOKADINCI / OSIJEK / PUK OSIJEK"]
[319201,"ČORKOVA UVALA","OGULIN","PUK KARLOVAC","ČORKOVA UVALA / OGULIN / PUK KARLOVAC"]
[317721,"ČOVAC","NOVA GRADIŠKA","PUK SLAVONSKI BROD","ČOVAC / NOVA GRADIŠKA / PUK SLAVONSKI BROD"]
[320811,"ČOVIĆI","OTOČAC","PUK GOSPIĆ","ČOVIĆI / OTOČAC / PUK GOSPIĆ"]
[302830,"ČREČAN","ČAKOVEC","PUK ČAKOVEC","ČREČAN / ČAKOVEC / PUK ČAKOVEC"]
[333557,"ČREMUŠNICA","TOPUSKO","PUK SISAK","ČREMUŠNICA / TOPUSKO / PUK SISAK"]
[313629,"ČREŠNJEVEC","KLANJEC","PUK KRAPINA","ČREŠNJEVEC / KLANJEC / PUK KRAPINA"]
[331066,"ČREŠNJEVO","VARAŽDIN","PUK VARAŽDIN","ČREŠNJEVO / VARAŽDIN / PUK VARAŽDIN"]
[334332,"ČRET","ZABOK","PUK KRAPINA","ČRET / ZABOK / PUK KRAPINA"]
[337579,"ČRNEC BIŠKUPEČKI","VARAŽDIN","PUK VARAŽDIN","ČRNEC BIŠKUPEČKI / VARAŽDIN / PUK VARAŽDIN"]
[302082,"ČRNICA","BUZET","PUK PULA","ČRNICA / BUZET / PUK PULA"]
[305316,"ČRNKOVCI","DONJI MIHOLJAC","PUK OSIJEK","ČRNKOVCI / DONJI MIHOLJAC / PUK OSIJEK"]
[331481,"ČRNKOVEC","VELIKA GORICA","PUK ZAGREB","ČRNKOVEC / VELIKA GORICA / PUK ZAGREB"]
[335266,"ČRNOMEREC","GU ZAGREB","PUK ZAGREB","ČRNOMEREC / GU ZAGREB / PUK ZAGREB"]
[335282,"ČUČERJE","GU ZAGREB","PUK ZAGREB","ČUČERJE / GU ZAGREB / PUK ZAGREB"]
[338486,"ČUČERJE NOVO","GU ZAGREB","PUK ZAGREB","ČUČERJE NOVO / GU ZAGREB / PUK ZAGREB"]
[316733,"ČUKOVEC","LUDBREG","PUK VARAŽDIN","ČUKOVEC / LUDBREG / PUK VARAŽDIN"]
[302848,"ČUKOVEC","PRELOG","PUK ČAKOVEC","ČUKOVEC / PRELOG / PUK ČAKOVEC"]
[314846,"ČUKUR","HRVATSKA KOSTAJNICA","PUK SISAK","ČUKUR / HRVATSKA KOSTAJNICA / PUK SISAK"]
[322687,"ČUNTIĆ","PETRINJA","PUK SISAK","ČUNTIĆ / PETRINJA / PUK SISAK"]
[305588,"ČVRLJEVO","DRNIŠ","PUK ŠIBENIK","ČVRLJEVO / DRNIŠ / PUK ŠIBENIK"]
[323136,"ĆERALIJE","SLATINA","PUK VIROVITICA","ĆERALIJE / SLATINA / PUK VIROVITICA"]
[308226,"ĆORE","DVOR","PUK SISAK","ĆORE / DVOR / PUK SISAK"]
[327484,"ĆOSINE LAZE","POŽEGA","PUK POŽEGA","ĆOSINE LAZE / POŽEGA / PUK POŽEGA"]
[302341,"ĆUNSKI","MALI LOŠINJ","PUK RIJEKA","ĆUNSKI / MALI LOŠINJ / PUK RIJEKA"]
[320820,"DABAR","OTOČAC","PUK GOSPIĆ","DABAR / OTOČAC / PUK GOSPIĆ"]
[325520,"DABAR","SINJ","PUK SPLIT","DABAR / SINJ / PUK SPLIT"]
[305022,"DABAŠNICA","GRAČAC","PUK ZADAR","DABAŠNICA / GRAČAC / PUK ZADAR"]
[310042,"DABRINA","GLINA","PUK SISAK","DABRINA / GLINA / PUK SISAK"]
[320544,"DALJ","OSIJEK","PUK OSIJEK","DALJ / OSIJEK / PUK OSIJEK"]
[306282,"DANČANJE","DUBROVNIK","PUK DUBROVNIK","DANČANJE / DUBROVNIK / PUK DUBROVNIK"]
[302104,"DANE","BUZET","PUK PULA","DANE / BUZET / PUK PULA"]
[329959,"DANILO BIRANJ","ŠIBENIK","PUK ŠIBENIK","DANILO BIRANJ / ŠIBENIK / PUK ŠIBENIK"]
[329967,"DANILO KRALJICE","ŠIBENIK","PUK ŠIBENIK","DANILO KRALJICE / ŠIBENIK / PUK ŠIBENIK"]
[303798,"DAPCI","ČAZMA","PUK BJELOVAR","DAPCI / ČAZMA / PUK BJELOVAR"]
[311391,"DAPČEVICA","GRUBIŠNO POLJE","PUK BJELOVAR","DAPČEVICA / GRUBIŠNO POLJE / PUK BJELOVAR"]
[327123,"DARANOVCI","POŽEGA","PUK POŽEGA","DARANOVCI / POŽEGA / PUK POŽEGA"]
[300101,"DARDA","BELI MANASTIR","PUK OSIJEK","DARDA / BELI MANASTIR / PUK OSIJEK"]
[304107,"DARUVAR","DARUVAR","PUK BJELOVAR","DARUVAR / DARUVAR / PUK BJELOVAR"]
[303801,"DASKATICA","ČAZMA","PUK BJELOVAR","DASKATICA / ČAZMA / PUK BJELOVAR"]
[301019,"DAUTAN","BJELOVAR","PUK BJELOVAR","DAUTAN / BJELOVAR / PUK BJELOVAR"]
[317730,"DAVOR","NOVA GRADIŠKA","PUK SLAVONSKI BROD","DAVOR / NOVA GRADIŠKA / PUK SLAVONSKI BROD"]
[322695,"DEANOVIĆI","PETRINJA","PUK SISAK","DEANOVIĆI / PETRINJA / PUK SISAK"]
[310654,"DEBELO BRDO","GOSPIĆ","PUK GOSPIĆ","DEBELO BRDO / GOSPIĆ / PUK GOSPIĆ"]
[330418,"DEBELO BRDO","KORENICA","PUK GOSPIĆ","DEBELO BRDO / KORENICA / PUK GOSPIĆ"]
[302856,"DEKANOVEC","ČAKOVEC","PUK ČAKOVEC","DEKANOVEC / ČAKOVEC / PUK ČAKOVEC"]
[304549,"DELNICE","DELNICE","PUK RIJEKA",{"$f":"B514&\" / \"&C514&\" / \"&D514","v":"DELNICE / DELNICE / PUK RIJEKA"}]
[314188,"DELOVI","KOPRIVNICA","PUK KOPRIVNICA","DELOVI / KOPRIVNICA / PUK KOPRIVNICA"]
[335401,"DEMERJE","GU ZAGREB","PUK ZAGREB","DEMERJE / GU ZAGREB / PUK ZAGREB"]
[303810,"DEREZA","ČAZMA","PUK BJELOVAR","DEREZA / ČAZMA / PUK BJELOVAR"]
[321729,"DEREZA","PAKRAC","PUK POŽEGA","DEREZA / PAKRAC / PUK POŽEGA"]
[311090,"DERINGAJ","GRAČAC","PUK ZADAR","DERINGAJ / GRAČAC / PUK ZADAR"]
[327131,"DERVIŠAGA","POŽEGA","PUK POŽEGA","DERVIŠAGA / POŽEGA / PUK POŽEGA"]
[312568,"DESINEC","JASTREBARSKO","PUK ZAGREB","DESINEC / JASTREBARSKO / PUK ZAGREB"]
[323888,"DESINIĆ","PREGRADA","PUK KRAPINA","DESINIĆ / PREGRADA / PUK KRAPINA"]
[317136,"DESNE","METKOVIĆ","PUK DUBROVNIK","DESNE / METKOVIĆ / PUK DUBROVNIK"]
[310069,"DESNI DEGOJ","GLINA","PUK SISAK","DESNI DEGOJ / GLINA / PUK SISAK"]
[333581,"DESNI ŠTEFANKI","KARLOVAC","PUK KARLOVAC","DESNI ŠTEFANKI / KARLOVAC / PUK KARLOVAC"]
[333590,"DESNO SREDIČKO","KARLOVAC","PUK KARLOVAC","DESNO SREDIČKO / KARLOVAC / PUK KARLOVAC"]
[326178,"DESNO TREBARJEVO","SISAK","PUK SISAK","DESNO TREBARJEVO / SISAK / PUK SISAK"]
[326186,"DESNO ŽELJEZNO","SISAK","PUK SISAK","DESNO ŽELJEZNO / SISAK / PUK SISAK"]
[332470,"DETKOVAC","VIROVITICA","PUK VIROVITICA","DETKOVAC / VIROVITICA / PUK VIROVITICA"]
[304115,"DEŽANOVAC","DARUVAR","PUK BJELOVAR","DEŽANOVAC / DARUVAR / PUK BJELOVAR"]
[327140,"DEŽEVCI","POŽEGA","PUK POŽEGA","DEŽEVCI / POŽEGA / PUK POŽEGA"]
[332968,"DIJANEŠ","VRBOVEC","PUK ZAGREB","DIJANEŠ / VRBOVEC / PUK ZAGREB"]
[315354,"DIJANKOVEC","KRIŽEVCI","PUK KOPRIVNICA","DIJANKOVEC / KRIŽEVCI / PUK KOPRIVNICA"]
[301027,"DIKLENICA","BJELOVAR","PUK BJELOVAR","DIKLENICA / BJELOVAR / PUK BJELOVAR"]
[334634,"DIKLO","ZADAR","PUK ZADAR","DIKLO / ZADAR / PUK ZADAR"]
[316423,"DIMINIĆI","LABIN","PUK PULA","DIMINIĆI / LABIN / PUK PULA"]
[309273,"DINJEVAC","PITOMAČA","PUK VIROVITICA","DINJEVAC / PITOMAČA / PUK VIROVITICA"]
[321508,"DINJIŠKA","PAG","PUK ZADAR","DINJIŠKA / PAG / PUK ZADAR"]
[309648,"DIŠNIK","GAREŠNICA","PUK BJELOVAR","DIŠNIK / GAREŠNICA / PUK BJELOVAR"]
[304557,"DIVJAKE","DELNICE","PUK RIJEKA","DIVJAKE / DELNICE / PUK RIJEKA"]
[313432,"DIVOJEVIĆI","KAŠTEL SUĆURAC","PUK SPLIT","DIVOJEVIĆI / KAŠTEL SUĆURAC / PUK SPLIT"]
[310662,"DIVOSELO","GOSPIĆ","PUK GOSPIĆ","DIVOSELO / GOSPIĆ / PUK GOSPIĆ"]
[328235,"DIVOŠEVCI","SLAVONSKI BROD","PUK SLAVONSKI BROD","DIVOŠEVCI / SLAVONSKI BROD / PUK SLAVONSKI BROD"]
[308234,"DIVUŠA","DVOR","PUK SISAK","DIVUŠA / DVOR / PUK SISAK"]
[327158,"DJEDINA RIJEKA","POŽEGA","PUK POŽEGA","DJEDINA RIJEKA / POŽEGA / PUK POŽEGA"]
[305049,"DNOPOLJE","DONJI LAPAC","PUK GOSPIĆ","DNOPOLJE / DONJI LAPAC / PUK GOSPIĆ"]
[304123,"DOBRA KUĆA","DARUVAR","PUK BJELOVAR","DOBRA KUĆA / DARUVAR / PUK BJELOVAR"]
[311847,"DOBRANJE","IMOTSKI","PUK SPLIT","DOBRANJE / IMOTSKI / PUK SPLIT"]
[317144,"DOBRANJE","METKOVIĆ","PUK DUBROVNIK","DOBRANJE / METKOVIĆ / PUK DUBROVNIK"]
[308242,"DOBRETIN","DVOR","PUK SISAK","DOBRETIN / DVOR / PUK SISAK"]
[315877,"DOBRINJ","KRK","PUK RIJEKA","DOBRINJ / KRK / PUK RIJEKA"]
[300764,"DOBROPOLJANA","BIOGRAD NA MORU","PUK ZADAR","DOBROPOLJANA / BIOGRAD NA MORU / PUK ZADAR"]
[300438,"DOBROPOLJCI","BENKOVAC","PUK ZADAR","DOBROPOLJCI / BENKOVAC / PUK ZADAR"]
[305057,"DOBROSELO","DONJI LAPAC","PUK GOSPIĆ","DOBROSELO / DONJI LAPAC / PUK GOSPIĆ"]
[321737,"DOBROVAC","PAKRAC","PUK POŽEGA","DOBROVAC / PAKRAC / PUK POŽEGA"]
[323144,"DOBROVIĆ","SLATINA","PUK VIROVITICA","DOBROVIĆ / SLATINA / PUK VIROVITICA"]
[311669,"DOL","STARI GRAD","PUK SPLIT","DOL / STARI GRAD / PUK SPLIT"]
[301566,"DOL","SUPETAR","PUK SPLIT","DOL / SUPETAR / PUK SPLIT"]
[336769,"DOLAC","POŽEGA","PUK POŽEGA","DOLAC / POŽEGA / PUK POŽEGA"]
[320269,"DOLCI","ORAHOVICA","PUK VIROVITICA","DOLCI / ORAHOVICA / PUK VIROVITICA"]
[322709,"DOLČANI","PETRINJA","PUK SISAK","DOLČANI / PETRINJA / PUK SISAK"]
[322237,"DOLENJA VAS","PAZIN","PUK PULA","DOLENJA VAS / PAZIN / PUK PULA"]
[306304,"DOLI","DUBROVNIK","PUK DUBROVNIK","DOLI / DUBROVNIK / PUK DUBROVNIK"]
[317748,"DOLINA","NOVA GRADIŠKA","PUK SLAVONSKI BROD","DOLINA / NOVA GRADIŠKA / PUK SLAVONSKI BROD"]
[310077,"DOLNJAKI","GLINA","PUK SISAK","DOLNJAKI / GLINA / PUK SISAK"]
[304131,"DOLJANI","DARUVAR","PUK BJELOVAR","DOLJANI / DARUVAR / PUK BJELOVAR"]
[305065,"DOLJANI","DONJI LAPAC","PUK GOSPIĆ","DOLJANI / DONJI LAPAC / PUK GOSPIĆ"]
[320838,"DOLJANI","OTOČAC","PUK GOSPIĆ","DOLJANI / OTOČAC / PUK GOSPIĆ"]
[327166,"DOLJANOVCI","POŽEGA","PUK POŽEGA","DOLJANOVCI / POŽEGA / PUK POŽEGA"]
[312576,"DOMAGOVIĆ","JASTREBARSKO","PUK ZAGREB","DOMAGOVIĆ / JASTREBARSKO / PUK ZAGREB"]
[338940,"DOMASLOVEC","SAMOBOR","PUK ZAGREB","DOMASLOVEC / SAMOBOR / PUK ZAGREB"]
[302864,"DOMAŠINEC","ČAKOVEC","PUK ČAKOVEC","DOMAŠINEC / ČAKOVEC / PUK ČAKOVEC"]
[335983,"DONJA BATINA","ZLATAR","PUK KRAPINA","DONJA BATINA / ZLATAR / PUK KRAPINA"]
[328243,"DONJA BEBRINA","SLAVONSKI BROD","PUK SLAVONSKI BROD","DONJA BEBRINA / SLAVONSKI BROD / PUK SLAVONSKI BROD"]
[335673,"DONJA BISTRA","ZAPREŠIĆ","PUK ZAGREB","DONJA BISTRA / ZAPREŠIĆ / PUK ZAGREB"]
[315362,"DONJA BRCKOVČINA","KRIŽEVCI","PUK KOPRIVNICA","DONJA BRCKOVČINA / KRIŽEVCI / PUK KOPRIVNICA"]
[322652,"DONJA BUDIČINA","PETRINJA","PUK SISAK","DONJA BUDIČINA / PETRINJA / PUK SISAK"]
[323152,"DONJA BUKOVICA","SLATINA","PUK VIROVITICA",{"$f":"B578&\" / \"&C578&\" / \"&D578","v":"DONJA BUKOVICA / SLATINA / PUK VIROVITICA"}]
[302872,"DONJA DUBRAVA","PRELOG","PUK ČAKOVEC","DONJA DUBRAVA / PRELOG / PUK ČAKOVEC"]
[300446,"DONJA JAGODNJA","BENKOVAC","PUK ZADAR","DONJA JAGODNJA / BENKOVAC / PUK ZADAR"]
[311405,"DONJA KOVAČICA","GRUBIŠNO POLJE","PUK BJELOVAR","DONJA KOVAČICA / GRUBIŠNO POLJE / PUK BJELOVAR"]
[312584,"DONJA KUPČINA","JASTREBARSKO","PUK ZAGREB","DONJA KUPČINA / JASTREBARSKO / PUK ZAGREB"]
[331490,"DONJA LOMNICA","VELIKA GORICA","PUK ZAGREB","DONJA LOMNICA / VELIKA GORICA / PUK ZAGREB"]
[301817,"DONJA MIRNA","BUJE","PUK PULA","DONJA MIRNA / BUJE / PUK PULA"]
[317276,"DONJA MOTIČINA","NAŠICE","PUK OSIJEK","DONJA MOTIČINA / NAŠICE / PUK OSIJEK"]
[321745,"DONJA OBRIJEŽ","PAKRAC","PUK POŽEGA","DONJA OBRIJEŽ / PAKRAC / PUK POŽEGA"]
[334359,"DONJA PAČETINA","ZABOK","PUK KRAPINA","DONJA PAČETINA / ZABOK / PUK KRAPINA"]
[320277,"DONJA PIŠTANA","ORAHOVICA","PUK VIROVITICA","DONJA PIŠTANA / ORAHOVICA / PUK VIROVITICA"]
[336556,"DONJA PODSTRANA","SPLIT","PUK SPLIT","DONJA PODSTRANA / SPLIT / PUK SPLIT"]
[304743,"DONJA STUBICA","DONJA STUBICA","PUK KRAPINA","DONJA STUBICA / DONJA STUBICA / PUK KRAPINA"]
[337790,"DONJA ŠEMNICA","KRAPINA","PUK KRAPINA","DONJA ŠEMNICA / KRAPINA / PUK KRAPINA"]
[310085,"DONJA TRSTENICA","GLINA","PUK SISAK","DONJA TRSTENICA / GLINA / PUK SISAK"]
[314854,"DONJA VELEŠNJA","HRVATSKA KOSTAJNICA","PUK SISAK","DONJA VELEŠNJA / HRVATSKA KOSTAJNICA / PUK SISAK"]
[312096,"DONJA VIŠNJICA","IVANEC","PUK VARAŽDIN","DONJA VIŠNJICA / IVANEC / PUK VARAŽDIN"]
[312100,"DONJA VOĆA","IVANEC","PUK VARAŽDIN","DONJA VOĆA / IVANEC / PUK VARAŽDIN"]
[306312,"DONJA VRUĆICA","KORČULA","PUK DUBROVNIK","DONJA VRUĆICA / KORČULA / PUK DUBROVNIK"]
[338150,"DONJA ZELINA","SVETI IVAN ZELINA","PUK ZAGREB","DONJA ZELINA / SVETI IVAN ZELINA / PUK ZAGREB"]
[323179,"DONJE BAZIJE","SLATINA","PUK VIROVITICA","DONJE BAZIJE / SLATINA / PUK VIROVITICA"]
[300454,"DONJE BILJANE","BENKOVAC","PUK ZADAR","DONJE BILJANE / BENKOVAC / PUK ZADAR"]
[319210,"DONJE DUBRAVE","OGULIN","PUK KARLOVAC","DONJE DUBRAVE / OGULIN / PUK KARLOVAC"]
[326194,"DONJE KOMAREVO","SISAK","PUK SISAK","DONJE KOMAREVO / SISAK / PUK SISAK"]
[323187,"DONJE KUSONJE","SLATINA","PUK VIROVITICA","DONJE KUSONJE / SLATINA / PUK VIROVITICA"]
[312118,"DONJE LADANJE","IVANEC","PUK VARAŽDIN","DONJE LADANJE / IVANEC / PUK VARAŽDIN"]
[318485,"DONJE MAKOJIŠĆE","NOVI MAROF","PUK VARAŽDIN","DONJE MAKOJIŠĆE / NOVI MAROF / PUK VARAŽDIN"]
[313050,"DONJE MEKUŠJE","KARLOVAC","PUK KARLOVAC","DONJE MEKUŠJE / KARLOVAC / PUK KARLOVAC"]
[332003,"DONJE NOVO SELO","VINKOVCI","PUK VUKOVAR","DONJE NOVO SELO / VINKOVCI / PUK VUKOVAR"]
[329487,"DONJE OGORJE","SOLIN","PUK SPLIT","DONJE OGORJE / SOLIN / PUK SPLIT"]
[310689,"DONJE PAZARIŠTE","GOSPIĆ","PUK GOSPIĆ","DONJE PAZARIŠTE / GOSPIĆ / PUK GOSPIĆ"]
[331503,"DONJE PODOTOČJE","VELIKA GORICA","PUK ZAGREB","DONJE PODOTOČJE / VELIKA GORICA / PUK ZAGREB"]
[313068,"DONJE POKUPJE","KARLOVAC","PUK KARLOVAC","DONJE POKUPJE / KARLOVAC / PUK KARLOVAC"]
[329975,"DONJE POLJE","ŠIBENIK","PUK ŠIBENIK","DONJE POLJE / ŠIBENIK / PUK ŠIBENIK"]
[329495,"DONJE POSTINJE","SOLIN","PUK SPLIT","DONJE POSTINJE / SOLIN / PUK SPLIT"]
[320285,"DONJE PREDRIJEVO","ORAHOVICA","PUK VIROVITICA","DONJE PREDRIJEVO / ORAHOVICA / PUK VIROVITICA"]
[329100,"DONJE PRIMIŠLJE","SLUNJ","PUK KARLOVAC","DONJE PRIMIŠLJE / SLUNJ / PUK KARLOVAC"]
[310093,"DONJE SELIŠTE","GLINA","PUK SISAK","DONJE SELIŠTE / GLINA / PUK SISAK"]
[329746,"DONJE SELO","SPLIT","PUK SPLIT","DONJE SELO / SPLIT / PUK SPLIT"]
[305596,"DONJE UTORE","DRNIŠ","PUK ŠIBENIK","DONJE UTORE / DRNIŠ / PUK ŠIBENIK"]
[305600,"DONJE VINOVO","DRNIŠ","PUK ŠIBENIK","DONJE VINOVO / DRNIŠ / PUK ŠIBENIK"]
[339318,"DONJE VRAPČE","GU ZAGREB","PUK ZAGREB","DONJE VRAPČE / GU ZAGREB / PUK ZAGREB"]
[328251,"DONJI ANDRIJEVCI","SLAVONSKI BROD","PUK SLAVONSKI BROD","DONJI ANDRIJEVCI / SLAVONSKI BROD / PUK SLAVONSKI BROD"]
[325538,"DONJI BITELIĆ","SINJ","PUK SPLIT","DONJI BITELIĆ / SINJ / PUK SPLIT"]
[317756,"DONJI BOGIĆEVCI","NOVA GRADIŠKA","PUK SLAVONSKI BROD","DONJI BOGIĆEVCI / NOVA GRADIŠKA / PUK SLAVONSKI BROD"]
[306339,"DONJI BRGAT","DUBROVNIK","PUK DUBROVNIK","DONJI BRGAT / DUBROVNIK / PUK DUBROVNIK"]
[313076,"DONJI BUDAČKI","KARLOVAC","PUK KARLOVAC","DONJI BUDAČKI / KARLOVAC / PUK KARLOVAC"]
[304140,"DONJI DARUVAR","DARUVAR","PUK BJELOVAR","DONJI DARUVAR / DARUVAR / PUK BJELOVAR"]
[319562,"DONJI DOLAC","OMIŠ","PUK SPLIT","DONJI DOLAC / OMIŠ / PUK SPLIT"]
[327174,"DONJI EMOVCI","POŽEGA","PUK POŽEGA","DONJI EMOVCI / POŽEGA / PUK POŽEGA"]
[326208,"DONJI HRASTOVAC","SISAK","PUK SISAK","DONJI HRASTOVAC / SISAK / PUK SISAK"]
[302899,"DONJI HRAŠĆAN","PRELOG","PUK ČAKOVEC","DONJI HRAŠĆAN / PRELOG / PUK ČAKOVEC"]
[301574,"DONJI HUMAC","SUPETAR","PUK SPLIT","DONJI HUMAC / SUPETAR / PUK SPLIT"]
[337323,"DONJI KARIN","BENKOVAC","PUK ZADAR","DONJI KARIN / BENKOVAC / PUK ZADAR"]
[310697,"DONJI KOSINJ","GOSPIĆ","PUK GOSPIĆ","DONJI KOSINJ / GOSPIĆ / PUK GOSPIĆ"]
[302902,"DONJI KRALJEVEC","PRELOG","PUK ČAKOVEC","DONJI KRALJEVEC / PRELOG / PUK ČAKOVEC"]
[337188,"DONJI KUĆAN","VARAŽDIN","PUK VARAŽDIN","DONJI KUĆAN / VARAŽDIN / PUK VARAŽDIN"]
[329118,"DONJI LAĐEVAC","SLUNJ","PUK KARLOVAC","DONJI LAĐEVAC / SLUNJ / PUK KARLOVAC"]
[305073,"DONJI LAPAC","DONJI LAPAC","PUK GOSPIĆ","DONJI LAPAC / DONJI LAPAC / PUK GOSPIĆ"]
[317764,"DONJI LIPOVAC","NOVA GRADIŠKA","PUK SLAVONSKI BROD","DONJI LIPOVAC / NOVA GRADIŠKA / PUK SLAVONSKI BROD"]
[321141,"DONJI LOVIĆ","OZALJ","PUK KARLOVAC","DONJI LOVIĆ / OZALJ / PUK KARLOVAC"]
[323195,"DONJI MELJANI","SLATINA","PUK VIROVITICA","DONJI MELJANI / SLATINA / PUK VIROVITICA"]
[302929,"DONJI MIHALJEVEC","PRELOG","PUK ČAKOVEC","DONJI MIHALJEVEC / PRELOG / PUK ČAKOVEC"]
[305324,"DONJI MIHOLJAC","DONJI MIHOLJAC","PUK OSIJEK","DONJI MIHOLJAC / DONJI MIHOLJAC / PUK OSIJEK"]
[329509,"DONJI MUĆ","SOLIN","PUK SPLIT",{"$f":"B642&\" / \"&C642&\" / \"&D642","v":"DONJI MUĆ / SOLIN / PUK SPLIT"}]
[302937,"DONJI PUSTAKOVEC","PRELOG","PUK ČAKOVEC","DONJI PUSTAKOVEC / PRELOG / PUK ČAKOVEC"]
[310107,"DONJI SELKOVAC","GLINA","PUK SISAK","DONJI SELKOVAC / GLINA / PUK SISAK"]
[313084,"DONJI SJENIČAK","KARLOVAC","PUK KARLOVAC","DONJI SJENIČAK / KARLOVAC / PUK KARLOVAC"]
[307513,"DONJI SKRAD","DUGA RESA","PUK KARLOVAC","DONJI SKRAD / DUGA RESA / PUK KARLOVAC"]
[304158,"DONJI SREĐANI","DARUVAR","PUK BJELOVAR","DONJI SREĐANI / DARUVAR / PUK BJELOVAR"]
[317772,"DONJI VAROŠ","NOVA GRADIŠKA","PUK SLAVONSKI BROD","DONJI VAROŠ / NOVA GRADIŠKA / PUK SLAVONSKI BROD"]
[302945,"DONJI VIDOVEC","PRELOG","PUK ČAKOVEC","DONJI VIDOVEC / PRELOG / PUK ČAKOVEC"]
[307521,"DONJI ZVEČAJ","DUGA RESA","PUK KARLOVAC","DONJI ZVEČAJ / DUGA RESA / PUK KARLOVAC"]
[320552,"DOPSIN","OSIJEK","PUK OSIJEK","DOPSIN / OSIJEK / PUK OSIJEK"]
[323616,"DRAČEVAC","POREČ","PUK PULA","DRAČEVAC / POREČ / PUK PULA"]
[334642,"DRAČEVAC NINSKI","ZADAR","PUK ZADAR","DRAČEVAC NINSKI / ZADAR / PUK ZADAR"]
[301582,"DRAČEVICA","SUPETAR","PUK SPLIT","DRAČEVICA / SUPETAR / PUK SPLIT"]
[308269,"DRAGA","DVOR","PUK SISAK","DRAGA / DVOR / PUK SISAK"]
[327182,"DRAGA","POŽEGA","PUK POŽEGA","DRAGA / POŽEGA / PUK POŽEGA"]
[324507,"DRAGA","RIJEKA","PUK RIJEKA","DRAGA / RIJEKA / PUK RIJEKA"]
[315885,"DRAGA BAŠĆANSKA","KRK","PUK RIJEKA","DRAGA BAŠĆANSKA / KRK / PUK RIJEKA"]
[333409,"DRAGA LUKOVDOLSKA","VRBOVSKO","PUK RIJEKA","DRAGA LUKOVDOLSKA / VRBOVSKO / PUK RIJEKA"]
[317799,"DRAGALIĆ","NOVA GRADIŠKA","PUK SLAVONSKI BROD","DRAGALIĆ / NOVA GRADIŠKA / PUK SLAVONSKI BROD"]
[303828,"DRAGANEC","ČAZMA","PUK BJELOVAR","DRAGANEC / ČAZMA / PUK BJELOVAR"]
[313092,"DRAGANIĆ","KARLOVAC","PUK KARLOVAC","DRAGANIĆ / KARLOVAC / PUK KARLOVAC"]
[333891,"DRAGLJANE","VRGORAC","PUK SPLIT","DRAGLJANE / VRGORAC / PUK SPLIT"]
[335410,"DRAGONOŽEC","GU ZAGREB","PUK ZAGREB","DRAGONOŽEC / GU ZAGREB / PUK ZAGREB"]
[302953,"DRAGOSLAVEC","ČAKOVEC","PUK ČAKOVEC","DRAGOSLAVEC / ČAKOVEC / PUK ČAKOVEC"]
[308781,"DRAGOTIN","ĐAKOVO","PUK OSIJEK","DRAGOTIN / ĐAKOVO / PUK OSIJEK"]
[310115,"DRAGOTINA","GLINA","PUK SISAK","DRAGOTINA / GLINA / PUK SISAK"]
[322717,"DRAGOTINCI","PETRINJA","PUK SISAK","DRAGOTINCI / PETRINJA / PUK SISAK"]
[317802,"DRAGOVCI","NOVA GRADIŠKA","PUK SLAVONSKI BROD","DRAGOVCI / NOVA GRADIŠKA / PUK SLAVONSKI BROD"]
[334669,"DRAGOVE","ZADAR","PUK ZADAR","DRAGOVE / ZADAR / PUK ZADAR"]
[321753,"DRAGOVIĆ","PAKRAC","PUK POŽEGA","DRAGOVIĆ / PAKRAC / PUK POŽEGA"]
[302350,"DRAGOZETIĆI","CRES","PUK RIJEKA","DRAGOZETIĆI / CRES / PUK RIJEKA"]
[322245,"DRAGUĆ","PAZIN","PUK PULA","DRAGUĆ / PAZIN / PUK PULA"]
[302619,"DRAMALJ","CRIKVENICA","PUK RIJEKA","DRAMALJ / CRIKVENICA / PUK RIJEKA"]
[308277,"DRAŠKOVAC","DVOR","PUK SISAK","DRAŠKOVAC / DVOR / PUK SISAK"]
[302961,"DRAŠKOVEC","PRELOG","PUK ČAKOVEC","DRAŠKOVEC / PRELOG / PUK ČAKOVEC"]
[336424,"DRAŠKOVIĆ","NOVI MAROF","PUK VARAŽDIN","DRAŠKOVIĆ / NOVI MAROF / PUK VARAŽDIN"]
[317012,"DRAŠNICE","MAKARSKA","PUK SPLIT","DRAŠNICE / MAKARSKA / PUK SPLIT"]
[300110,"DRAŽ","BELI MANASTIR","PUK OSIJEK","DRAŽ / BELI MANASTIR / PUK OSIJEK"]
[311413,"DRAŽICA","GRUBIŠNO POLJE","PUK BJELOVAR","DRAŽICA / GRUBIŠNO POLJE / PUK BJELOVAR"]
[324515,"DRAŽICE","RIJEKA","PUK RIJEKA","DRAŽICE / RIJEKA / PUK RIJEKA"]
[318752,"DRENOV BOK","NOVSKA","PUK SISAK","DRENOV BOK / NOVSKA / PUK SISAK"]
[324523,"DRENOVA","RIJEKA","PUK RIJEKA","DRENOVA / RIJEKA / PUK RIJEKA"]
[310123,"DRENOVAC BANSKI","GLINA","PUK SISAK","DRENOVAC BANSKI / GLINA / PUK SISAK"]
[305081,"DRENOVAC OSREDAČKI","GRAČAC","PUK ZADAR","DRENOVAC OSREDAČKI / GRAČAC / PUK ZADAR"]
[310719,"DRENOVAC RADUČKI","GOSPIĆ","PUK GOSPIĆ","DRENOVAC RADUČKI / GOSPIĆ / PUK GOSPIĆ"]
[336254,"DRENOVCI","ŽUPANJA","PUK VUKOVAR","DRENOVCI / ŽUPANJA / PUK VUKOVAR"]
[318507,"DRENOVEC","NOVI MAROF","PUK VARAŽDIN","DRENOVEC / NOVI MAROF / PUK VARAŽDIN"]
[308790,"DRENJE","ĐAKOVO","PUK OSIJEK","DRENJE / ĐAKOVO / PUK OSIJEK"]
[319228,"DREŽNICA","OGULIN","PUK KARLOVAC","DREŽNICA / OGULIN / PUK KARLOVAC"]
[317896,"DREŽNIK","NOVA GRADIŠKA","PUK SLAVONSKI BROD","DREŽNIK / NOVA GRADIŠKA / PUK SLAVONSKI BROD"]
[329126,"DREŽNIK","SLUNJ","PUK KARLOVAC","DREŽNIK / SLUNJ / PUK KARLOVAC"]
[338320,"DREŽNIK 1","SLUNJ","PUK KARLOVAC","DREŽNIK 1 / SLUNJ / PUK KARLOVAC"]
[324990,"DREŽNIK PODOKIĆKI","SAMOBOR","PUK ZAGREB","DREŽNIK PODOKIĆKI / SAMOBOR / PUK ZAGREB"]
[305618,"DRINOVCI","DRNIŠ","PUK ŠIBENIK","DRINOVCI / DRNIŠ / PUK ŠIBENIK"]
[302627,"DRIVENIK","CRIKVENICA","PUK RIJEKA","DRIVENIK / CRIKVENICA / PUK RIJEKA"]
[326216,"DRLJAČA","SISAK","PUK SISAK","DRLJAČA / SISAK / PUK SISAK"]
[301035,"DRLJANOVAC","BJELOVAR","PUK BJELOVAR","DRLJANOVAC / BJELOVAR / PUK BJELOVAR"]
[331511,"DRNEK","VELIKA GORICA","PUK ZAGREB","DRNEK / VELIKA GORICA / PUK ZAGREB"]
[305626,"DRNIŠ","DRNIŠ","PUK ŠIBENIK","DRNIŠ / DRNIŠ / PUK ŠIBENIK"]
[314196,"DRNJE","KOPRIVNICA","PUK KOPRIVNICA","DRNJE / KOPRIVNICA / PUK KOPRIVNICA"]
[327204,"DRŠKOVCI","POŽEGA","PUK POŽEGA","DRŠKOVCI / POŽEGA / PUK POŽEGA"]
[312126,"DRUŠKOVEC","IVANEC","PUK VARAŽDIN","DRUŠKOVEC / IVANEC / PUK VARAŽDIN"]
[323896,"DRUŠKOVEC HUMSKI","PREGRADA","PUK KRAPINA","DRUŠKOVEC HUMSKI / PREGRADA / PUK KRAPINA"]
[331074,"DRUŽBINEC","VARAŽDIN","PUK VARAŽDIN","DRUŽBINEC / VARAŽDIN / PUK VARAŽDIN"]
[306355,"DRVENIK","DUBROVNIK","PUK DUBROVNIK",{"$f":"B706&\" / \"&C706&\" / \"&D706","v":"DRVENIK / DUBROVNIK / PUK DUBROVNIK"}]
[317039,"DRVENIK","MAKARSKA","PUK SPLIT","DRVENIK / MAKARSKA / PUK SPLIT"]
[330698,"DRVENIK","TROGIR","PUK SPLIT","DRVENIK / TROGIR / PUK SPLIT"]
[302970,"DRŽIMUREC","ČAKOVEC","PUK ČAKOVEC","DRŽIMUREC / ČAKOVEC / PUK ČAKOVEC"]
[306363,"DUBA KONAVOSKA","DUBROVNIK","PUK DUBROVNIK","DUBA KONAVOSKA / DUBROVNIK / PUK DUBROVNIK"]
[306371,"DUBA PELJEŠKA","KORČULA","PUK DUBROVNIK","DUBA PELJEŠKA / KORČULA / PUK DUBROVNIK"]
[306380,"DUBA STONSKA","DUBROVNIK","PUK DUBROVNIK","DUBA STONSKA / DUBROVNIK / PUK DUBROVNIK"]
[314862,"DUBICA","HRVATSKA KOSTAJNICA","PUK SISAK","DUBICA / HRVATSKA KOSTAJNICA / PUK SISAK"]
[328260,"DUBOČAC","SLAVONSKI BROD","PUK SLAVONSKI BROD","DUBOČAC / SLAVONSKI BROD / PUK SLAVONSKI BROD"]
[327212,"DUBOKA","POŽEGA","PUK POŽEGA","DUBOKA / POŽEGA / PUK POŽEGA"]
[311103,"DUBOKI DOL","GRAČAC","PUK ZADAR","DUBOKI DOL / GRAČAC / PUK ZADAR"]
[300128,"DUBOŠEVICA","BELI MANASTIR","PUK OSIJEK","DUBOŠEVICA / BELI MANASTIR / PUK OSIJEK"]
[317829,"DUBOVAC","NOVA GRADIŠKA","PUK SLAVONSKI BROD","DUBOVAC / NOVA GRADIŠKA / PUK SLAVONSKI BROD"]
[304751,"DUBOVEC","DONJA STUBICA","PUK KRAPINA","DUBOVEC / DONJA STUBICA / PUK KRAPINA"]
[315389,"DUBOVEC","KRIŽEVCI","PUK KOPRIVNICA","DUBOVEC / KRIŽEVCI / PUK KOPRIVNICA"]
[328278,"DUBOVIK","SLAVONSKI BROD","PUK SLAVONSKI BROD","DUBOVIK / SLAVONSKI BROD / PUK SLAVONSKI BROD"]
[331520,"DUBRANEC","VELIKA GORICA","PUK ZAGREB","DUBRANEC / VELIKA GORICA / PUK ZAGREB"]
[335304,"DUBRAVA","GU ZAGREB","PUK ZAGREB","DUBRAVA / GU ZAGREB / PUK ZAGREB"]
[319589,"DUBRAVA","OMIŠ","PUK SPLIT","DUBRAVA / OMIŠ / PUK SPLIT"]
[329983,"DUBRAVA","ŠIBENIK","PUK ŠIBENIK","DUBRAVA / ŠIBENIK / PUK ŠIBENIK"]
[332976,"DUBRAVA","VRBOVEC","PUK ZAGREB","DUBRAVA / VRBOVEC / PUK ZAGREB"]
[331171,"DUBRAVA KRIŽOVLJANSKA","VARAŽDIN","PUK VARAŽDIN","DUBRAVA KRIŽOVLJANSKA / VARAŽDIN / PUK VARAŽDIN"]
[306398,"DUBRAVICA","DUBROVNIK","PUK DUBROVNIK","DUBRAVICA / DUBROVNIK / PUK DUBROVNIK"]
[335681,"DUBRAVICA","ZAPREŠIĆ","PUK ZAGREB","DUBRAVICA / ZAPREŠIĆ / PUK ZAGREB"]
[337935,"DUBRAVICA-GLUŠCI","METKOVIĆ","PUK DUBROVNIK","DUBRAVICA-GLUŠCI / METKOVIĆ / PUK DUBROVNIK"]
[329991,"DUBRAVICE","ŠIBENIK","PUK ŠIBENIK","DUBRAVICE / ŠIBENIK / PUK ŠIBENIK"]
[306401,"DUBRAVKA","DUBROVNIK","PUK DUBROVNIK","DUBRAVKA / DUBROVNIK / PUK DUBROVNIK"]
[334367,"DUBROVČAN","ZABOK","PUK KRAPINA","DUBROVČAN / ZABOK / PUK KRAPINA"]
[306410,"DUBROVNIK","DUBROVNIK","PUK DUBROVNIK","DUBROVNIK / DUBROVNIK / PUK DUBROVNIK"]
[339385,"DUBROVNIK NOVA","DUBROVNIK","PUK DUBROVNIK","DUBROVNIK NOVA / DUBROVNIK / PUK DUBROVNIK"]
[319597,"DUĆE","OMIŠ","PUK SPLIT","DUĆE / OMIŠ / PUK SPLIT"]
[337897,"DUGA MEĐA","ORAHOVICA","PUK VIROVITICA","DUGA MEĐA / ORAHOVICA / PUK VIROVITICA"]
[338125,"DUGA RESA 2","DUGA RESA","PUK KARLOVAC","DUGA RESA 2 / DUGA RESA / PUK KARLOVAC"]
[314200,"DUGA RIJEKA","KOPRIVNICA","PUK KOPRIVNICA","DUGA RIJEKA / KOPRIVNICA / PUK KOPRIVNICA"]
[308030,"DUGO SELO I","DUGO SELO","PUK ZAGREB","DUGO SELO I / DUGO SELO / PUK ZAGREB"]
[308048,"DUGO SELO II","DUGO SELO","PUK ZAGREB","DUGO SELO II / DUGO SELO / PUK ZAGREB"]
[333603,"DUGO SELO LASINJSKO","TOPUSKO","PUK SISAK","DUGO SELO LASINJSKO / TOPUSKO / PUK SISAK"]
[332488,"DUGO SELO LUKAČKO","VIROVITICA","PUK VIROVITICA","DUGO SELO LUKAČKO / VIROVITICA / PUK VIROVITICA"]
[329517,"DUGOBABE","SOLIN","PUK SPLIT","DUGOBABE / SOLIN / PUK SPLIT"]
[305090,"DUGOPOLJE","GRAČAC","PUK ZADAR","DUGOPOLJE / GRAČAC / PUK ZADAR"]
[329525,"DUGOPOLJE","SOLIN","PUK SPLIT","DUGOPOLJE / SOLIN / PUK SPLIT"]
[306428,"DUNAVE","DUBROVNIK","PUK DUBROVNIK","DUNAVE / DUBROVNIK / PUK DUBROVNIK"]
[337005,"DUNJKOVEC","ČAKOVEC","PUK ČAKOVEC","DUNJKOVEC / ČAKOVEC / PUK ČAKOVEC"]
[333905,"DUSINA","VRGORAC","PUK SPLIT","DUSINA / VRGORAC / PUK SPLIT"]
[338818,"DUSINA NOVA","VRGORAC","PUK SPLIT","DUSINA NOVA / VRGORAC / PUK SPLIT"]
[320293,"DUZLUK","ORAHOVICA","PUK VIROVITICA","DUZLUK / ORAHOVICA / PUK VIROVITICA"]
[326224,"DUŽICA","SISAK","PUK SISAK","DUŽICA / SISAK / PUK SISAK"]
[308285,"DVOR","DVOR","PUK SISAK","DVOR / DVOR / PUK SISAK"]
[310131,"DVORIŠĆE","GLINA","PUK SISAK","DVORIŠĆE / GLINA / PUK SISAK"]
[338729,"DVORIŠĆE NOVA","GLINA","PUK SISAK","DVORIŠĆE NOVA / GLINA / PUK SISAK"]
[321150,"DVORIŠTE VIVODINSKO","OZALJ","PUK KARLOVAC","DVORIŠTE VIVODINSKO / OZALJ / PUK KARLOVAC"]
[308803,"ĐAKOVO","ĐAKOVO","PUK OSIJEK","ĐAKOVO / ĐAKOVO / PUK OSIJEK"]
[314218,"ĐELEKOVEC","KOPRIVNICA","PUK KOPRIVNICA","ĐELEKOVEC / KOPRIVNICA / PUK KOPRIVNICA"]
[332011,"ĐELETOVCI","VINKOVCI","PUK VUKOVAR","ĐELETOVCI / VINKOVCI / PUK VUKOVAR"]
[313815,"ĐEVRSKE","KNIN","PUK ŠIBENIK","ĐEVRSKE / KNIN / PUK ŠIBENIK"]
[306436,"ĐONTA DOLI","DUBROVNIK","PUK DUBROVNIK","ĐONTA DOLI / DUBROVNIK / PUK DUBROVNIK"]
[304328,"ĐULOVAC","DARUVAR","PUK BJELOVAR","ĐULOVAC / DARUVAR / PUK BJELOVAR"]
[308811,"ĐURĐANCI","ĐAKOVO","PUK OSIJEK","ĐURĐANCI / ĐAKOVO / PUK OSIJEK"]
[325350,"ĐURĐEKOVEC","GU ZAGREB","PUK ZAGREB","ĐURĐEKOVEC / GU ZAGREB / PUK ZAGREB"]
[336572,"ĐURĐENOVAC","NAŠICE","PUK OSIJEK","ĐURĐENOVAC / NAŠICE / PUK OSIJEK"]
[309281,"ĐURĐEVAC I","ĐURĐEVAC","PUK KOPRIVNICA","ĐURĐEVAC I / ĐURĐEVAC / PUK KOPRIVNICA"]
[309290,"ĐURĐEVAC II","ĐURĐEVAC","PUK KOPRIVNICA","ĐURĐEVAC II / ĐURĐEVAC / PUK KOPRIVNICA"]
[338214,"ĐURĐEVAC III","ĐURĐEVAC","PUK KOPRIVNICA","ĐURĐEVAC III / ĐURĐEVAC / PUK KOPRIVNICA"]
[303836,"ĐURĐIC","ČAZMA","PUK BJELOVAR","ĐURĐIC / ČAZMA / PUK BJELOVAR"]
[315397,"ĐURĐIC","KRIŽEVCI","PUK KOPRIVNICA",{"$f":"B770&\" / \"&C770&\" / \"&D770","v":"ĐURĐIC / KRIŽEVCI / PUK KOPRIVNICA"}]
[323209,"ĐURIČIĆ","SLATINA","PUK VIROVITICA","ĐURIČIĆ / SLATINA / PUK VIROVITICA"]
[336262,"ĐURIĆI","ŽUPANJA","PUK VUKOVAR","ĐURIĆI / ŽUPANJA / PUK VUKOVAR"]
[306444,"ĐURINIĆI","DUBROVNIK","PUK DUBROVNIK","ĐURINIĆI / DUBROVNIK / PUK DUBROVNIK"]
[318515,"ĐURINOVEC","NOVI MAROF","PUK VARAŽDIN","ĐURINOVEC / NOVI MAROF / PUK VARAŽDIN"]
[315133,"ĐURMANEC","KRAPINA","PUK KRAPINA","ĐURMANEC / KRAPINA / PUK KRAPINA"]
[327239,"EMINOVCI","POŽEGA","PUK POŽEGA","EMINOVCI / POŽEGA / PUK POŽEGA"]
[325546,"ERCEGOVCI","SINJ","PUK SPLIT","ERCEGOVCI / SINJ / PUK SPLIT"]
[307548,"ERDELJ","DUGA RESA","PUK KARLOVAC","ERDELJ / DUGA RESA / PUK KARLOVAC"]
[315419,"ERDOVEC","KRIŽEVCI","PUK KOPRIVNICA","ERDOVEC / KRIŽEVCI / PUK KOPRIVNICA"]
[320579,"ERDUT","OSIJEK","PUK OSIJEK","ERDUT / OSIJEK / PUK OSIJEK"]
[320587,"ERNESTINOVO","OSIJEK","PUK OSIJEK","ERNESTINOVO / OSIJEK / PUK OSIJEK"]
[313807,"ERVENIK DONJI","KNIN","PUK ŠIBENIK","ERVENIK DONJI / KNIN / PUK ŠIBENIK"]
[313831,"ERVENIK GORNJI","KNIN","PUK ŠIBENIK","ERVENIK GORNJI / KNIN / PUK ŠIBENIK"]
[332992,"FARKAŠEVAC","VRBOVEC","PUK ZAGREB","FARKAŠEVAC / VRBOVEC / PUK ZAGREB"]
[326259,"FARKAŠIĆ","SISAK","PUK SISAK","FARKAŠIĆ / SISAK / PUK SISAK"]
[324086,"FAŽANA","PULA","PUK PULA","FAŽANA / PULA / PUK PULA"]
[309303,"FERDINANDOVAC","ĐURĐEVAC","PUK KOPRIVNICA","FERDINANDOVAC / ĐURĐEVAC / PUK KOPRIVNICA"]
[321168,"FERENCI","OZALJ","PUK KARLOVAC","FERENCI / OZALJ / PUK KARLOVAC"]
[317284,"FERIČANCI","NAŠICE","PUK OSIJEK","FERIČANCI / NAŠICE / PUK OSIJEK"]
[302988,"FERKETINEC","ČAKOVEC","PUK ČAKOVEC","FERKETINEC / ČAKOVEC / PUK ČAKOVEC"]
[324094,"FILIPANA","PULA","PUK PULA","FILIPANA / PULA / PUK PULA"]
[321761,"FILIPOVAC","PAKRAC","PUK POŽEGA","FILIPOVAC / PAKRAC / PUK POŽEGA"]
[315427,"FINČEVEC","KRIŽEVCI","PUK KOPRIVNICA","FINČEVEC / KRIŽEVCI / PUK KOPRIVNICA"]
[315435,"FODROVEC","KRIŽEVCI","PUK KOPRIVNICA","FODROVEC / KRIŽEVCI / PUK KOPRIVNICA"]
[308820,"FORKUŠEVCI","ĐAKOVO","PUK OSIJEK","FORKUŠEVCI / ĐAKOVO / PUK OSIJEK"]
[323624,"FRATA","POREČ","PUK PULA","FRATA / POREČ / PUK PULA"]
[327247,"FRKLJEVCI","POŽEGA","PUK POŽEGA","FRKLJEVCI / POŽEGA / PUK POŽEGA"]
[333000,"FUKA","VRBOVEC","PUK ZAGREB","FUKA / VRBOVEC / PUK ZAGREB"]
[323632,"FUNTANA","POREČ","PUK PULA","FUNTANA / POREČ / PUK PULA"]
[329134,"FURJAN","SLUNJ","PUK KARLOVAC","FURJAN / SLUNJ / PUK KARLOVAC"]
[323659,"FUŠKULIN","POREČ","PUK PULA","FUŠKULIN / POREČ / PUK PULA"]
[304565,"FUŽINE","DELNICE","PUK RIJEKA","FUŽINE / DELNICE / PUK RIJEKA"]
[332020,"GABOŠ","VINKOVCI","PUK VUKOVAR","GABOŠ / VINKOVCI / PUK VUKOVAR"]
[306452,"GABRILI","DUBROVNIK","PUK DUBROVNIK","GABRILI / DUBROVNIK / PUK DUBROVNIK"]
[332496,"GAĆIŠTE","VIROVITICA","PUK VIROVITICA","GAĆIŠTE / VIROVITICA / PUK VIROVITICA"]
[308293,"GAGE","DVOR","PUK SISAK","GAGE / DVOR / PUK SISAK"]
[321770,"GAJ","PAKRAC","PUK POŽEGA","GAJ / PAKRAC / PUK POŽEGA"]
[300136,"GAJIĆ","BELI MANASTIR","PUK OSIJEK","GAJIĆ / BELI MANASTIR / PUK OSIJEK"]
[325554,"GALA","SINJ","PUK SPLIT","GALA / SINJ / PUK SPLIT"]
[326232,"GALDOVO","SISAK","PUK SISAK","GALDOVO / SISAK / PUK SISAK"]
[325007,"GALGOVO","SAMOBOR","PUK ZAGREB","GALGOVO / SAMOBOR / PUK ZAGREB"]
[324108,"GALIŽANA","PULA","PUK PULA","GALIŽANA / PULA / PUK PULA"]
[301043,"GALOVAC","BJELOVAR","PUK BJELOVAR","GALOVAC / BJELOVAR / PUK BJELOVAR"]
[334677,"GALOVAC","ZADAR","PUK ZADAR","GALOVAC / ZADAR / PUK ZADAR"]
[328286,"GARČIN","SLAVONSKI BROD","PUK SLAVONSKI BROD","GARČIN / SLAVONSKI BROD / PUK SLAVONSKI BROD"]
[302996,"GARDINOVEC","ČAKOVEC","PUK ČAKOVEC","GARDINOVEC / ČAKOVEC / PUK ČAKOVEC"]
[309656,"GAREŠNICA","GAREŠNICA","PUK BJELOVAR","GAREŠNICA / GAREŠNICA / PUK BJELOVAR"]
[338672,"GAREŠNICA-CENTAR","GAREŠNICA","PUK BJELOVAR","GAREŠNICA-CENTAR / GAREŠNICA / PUK BJELOVAR"]
[315893,"GARICA","KRK","PUK RIJEKA","GARICA / KRK / PUK RIJEKA"]
[325562,"GARJAK","SINJ","PUK SPLIT","GARJAK / SINJ / PUK SPLIT"]
[308838,"GAŠINCI","ĐAKOVO","PUK OSIJEK","GAŠINCI / ĐAKOVO / PUK OSIJEK"]
[330850,"GAT","VALPOVO","PUK OSIJEK","GAT / VALPOVO / PUK OSIJEK"]
[319619,"GATA","OMIŠ","PUK SPLIT","GATA / OMIŠ / PUK SPLIT"]
[317292,"GAZIJE","NAŠICE","PUK OSIJEK","GAZIJE / NAŠICE / PUK OSIJEK"]
[311677,"GDINJ","STARI GRAD","PUK SPLIT","GDINJ / STARI GRAD / PUK SPLIT"]
[307556,"GENERALSKI STOL","DUGA RESA","PUK KARLOVAC","GENERALSKI STOL / DUGA RESA / PUK KARLOVAC"]
[302708,"GEROVO","ČABAR","PUK RIJEKA","GEROVO / ČABAR / PUK RIJEKA"]
[317837,"GILETINCI","NOVA GRADIŠKA","PUK SLAVONSKI BROD","GILETINCI / NOVA GRADIŠKA / PUK SLAVONSKI BROD"]
[329533,"GIZDAVAC","SOLIN","PUK SPLIT","GIZDAVAC / SOLIN / PUK SPLIT"]
[307564,"GLAVICA","DUGA RESA","PUK KARLOVAC","GLAVICA / DUGA RESA / PUK KARLOVAC"]
[325589,"GLAVICE","SINJ","PUK SPLIT","GLAVICE / SINJ / PUK SPLIT"]
[308307,"GLAVIČANI","DVOR","PUK SISAK","GLAVIČANI / DVOR / PUK SISAK"]
[311855,"GLAVINA GORNJA","IMOTSKI","PUK SPLIT","GLAVINA GORNJA / IMOTSKI / PUK SPLIT"]
[325368,"GLAVNICA","GU ZAGREB","PUK ZAGREB",{"$f":"B834&\" / \"&C834&\" / \"&D834","v":"GLAVNICA / GU ZAGREB / PUK ZAGREB"}]
[310140,"GLINA","GLINA","PUK SISAK","GLINA / GLINA / PUK SISAK"]
[329142,"GLINICE","SLUNJ","PUK KARLOVAC","GLINICE / SLUNJ / PUK KARLOVAC"]
[322725,"GLINSKA POLJANA","PETRINJA","PUK SISAK","GLINSKA POLJANA / PETRINJA / PUK SISAK"]
[304760,"GLOBOČEC","DONJA STUBICA","PUK KRAPINA","GLOBOČEC / DONJA STUBICA / PUK KRAPINA"]
[314226,"GLOGOVAC","KOPRIVNICA","PUK KOPRIVNICA","GLOGOVAC / KOPRIVNICA / PUK KOPRIVNICA"]
[328294,"GLOGOVICA","SLAVONSKI BROD","PUK SLAVONSKI BROD","GLOGOVICA / SLAVONSKI BROD / PUK SLAVONSKI BROD"]
[315443,"GLOGOVNICA","KRIŽEVCI","PUK KOPRIVNICA","GLOGOVNICA / KRIŽEVCI / PUK KOPRIVNICA"]
[311111,"GLOGOVO","GRAČAC","PUK ZADAR","GLOGOVO / GRAČAC / PUK ZADAR"]
[325597,"GLJEV","SINJ","PUK SPLIT","GLJEV / SINJ / PUK SPLIT"]
[329169,"GNOJNICE","SLUNJ","PUK KARLOVAC","GNOJNICE / SLUNJ / PUK KARLOVAC"]
[324116,"GOČAN","PULA","PUK PULA","GOČAN / PULA / PUK PULA"]
[317845,"GODINJAK","NOVA GRADIŠKA","PUK SLAVONSKI BROD","GODINJAK / NOVA GRADIŠKA / PUK SLAVONSKI BROD"]
[337544,"GOJANEC","VARAŽDIN","PUK VARAŽDIN","GOJANEC / VARAŽDIN / PUK VARAŽDIN"]
[329177,"GOJKOVAC","SLUNJ","PUK KARLOVAC","GOJKOVAC / SLUNJ / PUK KARLOVAC"]
[314234,"GOLA","KOPRIVNICA","PUK KOPRIVNICA","GOLA / KOPRIVNICA / PUK KOPRIVNICA"]
[318779,"GOLEŠI","NOVSKA","PUK SISAK","GOLEŠI / NOVSKA / PUK SISAK"]
[336882,"GOLI OTOK","RAB","PUK RIJEKA","GOLI OTOK / RAB / PUK RIJEKA"]
[305359,"GOLINCI","DONJI MIHOLJAC","PUK OSIJEK","GOLINCI / DONJI MIHOLJAC / PUK OSIJEK"]
[333611,"GOLINJA","TOPUSKO","PUK SISAK","GOLINJA / TOPUSKO / PUK SISAK"]
[317853,"GOLOBRDAC","NOVA GRADIŠKA","PUK SLAVONSKI BROD","GOLOBRDAC / NOVA GRADIŠKA / PUK SLAVONSKI BROD"]
[322253,"GOLOGORICA","PAZIN","PUK PULA","GOLOGORICA / PAZIN / PUK PULA"]
[313823,"GOLUBIĆ","KNIN","PUK ŠIBENIK","GOLUBIĆ / KNIN / PUK ŠIBENIK"]
[319058,"GOLUBIĆ","OBROVAC","PUK ZADAR","GOLUBIĆ / OBROVAC / PUK ZADAR"]
[304166,"GOLUBINJAK","DARUVAR","PUK BJELOVAR","GOLUBINJAK / DARUVAR / PUK BJELOVAR"]
[308315,"GOLUBOVAC","DVOR","PUK SISAK","GOLUBOVAC / DVOR / PUK SISAK"]
[333352,"GOMIRJE","VRBOVSKO","PUK RIJEKA","GOMIRJE / VRBOVSKO / PUK RIJEKA"]
[333379,"GOMIRSKO VRBOVSKO","VRBOVSKO","PUK RIJEKA","GOMIRSKO VRBOVSKO / VRBOVSKO / PUK RIJEKA"]
[322733,"GORA","PETRINJA","PUK SISAK","GORA / PETRINJA / PUK SISAK"]
[302716,"GORAČI","ČABAR","PUK RIJEKA","GORAČI / ČABAR / PUK RIJEKA"]
[325376,"GORANEC","GU ZAGREB","PUK ZAGREB","GORANEC / GU ZAGREB / PUK ZAGREB"]
[322261,"GORENJA VAS","PAZIN","PUK PULA","GORENJA VAS / PAZIN / PUK PULA"]
[314242,"GORICA","KOPRIVNICA","PUK KOPRIVNICA","GORICA / KOPRIVNICA / PUK KOPRIVNICA"]
[330019,"GORICA","ŠIBENIK","PUK ŠIBENIK","GORICA / ŠIBENIK / PUK ŠIBENIK"]
[334685,"GORICA","ZADAR","PUK ZADAR","GORICA / ZADAR / PUK ZADAR"]
[338664,"GORICA NOVA","KOPRIVNICA","PUK KOPRIVNICA","GORICA NOVA / KOPRIVNICA / PUK KOPRIVNICA"]
[317861,"GORICE","NOVA GRADIŠKA","PUK SLAVONSKI BROD","GORICE / NOVA GRADIŠKA / PUK SLAVONSKI BROD"]
[303003,"GORIČAN","PRELOG","PUK ČAKOVEC","GORIČAN / PRELOG / PUK ČAKOVEC"]
[308323,"GORIČKA","DVOR","PUK SISAK","GORIČKA / DVOR / PUK SISAK"]
[323900,"GORJAKOVO","PREGRADA","PUK KRAPINA","GORJAKOVO / PREGRADA / PUK KRAPINA"]
[308846,"GORJANI","ĐAKOVO","PUK OSIJEK","GORJANI / ĐAKOVO / PUK OSIJEK"]
[328308,"GORNJA BEBRINA","SLAVONSKI BROD","PUK SLAVONSKI BROD","GORNJA BEBRINA / SLAVONSKI BROD / PUK SLAVONSKI BROD"]
[335690,"GORNJA BISTRA","ZAPREŠIĆ","PUK ZAGREB","GORNJA BISTRA / ZAPREŠIĆ / PUK ZAGREB"]
[323217,"GORNJA BUKOVICA","SLATINA","PUK VIROVITICA","GORNJA BUKOVICA / SLATINA / PUK VIROVITICA"]
[303011,"GORNJA DUBRAVA","ČAKOVEC","PUK ČAKOVEC","GORNJA DUBRAVA / ČAKOVEC / PUK ČAKOVEC"]
[309664,"GORNJA GAREŠNICA","GAREŠNICA","PUK BJELOVAR","GORNJA GAREŠNICA / GAREŠNICA / PUK BJELOVAR"]
[300462,"GORNJA JAGODNJA","BENKOVAC","PUK ZADAR","GORNJA JAGODNJA / BENKOVAC / PUK ZADAR"]
[316105,"GORNJA JELENSKA","KUTINA","PUK SISAK","GORNJA JELENSKA / KUTINA / PUK SISAK"]
[311421,"GORNJA KOVAČICA","GRUBIŠNO POLJE","PUK BJELOVAR","GORNJA KOVAČICA / GRUBIŠNO POLJE / PUK BJELOVAR"]
[312592,"GORNJA KUPČINA","JASTREBARSKO","PUK ZAGREB","GORNJA KUPČINA / JASTREBARSKO / PUK ZAGREB"]
[329258,"GORNJA MOČILA","SLUNJ","PUK KARLOVAC","GORNJA MOČILA / SLUNJ / PUK KARLOVAC"]
[317306,"GORNJA MOTIČINA","NAŠICE","PUK OSIJEK","GORNJA MOTIČINA / NAŠICE / PUK OSIJEK"]
[338630,"GORNJA MOTIČINA NOVA","NAŠICE","PUK OSIJEK","GORNJA MOTIČINA NOVA / NAŠICE / PUK OSIJEK"]
[321788,"GORNJA OBRIJEŽ","PAKRAC","PUK POŽEGA","GORNJA OBRIJEŽ / PAKRAC / PUK POŽEGA"]
[315141,"GORNJA PAČETINA","KRAPINA","PUK KRAPINA","GORNJA PAČETINA / KRAPINA / PUK KRAPINA"]
[320307,"GORNJA PIŠTANA","ORAHOVICA","PUK VIROVITICA","GORNJA PIŠTANA / ORAHOVICA / PUK VIROVITICA"]
[311235,"GORNJA PLOČA","LOVINAC","PUK GOSPIĆ","GORNJA PLOČA / LOVINAC / PUK GOSPIĆ"]
[336548,"GORNJA PODSTRANA","SPLIT","PUK SPLIT","GORNJA PODSTRANA / SPLIT / PUK SPLIT"]
[339156,"GORNJA PODSTRANA NOVA","SPLIT","PUK SPLIT","GORNJA PODSTRANA NOVA / SPLIT / PUK SPLIT"]
[315451,"GORNJA RIJEKA","KRIŽEVCI","PUK KOPRIVNICA","GORNJA RIJEKA / KRIŽEVCI / PUK KOPRIVNICA"]
[304778,"GORNJA STUBICA","DONJA STUBICA","PUK KRAPINA","GORNJA STUBICA / DONJA STUBICA / PUK KRAPINA"]
[333620,"GORNJA TRSTENICA","TOPUSKO","PUK SISAK","GORNJA TRSTENICA / TOPUSKO / PUK SISAK"]
[314889,"GORNJA VELEŠNJA","HRVATSKA KOSTAJNICA","PUK SISAK","GORNJA VELEŠNJA / HRVATSKA KOSTAJNICA / PUK SISAK"]
[312134,"GORNJA VIŠNJICA","IVANEC","PUK VARAŽDIN","GORNJA VIŠNJICA / IVANEC / PUK VARAŽDIN"]
[312142,"GORNJA VOĆA","IVANEC","PUK VARAŽDIN",{"$f":"B898&\" / \"&C898&\" / \"&D898","v":"GORNJA VOĆA / IVANEC / PUK VARAŽDIN"}]
[306479,"GORNJA VRUĆICA","KORČULA","PUK DUBROVNIK","GORNJA VRUĆICA / KORČULA / PUK DUBROVNIK"]
[332500,"GORNJE BAZJE","VIROVITICA","PUK VIROVITICA","GORNJE BAZJE / VIROVITICA / PUK VIROVITICA"]
[300489,"GORNJE BILJANE","BENKOVAC","PUK ZADAR","GORNJE BILJANE / BENKOVAC / PUK ZADAR"]
[319236,"GORNJE DUBRAVE","OGULIN","PUK KARLOVAC","GORNJE DUBRAVE / OGULIN / PUK KARLOVAC"]
[326267,"GORNJE KOMAREVO","SISAK","PUK SISAK","GORNJE KOMAREVO / SISAK / PUK SISAK"]
[323225,"GORNJE KUSONJE","SLATINA","PUK VIROVITICA","GORNJE KUSONJE / SLATINA / PUK VIROVITICA"]
[331198,"GORNJE LADANJE","VARAŽDIN","PUK VARAŽDIN","GORNJE LADANJE / VARAŽDIN / PUK VARAŽDIN"]
[313106,"GORNJE MEKUŠJE","KARLOVAC","PUK KARLOVAC","GORNJE MEKUŠJE / KARLOVAC / PUK KARLOVAC"]
[329541,"GORNJE OGORJE","SOLIN","PUK SPLIT","GORNJE OGORJE / SOLIN / PUK SPLIT"]
[310727,"GORNJE PAZARIŠTE","GOSPIĆ","PUK GOSPIĆ","GORNJE PAZARIŠTE / GOSPIĆ / PUK GOSPIĆ"]
[301051,"GORNJE PLAVNICE","BJELOVAR","PUK BJELOVAR","GORNJE PLAVNICE / BJELOVAR / PUK BJELOVAR"]
[331538,"GORNJE PODOTOČJE","VELIKA GORICA","PUK ZAGREB","GORNJE PODOTOČJE / VELIKA GORICA / PUK ZAGREB"]
[329550,"GORNJE POSTINJE","SOLIN","PUK SPLIT","GORNJE POSTINJE / SOLIN / PUK SPLIT"]
[323233,"GORNJE PREDRIJEVO","SLATINA","PUK VIROVITICA","GORNJE PREDRIJEVO / SLATINA / PUK VIROVITICA"]
[307572,"GORNJE PRILIŠĆE","DUGA RESA","PUK KARLOVAC","GORNJE PRILIŠĆE / DUGA RESA / PUK KARLOVAC"]
[329185,"GORNJE PRIMIŠLJE","SLUNJ","PUK KARLOVAC","GORNJE PRIMIŠLJE / SLUNJ / PUK KARLOVAC"]
[301094,"GORNJE ROVIŠĆE","BJELOVAR","PUK BJELOVAR","GORNJE ROVIŠĆE / BJELOVAR / PUK BJELOVAR"]
[310158,"GORNJE SELIŠTE","GLINA","PUK SISAK","GORNJE SELIŠTE / GLINA / PUK SISAK"]
[329754,"GORNJE SELO","SPLIT","PUK SPLIT","GORNJE SELO / SPLIT / PUK SPLIT"]
[313114,"GORNJE STATIVE","KARLOVAC","PUK KARLOVAC","GORNJE STATIVE / KARLOVAC / PUK KARLOVAC"]
[305634,"GORNJE UTORE","DRNIŠ","PUK ŠIBENIK","GORNJE UTORE / DRNIŠ / PUK ŠIBENIK"]
[323241,"GORNJE VILJEVO","SLATINA","PUK VIROVITICA","GORNJE VILJEVO / SLATINA / PUK VIROVITICA"]
[305642,"GORNJE VINOVO","DRNIŠ","PUK ŠIBENIK","GORNJE VINOVO / DRNIŠ / PUK ŠIBENIK"]
[335568,"GORNJE VRAPČE","GU ZAGREB","PUK ZAGREB","GORNJE VRAPČE / GU ZAGREB / PUK ZAGREB"]
[328316,"GORNJI ANDRIJEVCI","SLAVONSKI BROD","PUK SLAVONSKI BROD","GORNJI ANDRIJEVCI / SLAVONSKI BROD / PUK SLAVONSKI BROD"]
[325619,"GORNJI BITELIĆ","SINJ","PUK SPLIT","GORNJI BITELIĆ / SINJ / PUK SPLIT"]
[317888,"GORNJI BOGIĆEVCI","NOVA GRADIŠKA","PUK SLAVONSKI BROD","GORNJI BOGIĆEVCI / NOVA GRADIŠKA / PUK SLAVONSKI BROD"]
[306487,"GORNJI BRGAT","DUBROVNIK","PUK DUBROVNIK","GORNJI BRGAT / DUBROVNIK / PUK DUBROVNIK"]
[313122,"GORNJI BUDAČKI","KARLOVAC","PUK KARLOVAC","GORNJI BUDAČKI / KARLOVAC / PUK KARLOVAC"]
[336564,"GORNJI ČEMEHOVEC","KLANJEC","PUK KRAPINA","GORNJI ČEMEHOVEC / KLANJEC / PUK KRAPINA"]
[304174,"GORNJI DARUVAR","DARUVAR","PUK BJELOVAR","GORNJI DARUVAR / DARUVAR / PUK BJELOVAR"]
[319627,"GORNJI DOLAC","OMIŠ","PUK SPLIT","GORNJI DOLAC / OMIŠ / PUK SPLIT"]
[327255,"GORNJI GUČANI","POŽEGA","PUK POŽEGA","GORNJI GUČANI / POŽEGA / PUK POŽEGA"]
[314897,"GORNJI HRASTOVAC","HRVATSKA KOSTAJNICA","PUK SISAK","GORNJI HRASTOVAC / HRVATSKA KOSTAJNICA / PUK SISAK"]
[303020,"GORNJI HRAŠĆAN","ČAKOVEC","PUK ČAKOVEC","GORNJI HRAŠĆAN / ČAKOVEC / PUK ČAKOVEC"]
[331546,"GORNJI HRUŠEVEC","VELIKA GORICA","PUK ZAGREB","GORNJI HRUŠEVEC / VELIKA GORICA / PUK ZAGREB"]
[301604,"GORNJI HUMAC","SUPETAR","PUK SPLIT","GORNJI HUMAC / SUPETAR / PUK SPLIT"]
[337331,"GORNJI KARIN","OBROVAC","PUK ZADAR","GORNJI KARIN / OBROVAC / PUK ZADAR"]
[310735,"GORNJI KOSINJ","GOSPIĆ","PUK GOSPIĆ","GORNJI KOSINJ / GOSPIĆ / PUK GOSPIĆ"]
[303038,"GORNJI KRALJEVEC","ČAKOVEC","PUK ČAKOVEC","GORNJI KRALJEVEC / ČAKOVEC / PUK ČAKOVEC"]
[337196,"GORNJI KUĆAN","VARAŽDIN","PUK VARAŽDIN","GORNJI KUĆAN / VARAŽDIN / PUK VARAŽDIN"]
[329193,"GORNJI LAĐEVAC","SLUNJ","PUK KARLOVAC","GORNJI LAĐEVAC / SLUNJ / PUK KARLOVAC"]
[305103,"GORNJI LAPAC","DONJI LAPAC","PUK GOSPIĆ","GORNJI LAPAC / DONJI LAPAC / PUK GOSPIĆ"]
[317900,"GORNJI LIPOVAC","NOVA GRADIŠKA","PUK SLAVONSKI BROD","GORNJI LIPOVAC / NOVA GRADIŠKA / PUK SLAVONSKI BROD"]
[316768,"GORNJI MARTIJANEC","LUDBREG","PUK VARAŽDIN","GORNJI MARTIJANEC / LUDBREG / PUK VARAŽDIN"]
[323250,"GORNJI MELJANI","SLATINA","PUK VIROVITICA","GORNJI MELJANI / SLATINA / PUK VIROVITICA"]
[303046,"GORNJI MIHALJEVEC","ČAKOVEC","PUK ČAKOVEC","GORNJI MIHALJEVEC / ČAKOVEC / PUK ČAKOVEC"]
[323268,"GORNJI MIHOLJAC","SLATINA","PUK VIROVITICA","GORNJI MIHOLJAC / SLATINA / PUK VIROVITICA"]
[329568,"GORNJI MUĆ","SOLIN","PUK SPLIT","GORNJI MUĆ / SOLIN / PUK SPLIT"]
[303054,"GORNJI PUSTAKOVEC","ČAKOVEC","PUK ČAKOVEC","GORNJI PUSTAKOVEC / ČAKOVEC / PUK ČAKOVEC"]
[310166,"GORNJI SELKOVAC","GLINA","PUK SISAK","GORNJI SELKOVAC / GLINA / PUK SISAK"]
[313149,"GORNJI SJENIČAK","KARLOVAC","PUK KARLOVAC","GORNJI SJENIČAK / KARLOVAC / PUK KARLOVAC"]
[313157,"GORNJI SKRAD","KARLOVAC","PUK KARLOVAC","GORNJI SKRAD / KARLOVAC / PUK KARLOVAC"]
[304182,"GORNJI SREĐANI","DARUVAR","PUK BJELOVAR","GORNJI SREĐANI / DARUVAR / PUK BJELOVAR"]
[335576,"GORNJI STENJEVEC","GU ZAGREB","PUK ZAGREB","GORNJI STENJEVEC / GU ZAGREB / PUK ZAGREB"]
[317918,"GORNJI VAROŠ","NOVA GRADIŠKA","PUK SLAVONSKI BROD","GORNJI VAROŠ / NOVA GRADIŠKA / PUK SLAVONSKI BROD"]
[303062,"GORNJI VIDOVEC","ČAKOVEC","PUK ČAKOVEC","GORNJI VIDOVEC / ČAKOVEC / PUK ČAKOVEC"]
[336475,"GORNJI VINKOVEC","SVETI IVAN ZELINA","PUK ZAGREB","GORNJI VINKOVEC / SVETI IVAN ZELINA / PUK ZAGREB"]
[327263,"GORNJI VRHOVCI","POŽEGA","PUK POŽEGA","GORNJI VRHOVCI / POŽEGA / PUK POŽEGA"]
[307599,"GORNJI ZVEČAJ","DUGA RESA","PUK KARLOVAC","GORNJI ZVEČAJ / DUGA RESA / PUK KARLOVAC"]
[322741,"GORSKE MOKRICE","PETRINJA","PUK SISAK","GORSKE MOKRICE / PETRINJA / PUK SISAK"]
[310743,"GOSPIĆ","GOSPIĆ","PUK GOSPIĆ","GOSPIĆ / GOSPIĆ / PUK GOSPIĆ"]
[333018,"GOSTOVIĆ","VRBOVEC","PUK ZAGREB","GOSTOVIĆ / VRBOVEC / PUK ZAGREB"]
[335991,"GOTALOVEC","ZLATAR","PUK KRAPINA",{"$f":"B962&\" / \"&C962&\" / \"&D962","v":"GOTALOVEC / ZLATAR / PUK KRAPINA"}]
[314269,"GOTALOVO","KOPRIVNICA","PUK KOPRIVNICA","GOTALOVO / KOPRIVNICA / PUK KOPRIVNICA"]
[306509,"GOVEĐARI","DUBROVNIK","PUK DUBROVNIK","GOVEĐARI / DUBROVNIK / PUK DUBROVNIK"]
[304204,"GOVEĐE POLJE","DARUVAR","PUK BJELOVAR","GOVEĐE POLJE / DARUVAR / PUK BJELOVAR"]
[311120,"GRAB","GRAČAC","PUK ZADAR","GRAB / GRAČAC / PUK ZADAR"]
[325627,"GRAB","SINJ","PUK SPLIT","GRAB / SINJ / PUK SPLIT"]
[325015,"GRABAR","SAMOBOR","PUK ZAGREB","GRABAR / SAMOBOR / PUK ZAGREB"]
[327271,"GRABARJE","POŽEGA","PUK POŽEGA","GRABARJE / POŽEGA / PUK POŽEGA"]
[328324,"GRABARJE","SLAVONSKI BROD","PUK SLAVONSKI BROD","GRABARJE / SLAVONSKI BROD / PUK SLAVONSKI BROD"]
[322750,"GRABERJE","PETRINJA","PUK SISAK","GRABERJE / PETRINJA / PUK SISAK"]
[311685,"GRABLJE","HVAR","PUK SPLIT","GRABLJE / HVAR / PUK SPLIT"]
[314919,"GRABOŠTANI","HRVATSKA KOSTAJNICA","PUK SISAK","GRABOŠTANI / HRVATSKA KOSTAJNICA / PUK SISAK"]
[300144,"GRABOVAC","BELI MANASTIR","PUK OSIJEK","GRABOVAC / BELI MANASTIR / PUK OSIJEK"]
[319635,"GRABOVAC","OMIŠ","PUK SPLIT","GRABOVAC / OMIŠ / PUK SPLIT"]
[322768,"GRABOVAC BANSKI","PETRINJA","PUK SISAK","GRABOVAC BANSKI / PETRINJA / PUK SISAK"]
[308331,"GRABOVICA","DVOR","PUK SISAK","GRABOVICA / DVOR / PUK SISAK"]
[334103,"GRABOVO","VUKOVAR","PUK VUKOVAR","GRABOVO / VUKOVAR / PUK VUKOVAR"]
[307602,"GRABRK","DUGA RESA","PUK KARLOVAC","GRABRK / DUGA RESA / PUK KARLOVAC"]
[316113,"GRABROV POTOK","KUTINA","PUK SISAK","GRABROV POTOK / KUTINA / PUK SISAK"]
[309311,"GRABROVNICA","PITOMAČA","PUK VIROVITICA","GRABROVNICA / PITOMAČA / PUK VIROVITICA"]
[311138,"GRAČAC","GRAČAC","PUK ZADAR","GRAČAC / GRAČAC / PUK ZADAR"]
[335363,"GRAČANI","GU ZAGREB","PUK ZAGREB","GRAČANI / GU ZAGREB / PUK ZAGREB"]
[310174,"GRAČANICA ŠIŠINEČKA","GLINA","PUK SISAK","GRAČANICA ŠIŠINEČKA / GLINA / PUK SISAK"]
[316121,"GRAČENICA","KUTINA","PUK SISAK","GRAČENICA / KUTINA / PUK SISAK"]
[322270,"GRAČIŠĆE","PAZIN","PUK PULA","GRAČIŠĆE / PAZIN / PUK PULA"]
[305669,"GRADAC","DRNIŠ","PUK ŠIBENIK","GRADAC / DRNIŠ / PUK ŠIBENIK"]
[312916,"GRADAC","MAKARSKA","PUK SPLIT","GRADAC / MAKARSKA / PUK SPLIT"]
[327280,"GRADAC","POŽEGA","PUK POŽEGA","GRADAC / POŽEGA / PUK POŽEGA"]
[317314,"GRADAC NAŠIČKI","NAŠICE","PUK OSIJEK","GRADAC NAŠIČKI / NAŠICE / PUK OSIJEK"]
[333026,"GRADEC","VRBOVEC","PUK ZAGREB","GRADEC / VRBOVEC / PUK ZAGREB"]
[331554,"GRADIĆI","VELIKA GORICA","PUK ZAGREB","GRADIĆI / VELIKA GORICA / PUK ZAGREB"]
[338567,"GRADIĆI NOVI","VELIKA GORICA","PUK ZAGREB","GRADIĆI NOVI / VELIKA GORICA / PUK ZAGREB"]
[323667,"GRADINA","POREČ","PUK PULA","GRADINA / POREČ / PUK PULA"]
[332518,"GRADINA","VIROVITICA","PUK VIROVITICA","GRADINA / VIROVITICA / PUK VIROVITICA"]
[322288,"GRADINJE","PAZIN","PUK PULA","GRADINJE / PAZIN / PUK PULA"]
[303089,"GRADIŠČAK","ČAKOVEC","PUK ČAKOVEC","GRADIŠČAK / ČAKOVEC / PUK ČAKOVEC"]
[327298,"GRADIŠTE","POŽEGA","PUK POŽEGA","GRADIŠTE / POŽEGA / PUK POŽEGA"]
[336289,"GRADIŠTE","ŽUPANJA","PUK VUKOVAR","GRADIŠTE / ŽUPANJA / PUK VUKOVAR"]
[328049,"GRADSKI VRHOVCI","POŽEGA","PUK POŽEGA","GRADSKI VRHOVCI / POŽEGA / PUK POŽEGA"]
[326275,"GRADUSA POSAVSKA","SISAK","PUK SISAK","GRADUSA POSAVSKA / SISAK / PUK SISAK"]
[321796,"GRAHOVLJANI","PAKRAC","PUK POŽEGA","GRAHOVLJANI / PAKRAC / PUK POŽEGA"]
[318523,"GRANA","NOVI MAROF","PUK VARAŽDIN","GRANA / NOVI MAROF / PUK VARAŽDIN"]
[338338,"GRANEŠINA NOVA","GU ZAGREB","PUK ZAGREB","GRANEŠINA NOVA / GU ZAGREB / PUK ZAGREB"]
[317322,"GRANICE","NAŠICE","PUK OSIJEK","GRANICE / NAŠICE / PUK OSIJEK"]
[304573,"GRBAJEL","DELNICE","PUK RIJEKA","GRBAJEL / DELNICE / PUK RIJEKA"]
[306517,"GRBAVAC","DUBROVNIK","PUK DUBROVNIK","GRBAVAC / DUBROVNIK / PUK DUBROVNIK"]
[311430,"GRBAVAC","GRUBIŠNO POLJE","PUK BJELOVAR","GRBAVAC / GRUBIŠNO POLJE / PUK BJELOVAR"]
[336742,"GRBE","ZADAR","PUK ZADAR","GRBE / ZADAR / PUK ZADAR"]
[322296,"GRDOSELO","PAZIN","PUK PULA","GRDOSELO / PAZIN / PUK PULA"]
[321800,"GRĐEVICA","PAKRAC","PUK POŽEGA","GRĐEVICA / PAKRAC / PUK POŽEGA"]
[330027,"GREBAŠTICA","ŠIBENIK","PUK ŠIBENIK","GREBAŠTICA / ŠIBENIK / PUK ŠIBENIK"]
[326283,"GREDA","SISAK","PUK SISAK","GREDA / SISAK / PUK SISAK"]
[326291,"GREDA SUNJSKA","SISAK","PUK SISAK","GREDA SUNJSKA / SISAK / PUK SISAK"]
[317926,"GREĐANI","NOVA GRADIŠKA","PUK SLAVONSKI BROD","GREĐANI / NOVA GRADIŠKA / PUK SLAVONSKI BROD"]
[333638,"GREĐANI","TOPUSKO","PUK SISAK","GREĐANI / TOPUSKO / PUK SISAK"]
[315460,"GREGUROVEC","KRIŽEVCI","PUK KOPRIVNICA","GREGUROVEC / KRIŽEVCI / PUK KOPRIVNICA"]
[321176,"GRIČE","OZALJ","PUK KARLOVAC","GRIČE / OZALJ / PUK KARLOVAC"]
[322300,"GRIMALDA","PAZIN","PUK PULA","GRIMALDA / PAZIN / PUK PULA"]
[302635,"GRIŽANE","CRIKVENICA","PUK RIJEKA","GRIŽANE / CRIKVENICA / PUK RIJEKA"]
[308340,"GRMUŠANI","DVOR","PUK SISAK","GRMUŠANI / DVOR / PUK SISAK"]
[316431,"GROBNIK","LABIN","PUK PULA","GROBNIK / LABIN / PUK PULA"]
[324531,"GROBNIK","RIJEKA","PUK RIJEKA","GROBNIK / RIJEKA / PUK RIJEKA"]
[329762,"GROHOTE","SPLIT","PUK SPLIT","GROHOTE / SPLIT / PUK SPLIT"]
[306525,"GROMAČA","DUBROVNIK","PUK DUBROVNIK","GROMAČA / DUBROVNIK / PUK DUBROVNIK"]
[328332,"GROMAČNIK","SLAVONSKI BROD","PUK SLAVONSKI BROD",{"$f":"B1026&\" / \"&C1026&\" / \"&D1026","v":"GROMAČNIK / SLAVONSKI BROD / PUK SLAVONSKI BROD"}]
[301825,"GROŽNJAN","BUJE","PUK PULA","GROŽNJAN / BUJE / PUK PULA"]
[307629,"GRŠĆAKI","DUGA RESA","PUK KARLOVAC","GRŠĆAKI / DUGA RESA / PUK KARLOVAC"]
[311448,"GRUBIŠNO POLJE","GRUBIŠNO POLJE","PUK BJELOVAR","GRUBIŠNO POLJE / GRUBIŠNO POLJE / PUK BJELOVAR"]
[306533,"GRUDA","DUBROVNIK","PUK DUBROVNIK","GRUDA / DUBROVNIK / PUK DUBROVNIK"]
[334375,"GUBAŠEVO","ZABOK","PUK KRAPINA","GUBAŠEVO / ZABOK / PUK KRAPINA"]
[301086,"GUDOVAC","BJELOVAR","PUK BJELOVAR","GUDOVAC / BJELOVAR / PUK BJELOVAR"]
[328359,"GUNDINCI","SLAVONSKI BROD","PUK SLAVONSKI BROD","GUNDINCI / SLAVONSKI BROD / PUK SLAVONSKI BROD"]
[336297,"GUNJA","ŽUPANJA","PUK VUKOVAR","GUNJA / ŽUPANJA / PUK VUKOVAR"]
[317934,"GUNJAVCI","NOVA GRADIŠKA","PUK SLAVONSKI BROD","GUNJAVCI / NOVA GRADIŠKA / PUK SLAVONSKI BROD"]
[304786,"GUSAKOVEC","DONJA STUBICA","PUK KRAPINA","GUSAKOVEC / DONJA STUBICA / PUK KRAPINA"]
[331562,"GUSTELNICA","VELIKA GORICA","PUK ZAGREB","GUSTELNICA / VELIKA GORICA / PUK ZAGREB"]
[315478,"GUŠČEROVEC","KRIŽEVCI","PUK KOPRIVNICA","GUŠČEROVEC / KRIŽEVCI / PUK KOPRIVNICA"]
[326305,"GUŠĆE","SISAK","PUK SISAK","GUŠĆE / SISAK / PUK SISAK"]
[332534,"GVOZDANSKA","VIROVITICA","PUK VIROVITICA","GVOZDANSKA / VIROVITICA / PUK VIROVITICA"]
[308358,"GVOZDANSKO","DVOR","PUK SISAK","GVOZDANSKO / DVOR / PUK SISAK"]
[333034,"HABJANOVAC","VRBOVEC","PUK ZAGREB","HABJANOVAC / VRBOVEC / PUK ZAGREB"]
[330868,"HABJANOVCI","VALPOVO","PUK OSIJEK","HABJANOVCI / VALPOVO / PUK OSIJEK"]
[310182,"HAĐER","GLINA","PUK SISAK","HAĐER / GLINA / PUK SISAK"]
[333042,"HAGANJ","VRBOVEC","PUK ZAGREB","HAGANJ / VRBOVEC / PUK ZAGREB"]
[310204,"HAJTIĆ","GLINA","PUK SISAK","HAJTIĆ / GLINA / PUK SISAK"]
[309320,"HAMPOVICA","ĐURĐEVAC","PUK KOPRIVNICA","HAMPOVICA / ĐURĐEVAC / PUK KOPRIVNICA"]
[330876,"HARKANOVCI","VALPOVO","PUK OSIJEK","HARKANOVCI / VALPOVO / PUK OSIJEK"]
[335827,"HELENA","SVETI IVAN ZELINA","PUK ZAGREB","HELENA / SVETI IVAN ZELINA / PUK ZAGREB"]
[303097,"HEMUŠEVEC","PRELOG","PUK ČAKOVEC","HEMUŠEVEC / PRELOG / PUK ČAKOVEC"]
[309672,"HERCEGOVAC","GAREŠNICA","PUK BJELOVAR","HERCEGOVAC / GAREŠNICA / PUK BJELOVAR"]
[314277,"HEREŠIN","KOPRIVNICA","PUK KOPRIVNICA","HEREŠIN / KOPRIVNICA / PUK KOPRIVNICA"]
[303119,"HLAPIČINA","ČAKOVEC","PUK ČAKOVEC","HLAPIČINA / ČAKOVEC / PUK ČAKOVEC"]
[314285,"HLEBINE","KOPRIVNICA","PUK KOPRIVNICA","HLEBINE / KOPRIVNICA / PUK KOPRIVNICA"]
[315150,"HLEVNICA","KRAPINA","PUK KRAPINA","HLEVNICA / KRAPINA / PUK KRAPINA"]
[306541,"HODILJE","DUBROVNIK","PUK DUBROVNIK","HODILJE / DUBROVNIK / PUK DUBROVNIK"]
[303127,"HODOŠAN","PRELOG","PUK ČAKOVEC","HODOŠAN / PRELOG / PUK ČAKOVEC"]
[335428,"HORVATI","GU ZAGREB","PUK ZAGREB","HORVATI / GU ZAGREB / PUK ZAGREB"]
[331589,"HOTNJA","VELIKA GORICA","PUK ZAGREB","HOTNJA / VELIKA GORICA / PUK ZAGREB"]
[326313,"HRASTELNICA","SISAK","PUK SISAK","HRASTELNICA / SISAK / PUK SISAK"]
[312339,"HRASTILNICA","IVANIĆ GRAD","PUK ZAGREB","HRASTILNICA / IVANIĆ GRAD / PUK ZAGREB"]
[320595,"HRASTIN","OSIJEK","PUK OSIJEK","HRASTIN / OSIJEK / PUK OSIJEK"]
[335835,"HRASTJE","SVETI IVAN ZELINA","PUK ZAGREB","HRASTJE / SVETI IVAN ZELINA / PUK ZAGREB"]
[309699,"HRASTOVAC","GAREŠNICA","PUK BJELOVAR","HRASTOVAC / GAREŠNICA / PUK BJELOVAR"]
[318531,"HRASTOVEC TOPLIČKI","NOVI MAROF","PUK VARAŽDIN","HRASTOVEC TOPLIČKI / NOVI MAROF / PUK VARAŽDIN"]
[322776,"HRASTOVICA","PETRINJA","PUK SISAK","HRASTOVICA / PETRINJA / PUK SISAK"]
[316776,"HRASTOVLJAN","LUDBREG","PUK VARAŽDIN","HRASTOVLJAN / LUDBREG / PUK VARAŽDIN"]
[316784,"HRASTOVSKO","LUDBREG","PUK VARAŽDIN","HRASTOVSKO / LUDBREG / PUK VARAŽDIN"]
[336009,"HRAŠĆINA","ZLATAR","PUK KRAPINA","HRAŠĆINA / ZLATAR / PUK KRAPINA"]
[336017,"HRAŠĆINSKI KRALJEVEC","ZLATAR","PUK KRAPINA","HRAŠĆINSKI KRALJEVEC / ZLATAR / PUK KRAPINA"]
[308056,"HREBINEC","DUGO SELO","PUK ZAGREB","HREBINEC / DUGO SELO / PUK ZAGREB"]
[324540,"HRELJIN","RIJEKA","PUK RIJEKA","HRELJIN / RIJEKA / PUK RIJEKA"]
[319244,"HRELJIN OGULINSKI","OGULIN","PUK KARLOVAC","HRELJIN OGULINSKI / OGULIN / PUK KARLOVAC"]
[302724,"HRIB","ČABAR","PUK RIJEKA","HRIB / ČABAR / PUK RIJEKA"]
[308854,"HRKANOVCI ĐAKOVAČKI","ĐAKOVO","PUK OSIJEK","HRKANOVCI ĐAKOVAČKI / ĐAKOVO / PUK OSIJEK"]
[335843,"HRNJANEC","SVETI IVAN ZELINA","PUK ZAGREB","HRNJANEC / SVETI IVAN ZELINA / PUK ZAGREB"]
[307637,"HRSINA","DUGA RESA","PUK KARLOVAC","HRSINA / DUGA RESA / PUK KARLOVAC"]
[315494,"HRSOVO","KRIŽEVCI","PUK KOPRIVNICA","HRSOVO / KRIŽEVCI / PUK KOPRIVNICA"]
[308064,"HRUŠĆICA","DUGO SELO","PUK ZAGREB","HRUŠĆICA / DUGO SELO / PUK ZAGREB"]
[333069,"HRUŠKOVICA","VRBOVEC","PUK ZAGREB","HRUŠKOVICA / VRBOVEC / PUK ZAGREB"]
[325635,"HRVACE","SINJ","PUK SPLIT","HRVACE / SINJ / PUK SPLIT"]
[320994,"HRVATSKO POLJE","OTOČAC","PUK GOSPIĆ","HRVATSKO POLJE / OTOČAC / PUK GOSPIĆ"]
[333646,"HRVATSKO SELO","TOPUSKO","PUK SISAK","HRVATSKO SELO / TOPUSKO / PUK SISAK"]
[316792,"HRŽENICA","LUDBREG","PUK VARAŽDIN","HRŽENICA / LUDBREG / PUK VARAŽDIN"]
[314293,"HUDOVLJANI","KOPRIVNICA","PUK KOPRIVNICA","HUDOVLJANI / KOPRIVNICA / PUK KOPRIVNICA"]
[333077,"HUDOVO","VRBOVEC","PUK ZAGREB","HUDOVO / VRBOVEC / PUK ZAGREB"]
[302139,"HUM","BUZET","PUK PULA","HUM / BUZET / PUK PULA"]
[323918,"HUM NA SUTLI","PREGRADA","PUK KRAPINA","HUM NA SUTLI / PREGRADA / PUK KRAPINA"]
[304794,"HUM STUBIČKI","DONJA STUBICA","PUK KRAPINA","HUM STUBIČKI / DONJA STUBICA / PUK KRAPINA"]
[323284,"HUM VAROŠ","SLATINA","PUK VIROVITICA",{"$f":"B1090&\" / \"&C1090&\" / \"&D1090","v":"HUM VAROŠ / SLATINA / PUK VIROVITICA"}]
[323276,"HUM VOĆINSKI","SLATINA","PUK VIROVITICA","HUM VOĆINSKI / SLATINA / PUK VIROVITICA"]
[316130,"HUSAIN","KUTINA","PUK SISAK","HUSAIN / KUTINA / PUK SISAK"]
[311693,"HVAR","HVAR","PUK SPLIT","HVAR / HVAR / PUK SPLIT"]
[337757,"IČIĆI","OPATIJA","PUK RIJEKA","IČIĆI / OPATIJA / PUK RIJEKA"]
[317047,"IGRANE","MAKARSKA","PUK SPLIT","IGRANE / MAKARSKA / PUK SPLIT"]
[337765,"IKA-OPRIĆ","OPATIJA","PUK RIJEKA","IKA-OPRIĆ / OPATIJA / PUK RIJEKA"]
[332038,"ILAČA","ILOK","PUK VUKOVAR","ILAČA / ILOK / PUK VUKOVAR"]
[334111,"ILOK","ILOK","PUK VUKOVAR","ILOK / ILOK / PUK VUKOVAR"]
[316148,"ILOVA","KUTINA","PUK SISAK","ILOVA / KUTINA / PUK SISAK"]
[321184,"ILOVAC","OZALJ","PUK KARLOVAC","ILOVAC / OZALJ / PUK KARLOVAC"]
[310212,"ILOVAČAK","GLINA","PUK SISAK","ILOVAČAK / GLINA / PUK SISAK"]
[309745,"ILOVSKI KLOKOČEVAC","GAREŠNICA","PUK BJELOVAR","ILOVSKI KLOKOČEVAC / GAREŠNICA / PUK BJELOVAR"]
[314307,"IMBRIOVEC","KOPRIVNICA","PUK KOPRIVNICA","IMBRIOVEC / KOPRIVNICA / PUK KOPRIVNICA"]
[306550,"IMOTICA","DUBROVNIK","PUK DUBROVNIK","IMOTICA / DUBROVNIK / PUK DUBROVNIK"]
[311863,"IMOTSKI-GLAVINA","IMOTSKI","PUK SPLIT","IMOTSKI-GLAVINA / IMOTSKI / PUK SPLIT"]
[327301,"IMRIJEVCI","POŽEGA","PUK POŽEGA","IMRIJEVCI / POŽEGA / PUK POŽEGA"]
[304212,"IMSOVAC","DARUVAR","PUK BJELOVAR","IMSOVAC / DARUVAR / PUK BJELOVAR"]
[300497,"ISLAM GRČKI","BENKOVAC","PUK ZADAR","ISLAM GRČKI / BENKOVAC / PUK ZADAR"]
[334693,"ISLAM LATINSKI","ZADAR","PUK ZADAR","ISLAM LATINSKI / ZADAR / PUK ZADAR"]
[334707,"IST","ZADAR","PUK ZADAR","IST / ZADAR / PUK ZADAR"]
[323292,"IVANBRIJEG","SLATINA","PUK VIROVITICA","IVANBRIJEG / SLATINA / PUK VIROVITICA"]
[327310,"IVANDOL","POŽEGA","PUK POŽEGA","IVANDOL / POŽEGA / PUK POŽEGA"]
[312169,"IVANEC","IVANEC","PUK VARAŽDIN","IVANEC / IVANEC / PUK VARAŽDIN"]
[312347,"IVANIĆ-GRAD","IVANIĆ GRAD","PUK ZAGREB","IVANIĆ-GRAD / IVANIĆ GRAD / PUK ZAGREB"]
[332046,"IVANKOVO","VINKOVCI","PUK VUKOVAR","IVANKOVO / VINKOVCI / PUK VUKOVAR"]
[320617,"IVANOVAC","OSIJEK","PUK OSIJEK","IVANOVAC / OSIJEK / PUK OSIJEK"]
[330884,"IVANOVCI","VALPOVO","PUK OSIJEK","IVANOVCI / VALPOVO / PUK OSIJEK"]
[308862,"IVANOVCI ĐAKOVAČKI","ĐAKOVO","PUK OSIJEK","IVANOVCI ĐAKOVAČKI / ĐAKOVO / PUK OSIJEK"]
[338699,"IVANOVCI ĐAKOVAČKI NOVA","ĐAKOVO","PUK OSIJEK","IVANOVCI ĐAKOVAČKI NOVA / ĐAKOVO / PUK OSIJEK"]
[303135,"IVANOVEC","ČAKOVEC","PUK ČAKOVEC","IVANOVEC / ČAKOVEC / PUK ČAKOVEC"]
[303844,"IVANSKA","ČAZMA","PUK BJELOVAR","IVANSKA / ČAZMA / PUK BJELOVAR"]
[326321,"IVANJSKI BOK","SISAK","PUK SISAK","IVANJSKI BOK / SISAK / PUK SISAK"]
[313840,"IVOŠEVCI","KNIN","PUK ŠIBENIK","IVOŠEVCI / KNIN / PUK ŠIBENIK"]
[318795,"JABLANAC","NOVSKA","PUK SISAK","JABLANAC / NOVSKA / PUK SISAK"]
[325228,"JABLANAC","SENJ","PUK GOSPIĆ","JABLANAC / SENJ / PUK GOSPIĆ"]
[322784,"JABUKOVAC","PETRINJA","PUK SISAK","JABUKOVAC / PETRINJA / PUK SISAK"]
[302643,"JADRANOVO","CRIKVENICA","PUK RIJEKA","JADRANOVO / CRIKVENICA / PUK RIJEKA"]
[330035,"JADRTOVAC","ŠIBENIK","PUK ŠIBENIK","JADRTOVAC / ŠIBENIK / PUK ŠIBENIK"]
[321818,"JAGMA","PAKRAC","PUK POŽEGA","JAGMA / PAKRAC / PUK POŽEGA"]
[314315,"JAGNJEDOVEC","KOPRIVNICA","PUK KOPRIVNICA","JAGNJEDOVEC / KOPRIVNICA / PUK KOPRIVNICA"]
[337242,"JAGNJEDOVEC-GRAD","KOPRIVNICA","PUK KOPRIVNICA","JAGNJEDOVEC-GRAD / KOPRIVNICA / PUK KOPRIVNICA"]
[300152,"JAGODNJAK","BELI MANASTIR","PUK OSIJEK","JAGODNJAK / BELI MANASTIR / PUK OSIJEK"]
[327328,"JAGUPLIJE","POŽEGA","PUK POŽEGA","JAGUPLIJE / POŽEGA / PUK POŽEGA"]
[331104,"JAKOPOVEC","VARAŽDIN","PUK VARAŽDIN","JAKOPOVEC / VARAŽDIN / PUK VARAŽDIN"]
[304808,"JAKOVLJE","ZAPREŠIĆ","PUK ZAGREB","JAKOVLJE / ZAPREŠIĆ / PUK ZAGREB"]
[327336,"JAKŠIĆ","POŽEGA","PUK POŽEGA","JAKŠIĆ / POŽEGA / PUK POŽEGA"]
[338826,"JAKUŠEVEC","GU ZAGREB","PUK ZAGREB","JAKUŠEVEC / GU ZAGREB / PUK ZAGREB"]
[331112,"JALKOVEC","VARAŽDIN","PUK VARAŽDIN","JALKOVEC / VARAŽDIN / PUK VARAŽDIN"]
[331139,"JALŽABET","VARAŽDIN","PUK VARAŽDIN","JALŽABET / VARAŽDIN / PUK VARAŽDIN"]
[316156,"JAMARICA","KUTINA","PUK SISAK","JAMARICA / KUTINA / PUK SISAK"]
[310239,"JAME","GLINA","PUK SISAK","JAME / GLINA / PUK SISAK"]
[319252,"JANJA GORA","OGULIN","PUK KARLOVAC","JANJA GORA / OGULIN / PUK KARLOVAC"]
[316164,"JANJA LIPA","KUTINA","PUK SISAK","JANJA LIPA / KUTINA / PUK SISAK"]
[306568,"JANJINA","DUBROVNIK","PUK DUBROVNIK","JANJINA / DUBROVNIK / PUK DUBROVNIK"]
[307645,"JARČE POLJE","DUGA RESA","PUK KARLOVAC","JARČE POLJE / DUGA RESA / PUK KARLOVAC"]
[332054,"JARMINA","VINKOVCI","PUK VUKOVAR","JARMINA / VINKOVCI / PUK VUKOVAR"]
[328367,"JARUGE","SLAVONSKI BROD","PUK SLAVONSKI BROD","JARUGE / SLAVONSKI BROD / PUK SLAVONSKI BROD"]
[319279,"JASENAK","OGULIN","PUK KARLOVAC","JASENAK / OGULIN / PUK KARLOVAC"]
[332542,"JASENAŠ","VIROVITICA","PUK VIROVITICA","JASENAŠ / VIROVITICA / PUK VIROVITICA"]
[306576,"JASENICE","DUBROVNIK","PUK DUBROVNIK","JASENICE / DUBROVNIK / PUK DUBROVNIK"]
[319066,"JASENICE","OBROVAC","PUK ZADAR","JASENICE / OBROVAC / PUK ZADAR"]
[318809,"JASENOVAC","NOVSKA","PUK SISAK","JASENOVAC / NOVSKA / PUK SISAK"]
[326330,"JASENOVČANI","SISAK","PUK SISAK","JASENOVČANI / SISAK / PUK SISAK"]
[312606,"JASTREBARSKO","JASTREBARSKO","PUK ZAGREB",{"$f":"B1154&\" / \"&C1154&\" / \"&D1154","v":"JASTREBARSKO / JASTREBARSKO / PUK ZAGREB"}]
[321192,"JAŠKOVO","OZALJ","PUK KARLOVAC","JAŠKOVO / OZALJ / PUK KARLOVAC"]
[308366,"JAVNICA","DVOR","PUK SISAK","JAVNICA / DVOR / PUK SISAK"]
[308374,"JAVORANJ","DVOR","PUK SISAK","JAVORANJ / DVOR / PUK SISAK"]
[308382,"JAVORNIK","DVOR","PUK SISAK","JAVORNIK / DVOR / PUK SISAK"]
[314323,"JAVOROVAC","KOPRIVNICA","PUK KOPRIVNICA","JAVOROVAC / KOPRIVNICA / PUK KOPRIVNICA"]
[318817,"JAZAVICA","NOVSKA","PUK SISAK","JAZAVICA / NOVSKA / PUK SISAK"]
[337064,"JAZBINA-LUG","SAMOBOR","PUK ZAGREB","JAZBINA-LUG / SAMOBOR / PUK ZAGREB"]
[326348,"JAZVENIK","SISAK","PUK SISAK","JAZVENIK / SISAK / PUK SISAK"]
[323926,"JELENJAK","PREGRADA","PUK KRAPINA","JELENJAK / PREGRADA / PUK KRAPINA"]
[324558,"JELENJE","RIJEKA","PUK RIJEKA","JELENJE / RIJEKA / PUK RIJEKA"]
[324566,"JELENJE-LEPENICE","RIJEKA","PUK RIJEKA","JELENJE-LEPENICE / RIJEKA / PUK RIJEKA"]
[302147,"JELOVICE","BUZET","PUK PULA","JELOVICE / BUZET / PUK PULA"]
[311707,"JELSA","STARI GRAD","PUK SPLIT","JELSA / STARI GRAD / PUK SPLIT"]
[312177,"JEROVEC","IVANEC","PUK VARAŽDIN","JEROVEC / IVANEC / PUK VARAŽDIN"]
[336025,"JERTOVEC","ZLATAR","PUK KRAPINA","JERTOVEC / ZLATAR / PUK KRAPINA"]
[319643,"JESENICE","OMIŠ","PUK SPLIT","JESENICE / OMIŠ / PUK SPLIT"]
[316440,"JESENOVIK","LABIN","PUK PULA","JESENOVIK / LABIN / PUK PULA"]
[315168,"JESENJE","KRAPINA","PUK KRAPINA","JESENJE / KRAPINA / PUK KRAPINA"]
[330043,"JEZERA","ŠIBENIK","PUK ŠIBENIK","JEZERA / ŠIBENIK / PUK ŠIBENIK"]
[320846,"JEZERANE","OTOČAC","PUK GOSPIĆ","JEZERANE / OTOČAC / PUK GOSPIĆ"]
[319287,"JEZERO","OGULIN","PUK KARLOVAC","JEZERO / OGULIN / PUK KARLOVAC"]
[334383,"JEZERO KLANJEČKO","ZABOK","PUK KRAPINA","JEZERO KLANJEČKO / ZABOK / PUK KRAPINA"]
[326356,"JEZERO POSAVSKO","SISAK","PUK SISAK","JEZERO POSAVSKO / SISAK / PUK SISAK"]
[325643,"JEŽEVIĆ","SINJ","PUK SPLIT","JEŽEVIĆ / SINJ / PUK SPLIT"]
[328375,"JEŽEVIK","SLAVONSKI BROD","PUK SLAVONSKI BROD","JEŽEVIK / SLAVONSKI BROD / PUK SLAVONSKI BROD"]
[308072,"JEŽEVO","DUGO SELO","PUK ZAGREB","JEŽEVO / DUGO SELO / PUK ZAGREB"]
[319295,"JOSIPDOL","OGULIN","PUK KARLOVAC","JOSIPDOL / OGULIN / PUK KARLOVAC"]
[320609,"JOSIPOVAC","OSIJEK","PUK OSIJEK","JOSIPOVAC / OSIJEK / PUK OSIJEK"]
[330426,"JOŠAN","KORENICA","PUK GOSPIĆ","JOŠAN / KORENICA / PUK GOSPIĆ"]
[322792,"JOŠAVICA","PETRINJA","PUK SISAK","JOŠAVICA / PETRINJA / PUK SISAK"]
[310247,"JOŠEVICA","GLINA","PUK SISAK","JOŠEVICA / GLINA / PUK SISAK"]
[303151,"JURČEVEC","ČAKOVEC","PUK ČAKOVEC","JURČEVEC / ČAKOVEC / PUK ČAKOVEC"]
[319864,"JURDANI","OPATIJA","PUK RIJEKA","JURDANI / OPATIJA / PUK RIJEKA"]
[327344,"JURKOVAC","POŽEGA","PUK POŽEGA","JURKOVAC / POŽEGA / PUK POŽEGA"]
[321206,"JUROVO","OZALJ","PUK KARLOVAC","JUROVO / OZALJ / PUK KARLOVAC"]
[324124,"JURŠIĆI","PULA","PUK PULA","JURŠIĆI / PULA / PUK PULA"]
[319872,"JUŠIĆI","OPATIJA","PUK RIJEKA","JUŠIĆI / OPATIJA / PUK RIJEKA"]
[333085,"KABAL","VRBOVEC","PUK ZAGREB","KABAL / VRBOVEC / PUK ZAGREB"]
[305677,"KADINA GLAVICA","DRNIŠ","PUK ŠIBENIK","KADINA GLAVICA / DRNIŠ / PUK ŠIBENIK"]
[309702,"KAJGANA","GAREŠNICA","PUK BJELOVAR","KAJGANA / GAREŠNICA / PUK BJELOVAR"]
[301108,"KAKINAC","BJELOVAR","PUK BJELOVAR","KAKINAC / BJELOVAR / PUK BJELOVAR"]
[319899,"KALAC","OPATIJA","PUK RIJEKA","KALAC / OPATIJA / PUK RIJEKA"]
[322318,"KALDIR","PAZIN","PUK PULA","KALDIR / PAZIN / PUK PULA"]
[305111,"KALDRMA","GRAČAC","PUK ZADAR","KALDRMA / GRAČAC / PUK ZADAR"]
[334715,"KALI","ZADAR","PUK ZADAR","KALI / ZADAR / PUK ZADAR"]
[327352,"KALINIĆ","POŽEGA","PUK POŽEGA","KALINIĆ / POŽEGA / PUK POŽEGA"]
[309338,"KALINOVAC","ĐURĐEVAC","PUK KOPRIVNICA","KALINOVAC / ĐURĐEVAC / PUK KOPRIVNICA"]
[337714,"KALINOVICA","SAMOBOR","PUK ZAGREB","KALINOVICA / SAMOBOR / PUK ZAGREB"]
[315508,"KALNIK","KRIŽEVCI","PUK KOPRIVNICA","KALNIK / KRIŽEVCI / PUK KOPRIVNICA"]
[310751,"KALUĐEROVAC","GOSPIĆ","PUK GOSPIĆ","KALUĐEROVAC / GOSPIĆ / PUK GOSPIĆ"]
[312614,"KALJE","JASTREBARSKO","PUK ZAGREB","KALJE / JASTREBARSKO / PUK ZAGREB"]
[329789,"KAMEN","SPLIT","PUK SPLIT","KAMEN / SPLIT / PUK SPLIT"]
[318558,"KAMENA GORICA","NOVI MAROF","PUK VARAŽDIN","KAMENA GORICA / NOVI MAROF / PUK VARAŽDIN"]
[300179,"KAMENAC","BELI MANASTIR","PUK OSIJEK","KAMENAC / BELI MANASTIR / PUK OSIJEK"]
[312185,"KAMENICA","IVANEC","PUK VARAŽDIN","KAMENICA / IVANEC / PUK VARAŽDIN"]
[313165,"KAMENSKO","KARLOVAC","PUK KARLOVAC","KAMENSKO / KARLOVAC / PUK KARLOVAC"]
[325651,"KAMENSKO","SINJ","PUK SPLIT","KAMENSKO / SINJ / PUK SPLIT"]
[315516,"KAMEŠNICA","KRIŽEVCI","PUK KOPRIVNICA","KAMEŠNICA / KRIŽEVCI / PUK KOPRIVNICA"]
[324400,"KAMPOR","RAB","PUK RIJEKA","KAMPOR / RAB / PUK RIJEKA"]
[324884,"KANFANAR","ROVINJ","PUK PULA","KANFANAR / ROVINJ / PUK PULA"]
[309729,"KANIŠKA IVA","GAREŠNICA","PUK BJELOVAR","KANIŠKA IVA / GAREŠNICA / PUK BJELOVAR"]
[312193,"KANIŽA","IVANEC","PUK VARAŽDIN","KANIŽA / IVANEC / PUK VARAŽDIN"]
[328383,"KANIŽA","SLAVONSKI BROD","PUK SLAVONSKI BROD","KANIŽA / SLAVONSKI BROD / PUK SLAVONSKI BROD"]
[305685,"KAOČINE","DRNIŠ","PUK ŠIBENIK",{"$f":"B1218&\" / \"&C1218&\" / \"&D1218","v":"KAOČINE / DRNIŠ / PUK ŠIBENIK"}]
[332569,"KAPAN","VIROVITICA","PUK VIROVITICA","KAPAN / VIROVITICA / PUK VIROVITICA"]
[301116,"KAPELA","BJELOVAR","PUK BJELOVAR","KAPELA / BJELOVAR / PUK BJELOVAR"]
[318540,"KAPELA KALNIČKA","NOVI MAROF","PUK VARAŽDIN","KAPELA KALNIČKA / NOVI MAROF / PUK VARAŽDIN"]
[316903,"KAPELA PODRAVSKA","LUDBREG","PUK VARAŽDIN","KAPELA PODRAVSKA / LUDBREG / PUK VARAŽDIN"]
[309737,"KAPELICA","GAREŠNICA","PUK BJELOVAR","KAPELICA / GAREŠNICA / PUK BJELOVAR"]
[305367,"KAPELNA","DONJI MIHOLJAC","PUK OSIJEK","KAPELNA / DONJI MIHOLJAC / PUK OSIJEK"]
[321826,"KAPETANOVO POLJE","PAKRAC","PUK POŽEGA","KAPETANOVO POLJE / PAKRAC / PUK POŽEGA"]
[323306,"KAPINCI","SLATINA","PUK VIROVITICA","KAPINCI / SLATINA / PUK VIROVITICA"]
[327379,"KAPTOL","POŽEGA","PUK POŽEGA","KAPTOL / POŽEGA / PUK POŽEGA"]
[332062,"KARADŽIĆEVO","VINKOVCI","PUK VUKOVAR","KARADŽIĆEVO / VINKOVCI / PUK VUKOVAR"]
[325660,"KARAKAŠICA","SINJ","PUK SPLIT","KARAKAŠICA / SINJ / PUK SPLIT"]
[305693,"KARALIĆ","DRNIŠ","PUK ŠIBENIK","KARALIĆ / DRNIŠ / PUK ŠIBENIK"]
[300187,"KARANAC","BELI MANASTIR","PUK OSIJEK","KARANAC / BELI MANASTIR / PUK OSIJEK"]
[310760,"KARLOBAG","GOSPIĆ","PUK GOSPIĆ","KARLOBAG / GOSPIĆ / PUK GOSPIĆ"]
[313173,"KARLOVAC I","KARLOVAC","PUK KARLOVAC","KARLOVAC I / KARLOVAC / PUK KARLOVAC"]
[313181,"KARLOVAC II","KARLOVAC","PUK KARLOVAC","KARLOVAC II / KARLOVAC / PUK KARLOVAC"]
[316857,"KARLOVEC LUDBREŠKI","LUDBREG","PUK VARAŽDIN","KARLOVEC LUDBREŠKI / LUDBREG / PUK VARAŽDIN"]
[322326,"KAROJBA","PAZIN","PUK PULA","KAROJBA / PAZIN / PUK PULA"]
[324574,"KASTAV","RIJEKA","PUK RIJEKA","KASTAV / RIJEKA / PUK RIJEKA"]
[322334,"KAŠĆERGA","PAZIN","PUK PULA","KAŠĆERGA / PAZIN / PUK PULA"]
[325384,"KAŠINA","GU ZAGREB","PUK ZAGREB","KAŠINA / GU ZAGREB / PUK ZAGREB"]
[301833,"KAŠTEL","BUJE","PUK PULA","KAŠTEL / BUJE / PUK PULA"]
[313459,"KAŠTEL GOMILICA","KAŠTEL SUĆURAC","PUK SPLIT","KAŠTEL GOMILICA / KAŠTEL SUĆURAC / PUK SPLIT"]
[313467,"KAŠTEL KAMBELOVAC","KAŠTEL SUĆURAC","PUK SPLIT","KAŠTEL KAMBELOVAC / KAŠTEL SUĆURAC / PUK SPLIT"]
[313475,"KAŠTEL LUKŠIĆ","KAŠTEL SUĆURAC","PUK SPLIT","KAŠTEL LUKŠIĆ / KAŠTEL SUĆURAC / PUK SPLIT"]
[313483,"KAŠTEL NOVI","KAŠTEL SUĆURAC","PUK SPLIT","KAŠTEL NOVI / KAŠTEL SUĆURAC / PUK SPLIT"]
[313491,"KAŠTEL STARI","KAŠTEL SUĆURAC","PUK SPLIT","KAŠTEL STARI / KAŠTEL SUĆURAC / PUK SPLIT"]
[313505,"KAŠTEL SUĆURAC","KAŠTEL SUĆURAC","PUK SPLIT","KAŠTEL SUĆURAC / KAŠTEL SUĆURAC / PUK SPLIT"]
[313513,"KAŠTEL ŠTAFILIĆ","KAŠTEL SUĆURAC","PUK SPLIT","KAŠTEL ŠTAFILIĆ / KAŠTEL SUĆURAC / PUK SPLIT"]
[331147,"KAŠTELANEC","VARAŽDIN","PUK VARAŽDIN","KAŠTELANEC / VARAŽDIN / PUK VARAŽDIN"]
[323675,"KAŠTELIR","POREČ","PUK PULA","KAŠTELIR / POREČ / PUK PULA"]
[333654,"KATINOVAC","TOPUSKO","PUK SISAK","KATINOVAC / TOPUSKO / PUK SISAK"]
[316172,"KATOLIČKO SELIŠĆE","KUTINA","PUK SISAK","KATOLIČKO SELIŠĆE / KUTINA / PUK SISAK"]
[319651,"KATUNI","OMIŠ","PUK SPLIT","KATUNI / OMIŠ / PUK SPLIT"]
[324132,"KAVRAN","PULA","PUK PULA","KAVRAN / PULA / PUK PULA"]
[331155,"KELEMEN","VARAŽDIN","PUK VARAŽDIN","KELEMEN / VARAŽDIN / PUK VARAŽDIN"]
[336670,"KELEŠINKA","NAŠICE","PUK OSIJEK","KELEŠINKA / NAŠICE / PUK OSIJEK"]
[325023,"KERESTINEC","SAMOBOR","PUK ZAGREB","KERESTINEC / SAMOBOR / PUK ZAGREB"]
[305120,"KESTENOVAC","DONJI LAPAC","PUK GOSPIĆ","KESTENOVAC / DONJI LAPAC / PUK GOSPIĆ"]
[332780,"KESTENOVAC","VOJNIĆ","PUK KARLOVAC","KESTENOVAC / VOJNIĆ / PUK KARLOVAC"]
[308889,"KEŠINCI","ĐAKOVO","PUK OSIJEK","KEŠINCI / ĐAKOVO / PUK OSIJEK"]
[310255,"KIHALAC","GLINA","PUK SISAK","KIHALAC / GLINA / PUK SISAK"]
[311146,"KIJANI","GRAČAC","PUK ZADAR","KIJANI / GRAČAC / PUK ZADAR"]
[313858,"KIJEVO","KNIN","PUK ŠIBENIK","KIJEVO / KNIN / PUK ŠIBENIK"]
[311154,"KIK","LOVINAC","PUK GOSPIĆ","KIK / LOVINAC / PUK GOSPIĆ"]
[328391,"KINDROVO","SLAVONSKI BROD","PUK SLAVONSKI BROD","KINDROVO / SLAVONSKI BROD / PUK SLAVONSKI BROD"]
[326364,"KINJAČKA","SISAK","PUK SISAK","KINJAČKA / SISAK / PUK SISAK"]
[304239,"KIP","DARUVAR","PUK BJELOVAR","KIP / DARUVAR / PUK BJELOVAR"]
[333662,"KIRIN","TOPUSKO","PUK SISAK","KIRIN / TOPUSKO / PUK SISAK"]
[313866,"KISTANJE","KNIN","PUK ŠIBENIK","KISTANJE / KNIN / PUK ŠIBENIK"]
[325244,"KLADA","SENJ","PUK GOSPIĆ","KLADA / SENJ / PUK GOSPIĆ"]
[309346,"KLADARE","PITOMAČA","PUK VIROVITICA","KLADARE / PITOMAČA / PUK VIROVITICA"]
[313521,"KLADNJICE","KAŠTEL SUĆURAC","PUK SPLIT","KLADNJICE / KAŠTEL SUĆURAC / PUK SPLIT"]
[328405,"KLAKAR","SLAVONSKI BROD","PUK SLAVONSKI BROD","KLAKAR / SLAVONSKI BROD / PUK SLAVONSKI BROD"]
[338028,"KLANA - NOVA","RIJEKA","PUK RIJEKA","KLANA - NOVA / RIJEKA / PUK RIJEKA"]
[324582,"KLANA","RIJEKA","PUK RIJEKA","KLANA / RIJEKA / PUK RIJEKA"]
[310778,"KLANAC","GOSPIĆ","PUK GOSPIĆ","KLANAC / GOSPIĆ / PUK GOSPIĆ"]
[333387,"KLANAC","VRBOVSKO","PUK RIJEKA","KLANAC / VRBOVSKO / PUK RIJEKA"]
[313637,"KLANJEC","KLANJEC","PUK KRAPINA","KLANJEC / KLANJEC / PUK KRAPINA"]
[335444,"KLARA","GU ZAGREB","PUK ZAGREB","KLARA / GU ZAGREB / PUK ZAGREB"]
[310263,"KLASNIĆ","GLINA","PUK SISAK","KLASNIĆ / GLINA / PUK SISAK"]
[337617,"KLEK","METKOVIĆ","PUK DUBROVNIK","KLEK / METKOVIĆ / PUK DUBROVNIK"]
[312207,"KLENOVNIK","IVANEC","PUK VARAŽDIN","KLENOVNIK / IVANEC / PUK VARAŽDIN"]
[322806,"KLINAC","PETRINJA","PUK SISAK",{"$f":"B1282&\" / \"&C1282&\" / \"&D1282","v":"KLINAC / PETRINJA / PUK SISAK"}]
[338516,"KLINČA SELA NOVA","JASTREBARSKO","PUK ZAGREB","KLINČA SELA NOVA / JASTREBARSKO / PUK ZAGREB"]
[329576,"KLIS","SOLIN","PUK SPLIT","KLIS / SOLIN / PUK SPLIT"]
[304247,"KLISA","DARUVAR","PUK BJELOVAR","KLISA / DARUVAR / PUK BJELOVAR"]
[321834,"KLISA","PAKRAC","PUK POŽEGA","KLISA / PAKRAC / PUK POŽEGA"]
[334120,"KLISA","VUKOVAR","PUK VUKOVAR","KLISA / VUKOVAR / PUK VUKOVAR"]
[306584,"KLIŠEVO","DUBROVNIK","PUK DUBROVNIK","KLIŠEVO / DUBROVNIK / PUK DUBROVNIK"]
[332798,"KLOKOČ","VOJNIĆ","PUK KARLOVAC","KLOKOČ / VOJNIĆ / PUK KARLOVAC"]
[301124,"KLOKOČEVAC","BJELOVAR","PUK BJELOVAR","KLOKOČEVAC / BJELOVAR / PUK BJELOVAR"]
[317349,"KLOKOČEVCI","NAŠICE","PUK OSIJEK","KLOKOČEVCI / NAŠICE / PUK OSIJEK"]
[337030,"KLOKOČEVEC","SAMOBOR","PUK ZAGREB","KLOKOČEVEC / SAMOBOR / PUK ZAGREB"]
[325031,"KLOKOČEVEC SAMOBORSKI","SAMOBOR","PUK ZAGREB","KLOKOČEVEC SAMOBORSKI / SAMOBOR / PUK ZAGREB"]
[328413,"KLOKOČEVIK","SLAVONSKI BROD","PUK SLAVONSKI BROD","KLOKOČEVIK / SLAVONSKI BROD / PUK SLAVONSKI BROD"]
[334391,"KLOKOVEC","ZABOK","PUK KRAPINA","KLOKOVEC / ZABOK / PUK KRAPINA"]
[312355,"KLOŠTAR IVANIĆ","IVANIĆ GRAD","PUK ZAGREB","KLOŠTAR IVANIĆ / IVANIĆ GRAD / PUK ZAGREB"]
[309354,"KLOŠTAR PODRAVSKI","ĐURĐEVAC","PUK KOPRIVNICA","KLOŠTAR PODRAVSKI / ĐURĐEVAC / PUK KOPRIVNICA"]
[315524,"KLOŠTAR VOJAKOVAČKI","KRIŽEVCI","PUK KOPRIVNICA","KLOŠTAR VOJAKOVAČKI / KRIŽEVCI / PUK KOPRIVNICA"]
[305707,"KLJAKE","DRNIŠ","PUK ŠIBENIK","KLJAKE / DRNIŠ / PUK ŠIBENIK"]
[305715,"KLJUČ","DRNIŠ","PUK ŠIBENIK","KLJUČ / DRNIŠ / PUK ŠIBENIK"]
[318566,"KLJUČ","NOVI MAROF","PUK VARAŽDIN","KLJUČ / NOVI MAROF / PUK VARAŽDIN"]
[331163,"KNEGINEC","VARAŽDIN","PUK VARAŽDIN","KNEGINEC / VARAŽDIN / PUK VARAŽDIN"]
[314927,"KNEZOVLJANI","HRVATSKA KOSTAJNICA","PUK SISAK","KNEZOVLJANI / HRVATSKA KOSTAJNICA / PUK SISAK"]
[336793,"KNEŽCI","POŽEGA","PUK POŽEGA","KNEŽCI / POŽEGA / PUK POŽEGA"]
[300195,"KNEŽEVI VINOGRADI","BELI MANASTIR","PUK OSIJEK","KNEŽEVI VINOGRADI / BELI MANASTIR / PUK OSIJEK"]
[306592,"KNEŽICA","DUBROVNIK","PUK DUBROVNIK","KNEŽICA / DUBROVNIK / PUK DUBROVNIK"]
[313874,"KNIN","KNIN","PUK ŠIBENIK","KNIN / KNIN / PUK ŠIBENIK"]
[313882,"KNINSKO POLJE","KNIN","PUK ŠIBENIK","KNINSKO POLJE / KNIN / PUK ŠIBENIK"]
[301132,"KOBASIČARI","BJELOVAR","PUK BJELOVAR","KOBASIČARI / BJELOVAR / PUK BJELOVAR"]
[337226,"KOBILJAČA","METKOVIĆ","PUK DUBROVNIK","KOBILJAČA / METKOVIĆ / PUK DUBROVNIK"]
[308404,"KOBILJAK","DVOR","PUK SISAK","KOBILJAK / DVOR / PUK SISAK"]
[320315,"KOKOČAK","ORAHOVICA","PUK VIROVITICA","KOKOČAK / ORAHOVICA / PUK VIROVITICA"]
[321516,"KOLAN","PAG","PUK ZADAR","KOLAN / PAG / PUK ZADAR"]
[332801,"KOLARIĆ","VOJNIĆ","PUK KARLOVAC","KOLARIĆ / VOJNIĆ / PUK KARLOVAC"]
[300527,"KOLARINA","BENKOVAC","PUK ZADAR","KOLARINA / BENKOVAC / PUK ZADAR"]
[313904,"KOLAŠAC","KNIN","PUK ŠIBENIK","KOLAŠAC / KNIN / PUK ŠIBENIK"]
[314331,"KOLEDINEC","KOPRIVNICA","PUK KOPRIVNICA","KOLEDINEC / KOPRIVNICA / PUK KOPRIVNICA"]
[306606,"KOLOČEP","DUBROVNIK","PUK DUBROVNIK","KOLOČEP / DUBROVNIK / PUK DUBROVNIK"]
[325678,"KOLJANE","SINJ","PUK SPLIT","KOLJANE / SINJ / PUK SPLIT"]
[311162,"KOM","GRAČAC","PUK ZADAR","KOM / GRAČAC / PUK ZADAR"]
[306614,"KOMAJI","DUBROVNIK","PUK DUBROVNIK","KOMAJI / DUBROVNIK / PUK DUBROVNIK"]
[337994,"KOMARNA - DUBOKA","METKOVIĆ","PUK DUBROVNIK","KOMARNA - DUBOKA / METKOVIĆ / PUK DUBROVNIK"]
[317942,"KOMARNICA","NOVA GRADIŠKA","PUK SLAVONSKI BROD","KOMARNICA / NOVA GRADIŠKA / PUK SLAVONSKI BROD"]
[316822,"KOMARNICA LUDBREŠKA","LUDBREG","PUK VARAŽDIN","KOMARNICA LUDBREŠKA / LUDBREG / PUK VARAŽDIN"]
[323314,"KOMETNIK","SLATINA","PUK VIROVITICA","KOMETNIK / SLATINA / PUK VIROVITICA"]
[330434,"KOMIĆ","KORENICA","PUK GOSPIĆ","KOMIĆ / KORENICA / PUK GOSPIĆ"]
[336823,"KOMIN","PLOČE","PUK DUBROVNIK","KOMIN / PLOČE / PUK DUBROVNIK"]
[335851,"KOMIN","SVETI IVAN ZELINA","PUK ZAGREB","KOMIN / SVETI IVAN ZELINA / PUK ZAGREB"]
[332755,"KOMIŽA","VIS","PUK SPLIT","KOMIŽA / VIS / PUK SPLIT"]
[332089,"KOMLETINCI","VINKOVCI","PUK VUKOVAR","KOMLETINCI / VINKOVCI / PUK VUKOVAR"]
[314935,"KOMOGOVINA","HRVATSKA KOSTAJNICA","PUK SISAK","KOMOGOVINA / HRVATSKA KOSTAJNICA / PUK SISAK"]
[306622,"KOMOLAC","DUBROVNIK","PUK DUBROVNIK","KOMOLAC / DUBROVNIK / PUK DUBROVNIK"]
[334405,"KOMOR","ZABOK","PUK KRAPINA","KOMOR / ZABOK / PUK KRAPINA"]
[308412,"KOMORA","DVOR","PUK SISAK","KOMORA / DVOR / PUK SISAK"]
[327387,"KOMORICA","POŽEGA","PUK POŽEGA","KOMORICA / POŽEGA / PUK POŽEGA"]
[320854,"KOMPOLJE","OTOČAC","PUK GOSPIĆ","KOMPOLJE / OTOČAC / PUK GOSPIĆ"]
[327395,"KOMUŠINA","POŽEGA","PUK POŽEGA","KOMUŠINA / POŽEGA / PUK POŽEGA"]
[304255,"KONČANICA","DARUVAR","PUK BJELOVAR","KONČANICA / DARUVAR / PUK BJELOVAR"]
[308897,"KONDRIĆ","ĐAKOVO","PUK OSIJEK","KONDRIĆ / ĐAKOVO / PUK OSIJEK"]
[325040,"KONŠĆICA","SAMOBOR","PUK ZAGREB","KONŠĆICA / SAMOBOR / PUK ZAGREB"]
[330051,"KONJEVRATE","ŠIBENIK","PUK ŠIBENIK","KONJEVRATE / ŠIBENIK / PUK ŠIBENIK"]
[329584,"KONJSKO","SOLIN","PUK SPLIT","KONJSKO / SOLIN / PUK SPLIT"]
[310786,"KONJSKO BRDO","GOSPIĆ","PUK GOSPIĆ","KONJSKO BRDO / GOSPIĆ / PUK GOSPIĆ"]
[336033,"KONJŠČINA","ZLATAR","PUK KRAPINA","KONJŠČINA / ZLATAR / PUK KRAPINA"]
[300209,"KOPAČEVO","BELI MANASTIR","PUK OSIJEK","KOPAČEVO / BELI MANASTIR / PUK OSIJEK"]
[320625,"KOPRIVNA","OSIJEK","PUK OSIJEK",{"$f":"B1346&\" / \"&C1346&\" / \"&D1346","v":"KOPRIVNA / OSIJEK / PUK OSIJEK"}]
[327409,"KOPRIVNA","POŽEGA","PUK POŽEGA","KOPRIVNA / POŽEGA / PUK POŽEGA"]
[314340,"KOPRIVNICA","KOPRIVNICA","PUK KOPRIVNICA","KOPRIVNICA / KOPRIVNICA / PUK KOPRIVNICA"]
[314170,"KOPRIVNIČKI BREGI","KOPRIVNICA","PUK KOPRIVNICA","KOPRIVNIČKI BREGI / KOPRIVNICA / PUK KOPRIVNICA"]
[314358,"KOPRIVNIČKI IVANEC","KOPRIVNICA","PUK KOPRIVNICA","KOPRIVNIČKI IVANEC / KOPRIVNICA / PUK KOPRIVNICA"]
[329592,"KOPRIVNO","SOLIN","PUK SPLIT","KOPRIVNO / SOLIN / PUK SPLIT"]
[307653,"KORANSKO SELO","DUGA RESA","PUK KARLOVAC","KORANSKO SELO / DUGA RESA / PUK KARLOVAC"]
[314650,"KORČULA","KORČULA","PUK DUBROVNIK","KORČULA / KORČULA / PUK DUBROVNIK"]
[328421,"KORDUŠEVCI","SLAVONSKI BROD","PUK SLAVONSKI BROD","KORDUŠEVCI / SLAVONSKI BROD / PUK SLAVONSKI BROD"]
[330604,"KORENICA","KORENICA","PUK GOSPIĆ","KORENICA / KORENICA / PUK GOSPIĆ"]
[304263,"KORENIČANI","DARUVAR","PUK BJELOVAR","KORENIČANI / DARUVAR / PUK BJELOVAR"]
[307661,"KORENIĆ BRDO","DUGA RESA","PUK KARLOVAC","KORENIĆ BRDO / DUGA RESA / PUK KARLOVAC"]
[306649,"KORITA","DUBROVNIK","PUK DUBROVNIK","KORITA / DUBROVNIK / PUK DUBROVNIK"]
[321842,"KORITA","PAKRAC","PUK POŽEGA","KORITA / PAKRAC / PUK POŽEGA"]
[308919,"KORITNA","ĐAKOVO","PUK OSIJEK","KORITNA / ĐAKOVO / PUK OSIJEK"]
[300535,"KORLAT","BENKOVAC","PUK ZADAR","KORLAT / BENKOVAC / PUK ZADAR"]
[330060,"KORNATI","ŠIBENIK","PUK ŠIBENIK","KORNATI / ŠIBENIK / PUK ŠIBENIK"]
[315907,"KORNIĆ","KRK","PUK RIJEKA","KORNIĆ / KRK / PUK RIJEKA"]
[332097,"KOROĐ","VINKOVCI","PUK VUKOVAR","KOROĐ / VINKOVCI / PUK VUKOVAR"]
[329606,"KORUŠCE","SOLIN","PUK SPLIT","KORUŠCE / SOLIN / PUK SPLIT"]
[307670,"KOSIJERSKO SELO","DUGA RESA","PUK KARLOVAC","KOSIJERSKO SELO / DUGA RESA / PUK KARLOVAC"]
[338508,"KOSINJ","GOSPIĆ","PUK GOSPIĆ","KOSINJ / GOSPIĆ / PUK GOSPIĆ"]
[308439,"KOSNA","DVOR","PUK SISAK","KOSNA / DVOR / PUK SISAK"]
[331597,"KOSNICA","VELIKA GORICA","PUK ZAGREB","KOSNICA / VELIKA GORICA / PUK ZAGREB"]
[325686,"KOSORE","SINJ","PUK SPLIT","KOSORE / SINJ / PUK SPLIT"]
[317969,"KOSOVAC","NOVA GRADIŠKA","PUK SLAVONSKI BROD","KOSOVAC / NOVA GRADIŠKA / PUK SLAVONSKI BROD"]
[314943,"KOSTAJNICA","HRVATSKA KOSTAJNICA","PUK SISAK","KOSTAJNICA / HRVATSKA KOSTAJNICA / PUK SISAK"]
[319660,"KOSTANJE","OMIŠ","PUK SPLIT","KOSTANJE / OMIŠ / PUK SPLIT"]
[309753,"KOSTANJEVAC","GAREŠNICA","PUK BJELOVAR","KOSTANJEVAC / GAREŠNICA / PUK BJELOVAR"]
[312649,"KOSTANJEVAC","JASTREBARSKO","PUK ZAGREB","KOSTANJEVAC / JASTREBARSKO / PUK ZAGREB"]
[301841,"KOSTANJICA","BUJE","PUK PULA","KOSTANJICA / BUJE / PUK PULA"]
[323934,"KOSTEL","PREGRADA","PUK KRAPINA","KOSTEL / PREGRADA / PUK KRAPINA"]
[324604,"KOSTRENA-BARBARA","RIJEKA","PUK RIJEKA","KOSTRENA-BARBARA / RIJEKA / PUK RIJEKA"]
[324612,"KOSTRENA-LUCIJA","RIJEKA","PUK RIJEKA","KOSTRENA-LUCIJA / RIJEKA / PUK RIJEKA"]
[326372,"KOSTREŠI ŠAŠKI","SISAK","PUK SISAK","KOSTREŠI ŠAŠKI / SISAK / PUK SISAK"]
[317357,"KOŠKA","NAŠICE","PUK OSIJEK","KOŠKA / NAŠICE / PUK OSIJEK"]
[323942,"KOŠNICA","PREGRADA","PUK KRAPINA","KOŠNICA / PREGRADA / PUK KRAPINA"]
[318825,"KOŠUTARICA","NOVSKA","PUK SISAK","KOŠUTARICA / NOVSKA / PUK SISAK"]
[325694,"KOŠUTE","SINJ","PUK SPLIT","KOŠUTE / SINJ / PUK SPLIT"]
[317055,"KOTIŠINA","MAKARSKA","PUK SPLIT","KOTIŠINA / MAKARSKA / PUK SPLIT"]
[329614,"KOTLENICE","SOLIN","PUK SPLIT","KOTLENICE / SOLIN / PUK SPLIT"]
[300217,"KOTLINA","BELI MANASTIR","PUK OSIJEK","KOTLINA / BELI MANASTIR / PUK OSIJEK"]
[303160,"KOTORIBA","PRELOG","PUK ČAKOVEC","KOTORIBA / PRELOG / PUK ČAKOVEC"]
[317977,"KOVAČEVAC","NOVA GRADIŠKA","PUK SLAVONSKI BROD","KOVAČEVAC / NOVA GRADIŠKA / PUK SLAVONSKI BROD"]
[321869,"KOVAČEVAC","PAKRAC","PUK POŽEGA","KOVAČEVAC / PAKRAC / PUK POŽEGA"]
[307688,"KOZALJ VRH","DUGA RESA","PUK KARLOVAC","KOZALJ VRH / DUGA RESA / PUK KARLOVAC"]
[310271,"KOZAPEROVICA","GLINA","PUK SISAK","KOZAPEROVICA / GLINA / PUK SISAK"]
[300225,"KOZARAC","BELI MANASTIR","PUK OSIJEK","KOZARAC / BELI MANASTIR / PUK OSIJEK"]
[333689,"KOZARAC","TOPUSKO","PUK SISAK","KOZARAC / TOPUSKO / PUK SISAK"]
[309362,"KOZAREVAC","ĐURĐEVAC","PUK KOPRIVNICA","KOZAREVAC / ĐURĐEVAC / PUK KOPRIVNICA"]
[301167,"KOZAREVAC RAČANSKI","BJELOVAR","PUK BJELOVAR","KOZAREVAC RAČANSKI / BJELOVAR / PUK BJELOVAR"]
[318833,"KOZARICE","NOVSKA","PUK SISAK","KOZARICE / NOVSKA / PUK SISAK"]
[308447,"KOZIBROD","DVOR","PUK SISAK","KOZIBROD / DVOR / PUK SISAK"]
[333913,"KOZICA","VRGORAC","PUK SPLIT","KOZICA / VRGORAC / PUK SPLIT"]
[323322,"KOZICE","SLATINA","PUK VIROVITICA","KOZICE / SLATINA / PUK VIROVITICA"]
[331619,"KOZJAČA","VELIKA GORICA","PUK ZAGREB","KOZJAČA / VELIKA GORICA / PUK ZAGREB"]
[330442,"KOZJAN","KORENICA","PUK GOSPIĆ","KOZJAN / KORENICA / PUK GOSPIĆ"]
[316458,"KOŽLJAK","LABIN","PUK PULA","KOŽLJAK / LABIN / PUK PULA"]
[321877,"KRAGUJ","PAKRAC","PUK POŽEGA","KRAGUJ / PAKRAC / PUK POŽEGA"]
[319902,"KRAJ","OPATIJA","PUK RIJEKA","KRAJ / OPATIJA / PUK RIJEKA"]
[325708,"KRAJ","SINJ","PUK SPLIT","KRAJ / SINJ / PUK SPLIT"]
[335703,"KRAJ","ZAPREŠIĆ","PUK ZAGREB","KRAJ / ZAPREŠIĆ / PUK ZAGREB"]
[324892,"KRAJCAR BREG","ROVINJ","PUK PULA","KRAJCAR BREG / ROVINJ / PUK PULA"]
[320323,"KRAJNA","ORAHOVICA","PUK VIROVITICA","KRAJNA / ORAHOVICA / PUK VIROVITICA"]
[304816,"KRALJEV VRH","DONJA STUBICA","PUK KRAPINA",{"$f":"B1410&\" / \"&C1410&\" / \"&D1410","v":"KRALJEV VRH / DONJA STUBICA / PUK KRAPINA"}]
[319023,"KRALJEVA VELIKA","NOVSKA","PUK SISAK","KRALJEVA VELIKA / NOVSKA / PUK SISAK"]
[301175,"KRALJEVAC","BJELOVAR","PUK BJELOVAR","KRALJEVAC / BJELOVAR / PUK BJELOVAR"]
[322814,"KRALJEVČANI","PETRINJA","PUK SISAK","KRALJEVČANI / PETRINJA / PUK SISAK"]
[313645,"KRALJEVEC NA SUTLI","KLANJEC","PUK KRAPINA","KRALJEVEC NA SUTLI / KLANJEC / PUK KRAPINA"]
[324639,"KRALJEVICA","RIJEKA","PUK RIJEKA","KRALJEVICA / RIJEKA / PUK RIJEKA"]
[330078,"KRAPANJ","ŠIBENIK","PUK ŠIBENIK","KRAPANJ / ŠIBENIK / PUK ŠIBENIK"]
[315176,"KRAPINA","KRAPINA","PUK KRAPINA","KRAPINA / KRAPINA / PUK KRAPINA"]
[338168,"KRAPINA JUG","KRAPINA","PUK KRAPINA","KRAPINA JUG / KRAPINA / PUK KRAPINA"]
[315184,"KRAPINA-GRAD","KRAPINA","PUK KRAPINA","KRAPINA-GRAD / KRAPINA / PUK KRAPINA"]
[334413,"KRAPINSKE TOPLICE","ZABOK","PUK KRAPINA","KRAPINSKE TOPLICE / ZABOK / PUK KRAPINA"]
[318841,"KRAPJE","NOVSKA","PUK SISAK","KRAPJE / NOVSKA / PUK SISAK"]
[301850,"KRASICA","BUJE","PUK PULA","KRASICA / BUJE / PUK PULA"]
[324647,"KRASICA","RIJEKA","PUK RIJEKA","KRASICA / RIJEKA / PUK RIJEKA"]
[320331,"KRASKOVIĆ","ORAHOVICA","PUK VIROVITICA","KRASKOVIĆ / ORAHOVICA / PUK VIROVITICA"]
[325252,"KRASNO","SENJ","PUK GOSPIĆ","KRASNO / SENJ / PUK GOSPIĆ"]
[336599,"KRAŠIĆ I","JASTREBARSKO","PUK ZAGREB","KRAŠIĆ I / JASTREBARSKO / PUK ZAGREB"]
[336602,"KRAŠIĆ II","JASTREBARSKO","PUK ZAGREB","KRAŠIĆ II / JASTREBARSKO / PUK ZAGREB"]
[326399,"KRATEČKO","SISAK","PUK SISAK","KRATEČKO / SISAK / PUK SISAK"]
[331627,"KRAVARSKO","VELIKA GORICA","PUK ZAGREB","KRAVARSKO / VELIKA GORICA / PUK ZAGREB"]
[330469,"KRBAVA","KORENICA","PUK GOSPIĆ","KRBAVA / KORENICA / PUK GOSPIĆ"]
[330477,"KRBAVICA","KORENICA","PUK GOSPIĆ","KRBAVICA / KORENICA / PUK GOSPIĆ"]
[316466,"KRBUNE","LABIN","PUK PULA","KRBUNE / LABIN / PUK PULA"]
[314960,"KRČEVO","HRVATSKA KOSTAJNICA","PUK SISAK","KRČEVO / HRVATSKA KOSTAJNICA / PUK SISAK"]
[329207,"KREMEN","SLUNJ","PUK KARLOVAC","KREMEN / SLUNJ / PUK KARLOVAC"]
[319678,"KREŠEVO","OMIŠ","PUK SPLIT","KREŠEVO / OMIŠ / PUK SPLIT"]
[304271,"KREŠTELOVAC","DARUVAR","PUK BJELOVAR","KREŠTELOVAC / DARUVAR / PUK BJELOVAR"]
[305723,"KRIČKE","DRNIŠ","PUK ŠIBENIK","KRIČKE / DRNIŠ / PUK ŠIBENIK"]
[318850,"KRIČKE","NOVSKA","PUK SISAK","KRIČKE / NOVSKA / PUK SISAK"]
[321885,"KRIČKE","PAKRAC","PUK POŽEGA","KRIČKE / PAKRAC / PUK POŽEGA"]
[322342,"KRINGA","PAZIN","PUK PULA","KRINGA / PAZIN / PUK PULA"]
[303178,"KRIŠTANOVEC","ČAKOVEC","PUK ČAKOVEC","KRIŠTANOVEC / ČAKOVEC / PUK ČAKOVEC"]
[318868,"KRIVAJ","NOVSKA","PUK SISAK","KRIVAJ / NOVSKA / PUK SISAK"]
[326402,"KRIVAJ SUNJSKI","SISAK","PUK SISAK","KRIVAJ SUNJSKI / SISAK / PUK SISAK"]
[304280,"KRIVAJA","DARUVAR","PUK BJELOVAR","KRIVAJA / DARUVAR / PUK BJELOVAR"]
[325279,"KRIVI PUT","SENJ","PUK GOSPIĆ","KRIVI PUT / SENJ / PUK GOSPIĆ"]
[312363,"KRIŽ","IVANIĆ GRAD","PUK ZAGREB","KRIŽ / IVANIĆ GRAD / PUK ZAGREB"]
[301078,"KRIŽ GORNJI","BJELOVAR","PUK BJELOVAR","KRIŽ GORNJI / BJELOVAR / PUK BJELOVAR"]
[322822,"KRIŽ HRASTOVAČKI","PETRINJA","PUK SISAK","KRIŽ HRASTOVAČKI / PETRINJA / PUK SISAK"]
[315532,"KRIŽEVCI","KRIŽEVCI","PUK KOPRIVNICA","KRIŽEVCI / KRIŽEVCI / PUK KOPRIVNICA"]
[303852,"KRIŽIC","ČAZMA","PUK BJELOVAR","KRIŽIC / ČAZMA / PUK BJELOVAR"]
[303186,"KRIŽOVEC","ČAKOVEC","PUK ČAKOVEC","KRIŽOVEC / ČAKOVEC / PUK ČAKOVEC"]
[316806,"KRIŽOVLJAN","LUDBREG","PUK VARAŽDIN","KRIŽOVLJAN / LUDBREG / PUK VARAŽDIN"]
[320862,"KRIŽPOLJE","OTOČAC","PUK GOSPIĆ","KRIŽPOLJE / OTOČAC / PUK GOSPIĆ"]
[315915,"KRK","KRK","PUK RIJEKA","KRK / KRK / PUK RIJEKA"]
[315923,"KRK-GRAD","KRK","PUK RIJEKA","KRK-GRAD / KRK / PUK RIJEKA"]
[302651,"KRMPOTE","CRIKVENICA","PUK RIJEKA","KRMPOTE / CRIKVENICA / PUK RIJEKA"]
[308927,"KRNDIJA","ĐAKOVO","PUK OSIJEK","KRNDIJA / ĐAKOVO / PUK OSIJEK"]
[324159,"KRNICA","PULA","PUK PULA","KRNICA / PULA / PUK PULA"]
[313190,"KRNJAK","KARLOVAC","PUK KARLOVAC","KRNJAK / KARLOVAC / PUK KARLOVAC"]
[311871,"KRSTATICE","IMOTSKI","PUK SPLIT","KRSTATICE / IMOTSKI / PUK SPLIT"]
[332810,"KRSTINJA","VOJNIĆ","PUK KARLOVAC","KRSTINJA / VOJNIĆ / PUK KARLOVAC"]
[316474,"KRŠAN","LABIN","PUK PULA","KRŠAN / LABIN / PUK PULA"]
[301868,"KRŠETE","BUJE","PUK PULA","KRŠETE / BUJE / PUK PULA"]
[322369,"KRŠIKLA","PAZIN","PUK PULA","KRŠIKLA / PAZIN / PUK PULA"]
[317365,"KRŠINCI","NAŠICE","PUK OSIJEK","KRŠINCI / NAŠICE / PUK OSIJEK"]
[305138,"KRUGE","DONJI LAPAC","PUK GOSPIĆ","KRUGE / DONJI LAPAC / PUK GOSPIĆ"]
[319074,"KRUPA","OBROVAC","PUK ZADAR","KRUPA / OBROVAC / PUK ZADAR"]
[310794,"KRUŠČICA","GOSPIĆ","PUK GOSPIĆ","KRUŠČICA / GOSPIĆ / PUK GOSPIĆ"]
[328430,"KRUŠEVICA","SLAVONSKI BROD","PUK SLAVONSKI BROD","KRUŠEVICA / SLAVONSKI BROD / PUK SLAVONSKI BROD"]
[319082,"KRUŠEVO","OBROVAC","PUK ZADAR","KRUŠEVO / OBROVAC / PUK ZADAR"]
[310808,"KRUŠKOVAC","GOSPIĆ","PUK GOSPIĆ","KRUŠKOVAC / GOSPIĆ / PUK GOSPIĆ"]
[329215,"KRUŠKOVAČA","SLUNJ","PUK KARLOVAC","KRUŠKOVAČA / SLUNJ / PUK KARLOVAC"]
[325716,"KRUŠVAR","SINJ","PUK SPLIT","KRUŠVAR / SINJ / PUK SPLIT"]
[336840,"KRVAVAC II","METKOVIĆ","PUK DUBROVNIK",{"$f":"B1474&\" / \"&C1474&\" / \"&D1474","v":"KRVAVAC II / METKOVIĆ / PUK DUBROVNIK"}]
[301876,"KUBERTON","BUJE","PUK PULA","KUBERTON / BUJE / PUK PULA"]
[331635,"KUČE","VELIKA GORICA","PUK ZAGREB","KUČE / VELIKA GORICA / PUK ZAGREB"]
[319686,"KUČIĆE","OMIŠ","PUK SPLIT","KUČIĆE / OMIŠ / PUK SPLIT"]
[329622,"KUČINE","SOLIN","PUK SPLIT","KUČINE / SOLIN / PUK SPLIT"]
[314668,"KUČIŠTE","KORČULA","PUK DUBROVNIK","KUČIŠTE / KORČULA / PUK DUBROVNIK"]
[337200,"KUĆAN MAROF","VARAŽDIN","PUK VARAŽDIN","KUĆAN MAROF / VARAŽDIN / PUK VARAŽDIN"]
[305375,"KUĆANCI","DONJI MIHOLJAC","PUK OSIJEK","KUĆANCI / DONJI MIHOLJAC / PUK OSIJEK"]
[319929,"KUĆELI","OPATIJA","PUK RIJEKA","KUĆELI / OPATIJA / PUK RIJEKA"]
[302007,"KUĆIBREG","BUJE","PUK PULA","KUĆIBREG / BUJE / PUK PULA"]
[327425,"KUJNIK","POŽEGA","PUK POŽEGA","KUJNIK / POŽEGA / PUK POŽEGA"]
[328448,"KUJNIK","SLAVONSKI BROD","PUK SLAVONSKI BROD","KUJNIK / SLAVONSKI BROD / PUK SLAVONSKI BROD"]
[334723,"KUKLJICA","ZADAR","PUK ZADAR","KUKLJICA / ZADAR / PUK ZADAR"]
[310816,"KUKLJIĆ","GOSPIĆ","PUK GOSPIĆ","KUKLJIĆ / GOSPIĆ / PUK GOSPIĆ"]
[338290,"KUKULJANOVO - NOVA","RIJEKA","PUK RIJEKA","KUKULJANOVO - NOVA / RIJEKA / PUK RIJEKA"]
[324655,"KUKULJANOVO","RIJEKA","PUK RIJEKA","KUKULJANOVO / RIJEKA / PUK RIJEKA"]
[321893,"KUKUNJEVAC","PAKRAC","PUK POŽEGA","KUKUNJEVAC / PAKRAC / PUK POŽEGA"]
[314978,"KUKURUZARI","HRVATSKA KOSTAJNICA","PUK SISAK","KUKURUZARI / HRVATSKA KOSTAJNICA / PUK SISAK"]
[327433,"KULA","POŽEGA","PUK POŽEGA","KULA / POŽEGA / PUK POŽEGA"]
[300543,"KULA ATLAGIĆ","BENKOVAC","PUK ZADAR","KULA ATLAGIĆ / BENKOVAC / PUK ZADAR"]
[308455,"KULJANI","DVOR","PUK SISAK","KULJANI / DVOR / PUK SISAK"]
[306657,"KUNA KONAVOSKA","DUBROVNIK","PUK DUBROVNIK","KUNA KONAVOSKA / DUBROVNIK / PUK DUBROVNIK"]
[306665,"KUNA PELJEŠKA","KORČULA","PUK DUBROVNIK","KUNA PELJEŠKA / KORČULA / PUK DUBROVNIK"]
[319309,"KUNIĆ","OGULIN","PUK KARLOVAC","KUNIĆ / OGULIN / PUK KARLOVAC"]
[305383,"KUNIŠINCI","DONJI MIHOLJAC","PUK OSIJEK","KUNIŠINCI / DONJI MIHOLJAC / PUK OSIJEK"]
[314366,"KUNOVEC","KOPRIVNICA","PUK KOPRIVNICA","KUNOVEC / KOPRIVNICA / PUK KOPRIVNICA"]
[337374,"KUNOVEC BREG","KOPRIVNICA","PUK KOPRIVNICA","KUNOVEC BREG / KOPRIVNICA / PUK KOPRIVNICA"]
[316482,"KUNJ","LABIN","PUK PULA","KUNJ / LABIN / PUK PULA"]
[328456,"KUPINA","SLAVONSKI BROD","PUK SLAVONSKI BROD","KUPINA / SLAVONSKI BROD / PUK SLAVONSKI BROD"]
[312665,"KUPINEC","JASTREBARSKO","PUK ZAGREB","KUPINEC / JASTREBARSKO / PUK ZAGREB"]
[335452,"KUPINEČKI KRALJEVEC","GU ZAGREB","PUK ZAGREB","KUPINEČKI KRALJEVEC / GU ZAGREB / PUK ZAGREB"]
[305146,"KUPIROVO","GRAČAC","PUK ZADAR","KUPIROVO / GRAČAC / PUK ZADAR"]
[338184,"KUPJAK","DELNICE","PUK RIJEKA","KUPJAK / DELNICE / PUK RIJEKA"]
[337978,"KUPLJENOVO - NOVO","ZAPREŠIĆ","PUK ZAGREB","KUPLJENOVO - NOVO / ZAPREŠIĆ / PUK ZAGREB"]
[335711,"KUPLJENOVO","ZAPREŠIĆ","PUK ZAGREB","KUPLJENOVO / ZAPREŠIĆ / PUK ZAGREB"]
[332828,"KUPLJENSKO","VOJNIĆ","PUK KARLOVAC","KUPLJENSKO / VOJNIĆ / PUK KARLOVAC"]
[331643,"KURILOVEC","VELIKA GORICA","PUK ZAGREB","KURILOVEC / VELIKA GORICA / PUK ZAGREB"]
[337609,"KURILOVEC NOVI","VELIKA GORICA","PUK ZAGREB","KURILOVEC NOVI / VELIKA GORICA / PUK ZAGREB"]
[330485,"KURJAK","KORENICA","PUK GOSPIĆ","KURJAK / KORENICA / PUK GOSPIĆ"]
[303194,"KURŠANEC","ČAKOVEC","PUK ČAKOVEC","KURŠANEC / ČAKOVEC / PUK ČAKOVEC"]
[321907,"KUSONJE","PAKRAC","PUK POŽEGA","KUSONJE / PAKRAC / PUK POŽEGA"]
[320889,"KUTEREVO","OTOČAC","PUK GOSPIĆ","KUTEREVO / OTOČAC / PUK GOSPIĆ"]
[316199,"KUTINA","KUTINA","PUK SISAK","KUTINA / KUTINA / PUK SISAK"]
[316202,"KUTINICA","KUTINA","PUK SISAK","KUTINICA / KUTINA / PUK SISAK"]
[327441,"KUTJEVO","POŽEGA","PUK POŽEGA","KUTJEVO / POŽEGA / PUK POŽEGA"]
[314374,"KUTNJAK","KOPRIVNICA","PUK KOPRIVNICA","KUTNJAK / KOPRIVNICA / PUK KOPRIVNICA"]
[320340,"KUTOVI","ORAHOVICA","PUK VIROVITICA","KUTOVI / ORAHOVICA / PUK VIROVITICA"]
[323349,"KUZMA","SLATINA","PUK VIROVITICA","KUZMA / SLATINA / PUK VIROVITICA"]
[329223,"KUZMA","SLUNJ","PUK KARLOVAC","KUZMA / SLUNJ / PUK KARLOVAC"]
[327450,"KUZMICA","POŽEGA","PUK POŽEGA","KUZMICA / POŽEGA / PUK POŽEGA"]
[314382,"KUZMINEC","KOPRIVNICA","PUK KOPRIVNICA","KUZMINEC / KOPRIVNICA / PUK KOPRIVNICA"]
[310824,"KVARTE","GOSPIĆ","PUK GOSPIĆ","KVARTE / GOSPIĆ / PUK GOSPIĆ"]
[313530,"LABIN","KAŠTEL SUĆURAC","PUK SPLIT","LABIN / KAŠTEL SUĆURAC / PUK SPLIT"]
[323683,"LABINCI","POREČ","PUK PULA","LABINCI / POREČ / PUK PULA"]
[337749,"LABIN-PRESIKA","LABIN","PUK PULA","LABIN-PRESIKA / LABIN / PUK PULA"]
[305391,"LACIĆI","DONJI MIHOLJAC","PUK OSIJEK","LACIĆI / DONJI MIHOLJAC / PUK OSIJEK"]
[307696,"LADEŠIĆI","DUGA RESA","PUK KARLOVAC","LADEŠIĆI / DUGA RESA / PUK KARLOVAC"]
[330892,"LADIMIREVCI","VALPOVO","PUK OSIJEK","LADIMIREVCI / VALPOVO / PUK OSIJEK"]
[309761,"LADISLAV","GAREŠNICA","PUK BJELOVAR","LADISLAV / GAREŠNICA / PUK BJELOVAR"]
[335720,"LADUČ","ZAPREŠIĆ","PUK ZAGREB","LADUČ / ZAPREŠIĆ / PUK ZAGREB"]
[317985,"LAĐEVAC","NOVA GRADIŠKA","PUK SLAVONSKI BROD","LAĐEVAC / NOVA GRADIŠKA / PUK SLAVONSKI BROD"]
[335860,"LAKTEC","SVETI IVAN ZELINA","PUK ZAGREB","LAKTEC / SVETI IVAN ZELINA / PUK ZAGREB"]
[327468,"LAKUŠIJA","POŽEGA","PUK POŽEGA","LAKUŠIJA / POŽEGA / PUK POŽEGA"]
[303879,"LAMINAC","ČAZMA","PUK BJELOVAR","LAMINAC / ČAZMA / PUK BJELOVAR"]
[302155,"LANIŠĆE","BUZET","PUK PULA",{"$f":"B1538&\" / \"&C1538&\" / \"&D1538","v":"LANIŠĆE / BUZET / PUK PULA"}]
[308935,"LAPOVCI","ĐAKOVO","PUK OSIJEK","LAPOVCI / ĐAKOVO / PUK OSIJEK"]
[333697,"LASINJA","KARLOVAC","PUK KARLOVAC","LASINJA / KARLOVAC / PUK KARLOVAC"]
[320633,"LASLOVO","OSIJEK","PUK OSIJEK","LASLOVO / OSIJEK / PUK OSIJEK"]
[301183,"LASOVAC","BJELOVAR","PUK BJELOVAR","LASOVAC / BJELOVAR / PUK BJELOVAR"]
[316717,"LASTOVO","BLATO","PUK DUBROVNIK","LASTOVO / BLATO / PUK DUBROVNIK"]
[319317,"LATIN","OGULIN","PUK KARLOVAC","LATIN / OGULIN / PUK KARLOVAC"]
[327476,"LATINOVAC","POŽEGA","PUK POŽEGA","LATINOVAC / POŽEGA / PUK POŽEGA"]
[304824,"LAZ BISTRIČKI","DONJA STUBICA","PUK KRAPINA","LAZ BISTRIČKI / DONJA STUBICA / PUK KRAPINA"]
[317993,"LAZE","NOVA GRADIŠKA","PUK SLAVONSKI BROD","LAZE / NOVA GRADIŠKA / PUK SLAVONSKI BROD"]
[331473,"LAZINA ČIČKA","VELIKA GORICA","PUK ZAGREB","LAZINA ČIČKA / VELIKA GORICA / PUK ZAGREB"]
[313548,"LEĆEVICA","KAŠTEL SUĆURAC","PUK SPLIT","LEĆEVICA / KAŠTEL SUĆURAC / PUK SPLIT"]
[302660,"LEDENICE","CRIKVENICA","PUK RIJEKA","LEDENICE / CRIKVENICA / PUK RIJEKA"]
[336700,"LEDENIK","NAŠICE","PUK OSIJEK","LEDENIK / NAŠICE / PUK OSIJEK"]
[314404,"LEGRAD","KOPRIVNICA","PUK KOPRIVNICA","LEGRAD / KOPRIVNICA / PUK KOPRIVNICA"]
[326429,"LEKENIK","SISAK","PUK SISAK","LEKENIK / SISAK / PUK SISAK"]
[331651,"LEKNENO","VELIKA GORICA","PUK ZAGREB","LEKNENO / VELIKA GORICA / PUK ZAGREB"]
[315559,"LEMEŠ","KRIŽEVCI","PUK KOPRIVNICA","LEMEŠ / KRIŽEVCI / PUK KOPRIVNICA"]
[309389,"LEPA GREDA","ĐURĐEVAC","PUK KOPRIVNICA","LEPA GREDA / ĐURĐEVAC / PUK KOPRIVNICA"]
[304832,"LEPA VES","DONJA STUBICA","PUK KRAPINA","LEPA VES / DONJA STUBICA / PUK KRAPINA"]
[314412,"LEPAVINA","KOPRIVNICA","PUK KOPRIVNICA","LEPAVINA / KOPRIVNICA / PUK KOPRIVNICA"]
[330086,"LEPENICA","ŠIBENIK","PUK ŠIBENIK","LEPENICA / ŠIBENIK / PUK ŠIBENIK"]
[312215,"LEPOGLAVA","IVANEC","PUK VARAŽDIN","LEPOGLAVA / IVANEC / PUK VARAŽDIN"]
[308099,"LEPROVICA","DUGO SELO","PUK ZAGREB","LEPROVICA / DUGO SELO / PUK ZAGREB"]
[312371,"LEPŠIĆ","IVANIĆ GRAD","PUK ZAGREB","LEPŠIĆ / IVANIĆ GRAD / PUK ZAGREB"]
[300551,"LEPURI","BENKOVAC","PUK ZADAR","LEPURI / BENKOVAC / PUK ZADAR"]
[322377,"LESIŠĆINA","PAZIN","PUK PULA","LESIŠĆINA / PAZIN / PUK PULA"]
[318574,"LESKOVEC TOPLIČKI","NOVI MAROF","PUK VARAŽDIN","LESKOVEC TOPLIČKI / NOVI MAROF / PUK VARAŽDIN"]
[307700,"LEŠĆE","DUGA RESA","PUK KARLOVAC","LEŠĆE / DUGA RESA / PUK KARLOVAC"]
[316512,"LETAJ","LABIN","PUK PULA","LETAJ / LABIN / PUK PULA"]
[326437,"LETINA","SISAK","PUK SISAK","LETINA / SISAK / PUK SISAK"]
[320919,"LETINAC","OTOČAC","PUK GOSPIĆ","LETINAC / OTOČAC / PUK GOSPIĆ"]
[322849,"LETOVANCI","PETRINJA","PUK SISAK","LETOVANCI / PETRINJA / PUK SISAK"]
[326445,"LETOVANIĆ","SISAK","PUK SISAK","LETOVANIĆ / SISAK / PUK SISAK"]
[308943,"LEVANJSKA VAROŠ","ĐAKOVO","PUK OSIJEK","LEVANJSKA VAROŠ / ĐAKOVO / PUK OSIJEK"]
[332577,"LEVINOVAC","VIROVITICA","PUK VIROVITICA","LEVINOVAC / VIROVITICA / PUK VIROVITICA"]
[304581,"LIČ","DELNICE","PUK RIJEKA","LIČ / DELNICE / PUK RIJEKA"]
[319325,"LIČKA JESENICA","OGULIN","PUK KARLOVAC","LIČKA JESENICA / OGULIN / PUK KARLOVAC"]
[310832,"LIČKI ČITLUK","GOSPIĆ","PUK GOSPIĆ","LIČKI ČITLUK / GOSPIĆ / PUK GOSPIĆ"]
[310859,"LIČKI NOVI","GOSPIĆ","PUK GOSPIĆ","LIČKI NOVI / GOSPIĆ / PUK GOSPIĆ"]
[310867,"LIČKI OSIK","GOSPIĆ","PUK GOSPIĆ","LIČKI OSIK / GOSPIĆ / PUK GOSPIĆ"]
[310875,"LIČKI RIBNIK","GOSPIĆ","PUK GOSPIĆ","LIČKI RIBNIK / GOSPIĆ / PUK GOSPIĆ"]
[311081,"LIČKO CERJE","LOVINAC","PUK GOSPIĆ","LIČKO CERJE / LOVINAC / PUK GOSPIĆ"]
[320897,"LIČKO LEŠĆE","OTOČAC","PUK GOSPIĆ","LIČKO LEŠĆE / OTOČAC / PUK GOSPIĆ"]
[330493,"LIČKO PETROVO SELO","KORENICA","PUK GOSPIĆ","LIČKO PETROVO SELO / KORENICA / PUK GOSPIĆ"]
[326453,"LIJEVA LUKA","SISAK","PUK SISAK","LIJEVA LUKA / SISAK / PUK SISAK"]
[312380,"LIJEVI DUBROVČAK","IVANIĆ GRAD","PUK ZAGREB","LIJEVI DUBROVČAK / IVANIĆ GRAD / PUK ZAGREB"]
[331660,"LIJEVI ŠTEFANKI","VELIKA GORICA","PUK ZAGREB","LIJEVI ŠTEFANKI / VELIKA GORICA / PUK ZAGREB"]
[312673,"LIJEVO SREDIČKO","JASTREBARSKO","PUK ZAGREB","LIJEVO SREDIČKO / JASTREBARSKO / PUK ZAGREB"]
[323691,"LIM","POREČ","PUK PULA","LIM / POREČ / PUK PULA"]
[315931,"LINARDIĆI","KRK","PUK RIJEKA","LINARDIĆI / KRK / PUK RIJEKA"]
[322385,"LINDAR","PAZIN","PUK PULA","LINDAR / PAZIN / PUK PULA"]
[307718,"LIPA","DUGA RESA","PUK KARLOVAC","LIPA / DUGA RESA / PUK KARLOVAC"]
[319937,"LIPA","OPATIJA","PUK RIJEKA","LIPA / OPATIJA / PUK RIJEKA"]
[310883,"LIPE","GOSPIĆ","PUK GOSPIĆ","LIPE / GOSPIĆ / PUK GOSPIĆ"]
[320927,"LIPICE","OTOČAC","PUK GOSPIĆ","LIPICE / OTOČAC / PUK GOSPIĆ"]
[321915,"LIPIK","PAKRAC","PUK POŽEGA","LIPIK / PAKRAC / PUK POŽEGA"]
[321214,"LIPNIK","OZALJ","PUK KARLOVAC","LIPNIK / OZALJ / PUK KARLOVAC"]
[321923,"LIPOVAC","PAKRAC","PUK POŽEGA","LIPOVAC / PAKRAC / PUK POŽEGA"]
[332119,"LIPOVAC","VINKOVCI","PUK VUKOVAR","LIPOVAC / VINKOVCI / PUK VUKOVAR"]
[338931,"LIPOVAC NOVA","VINKOVCI","PUK VUKOVAR","LIPOVAC NOVA / VINKOVCI / PUK VUKOVAR"]
[334138,"LIPOVAČA","VUKOVAR","PUK VUKOVAR","LIPOVAČA / VUKOVAR / PUK VUKOVAR"]
[303887,"LIPOVČANI","ČAZMA","PUK BJELOVAR","LIPOVČANI / ČAZMA / PUK BJELOVAR"]
[318876,"LIPOVLJANI","NOVSKA","PUK SISAK","LIPOVLJANI / NOVSKA / PUK SISAK"]
[310891,"LIPOVO POLJE","GOSPIĆ","PUK GOSPIĆ",{"$f":"B1602&\" / \"&C1602&\" / \"&D1602","v":"LIPOVO POLJE / GOSPIĆ / PUK GOSPIĆ"}]
[306673,"LISAC","DUBROVNIK","PUK DUBROVNIK","LISAC / DUBROVNIK / PUK DUBROVNIK"]
[324663,"LISAC","RIJEKA","PUK RIJEKA","LISAC / RIJEKA / PUK RIJEKA"]
[300560,"LISIČIĆ","BENKOVAC","PUK ZADAR","LISIČIĆ / BENKOVAC / PUK ZADAR"]
[323357,"LISIČINE","SLATINA","PUK VIROVITICA","LISIČINE / SLATINA / PUK VIROVITICA"]
[300578,"LIŠANE OSTROVIČKE","BENKOVAC","PUK ZADAR","LIŠANE OSTROVIČKE / BENKOVAC / PUK ZADAR"]
[307726,"LIŠNICA","DUGA RESA","PUK KARLOVAC","LIŠNICA / DUGA RESA / PUK KARLOVAC"]
[321931,"LIVAĐANI","PAKRAC","PUK POŽEGA","LIVAĐANI / PAKRAC / PUK POŽEGA"]
[324167,"LIŽNJAN","PULA","PUK PULA","LIŽNJAN / PULA / PUK PULA"]
[324175,"LOBORIKA","PULA","PUK PULA","LOBORIKA / PULA / PUK PULA"]
[304590,"LOKVE","DELNICE","PUK RIJEKA","LOKVE / DELNICE / PUK RIJEKA"]
[311880,"LOKVIČIĆ","IMOTSKI","PUK SPLIT","LOKVIČIĆ / IMOTSKI / PUK SPLIT"]
[317373,"LONDŽICA","NAŠICE","PUK OSIJEK","LONDŽICA / NAŠICE / PUK OSIJEK"]
[326461,"LONJA","SISAK","PUK SISAK","LONJA / SISAK / PUK SISAK"]
[333093,"LONJICA","VRBOVEC","PUK ZAGREB","LONJICA / VRBOVEC / PUK ZAGREB"]
[324418,"LOPAR","RAB","PUK RIJEKA","LOPAR / RAB / PUK RIJEKA"]
[303208,"LOPATINEC","ČAKOVEC","PUK ČAKOVEC","LOPATINEC / ČAKOVEC / PUK ČAKOVEC"]
[306681,"LOPUD","DUBROVNIK","PUK DUBROVNIK","LOPUD / DUBROVNIK / PUK DUBROVNIK"]
[308463,"LOTINE","DVOR","PUK SISAK","LOTINE / DVOR / PUK SISAK"]
[334146,"LOVAS","ILOK","PUK VUKOVAR","LOVAS / ILOK / PUK VUKOVAR"]
[314986,"LOVČA","HRVATSKA KOSTAJNICA","PUK SISAK","LOVČA / HRVATSKA KOSTAJNICA / PUK SISAK"]
[328499,"LOVČIĆ","SLAVONSKI BROD","PUK SLAVONSKI BROD","LOVČIĆ / SLAVONSKI BROD / PUK SLAVONSKI BROD"]
[321222,"LOVIĆ PREKRIŠKI","OZALJ","PUK KARLOVAC","LOVIĆ PREKRIŠKI / OZALJ / PUK KARLOVAC"]
[311189,"LOVINAC","LOVINAC","PUK GOSPIĆ","LOVINAC / LOVINAC / PUK GOSPIĆ"]
[306690,"LOVORNO","DUBROVNIK","PUK DUBROVNIK","LOVORNO / DUBROVNIK / PUK DUBROVNIK"]
[319945,"LOVRAN","OPATIJA","PUK RIJEKA","LOVRAN / OPATIJA / PUK RIJEKA"]
[323705,"LOVREČ","POREČ","PUK PULA","LOVREČ / POREČ / PUK PULA"]
[336041,"LOVREČAN","ZLATAR","PUK KRAPINA","LOVREČAN / ZLATAR / PUK KRAPINA"]
[301884,"LOVREČICA","BUJE","PUK PULA","LOVREČICA / BUJE / PUK PULA"]
[333271,"LOVREČKA VAROŠ","VRBOVEC","PUK ZAGREB","LOVREČKA VAROŠ / VRBOVEC / PUK ZAGREB"]
[311898,"LOVREĆ","IMOTSKI","PUK SPLIT","LOVREĆ / IMOTSKI / PUK SPLIT"]
[318884,"LOVSKA","NOVSKA","PUK SISAK","LOVSKA / NOVSKA / PUK SISAK"]
[332585,"LOZAN","VIROVITICA","PUK VIROVITICA","LOZAN / VIROVITICA / PUK VIROVITICA"]
[330094,"LOZOVAC","ŠIBENIK","PUK ŠIBENIK","LOZOVAC / ŠIBENIK / PUK ŠIBENIK"]
[302368,"LUBENICE","CRES","PUK RIJEKA","LUBENICE / CRES / PUK RIJEKA"]
[300233,"LUČ","BELI MANASTIR","PUK OSIJEK","LUČ / BELI MANASTIR / PUK OSIJEK"]
[325724,"LUČANE","SINJ","PUK SPLIT","LUČANE / SINJ / PUK SPLIT"]
[312681,"LUČELNICA","JASTREBARSKO","PUK ZAGREB","LUČELNICA / JASTREBARSKO / PUK ZAGREB"]
[337021,"LUČKO","GU ZAGREB","PUK ZAGREB","LUČKO / GU ZAGREB / PUK ZAGREB"]
[339326,"LUČKO NOVO","GU ZAGREB","PUK ZAGREB","LUČKO NOVO / GU ZAGREB / PUK ZAGREB"]
[316814,"LUDBREG","LUDBREG","PUK VARAŽDIN","LUDBREG / LUDBREG / PUK VARAŽDIN"]
[316229,"LUDINA","KUTINA","PUK SISAK","LUDINA / KUTINA / PUK SISAK"]
[334154,"LUDVINCI","VUKOVAR","PUK VUKOVAR","LUDVINCI / VUKOVAR / PUK VUKOVAR"]
[300241,"LUG","BELI MANASTIR","PUK OSIJEK","LUG / BELI MANASTIR / PUK OSIJEK"]
[317519,"LUG SUBOTIČKI","NAŠICE","PUK OSIJEK","LUG SUBOTIČKI / NAŠICE / PUK OSIJEK"]
[336505,"LUKA","VRBOVEC","PUK ZAGREB","LUKA / VRBOVEC / PUK ZAGREB"]
[334731,"LUKA","ZADAR","PUK ZADAR","LUKA / ZADAR / PUK ZADAR"]
[313203,"LUKA POKUPSKA","KARLOVAC","PUK KARLOVAC","LUKA POKUPSKA / KARLOVAC / PUK KARLOVAC"]
[327492,"LUKAČ","POŽEGA","PUK POŽEGA","LUKAČ / POŽEGA / PUK POŽEGA"]
[332593,"LUKAČ","VIROVITICA","PUK VIROVITICA","LUKAČ / VIROVITICA / PUK VIROVITICA"]
[315567,"LUKAČEVEC","KRIŽEVCI","PUK KOPRIVNICA","LUKAČEVEC / KRIŽEVCI / PUK KOPRIVNICA"]
[305731,"LUKAR","DRNIŠ","PUK ŠIBENIK","LUKAR / DRNIŠ / PUK ŠIBENIK"]
[323365,"LUKAVAC","SLATINA","PUK VIROVITICA","LUKAVAC / SLATINA / PUK VIROVITICA"]
[331678,"LUKAVEC","VELIKA GORICA","PUK ZAGREB","LUKAVEC / VELIKA GORICA / PUK ZAGREB"]
[331686,"LUKINIĆ BRDO","VELIKA GORICA","PUK ZAGREB","LUKINIĆ BRDO / VELIKA GORICA / PUK ZAGREB"]
[334740,"LUKORAN","ZADAR","PUK ZADAR","LUKORAN / ZADAR / PUK ZADAR"]
[333395,"LUKOVDOL","VRBOVSKO","PUK RIJEKA","LUKOVDOL / VRBOVSKO / PUK RIJEKA"]
[310905,"LUKOVO ŠUGARJE","GOSPIĆ","PUK GOSPIĆ","LUKOVO ŠUGARJE / GOSPIĆ / PUK GOSPIĆ"]
[314676,"LUMBARDA","KORČULA","PUK DUBROVNIK","LUMBARDA / KORČULA / PUK DUBROVNIK"]
[324426,"LUN","NOVALJA","PUK GOSPIĆ","LUN / NOVALJA / PUK GOSPIĆ"]
[316873,"LUNJKOVEC","LUDBREG","PUK VARAŽDIN","LUNJKOVEC / LUDBREG / PUK VARAŽDIN"]
[323969,"LUPINJAK","PREGRADA","PUK KRAPINA","LUPINJAK / PREGRADA / PUK KRAPINA"]
[308102,"LUPOGLAV","DUGO SELO","PUK ZAGREB","LUPOGLAV / DUGO SELO / PUK ZAGREB"]
[322857,"LUŠČANI","PETRINJA","PUK SISAK","LUŠČANI / PETRINJA / PUK SISAK"]
[325406,"LUŽAN","GU ZAGREB","PUK ZAGREB",{"$f":"B1666&\" / \"&C1666&\" / \"&D1666","v":"LUŽAN / GU ZAGREB / PUK ZAGREB"}]
[328502,"LUŽANI","SLAVONSKI BROD","PUK SLAVONSKI BROD","LUŽANI / SLAVONSKI BROD / PUK SLAVONSKI BROD"]
[308471,"LJESKOVAC","DVOR","PUK SISAK","LJESKOVAC / DVOR / PUK SISAK"]
[318019,"LJEŠTANI","NOVA GRADIŠKA","PUK SLAVONSKI BROD","LJEŠTANI / NOVA GRADIŠKA / PUK SLAVONSKI BROD"]
[306703,"LJUBAČ","DUBROVNIK","PUK DUBROVNIK","LJUBAČ / DUBROVNIK / PUK DUBROVNIK"]
[337641,"LJUBELJ KALNIČKI","NOVI MAROF","PUK VARAŽDIN","LJUBELJ KALNIČKI / NOVI MAROF / PUK VARAŽDIN"]
[318582,"LJUBEŠĆICA","NOVI MAROF","PUK VARAŽDIN","LJUBEŠĆICA / NOVI MAROF / PUK VARAŽDIN"]
[308480,"LJUBINA","DVOR","PUK SISAK","LJUBINA / DVOR / PUK SISAK"]
[330710,"LJUBITOVICA","TROGIR","PUK SPLIT","LJUBITOVICA / TROGIR / PUK SPLIT"]
[305740,"LJUBOSTINJE","DRNIŠ","PUK ŠIBENIK","LJUBOSTINJE / DRNIŠ / PUK ŠIBENIK"]
[318027,"LJUPINA","NOVA GRADIŠKA","PUK SLAVONSKI BROD","LJUPINA / NOVA GRADIŠKA / PUK SLAVONSKI BROD"]
[306711,"LJUTA","DUBROVNIK","PUK DUBROVNIK","LJUTA / DUBROVNIK / PUK DUBROVNIK"]
[303216,"MACINEC","ČAKOVEC","PUK ČAKOVEC","MACINEC / ČAKOVEC / PUK ČAKOVEC"]
[323373,"MACUTE","SLATINA","PUK VIROVITICA","MACUTE / SLATINA / PUK VIROVITICA"]
[336050,"MAČE","ZLATAR","PUK KRAPINA","MAČE / ZLATAR / PUK KRAPINA"]
[318035,"MAČKOVAC","NOVA GRADIŠKA","PUK SLAVONSKI BROD","MAČKOVAC / NOVA GRADIŠKA / PUK SLAVONSKI BROD"]
[303224,"MAČKOVEC","ČAKOVEC","PUK ČAKOVEC","MAČKOVEC / ČAKOVEC / PUK ČAKOVEC"]
[322865,"MAČKOVO SELO","PETRINJA","PUK SISAK","MAČKOVO SELO / PETRINJA / PUK SISAK"]
[322873,"MADŽARI","PETRINJA","PUK SISAK","MADŽARI / PETRINJA / PUK SISAK"]
[318043,"MAGIĆ MALA","NOVA GRADIŠKA","PUK SLAVONSKI BROD","MAGIĆ MALA / NOVA GRADIŠKA / PUK SLAVONSKI BROD"]
[313211,"MAHIČNO","KARLOVAC","PUK KARLOVAC","MAHIČNO / KARLOVAC / PUK KARLOVAC"]
[312690,"MAHOVLJIĆ","JASTREBARSKO","PUK ZAGREB","MAHOVLJIĆ / JASTREBARSKO / PUK ZAGREB"]
[326470,"MAHOVO","SISAK","PUK SISAK","MAHOVO / SISAK / PUK SISAK"]
[310280,"MAJA","GLINA","PUK SISAK","MAJA / GLINA / PUK SISAK"]
[308951,"MAJAR","ĐAKOVO","PUK OSIJEK","MAJAR / ĐAKOVO / PUK OSIJEK"]
[308498,"MAJDAN","DVOR","PUK SISAK","MAJDAN / DVOR / PUK SISAK"]
[331201,"MAJERJE","VARAŽDIN","PUK VARAŽDIN","MAJERJE / VARAŽDIN / PUK VARAŽDIN"]
[306347,"MAJKOVI DONJI","DUBROVNIK","PUK DUBROVNIK","MAJKOVI DONJI / DUBROVNIK / PUK DUBROVNIK"]
[306495,"MAJKOVI GORNJI","DUBROVNIK","PUK DUBROVNIK","MAJKOVI GORNJI / DUBROVNIK / PUK DUBROVNIK"]
[310298,"MAJSKE POLJANE","GLINA","PUK SISAK","MAJSKE POLJANE / GLINA / PUK SISAK"]
[310301,"MAJSKI TRTNIK","GLINA","PUK SISAK","MAJSKI TRTNIK / GLINA / PUK SISAK"]
[314951,"MAJUR","HRVATSKA KOSTAJNICA","PUK SISAK","MAJUR / HRVATSKA KOSTAJNICA / PUK SISAK"]
[315575,"MAJUREC","KRIŽEVCI","PUK KOPRIVNICA","MAJUREC / KRIŽEVCI / PUK KOPRIVNICA"]
[317063,"MAKARSKA-MAKAR","MAKARSKA","PUK SPLIT","MAKARSKA-MAKAR / MAKARSKA / PUK SPLIT"]
[306720,"MAKOŠE","DUBROVNIK","PUK DUBROVNIK","MAKOŠE / DUBROVNIK / PUK DUBROVNIK"]
[335339,"MAKSIMIR","GU ZAGREB","PUK ZAGREB","MAKSIMIR / GU ZAGREB / PUK ZAGREB"]
[311456,"MALA BARNA","GRUBIŠNO POLJE","PUK BJELOVAR","MALA BARNA / GRUBIŠNO POLJE / PUK BJELOVAR"]
[309397,"MALA ČREŠNJEVICA","PITOMAČA","PUK VIROVITICA","MALA ČREŠNJEVICA / PITOMAČA / PUK VIROVITICA"]
[334421,"MALA ERPENJA","ZABOK","PUK KRAPINA","MALA ERPENJA / ZABOK / PUK KRAPINA"]
[337722,"MALA GORICA","SAMOBOR","PUK ZAGREB","MALA GORICA / SAMOBOR / PUK ZAGREB"]
[326488,"MALA GRADUSA","SISAK","PUK SISAK","MALA GRADUSA / SISAK / PUK SISAK"]
[311464,"MALA JASENOVAČA","GRUBIŠNO POLJE","PUK BJELOVAR","MALA JASENOVAČA / GRUBIŠNO POLJE / PUK BJELOVAR"]
[328529,"MALA KOPANICA","SLAVONSKI BROD","PUK SLAVONSKI BROD","MALA KOPANICA / SLAVONSKI BROD / PUK SLAVONSKI BROD"]
[316539,"MALA KRASKA","LABIN","PUK PULA","MALA KRASKA / LABIN / PUK PULA"]
[314439,"MALA MUČNA","KOPRIVNICA","PUK KOPRIVNICA","MALA MUČNA / KOPRIVNICA / PUK KOPRIVNICA"]
[326496,"MALA PAUKOVA","SISAK","PUK SISAK","MALA PAUKOVA / SISAK / PUK SISAK"]
[311472,"MALA PERATOVICA","GRUBIŠNO POLJE","PUK BJELOVAR","MALA PERATOVICA / GRUBIŠNO POLJE / PUK BJELOVAR"]
[311499,"MALA PISANICA","GRUBIŠNO POLJE","PUK BJELOVAR","MALA PISANICA / GRUBIŠNO POLJE / PUK BJELOVAR"]
[310310,"MALA SOLINA","GLINA","PUK SISAK","MALA SOLINA / GLINA / PUK SISAK"]
[303232,"MALA SUBOTICA","ČAKOVEC","PUK ČAKOVEC","MALA SUBOTICA / ČAKOVEC / PUK ČAKOVEC"]
[313220,"MALA ŠVARČA","KARLOVAC","PUK KARLOVAC","MALA ŠVARČA / KARLOVAC / PUK KARLOVAC"]
[338648,"MALA ŠVARČA 1","KARLOVAC","PUK KARLOVAC","MALA ŠVARČA 1 / KARLOVAC / PUK KARLOVAC"]
[333719,"MALA VRANOVINA","TOPUSKO","PUK SISAK","MALA VRANOVINA / TOPUSKO / PUK SISAK"]
[307734,"MALETIĆI","DUGA RESA","PUK KARLOVAC","MALETIĆI / DUGA RESA / PUK KARLOVAC"]
[304298,"MALI BASTAJI","DARUVAR","PUK BJELOVAR","MALI BASTAJI / DARUVAR / PUK BJELOVAR"]
[316881,"MALI BUKOVEC","LUDBREG","PUK VARAŽDIN","MALI BUKOVEC / LUDBREG / PUK VARAŽDIN"]
[310328,"MALI GRADAC","GLINA","PUK SISAK","MALI GRADAC / GLINA / PUK SISAK"]
[311502,"MALI GRĐEVAC","GRUBIŠNO POLJE","PUK BJELOVAR","MALI GRĐEVAC / GRUBIŠNO POLJE / PUK BJELOVAR"]
[334758,"MALI IŽ","ZADAR","PUK ZADAR","MALI IŽ / ZADAR / PUK ZADAR"]
[333417,"MALI JADRČ","VRBOVSKO","PUK RIJEKA","MALI JADRČ / VRBOVSKO / PUK RIJEKA"]
[302376,"MALI LOŠINJ","MALI LOŠINJ","PUK RIJEKA","MALI LOŠINJ / MALI LOŠINJ / PUK RIJEKA"]
[302384,"MALI LOŠINJ-GRAD","MALI LOŠINJ","PUK RIJEKA","MALI LOŠINJ-GRAD / MALI LOŠINJ / PUK RIJEKA"]
[311529,"MALI ZDENCI","GRUBIŠNO POLJE","PUK BJELOVAR","MALI ZDENCI / GRUBIŠNO POLJE / PUK BJELOVAR"]
[333727,"MALIČKA","TOPUSKO","PUK SISAK","MALIČKA / TOPUSKO / PUK SISAK"]
[321249,"MALINCI","OZALJ","PUK KARLOVAC",{"$f":"B1730&\" / \"&C1730&\" / \"&D1730","v":"MALINCI / OZALJ / PUK KARLOVAC"}]
[328537,"MALINO","SLAVONSKI BROD","PUK SLAVONSKI BROD","MALINO / SLAVONSKI BROD / PUK SLAVONSKI BROD"]
[337269,"MALINSKA-DUBAŠNICA","KRK","PUK RIJEKA","MALINSKA-DUBAŠNICA / KRK / PUK RIJEKA"]
[301191,"MALO TROJSTVO","BJELOVAR","PUK BJELOVAR","MALO TROJSTVO / BJELOVAR / PUK BJELOVAR"]
[329231,"MALJEVAC","SLUNJ","PUK KARLOVAC","MALJEVAC / SLUNJ / PUK KARLOVAC"]
[320358,"MANASTIR ORAHOVICA","ORAHOVICA","PUK VIROVITICA","MANASTIR ORAHOVICA / ORAHOVICA / PUK VIROVITICA"]
[330108,"MANDALINA","ŠIBENIK","PUK ŠIBENIK","MANDALINA / ŠIBENIK / PUK ŠIBENIK"]
[336432,"MANDIĆEVAC","ĐAKOVO","PUK OSIJEK","MANDIĆEVAC / ĐAKOVO / PUK OSIJEK"]
[325732,"MAOVICE","SINJ","PUK SPLIT","MAOVICE / SINJ / PUK SPLIT"]
[306738,"MARANOVIĆI","DUBROVNIK","PUK DUBROVNIK","MARANOVIĆI / DUBROVNIK / PUK DUBROVNIK"]
[331210,"MARČAN","VARAŽDIN","PUK VARAŽDIN","MARČAN / VARAŽDIN / PUK VARAŽDIN"]
[324183,"MARČANA","PULA","PUK PULA","MARČANA / PULA / PUK PULA"]
[324671,"MARČELJI","RIJEKA","PUK RIJEKA","MARČELJI / RIJEKA / PUK RIJEKA"]
[302171,"MARČENEGLA","BUZET","PUK PULA","MARČENEGLA / BUZET / PUK PULA"]
[304859,"MARIJA BISTRICA","DONJA STUBICA","PUK KRAPINA","MARIJA BISTRICA / DONJA STUBICA / PUK KRAPINA"]
[305405,"MARIJANCI","DONJI MIHOLJAC","PUK OSIJEK","MARIJANCI / DONJI MIHOLJAC / PUK OSIJEK"]
[330728,"MARINA","TROGIR","PUK SPLIT","MARINA / TROGIR / PUK SPLIT"]
[310336,"MARINBROD","GLINA","PUK SISAK","MARINBROD / GLINA / PUK SISAK"]
[332127,"MARINCI","VINKOVCI","PUK VUKOVAR","MARINCI / VINKOVCI / PUK VUKOVAR"]
[324680,"MARINIĆI","RIJEKA","PUK RIJEKA","MARINIĆI / RIJEKA / PUK RIJEKA"]
[333107,"MARINKOVAC","VRBOVEC","PUK ZAGREB","MARINKOVAC / VRBOVEC / PUK ZAGREB"]
[321940,"MARINO SELO","PAKRAC","PUK POŽEGA","MARINO SELO / PAKRAC / PUK POŽEGA"]
[315583,"MARINOVEC","KRIŽEVCI","PUK KOPRIVNICA","MARINOVEC / KRIŽEVCI / PUK KOPRIVNICA"]
[330906,"MARJANČACI","VALPOVO","PUK OSIJEK","MARJANČACI / VALPOVO / PUK OSIJEK"]
[304301,"MARKOVAC","DARUVAR","PUK BJELOVAR","MARKOVAC / DARUVAR / PUK BJELOVAR"]
[335347,"MARKUŠEVEC","GU ZAGREB","PUK ZAGREB","MARKUŠEVEC / GU ZAGREB / PUK ZAGREB"]
[332135,"MARKUŠICA","VINKOVCI","PUK VUKOVAR","MARKUŠICA / VINKOVCI / PUK VUKOVAR"]
[316741,"MARTIJANEC","LUDBREG","PUK VARAŽDIN","MARTIJANEC / LUDBREG / PUK VARAŽDIN"]
[317381,"MARTIN","NAŠICE","PUK OSIJEK","MARTIN / NAŠICE / PUK OSIJEK"]
[319953,"MARTINA","OPATIJA","PUK RIJEKA","MARTINA / OPATIJA / PUK RIJEKA"]
[303895,"MARTINAC","ČAZMA","PUK BJELOVAR","MARTINAC / ČAZMA / PUK BJELOVAR"]
[336068,"MARTINCI ZLATARSKI","ZLATAR","PUK KRAPINA","MARTINCI ZLATARSKI / ZLATAR / PUK KRAPINA"]
[306746,"MARTINOVIĆI","DUBROVNIK","PUK DUBROVNIK","MARTINOVIĆI / DUBROVNIK / PUK DUBROVNIK"]
[310344,"MARTINOVIĆI","GLINA","PUK SISAK","MARTINOVIĆI / GLINA / PUK SISAK"]
[330116,"MARTINSKA","ŠIBENIK","PUK ŠIBENIK","MARTINSKA / ŠIBENIK / PUK ŠIBENIK"]
[326500,"MARTINSKA VES","SISAK","PUK SISAK","MARTINSKA VES / SISAK / PUK SISAK"]
[326518,"MARTINSKA VES LIJEVA","SISAK","PUK SISAK","MARTINSKA VES LIJEVA / SISAK / PUK SISAK"]
[316547,"MARTINSKI","LABIN","PUK PULA","MARTINSKI / LABIN / PUK PULA"]
[321257,"MARTINSKI VRH","OZALJ","PUK KARLOVAC","MARTINSKI VRH / OZALJ / PUK KARLOVAC"]
[302392,"MARTINŠĆICA","CRES","PUK RIJEKA","MARTINŠĆICA / CRES / PUK RIJEKA"]
[303275,"MARTINUŠEVEC","ČAKOVEC","PUK ČAKOVEC","MARTINUŠEVEC / ČAKOVEC / PUK ČAKOVEC"]
[312231,"MARUŠEVEC","IVANEC","PUK VARAŽDIN","MARUŠEVEC / IVANEC / PUK VARAŽDIN"]
[318051,"MAŠIĆ","NOVA GRADIŠKA","PUK SLAVONSKI BROD","MAŠIĆ / NOVA GRADIŠKA / PUK SLAVONSKI BROD"]
[329240,"MAŠVINA","SLUNJ","PUK KARLOVAC","MAŠVINA / SLUNJ / PUK KARLOVAC"]
[305758,"MATASE","DRNIŠ","PUK ŠIBENIK","MATASE / DRNIŠ / PUK ŠIBENIK"]
[301892,"MATERADA","BUJE","PUK PULA","MATERADA / BUJE / PUK PULA"]
[307742,"MATEŠKO SELO","DUGA RESA","PUK KARLOVAC","MATEŠKO SELO / DUGA RESA / PUK KARLOVAC"]
[308501,"MATIJEVIĆI","DVOR","PUK SISAK","MATIJEVIĆI / DVOR / PUK SISAK"]
[328545,"MATKOVIĆ MALA","SLAVONSKI BROD","PUK SLAVONSKI BROD","MATKOVIĆ MALA / SLAVONSKI BROD / PUK SLAVONSKI BROD"]
[319961,"MATULJI","OPATIJA","PUK RIJEKA","MATULJI / OPATIJA / PUK RIJEKA"]
[311197,"MAZIN","GRAČAC","PUK ZADAR","MAZIN / GRAČAC / PUK ZADAR"]
[314994,"MEČENČANI","HRVATSKA KOSTAJNICA","PUK SISAK","MEČENČANI / HRVATSKA KOSTAJNICA / PUK SISAK"]
[310913,"MEDAK","GOSPIĆ","PUK GOSPIĆ","MEDAK / GOSPIĆ / PUK GOSPIĆ"]
[318060,"MEDARI","NOVA GRADIŠKA","PUK SLAVONSKI BROD","MEDARI / NOVA GRADIŠKA / PUK SLAVONSKI BROD"]
[323381,"MEDINCI","SLATINA","PUK VIROVITICA","MEDINCI / SLATINA / PUK VIROVITICA"]
[311901,"MEDOVDOLAC","IMOTSKI","PUK SPLIT","MEDOVDOLAC / IMOTSKI / PUK SPLIT"]
[324191,"MEDULIN","PULA","PUK PULA","MEDULIN / PULA / PUK PULA"]
[319104,"MEDVIĐA","OBROVAC","PUK ZADAR","MEDVIĐA / OBROVAC / PUK ZADAR"]
[315591,"MEĐA","KRIŽEVCI","PUK KOPRIVNICA","MEĐA / KRIŽEVCI / PUK KOPRIVNICA"]
[319333,"MEĐEĐAK","OGULIN","PUK KARLOVAC","MEĐEĐAK / OGULIN / PUK KARLOVAC"]
[301213,"MEĐURAČA","BJELOVAR","PUK BJELOVAR","MEĐURAČA / BJELOVAR / PUK BJELOVAR"]
[322881,"MEĐURAČE","PETRINJA","PUK SISAK","MEĐURAČE / PETRINJA / PUK SISAK"]
[316237,"MEĐURIĆ","KUTINA","PUK SISAK","MEĐURIĆ / KUTINA / PUK SISAK"]
[330507,"MEKINJAR","KORENICA","PUK GOSPIĆ","MEKINJAR / KORENICA / PUK GOSPIĆ"]
[305154,"MELINOVAC","DONJI LAPAC","PUK GOSPIĆ",{"$f":"B1794&\" / \"&C1794&\" / \"&D1794","v":"MELINOVAC / DONJI LAPAC / PUK GOSPIĆ"}]
[325287,"MELNICE","SENJ","PUK GOSPIĆ","MELNICE / SENJ / PUK GOSPIĆ"]
[315001,"MEMINSKA","HRVATSKA KOSTAJNICA","PUK SISAK","MEMINSKA / HRVATSKA KOSTAJNICA / PUK SISAK"]
[301906,"MERIŠĆE","BUJE","PUK PULA","MERIŠĆE / BUJE / PUK PULA"]
[308960,"MEROLINO SIKIREVAČKO","ĐAKOVO","PUK OSIJEK","MEROLINO SIKIREVAČKO / ĐAKOVO / PUK OSIJEK"]
[317152,"METKOVIĆ","METKOVIĆ","PUK DUBROVNIK","METKOVIĆ / METKOVIĆ / PUK DUBROVNIK"]
[309419,"MIČETINAC","ĐURĐEVAC","PUK KOPRIVNICA","MIČETINAC / ĐURĐEVAC / PUK KOPRIVNICA"]
[331694,"MIČEVEC","VELIKA GORICA","PUK ZAGREB","MIČEVEC / VELIKA GORICA / PUK ZAGREB"]
[327506,"MIGALOVCI","POŽEGA","PUK POŽEGA","MIGALOVCI / POŽEGA / PUK POŽEGA"]
[327514,"MIHALJEVCI","POŽEGA","PUK POŽEGA","MIHALJEVCI / POŽEGA / PUK POŽEGA"]
[337145,"MIHALJ-OTOK-LUČINA","METKOVIĆ","PUK DUBROVNIK","MIHALJ-OTOK-LUČINA / METKOVIĆ / PUK DUBROVNIK"]
[306754,"MIHANIĆI","DUBROVNIK","PUK DUBROVNIK","MIHANIĆI / DUBROVNIK / PUK DUBROVNIK"]
[315605,"MIHOLEC","KRIŽEVCI","PUK KOPRIVNICA","MIHOLEC / KRIŽEVCI / PUK KOPRIVNICA"]
[305413,"MIHOLJAČKI POREČ","DONJI MIHOLJAC","PUK OSIJEK","MIHOLJAČKI POREČ / DONJI MIHOLJAC / PUK OSIJEK"]
[309427,"MIHOLJANEC","ĐURĐEVAC","PUK KOPRIVNICA","MIHOLJANEC / ĐURĐEVAC / PUK KOPRIVNICA"]
[315940,"MIHOLJICE","KRK","PUK RIJEKA","MIHOLJICE / KRK / PUK RIJEKA"]
[332836,"MIHOLJSKO","VOJNIĆ","PUK KARLOVAC","MIHOLJSKO / VOJNIĆ / PUK KARLOVAC"]
[337170,"MIHOTIĆI","OPATIJA","PUK RIJEKA","MIHOTIĆI / OPATIJA / PUK RIJEKA"]
[303283,"MIHOVLJAN","ČAKOVEC","PUK ČAKOVEC","MIHOVLJAN / ČAKOVEC / PUK ČAKOVEC"]
[336076,"MIHOVLJAN","ZLATAR","PUK KRAPINA","MIHOVLJAN / ZLATAR / PUK KRAPINA"]
[327522,"MIJAČI","POŽEGA","PUK POŽEGA","MIJAČI / POŽEGA / PUK POŽEGA"]
[323390,"MIKLEUŠ","SLATINA","PUK VIROVITICA","MIKLEUŠ / SLATINA / PUK VIROVITICA"]
[316245,"MIKLEUŠKA","KUTINA","PUK SISAK","MIKLEUŠKA / KUTINA / PUK SISAK"]
[303909,"MIKLOUŠ","ČAZMA","PUK BJELOVAR","MIKLOUŠ / ČAZMA / PUK BJELOVAR"]
[334162,"MIKLUŠEVCI","VUKOVAR","PUK VUKOVAR","MIKLUŠEVCI / VUKOVAR / PUK VUKOVAR"]
[315613,"MIKOVEC","KRIŽEVCI","PUK KOPRIVNICA","MIKOVEC / KRIŽEVCI / PUK KOPRIVNICA"]
[335274,"MIKULIĆI","GU ZAGREB","PUK ZAGREB","MIKULIĆI / GU ZAGREB / PUK ZAGREB"]
[329649,"MILEŠINE","SOLIN","PUK SPLIT","MILEŠINE / SOLIN / PUK SPLIT"]
[301612,"MILNA","SUPETAR","PUK SPLIT","MILNA / SUPETAR / PUK SPLIT"]
[313661,"MILJANA","KLANJEC","PUK KRAPINA","MILJANA / KLANJEC / PUK KRAPINA"]
[304310,"MILJANOVAC","DARUVAR","PUK BJELOVAR","MILJANOVAC / DARUVAR / PUK BJELOVAR"]
[323403,"MILJEVCI","SLATINA","PUK VIROVITICA","MILJEVCI / SLATINA / PUK VIROVITICA"]
[305766,"MIOČIĆ","DRNIŠ","PUK ŠIBENIK","MIOČIĆ / DRNIŠ / PUK ŠIBENIK"]
[301639,"MIRCA","SUPETAR","PUK SPLIT","MIRCA / SUPETAR / PUK SPLIT"]
[312703,"MIRKOPOLJE","JASTREBARSKO","PUK ZAGREB","MIRKOPOLJE / JASTREBARSKO / PUK ZAGREB"]
[332143,"MIRKOVCI","VINKOVCI","PUK VUKOVAR","MIRKOVCI / VINKOVCI / PUK VUKOVAR"]
[334430,"MIRKOVEC","ZABOK","PUK KRAPINA","MIRKOVEC / ZABOK / PUK KRAPINA"]
[305774,"MIRLOVIĆ POLJE","DRNIŠ","PUK ŠIBENIK","MIRLOVIĆ POLJE / DRNIŠ / PUK ŠIBENIK"]
[305782,"MIRLOVIĆ ZAGORA","DRNIŠ","PUK ŠIBENIK","MIRLOVIĆ ZAGORA / DRNIŠ / PUK ŠIBENIK"]
[330736,"MITLO-VINOVAC","TROGIR","PUK SPLIT","MITLO-VINOVAC / TROGIR / PUK SPLIT"]
[327549,"MITROVAC","POŽEGA","PUK POŽEGA","MITROVAC / POŽEGA / PUK POŽEGA"]
[318892,"MLAKA","NOVSKA","PUK SISAK","MLAKA / NOVSKA / PUK SISAK"]
[333115,"MLAKA","VRBOVEC","PUK ZAGREB","MLAKA / VRBOVEC / PUK ZAGREB"]
[310921,"MLAKVA","GOSPIĆ","PUK GOSPIĆ","MLAKVA / GOSPIĆ / PUK GOSPIĆ"]
[322890,"MLINOGA","PETRINJA","PUK SISAK","MLINOGA / PETRINJA / PUK SISAK"]
[309770,"MLINSKA","GAREŠNICA","PUK BJELOVAR","MLINSKA / GAREŠNICA / PUK BJELOVAR"]
[306762,"MOČIĆI","DUBROVNIK","PUK DUBROVNIK","MOČIĆI / DUBROVNIK / PUK DUBROVNIK"]
[313912,"MODRINO SELO","KNIN","PUK ŠIBENIK","MODRINO SELO / KNIN / PUK ŠIBENIK"]
[304867,"MODROVEC","DONJA STUBICA","PUK KRAPINA","MODROVEC / DONJA STUBICA / PUK KRAPINA"]
[319341,"MODRUŠ","OGULIN","PUK KARLOVAC","MODRUŠ / OGULIN / PUK KARLOVAC"]
[307769,"MODRUŠ POTOK","DUGA RESA","PUK KARLOVAC","MODRUŠ POTOK / DUGA RESA / PUK KARLOVAC"]
[310930,"MOGORIĆ","GOSPIĆ","PUK GOSPIĆ","MOGORIĆ / GOSPIĆ / PUK GOSPIĆ"]
[334189,"MOHOVO","ILOK","PUK VUKOVAR","MOHOVO / ILOK / PUK VUKOVAR"]
[306789,"MOKOŠICA","DUBROVNIK","PUK DUBROVNIK","MOKOŠICA / DUBROVNIK / PUK DUBROVNIK"]
[304875,"MOKRICE","DONJA STUBICA","PUK KRAPINA","MOKRICE / DONJA STUBICA / PUK KRAPINA"]
[313939,"MOKRO POLJE","KNIN","PUK ŠIBENIK","MOKRO POLJE / KNIN / PUK ŠIBENIK"]
[334766,"MOLAT","ZADAR","PUK ZADAR","MOLAT / ZADAR / PUK ZADAR"]
[309435,"MOLVE","ĐURĐEVAC","PUK KOPRIVNICA","MOLVE / ĐURĐEVAC / PUK KOPRIVNICA"]
[325058,"MOLVICE","SAMOBOR","PUK ZAGREB","MOLVICE / SAMOBOR / PUK ZAGREB"]
[301914,"MOMJAN","BUJE","PUK PULA","MOMJAN / BUJE / PUK PULA"]
[333468,"MORAVICE","VRBOVSKO","PUK RIJEKA","MORAVICE / VRBOVSKO / PUK RIJEKA"]
[305804,"MOSEĆ","DRNIŠ","PUK ŠIBENIK","MOSEĆ / DRNIŠ / PUK ŠIBENIK"]
[305421,"MOSLAVINA PODRAVSKA","DONJI MIHOLJAC","PUK OSIJEK","MOSLAVINA PODRAVSKA / DONJI MIHOLJAC / PUK OSIJEK"]
[316555,"MOST RAŠA","LABIN","PUK PULA","MOST RAŠA / LABIN / PUK PULA"]
[301221,"MOSTI","BJELOVAR","PUK BJELOVAR",{"$f":"B1858&\" / \"&C1858&\" / \"&D1858","v":"MOSTI / BJELOVAR / PUK BJELOVAR"}]
[322903,"MOŠĆENICA","PETRINJA","PUK SISAK","MOŠĆENICA / PETRINJA / PUK SISAK"]
[319970,"MOŠĆENICE","OPATIJA","PUK RIJEKA","MOŠĆENICE / OPATIJA / PUK RIJEKA"]
[319988,"MOŠĆENIČKA DRAGA","OPATIJA","PUK RIJEKA","MOŠĆENIČKA DRAGA / OPATIJA / PUK RIJEKA"]
[322911,"MOŠTANICA","PETRINJA","PUK SISAK","MOŠTANICA / PETRINJA / PUK SISAK"]
[322393,"MOTOVUN","PAZIN","PUK PULA","MOTOVUN / PAZIN / PUK PULA"]
[331708,"MRACLIN","VELIKA GORICA","PUK ZAGREB","MRACLIN / VELIKA GORICA / PUK ZAGREB"]
[315010,"MRAČAJ","HRVATSKA KOSTAJNICA","PUK SISAK","MRAČAJ / HRVATSKA KOSTAJNICA / PUK SISAK"]
[307777,"MRAČIN","DUGA RESA","PUK KARLOVAC","MRAČIN / DUGA RESA / PUK KARLOVAC"]
[305812,"MRATOVO","DRNIŠ","PUK ŠIBENIK","MRATOVO / DRNIŠ / PUK ŠIBENIK"]
[329657,"MRAVINCE","SOLIN","PUK SPLIT","MRAVINCE / SOLIN / PUK SPLIT"]
[306797,"MRAVINJAC","DUBROVNIK","PUK DUBROVNIK","MRAVINJAC / DUBROVNIK / PUK DUBROVNIK"]
[306819,"MRAVINJICA","DUBROVNIK","PUK DUBROVNIK","MRAVINJICA / DUBROVNIK / PUK DUBROVNIK"]
[306827,"MRČEVO","DUBROVNIK","PUK DUBROVNIK","MRČEVO / DUBROVNIK / PUK DUBROVNIK"]
[307785,"MREŽNICA","DUGA RESA","PUK KARLOVAC","MREŽNICA / DUGA RESA / PUK KARLOVAC"]
[307793,"MREŽNIČKI NOVAKI","DUGA RESA","PUK KARLOVAC","MREŽNIČKI NOVAKI / DUGA RESA / PUK KARLOVAC"]
[324906,"MRGANI","ROVINJ","PUK PULA","MRGANI / ROVINJ / PUK PULA"]
[304603,"MRKOPALJ","DELNICE","PUK RIJEKA","MRKOPALJ / DELNICE / PUK RIJEKA"]
[337951,"MRKOPALJ-NOVA","DELNICE","PUK RIJEKA","MRKOPALJ-NOVA / DELNICE / PUK RIJEKA"]
[300799,"MRLJANE","BIOGRAD NA MORU","PUK ZADAR","MRLJANE / BIOGRAD NA MORU / PUK ZADAR"]
[304611,"MRZLA VODICA","DELNICE","PUK RIJEKA","MRZLA VODICA / DELNICE / PUK RIJEKA"]
[307807,"MRZLO POLJE MREŽNIČKO","DUGA RESA","PUK KARLOVAC","MRZLO POLJE MREŽNIČKO / DUGA RESA / PUK KARLOVAC"]
[312711,"MRZLO POLJE ŽUMBERAČKO","JASTREBARSKO","PUK ZAGREB","MRZLO POLJE ŽUMBERAČKO / JASTREBARSKO / PUK ZAGREB"]
[307815,"MRZLJAKI","DUGA RESA","PUK KARLOVAC","MRZLJAKI / DUGA RESA / PUK KARLOVAC"]
[308978,"MRZOVIĆ","ĐAKOVO","PUK OSIJEK","MRZOVIĆ / ĐAKOVO / PUK OSIJEK"]
[323713,"MUGEBA","POREČ","PUK PULA","MUGEBA / POREČ / PUK PULA"]
[319996,"MUNE","OPATIJA","PUK RIJEKA","MUNE / OPATIJA / PUK RIJEKA"]
[324205,"MUNTIĆ","PULA","PUK PULA","MUNTIĆ / PULA / PUK PULA"]
[322407,"MUNTRILJ","PAZIN","PUK PULA","MUNTRILJ / PAZIN / PUK PULA"]
[303291,"MURSKO SREDIŠĆE","ČAKOVEC","PUK ČAKOVEC","MURSKO SREDIŠĆE / ČAKOVEC / PUK ČAKOVEC"]
[330124,"MURTER BETINA","ŠIBENIK","PUK ŠIBENIK","MURTER BETINA / ŠIBENIK / PUK ŠIBENIK"]
[334774,"MURVICA","ZADAR","PUK ZADAR","MURVICA / ZADAR / PUK ZADAR"]
[308986,"MUSIĆ","ĐAKOVO","PUK OSIJEK","MUSIĆ / ĐAKOVO / PUK OSIJEK"]
[323721,"MUŠALEŽ","POREČ","PUK PULA","MUŠALEŽ / POREČ / PUK PULA"]
[310948,"MUŠALUK","GOSPIĆ","PUK GOSPIĆ","MUŠALUK / GOSPIĆ / PUK GOSPIĆ"]
[319112,"MUŠKOVCI","OBROVAC","PUK ZADAR","MUŠKOVCI / OBROVAC / PUK ZADAR"]
[330515,"MUTILIĆ","KORENICA","PUK GOSPIĆ","MUTILIĆ / KORENICA / PUK GOSPIĆ"]
[326526,"MUŽILOVČICA","SISAK","PUK SISAK","MUŽILOVČICA / SISAK / PUK SISAK"]
[308994,"NABRĐE","ĐAKOVO","PUK OSIJEK","NABRĐE / ĐAKOVO / PUK OSIJEK"]
[300586,"NADIN","BENKOVAC","PUK ZADAR","NADIN / BENKOVAC / PUK ZADAR"]
[314684,"NAKOVANJ","KORČULA","PUK DUBROVNIK","NAKOVANJ / KORČULA / PUK DUBROVNIK"]
[330914,"NARD","VALPOVO","PUK OSIJEK","NARD / VALPOVO / PUK OSIJEK"]
[303917,"NARTA","ČAZMA","PUK BJELOVAR","NARTA / ČAZMA / PUK BJELOVAR"]
[317390,"NAŠICE","NAŠICE","PUK OSIJEK","NAŠICE / NAŠICE / PUK OSIJEK"]
[331228,"NATKRIŽOVLJAN","VARAŽDIN","PUK VARAŽDIN","NATKRIŽOVLJAN / VARAŽDIN / PUK VARAŽDIN"]
[332607,"NAUDOVAC","VIROVITICA","PUK VIROVITICA","NAUDOVAC / VIROVITICA / PUK VIROVITICA"]
[305162,"NEBLJUSI","DONJI LAPAC","PUK GOSPIĆ","NEBLJUSI / DONJI LAPAC / PUK GOSPIĆ"]
[303305,"NEDELIŠĆE","ČAKOVEC","PUK ČAKOVEC","NEDELIŠĆE / ČAKOVEC / PUK ČAKOVEC"]
[331236,"NEDELJANEC","VARAŽDIN","PUK VARAŽDIN","NEDELJANEC / VARAŽDIN / PUK VARAŽDIN"]
[316563,"NEDEŠĆINA","LABIN","PUK PULA","NEDEŠĆINA / LABIN / PUK PULA"]
[334197,"NEGOSLAVCI","VUKOVAR","PUK VUKOVAR","NEGOSLAVCI / VUKOVAR / PUK VUKOVAR"]
[333123,"NEGOVEC","VRBOVEC","PUK ZAGREB","NEGOVEC / VRBOVEC / PUK ZAGREB"]
[329665,"NEORIĆ","SOLIN","PUK SPLIT","NEORIĆ / SOLIN / PUK SPLIT"]
[302406,"NEREZINE","MALI LOŠINJ","PUK RIJEKA","NEREZINE / MALI LOŠINJ / PUK RIJEKA"]
[301647,"NEREŽIŠĆA","SUPETAR","PUK SPLIT","NEREŽIŠĆA / SUPETAR / PUK SPLIT"]
[305189,"NETEKA","GRAČAC","PUK ZADAR","NETEKA / GRAČAC / PUK ZADAR"]
[305839,"NEVEST","DRNIŠ","PUK ŠIBENIK","NEVEST / DRNIŠ / PUK ŠIBENIK"]
[300802,"NEVIĐANE","BIOGRAD NA MORU","PUK ZADAR","NEVIĐANE / BIOGRAD NA MORU / PUK ZADAR"]
[301230,"NEVINAC","BJELOVAR","PUK BJELOVAR","NEVINAC / BJELOVAR / PUK BJELOVAR"]
[332151,"NIJEMCI","VINKOVCI","PUK VUKOVAR","NIJEMCI / VINKOVCI / PUK VUKOVAR"]
[329266,"NIKŠIĆ","SLUNJ","PUK KARLOVAC","NIKŠIĆ / SLUNJ / PUK KARLOVAC"]
[336734,"NINSKI STANOVI","ZADAR","PUK ZADAR","NINSKI STANOVI / ZADAR / PUK ZADAR"]
[336726,"NIN-ZATON","ZADAR","PUK ZADAR","NIN-ZATON / ZADAR / PUK ZADAR"]
[329673,"NISKO","SOLIN","PUK SPLIT","NISKO / SOLIN / PUK SPLIT"]
[317403,"NIZA","NAŠICE","PUK OSIJEK",{"$f":"B1922&\" / \"&C1922&\" / \"&D1922","v":"NIZA / NAŠICE / PUK OSIJEK"}]
[336416,"NORMANCI","NAŠICE","PUK OSIJEK","NORMANCI / NAŠICE / PUK OSIJEK"]
[325074,"NORŠIĆ SELO","SAMOBOR","PUK ZAGREB","NORŠIĆ SELO / SAMOBOR / PUK ZAGREB"]
[323438,"NOSKOVCI","SLATINA","PUK VIROVITICA","NOSKOVCI / SLATINA / PUK VIROVITICA"]
[323411,"NOVA BUKOVICA","SLATINA","PUK VIROVITICA","NOVA BUKOVICA / SLATINA / PUK VIROVITICA"]
[322920,"NOVA DRENČINA","PETRINJA","PUK SISAK","NOVA DRENČINA / PETRINJA / PUK SISAK"]
[318078,"NOVA GRADIŠKA","NOVA GRADIŠKA","PUK SLAVONSKI BROD","NOVA GRADIŠKA / NOVA GRADIŠKA / PUK SLAVONSKI BROD"]
[320366,"NOVA JOŠAVA","ORAHOVICA","PUK VIROVITICA","NOVA JOŠAVA / ORAHOVICA / PUK VIROVITICA"]
[318086,"NOVA KAPELA","NOVA GRADIŠKA","PUK SLAVONSKI BROD","NOVA KAPELA / NOVA GRADIŠKA / PUK SLAVONSKI BROD"]
[333239,"NOVA KAPELA","VRBOVEC","PUK ZAGREB","NOVA KAPELA / VRBOVEC / PUK ZAGREB"]
[329274,"NOVA KRŠLJA","SLUNJ","PUK KARLOVAC","NOVA KRŠLJA / SLUNJ / PUK KARLOVAC"]
[312398,"NOVA MARČA","IVANIĆ GRAD","PUK ZAGREB","NOVA MARČA / IVANIĆ GRAD / PUK ZAGREB"]
[309788,"NOVA PLOŠČICA","GAREŠNICA","PUK BJELOVAR","NOVA PLOŠČICA / GAREŠNICA / PUK BJELOVAR"]
[301248,"NOVA RAČA","BJELOVAR","PUK BJELOVAR","NOVA RAČA / BJELOVAR / PUK BJELOVAR"]
[319694,"NOVA SELA","OMIŠ","PUK SPLIT","NOVA SELA / OMIŠ / PUK SPLIT"]
[301922,"NOVA VAS","BUJE","PUK PULA","NOVA VAS / BUJE / PUK PULA"]
[316571,"NOVA VAS","LABIN","PUK PULA","NOVA VAS / LABIN / PUK PULA"]
[323730,"NOVA VAS","POREČ","PUK PULA","NOVA VAS / POREČ / PUK PULA"]
[331279,"NOVA VES PETRIJANEČKA","VARAŽDIN","PUK VARAŽDIN","NOVA VES PETRIJANEČKA / VARAŽDIN / PUK VARAŽDIN"]
[314447,"NOVAČKA","KOPRIVNICA","PUK KOPRIVNICA","NOVAČKA / KOPRIVNICA / PUK KOPRIVNICA"]
[323420,"NOVAKI","SLATINA","PUK VIROVITICA","NOVAKI / SLATINA / PUK VIROVITICA"]
[332984,"NOVAKI","VRBOVEC","PUK ZAGREB","NOVAKI / VRBOVEC / PUK ZAGREB"]
[322415,"NOVAKI MOTOVUNSKI","PAZIN","PUK PULA","NOVAKI MOTOVUNSKI / PAZIN / PUK PULA"]
[308129,"NOVAKI OBOROVSKI","DUGO SELO","PUK ZAGREB","NOVAKI OBOROVSKI / DUGO SELO / PUK ZAGREB"]
[321265,"NOVAKI OZALJSKI","OZALJ","PUK KARLOVAC","NOVAKI OZALJSKI / OZALJ / PUK KARLOVAC"]
[322423,"NOVAKI PAZINSKI","PAZIN","PUK PULA","NOVAKI PAZINSKI / PAZIN / PUK PULA"]
[303313,"NOVAKOVEC","ČAKOVEC","PUK ČAKOVEC","NOVAKOVEC / ČAKOVEC / PUK ČAKOVEC"]
[331244,"NOVAKOVEC","VARAŽDIN","PUK VARAŽDIN","NOVAKOVEC / VARAŽDIN / PUK VARAŽDIN"]
[321524,"NOVALJA","NOVALJA","PUK GOSPIĆ","NOVALJA / NOVALJA / PUK GOSPIĆ"]
[338117,"NOVALJA-NOVA","NOVALJA","PUK GOSPIĆ","NOVALJA-NOVA / NOVALJA / PUK GOSPIĆ"]
[300969,"NOVE PLAVNICE-HRGOVLJANI","BJELOVAR","PUK BJELOVAR","NOVE PLAVNICE-HRGOVLJANI / BJELOVAR / PUK BJELOVAR"]
[302678,"NOVI","CRIKVENICA","PUK RIJEKA","NOVI / CRIKVENICA / PUK RIJEKA"]
[313670,"NOVI DVORI KLANJEČKI","KLANJEC","PUK KRAPINA","NOVI DVORI KLANJEČKI / KLANJEC / PUK KRAPINA"]
[315621,"NOVI GLOG","KRIŽEVCI","PUK KOPRIVNICA","NOVI GLOG / KRIŽEVCI / PUK KOPRIVNICA"]
[318906,"NOVI GRABOVAC","NOVSKA","PUK SISAK","NOVI GRABOVAC / NOVSKA / PUK SISAK"]
[328553,"NOVI GRAD","SLAVONSKI BROD","PUK SLAVONSKI BROD","NOVI GRAD / SLAVONSKI BROD / PUK SLAVONSKI BROD"]
[332160,"NOVI JANKOVCI","VINKOVCI","PUK VUKOVAR","NOVI JANKOVCI / VINKOVCI / PUK VUKOVAR"]
[316580,"NOVI LABIN","LABIN","PUK PULA","NOVI LABIN / LABIN / PUK PULA"]
[318604,"NOVI MAROF","NOVI MAROF","PUK VARAŽDIN","NOVI MAROF / NOVI MAROF / PUK VARAŽDIN"]
[332178,"NOVI MIKANOVCI","VINKOVCI","PUK VUKOVAR","NOVI MIKANOVCI / VINKOVCI / PUK VUKOVAR"]
[309001,"NOVI PERKOVCI","ĐAKOVO","PUK OSIJEK","NOVI PERKOVCI / ĐAKOVO / PUK OSIJEK"]
[326534,"NOVI SISAK","SISAK","PUK SISAK","NOVI SISAK / SISAK / PUK SISAK"]
[318094,"NOVI VAROŠ","NOVA GRADIŠKA","PUK SLAVONSKI BROD","NOVI VAROŠ / NOVA GRADIŠKA / PUK SLAVONSKI BROD"]
[301949,"NOVIGRAD","BUJE","PUK PULA","NOVIGRAD / BUJE / PUK PULA"]
[334804,"NOVIGRAD","ZADAR","PUK ZADAR","NOVIGRAD / ZADAR / PUK ZADAR"]
[314455,"NOVIGRAD PODRAVSKI","KOPRIVNICA","PUK KOPRIVNICA","NOVIGRAD PODRAVSKI / KOPRIVNICA / PUK KOPRIVNICA"]
[331716,"NOVO BRDO","VELIKA GORICA","PUK ZAGREB","NOVO BRDO / VELIKA GORICA / PUK ZAGREB"]
[331724,"NOVO ČIČE","VELIKA GORICA","PUK ZAGREB","NOVO ČIČE / VELIKA GORICA / PUK ZAGREB"]
[335878,"NOVO MJESTO","SVETI IVAN ZELINA","PUK ZAGREB","NOVO MJESTO / SVETI IVAN ZELINA / PUK ZAGREB"]
[322938,"NOVO SELIŠTE","PETRINJA","PUK SISAK","NOVO SELIŠTE / PETRINJA / PUK SISAK"]
[327557,"NOVO SELO","POŽEGA","PUK POŽEGA","NOVO SELO / POŽEGA / PUK POŽEGA"]
[326542,"NOVO SELO","SISAK","PUK SISAK","NOVO SELO / SISAK / PUK SISAK"]
[301655,"NOVO SELO","SUPETAR","PUK SPLIT","NOVO SELO / SUPETAR / PUK SPLIT"]
[307823,"NOVO SELO BOSILJEVSKO","DUGA RESA","PUK KARLOVAC","NOVO SELO BOSILJEVSKO / DUGA RESA / PUK KARLOVAC"]
[310352,"NOVO SELO GLINSKO","GLINA","PUK SISAK","NOVO SELO GLINSKO / GLINA / PUK SISAK"]
[316911,"NOVO SELO PODRAVSKO","LUDBREG","PUK VARAŽDIN","NOVO SELO PODRAVSKO / LUDBREG / PUK VARAŽDIN"]
[303321,"NOVO SELO ROK","ČAKOVEC","PUK ČAKOVEC","NOVO SELO ROK / ČAKOVEC / PUK ČAKOVEC"]
[328561,"NOVO TOPOLJE","SLAVONSKI BROD","PUK SLAVONSKI BROD","NOVO TOPOLJE / SLAVONSKI BROD / PUK SLAVONSKI BROD"]
[309443,"NOVO VIRJE","ĐURĐEVAC","PUK KOPRIVNICA","NOVO VIRJE / ĐURĐEVAC / PUK KOPRIVNICA"]
[327565,"NOVO ZVEČEVO","POŽEGA","PUK POŽEGA","NOVO ZVEČEVO / POŽEGA / PUK POŽEGA"]
[326569,"NOVOSELCI","SISAK","PUK SISAK","NOVOSELCI / SISAK / PUK SISAK"]
[312401,"NOVOSELEC","IVANIĆ GRAD","PUK ZAGREB","NOVOSELEC / IVANIĆ GRAD / PUK ZAGREB"]
[338478,"NOVSKA","NOVSKA","PUK SISAK","NOVSKA / NOVSKA / PUK SISAK"]
[313947,"NUNIĆ","KNIN","PUK ŠIBENIK","NUNIĆ / KNIN / PUK ŠIBENIK"]
[327573,"NURKOVAC","POŽEGA","PUK POŽEGA",{"$f":"B1986&\" / \"&C1986&\" / \"&D1986","v":"NURKOVAC / POŽEGA / PUK POŽEGA"}]
[332186,"NUŠTAR","VINKOVCI","PUK VUKOVAR","NUŠTAR / VINKOVCI / PUK VUKOVAR"]
[310379,"OBLJAJ","GLINA","PUK SISAK","OBLJAJ / GLINA / PUK SISAK"]
[306835,"OBOD","DUBROVNIK","PUK DUBROVNIK","OBOD / DUBROVNIK / PUK DUBROVNIK"]
[308137,"OBOROVO","DUGO SELO","PUK ZAGREB","OBOROVO / DUGO SELO / PUK ZAGREB"]
[320374,"OBRADOVCI","ORAHOVICA","PUK VIROVITICA","OBRADOVCI / ORAHOVICA / PUK VIROVITICA"]
[312410,"OBREŠKA","IVANIĆ GRAD","PUK ZAGREB","OBREŠKA / IVANIĆ GRAD / PUK ZAGREB"]
[331732,"OBREZINA","VELIKA GORICA","PUK ZAGREB","OBREZINA / VELIKA GORICA / PUK ZAGREB"]
[335886,"OBREŽ","SVETI IVAN ZELINA","PUK ZAGREB","OBREŽ / SVETI IVAN ZELINA / PUK ZAGREB"]
[319139,"OBROVAC","OBROVAC","PUK ZADAR","OBROVAC / OBROVAC / PUK ZADAR"]
[325759,"OBROVAC SINJSKI","SINJ","PUK SPLIT","OBROVAC SINJSKI / SINJ / PUK SPLIT"]
[301256,"OBROVNICA","BJELOVAR","PUK BJELOVAR","OBROVNICA / BJELOVAR / PUK BJELOVAR"]
[306843,"OBULJENO","DUBROVNIK","PUK DUBROVNIK","OBULJENO / DUBROVNIK / PUK DUBROVNIK"]
[312223,"OČURA","IVANEC","PUK VARAŽDIN","OČURA / IVANEC / PUK VARAŽDIN"]
[313955,"OĆESTOVO","KNIN","PUK ŠIBENIK","OĆESTOVO / KNIN / PUK ŠIBENIK"]
[339083,"ODRA","GU ZAGREB","PUK ZAGREB","ODRA / GU ZAGREB / PUK ZAGREB"]
[326577,"ODRA","SISAK","PUK SISAK","ODRA / SISAK / PUK SISAK"]
[335487,"ODRANSKI OBREŽ","GU ZAGREB","PUK ZAGREB","ODRANSKI OBREŽ / GU ZAGREB / PUK ZAGREB"]
[328570,"ODVORCI","SLAVONSKI BROD","PUK SLAVONSKI BROD","ODVORCI / SLAVONSKI BROD / PUK SLAVONSKI BROD"]
[319368,"OGULIN","OGULIN","PUK KARLOVAC","OGULIN / OGULIN / PUK KARLOVAC"]
[312428,"OKEŠINEC","IVANIĆ GRAD","PUK ZAGREB","OKEŠINEC / IVANIĆ GRAD / PUK ZAGREB"]
[336637,"OKIĆ","JASTREBARSKO","PUK ZAGREB","OKIĆ / JASTREBARSKO / PUK ZAGREB"]
[305847,"OKLAJ","DRNIŠ","PUK ŠIBENIK","OKLAJ / DRNIŠ / PUK ŠIBENIK"]
[316253,"OKOLI","KUTINA","PUK SISAK","OKOLI / KUTINA / PUK SISAK"]
[330744,"OKRUG","TROGIR","PUK SPLIT","OKRUG / TROGIR / PUK SPLIT"]
[338559,"OKRUG NOVI","TROGIR","PUK SPLIT","OKRUG NOVI / TROGIR / PUK SPLIT"]
[318108,"OKUČANI","NOVA GRADIŠKA","PUK SLAVONSKI BROD","OKUČANI / NOVA GRADIŠKA / PUK SLAVONSKI BROD"]
[308145,"OKUNŠĆAK","DUGO SELO","PUK ZAGREB","OKUNŠĆAK / DUGO SELO / PUK ZAGREB"]
[334812,"OLIB","ZADAR","PUK ZADAR","OLIB / ZADAR / PUK ZADAR"]
[327581,"OLJASI","POŽEGA","PUK POŽEGA","OLJASI / POŽEGA / PUK POŽEGA"]
[321966,"OMANOVAC","PAKRAC","PUK POŽEGA","OMANOVAC / PAKRAC / PUK POŽEGA"]
[319708,"OMIŠ","OMIŠ","PUK SPLIT","OMIŠ / OMIŠ / PUK SPLIT"]
[315958,"OMIŠALJ","KRK","PUK RIJEKA","OMIŠALJ / KRK / PUK RIJEKA"]
[338427,"OMIŠALJ-NJIVICE","KRK","PUK RIJEKA","OMIŠALJ-NJIVICE / KRK / PUK RIJEKA"]
[311219,"OMSICA","GRAČAC","PUK ZADAR","OMSICA / GRAČAC / PUK ZADAR"]
[311910,"OPANCI","IMOTSKI","PUK SPLIT","OPANCI / IMOTSKI / PUK SPLIT"]
[320005,"OPATIJA","OPATIJA","PUK RIJEKA","OPATIJA / OPATIJA / PUK RIJEKA"]
[312436,"OPATINEC","IVANIĆ GRAD","PUK ZAGREB","OPATINEC / IVANIĆ GRAD / PUK ZAGREB"]
[334219,"OPATOVAC","ILOK","PUK VUKOVAR","OPATOVAC / ILOK / PUK VUKOVAR"]
[318116,"OPATOVAC","NOVA GRADIŠKA","PUK SLAVONSKI BROD","OPATOVAC / NOVA GRADIŠKA / PUK SLAVONSKI BROD"]
[303330,"OPOROVEC","PRELOG","PUK ČAKOVEC","OPOROVEC / PRELOG / PUK ČAKOVEC"]
[320013,"OPRIĆ","OPATIJA","PUK RIJEKA","OPRIĆ / OPATIJA / PUK RIJEKA"]
[328588,"OPRISAVCI","SLAVONSKI BROD","PUK SLAVONSKI BROD","OPRISAVCI / SLAVONSKI BROD / PUK SLAVONSKI BROD"]
[301957,"OPRTALJ","BUJE","PUK PULA","OPRTALJ / BUJE / PUK PULA"]
[317179,"OPUZEN","METKOVIĆ","PUK DUBROVNIK","OPUZEN / METKOVIĆ / PUK DUBROVNIK"]
[336807,"OPUZEN I","METKOVIĆ","PUK DUBROVNIK","OPUZEN I / METKOVIĆ / PUK DUBROVNIK"]
[336815,"OPUZEN II","METKOVIĆ","PUK DUBROVNIK","OPUZEN II / METKOVIĆ / PUK DUBROVNIK"]
[333921,"ORAH","VRGORAC","PUK SPLIT","ORAH / VRGORAC / PUK SPLIT"]
[320382,"ORAHOVICA","ORAHOVICA","PUK VIROVITICA","ORAHOVICA / ORAHOVICA / PUK VIROVITICA"]
[305197,"ORAOVAC","DONJI LAPAC","PUK GOSPIĆ","ORAOVAC / DONJI LAPAC / PUK GOSPIĆ"]
[308510,"ORAOVICA","DVOR","PUK SISAK","ORAOVICA / DVOR / PUK SISAK"]
[306851,"ORAŠAC","DUBROVNIK","PUK DUBROVNIK","ORAŠAC / DUBROVNIK / PUK DUBROVNIK"]
[314692,"OREBIĆ","KORČULA","PUK DUBROVNIK","OREBIĆ / KORČULA / PUK DUBROVNIK"]
[303348,"OREHOVICA","ČAKOVEC","PUK ČAKOVEC","OREHOVICA / ČAKOVEC / PUK ČAKOVEC"]
[332615,"OREŠAC","VIROVITICA","PUK VIROVITICA","OREŠAC / VIROVITICA / PUK VIROVITICA"]
[335894,"OREŠJE","SVETI IVAN ZELINA","PUK ZAGREB","OREŠJE / SVETI IVAN ZELINA / PUK ZAGREB"]
[328596,"ORIOVAC","SLAVONSKI BROD","PUK SLAVONSKI BROD","ORIOVAC / SLAVONSKI BROD / PUK SLAVONSKI BROD"]
[328600,"ORIOVČIĆ","SLAVONSKI BROD","PUK SLAVONSKI BROD","ORIOVČIĆ / SLAVONSKI BROD / PUK SLAVONSKI BROD"]
[302414,"ORLEC","CRES","PUK RIJEKA","ORLEC / CRES / PUK RIJEKA"]
[313963,"ORLIĆ","KNIN","PUK ŠIBENIK","ORLIĆ / KNIN / PUK ŠIBENIK"]
[301264,"ORLOVAC","BJELOVAR","PUK BJELOVAR","ORLOVAC / BJELOVAR / PUK BJELOVAR"]
[320650,"ORLOVNJAK","OSIJEK","PUK OSIJEK","ORLOVNJAK / OSIJEK / PUK OSIJEK"]
[327590,"ORLJAVAC","POŽEGA","PUK POŽEGA","ORLJAVAC / POŽEGA / PUK POŽEGA"]
[332194,"OROLIK","VINKOVCI","PUK VUKOVAR","OROLIK / VINKOVCI / PUK VUKOVAR"]
[304883,"OROSLAVJE","DONJA STUBICA","PUK KRAPINA",{"$f":"B2050&\" / \"&C2050&\" / \"&D2050","v":"OROSLAVJE / DONJA STUBICA / PUK KRAPINA"}]
[301272,"OROVAC","BJELOVAR","PUK BJELOVAR","OROVAC / BJELOVAR / PUK BJELOVAR"]
[318124,"ORUBICA","NOVA GRADIŠKA","PUK SLAVONSKI BROD","ORUBICA / NOVA GRADIŠKA / PUK SLAVONSKI BROD"]
[316261,"OSEKOVO","KUTINA","PUK SISAK","OSEKOVO / KUTINA / PUK SISAK"]
[320668,"OSIJEK","OSIJEK","PUK OSIJEK","OSIJEK / OSIJEK / PUK OSIJEK"]
[315648,"OSIJEK VOJAKOVAČKI","KRIŽEVCI","PUK KOPRIVNICA","OSIJEK VOJAKOVAČKI / KRIŽEVCI / PUK KOPRIVNICA"]
[306860,"OSKORUŠNO","KORČULA","PUK DUBROVNIK","OSKORUŠNO / KORČULA / PUK DUBROVNIK"]
[306878,"OSOBJAVA","DUBROVNIK","PUK DUBROVNIK","OSOBJAVA / DUBROVNIK / PUK DUBROVNIK"]
[306886,"OSOJNIK","DUBROVNIK","PUK DUBROVNIK","OSOJNIK / DUBROVNIK / PUK DUBROVNIK"]
[333425,"OSOJNIK","VRBOVSKO","PUK RIJEKA","OSOJNIK / VRBOVSKO / PUK RIJEKA"]
[302422,"OSOR","MALI LOŠINJ","PUK RIJEKA","OSOR / MALI LOŠINJ / PUK RIJEKA"]
[305219,"OSREDCI","GRAČAC","PUK ZADAR","OSREDCI / GRAČAC / PUK ZADAR"]
[308153,"OSTRNA","DUGO SELO","PUK ZAGREB","OSTRNA / DUGO SELO / PUK ZAGREB"]
[305855,"OSTROGAŠICA","DRNIŠ","PUK ŠIBENIK","OSTROGAŠICA / DRNIŠ / PUK ŠIBENIK"]
[317411,"OSTROŠINCI","NAŠICE","PUK OSIJEK","OSTROŠINCI / NAŠICE / PUK OSIJEK"]
[300594,"OSTROVICA","ŠIBENIK","PUK ŠIBENIK","OSTROVICA / ŠIBENIK / PUK ŠIBENIK"]
[332208,"OSTROVO","VINKOVCI","PUK VUKOVAR","OSTROVO / VINKOVCI / PUK VUKOVAR"]
[333735,"OSTROŽIN","TOPUSKO","PUK SISAK","OSTROŽIN / TOPUSKO / PUK SISAK"]
[310956,"OSTRVICA","GOSPIĆ","PUK GOSPIĆ","OSTRVICA / GOSPIĆ / PUK GOSPIĆ"]
[306894,"OŠLJE","DUBROVNIK","PUK DUBROVNIK","OŠLJE / DUBROVNIK / PUK DUBROVNIK"]
[319376,"OŠTARIJE","OGULIN","PUK KARLOVAC","OŠTARIJE / OGULIN / PUK KARLOVAC"]
[336084,"OŠTRC","ZLATAR","PUK KRAPINA","OŠTRC / ZLATAR / PUK KRAPINA"]
[318132,"OŠTRI VRH","NOVA GRADIŠKA","PUK SLAVONSKI BROD","OŠTRI VRH / NOVA GRADIŠKA / PUK SLAVONSKI BROD"]
[321281,"OŠTRI VRH OZALJSKI","OZALJ","PUK KARLOVAC","OŠTRI VRH OZALJSKI / OZALJ / PUK KARLOVAC"]
[305863,"OTAVICE","DRNIŠ","PUK ŠIBENIK","OTAVICE / DRNIŠ / PUK ŠIBENIK"]
[325767,"OTIŠIĆ","SINJ","PUK SPLIT","OTIŠIĆ / SINJ / PUK SPLIT"]
[320935,"OTOČAC","OTOČAC","PUK GOSPIĆ","OTOČAC / OTOČAC / PUK GOSPIĆ"]
[325775,"OTOK","SINJ","PUK SPLIT","OTOK / SINJ / PUK SPLIT"]
[332216,"OTOK","VINKOVCI","PUK VUKOVAR","OTOK / VINKOVCI / PUK VUKOVAR"]
[307831,"OTOK NA DOBRI","DUGA RESA","PUK KARLOVAC","OTOK NA DOBRI / DUGA RESA / PUK KARLOVAC"]
[319384,"OTOK OŠTARIJSKI","OGULIN","PUK KARLOVAC","OTOK OŠTARIJSKI / OGULIN / PUK KARLOVAC"]
[337048,"OTOK SAMOBORSKI","SAMOBOR","PUK ZAGREB","OTOK SAMOBORSKI / SAMOBOR / PUK ZAGREB"]
[313971,"OTON","KNIN","PUK ŠIBENIK","OTON / KNIN / PUK ŠIBENIK"]
[337234,"OTRIĆ-SEOCI","METKOVIĆ","PUK DUBROVNIK","OTRIĆ-SEOCI / METKOVIĆ / PUK DUBROVNIK"]
[309451,"OTROVANEC","PITOMAČA","PUK VIROVITICA","OTROVANEC / PITOMAČA / PUK VIROVITICA"]
[325082,"OTRUŠEVEC","SAMOBOR","PUK ZAGREB","OTRUŠEVEC / SAMOBOR / PUK ZAGREB"]
[321273,"OZALJ","OZALJ","PUK KARLOVAC","OZALJ / OZALJ / PUK KARLOVAC"]
[321974,"OŽEGOVCI","PAKRAC","PUK POŽEGA","OŽEGOVCI / PAKRAC / PUK POŽEGA"]
[334227,"PAČETIN","VUKOVAR","PUK VUKOVAR","PAČETIN / VUKOVAR / PUK VUKOVAR"]
[313980,"PAĐENE","KNIN","PUK ŠIBENIK","PAĐENE / KNIN / PUK ŠIBENIK"]
[321532,"PAG","PAG","PUK ZADAR","PAG / PAG / PUK ZADAR"]
[327603,"PAKA","POŽEGA","PUK POŽEGA","PAKA / POŽEGA / PUK POŽEGA"]
[318922,"PAKLENICA","NOVSKA","PUK SISAK","PAKLENICA / NOVSKA / PUK SISAK"]
[300829,"PAKOŠTANE","BIOGRAD NA MORU","PUK ZADAR","PAKOŠTANE / BIOGRAD NA MORU / PUK ZADAR"]
[305871,"PAKOVO SELO","DRNIŠ","PUK ŠIBENIK","PAKOVO SELO / DRNIŠ / PUK ŠIBENIK"]
[321982,"PAKRAC","PAKRAC","PUK POŽEGA","PAKRAC / PAKRAC / PUK POŽEGA"]
[304336,"PAKRANI","DARUVAR","PUK BJELOVAR","PAKRANI / DARUVAR / PUK BJELOVAR"]
[320676,"PALAČA","OSIJEK","PUK OSIJEK","PALAČA / OSIJEK / PUK OSIJEK"]
[311227,"PALANKA","GRAČAC","PUK ZADAR","PALANKA / GRAČAC / PUK ZADAR"]
[326585,"PALANJEK","SISAK","PUK SISAK","PALANJEK / SISAK / PUK SISAK"]
[309796,"PALEŠNIK","GAREŠNICA","PUK BJELOVAR","PALEŠNIK / GAREŠNICA / PUK BJELOVAR"]
[303356,"PALINOVEC","PRELOG","PUK ČAKOVEC","PALINOVEC / PRELOG / PUK ČAKOVEC"]
[303364,"PALOVEC","ČAKOVEC","PUK ČAKOVEC","PALOVEC / ČAKOVEC / PUK ČAKOVEC"]
[306908,"PALJE BRDO","DUBROVNIK","PUK DUBROVNIK","PALJE BRDO / DUBROVNIK / PUK DUBROVNIK"]
[315028,"PANJANI","HRVATSKA KOSTAJNICA","PUK SISAK","PANJANI / HRVATSKA KOSTAJNICA / PUK SISAK"]
[326593,"PAPIĆI","SISAK","PUK SISAK","PAPIĆI / SISAK / PUK SISAK"]
[305880,"PARČIĆ","DRNIŠ","PUK ŠIBENIK","PARČIĆ / DRNIŠ / PUK ŠIBENIK"]
[300608,"PARČIĆ","KNIN","PUK ŠIBENIK","PARČIĆ / KNIN / PUK ŠIBENIK"]
[333131,"PARUŽEVAC","VRBOVEC","PUK ZAGREB","PARUŽEVAC / VRBOVEC / PUK ZAGREB"]
[312932,"PASIČINA","PLOČE","PUK DUBROVNIK","PASIČINA / PLOČE / PUK DUBROVNIK"]
[320021,"PASJAK","OPATIJA","PUK RIJEKA","PASJAK / OPATIJA / PUK RIJEKA"]
[322946,"PASTUŠA","PETRINJA","PUK SISAK","PASTUŠA / PETRINJA / PUK SISAK"]
[324698,"PAŠAC","RIJEKA","PUK RIJEKA","PAŠAC / RIJEKA / PUK RIJEKA"]
[309800,"PAŠIJAN","GAREŠNICA","PUK BJELOVAR","PAŠIJAN / GAREŠNICA / PUK BJELOVAR"]
[300837,"PAŠMAN","BIOGRAD NA MORU","PUK ZADAR",{"$f":"B2114&\" / \"&C2114&\" / \"&D2114","v":"PAŠMAN / BIOGRAD NA MORU / PUK ZADAR"}]
[309010,"PAUČJE","ĐAKOVO","PUK OSIJEK","PAUČJE / ĐAKOVO / PUK OSIJEK"]
[335908,"PAUKOVEC","SVETI IVAN ZELINA","PUK ZAGREB","PAUKOVEC / SVETI IVAN ZELINA / PUK ZAGREB"]
[320684,"PAULIN DVOR","OSIJEK","PUK OSIJEK","PAULIN DVOR / OSIJEK / PUK OSIJEK"]
[337013,"PAUŠINCI","ORAHOVICA","PUK VIROVITICA","PAUŠINCI / ORAHOVICA / PUK VIROVITICA"]
[301299,"PAVLIN KLOŠTAR","BJELOVAR","PUK BJELOVAR","PAVLIN KLOŠTAR / BJELOVAR / PUK BJELOVAR"]
[311537,"PAVLOVAC","GRUBIŠNO POLJE","PUK BJELOVAR","PAVLOVAC / GRUBIŠNO POLJE / PUK BJELOVAR"]
[310964,"PAVLOVAC VREBAČKI","GOSPIĆ","PUK GOSPIĆ","PAVLOVAC VREBAČKI / GOSPIĆ / PUK GOSPIĆ"]
[322431,"PAZ","PAZIN","PUK PULA","PAZ / PAZIN / PUK PULA"]
[322440,"PAZIN","PAZIN","PUK PULA","PAZIN / PAZIN / PUK PULA"]
[332623,"PČELIĆ","VIROVITICA","PUK VIROVITICA","PČELIĆ / VIROVITICA / PUK VIROVITICA"]
[333743,"PECKA","TOPUSKO","PUK SISAK","PECKA / TOPUSKO / PUK SISAK"]
[322954,"PECKI","PETRINJA","PUK SISAK","PECKI / PETRINJA / PUK SISAK"]
[312720,"PEĆNO","JASTREBARSKO","PUK ZAGREB","PEĆNO / JASTREBARSKO / PUK ZAGREB"]
[308528,"PEDALJ","DVOR","PUK SISAK","PEDALJ / DVOR / PUK SISAK"]
[303372,"PEKLENICA","ČAKOVEC","PUK ČAKOVEC","PEKLENICA / ČAKOVEC / PUK ČAKOVEC"]
[327611,"PERENCI","POŽEGA","PUK POŽEGA","PERENCI / POŽEGA / PUK POŽEGA"]
[337099,"PERIVOJ","SAMOBOR","PUK ZAGREB","PERIVOJ / SAMOBOR / PUK ZAGREB"]
[307840,"PERJASICA","DUGA RESA","PUK KARLOVAC","PERJASICA / DUGA RESA / PUK KARLOVAC"]
[333751,"PERNA","TOPUSKO","PUK SISAK","PERNA / TOPUSKO / PUK SISAK"]
[302449,"PERNAT","CRES","PUK RIJEKA","PERNAT / CRES / PUK RIJEKA"]
[324213,"PEROJ","PULA","PUK PULA","PEROJ / PULA / PUK PULA"]
[336092,"PERŠAVES","ZLATAR","PUK KRAPINA","PERŠAVES / ZLATAR / PUK KRAPINA"]
[300616,"PERUŠIĆ","BENKOVAC","PUK ZADAR","PERUŠIĆ / BENKOVAC / PUK ZADAR"]
[310972,"PERUŠIĆ","GOSPIĆ","PUK GOSPIĆ","PERUŠIĆ / GOSPIĆ / PUK GOSPIĆ"]
[337668,"PERUŠIĆ I","GOSPIĆ","PUK GOSPIĆ","PERUŠIĆ I / GOSPIĆ / PUK GOSPIĆ"]
[335533,"PEŠČENICA","GU ZAGREB","PUK ZAGREB","PEŠČENICA / GU ZAGREB / PUK ZAGREB"]
[326607,"PEŠĆENICA","SISAK","PUK SISAK","PEŠĆENICA / SISAK / PUK SISAK"]
[336106,"PEŠĆENO","ZLATAR","PUK KRAPINA","PEŠĆENO / ZLATAR / PUK KRAPINA"]
[314463,"PETERANEC","KOPRIVNICA","PUK KOPRIVNICA","PETERANEC / KOPRIVNICA / PUK KOPRIVNICA"]
[322962,"PETKOVAC","PETRINJA","PUK SISAK","PETKOVAC / PETRINJA / PUK SISAK"]
[300250,"PETLOVAC","BELI MANASTIR","PUK OSIJEK","PETLOVAC / BELI MANASTIR / PUK OSIJEK"]
[306916,"PETRAČA","DUBROVNIK","PUK DUBROVNIK","PETRAČA / DUBROVNIK / PUK DUBROVNIK"]
[334839,"PETRČANE","ZADAR","PUK ZADAR","PETRČANE / ZADAR / PUK ZADAR"]
[303925,"PETRIČKA","ČAZMA","PUK BJELOVAR","PETRIČKA / ČAZMA / PUK BJELOVAR"]
[331252,"PETRIJANEC","VARAŽDIN","PUK VARAŽDIN","PETRIJANEC / VARAŽDIN / PUK VARAŽDIN"]
[330922,"PETRIJEVCI","VALPOVO","PUK OSIJEK","PETRIJEVCI / VALPOVO / PUK OSIJEK"]
[322989,"PETRINJA","PETRINJA","PUK SISAK","PETRINJA / PETRINJA / PUK SISAK"]
[326615,"PETRINJCI","SISAK","PUK SISAK","PETRINJCI / SISAK / PUK SISAK"]
[336114,"PETROVA GORA","ZLATAR","PUK KRAPINA","PETROVA GORA / ZLATAR / PUK KRAPINA"]
[337803,"PETROVAC","VIROVITICA","PUK VIROVITICA","PETROVAC / VIROVITICA / PUK VIROVITICA"]
[334235,"PETROVCI","VUKOVAR","PUK VUKOVAR","PETROVCI / VUKOVAR / PUK VUKOVAR"]
[301965,"PETROVIJA","BUJE","PUK PULA","PETROVIJA / BUJE / PUK PULA"]
[312738,"PETROVINA","JASTREBARSKO","PUK ZAGREB","PETROVINA / JASTREBARSKO / PUK ZAGREB"]
[306924,"PETROVO SELO","DUBROVNIK","PUK DUBROVNIK","PETROVO SELO / DUBROVNIK / PUK DUBROVNIK"]
[315192,"PETROVSKO","KRAPINA","PUK KRAPINA","PETROVSKO / KRAPINA / PUK KRAPINA"]
[316598,"PIĆAN","LABIN","PUK PULA","PIĆAN / LABIN / PUK PULA"]
[306932,"PIJAVIČINO","KORČULA","PUK DUBROVNIK","PIJAVIČINO / KORČULA / PUK DUBROVNIK"]
[318949,"PILJENICE","NOVSKA","PUK SISAK","PILJENICE / NOVSKA / PUK SISAK"]
[333298,"PIRAKOVEC","VRBOVEC","PUK ZAGREB","PIRAKOVEC / VRBOVEC / PUK ZAGREB"]
[330132,"PIRAMATOVCI","ŠIBENIK","PUK ŠIBENIK","PIRAMATOVCI / ŠIBENIK / PUK ŠIBENIK"]
[330159,"PIROVAC","ŠIBENIK","PUK ŠIBENIK","PIROVAC / ŠIBENIK / PUK ŠIBENIK"]
[338001,"PISAROVINA I","JASTREBARSKO","PUK ZAGREB","PISAROVINA I / JASTREBARSKO / PUK ZAGREB"]
[338010,"PISAROVINA II","JASTREBARSKO","PUK ZAGREB","PISAROVINA II / JASTREBARSKO / PUK ZAGREB"]
[307858,"PIŠČETKE","DUGA RESA","PUK KARLOVAC","PIŠČETKE / DUGA RESA / PUK KARLOVAC"]
[309028,"PIŠKOREVCI","ĐAKOVO","PUK OSIJEK","PIŠKOREVCI / ĐAKOVO / PUK OSIJEK"]
[309460,"PITOMAČA I","PITOMAČA","PUK VIROVITICA","PITOMAČA I / PITOMAČA / PUK VIROVITICA"]
[309478,"PITOMAČA II","PITOMAČA","PUK VIROVITICA","PITOMAČA II / PITOMAČA / PUK VIROVITICA"]
[311715,"PITVE","STARI GRAD","PUK SPLIT","PITVE / STARI GRAD / PUK SPLIT"]
[332631,"PIVNICA","VIROVITICA","PUK VIROVITICA","PIVNICA / VIROVITICA / PUK VIROVITICA"]
[337161,"PIŽINOVAC-LOVORJE","METKOVIĆ","PUK DUBROVNIK","PIŽINOVAC-LOVORJE / METKOVIĆ / PUK DUBROVNIK"]
[333760,"PJEŠČANICA","TOPUSKO","PUK SISAK","PJEŠČANICA / TOPUSKO / PUK SISAK"]
[325414,"PLANINA","GU ZAGREB","PUK ZAGREB","PLANINA / GU ZAGREB / PUK ZAGREB"]
[305898,"PLANJANE","DRNIŠ","PUK ŠIBENIK","PLANJANE / DRNIŠ / PUK ŠIBENIK"]
[319406,"PLAŠKI","OGULIN","PUK KARLOVAC",{"$f":"B2178&\" / \"&C2178&\" / \"&D2178","v":"PLAŠKI / OGULIN / PUK KARLOVAC"}]
[306959,"PLAT","DUBROVNIK","PUK DUBROVNIK","PLAT / DUBROVNIK / PUK DUBROVNIK"]
[313998,"PLAVNO","KNIN","PUK ŠIBENIK","PLAVNO / KNIN / PUK ŠIBENIK"]
[314471,"PLAVŠINAC","KOPRIVNICA","PUK KOPRIVNICA","PLAVŠINAC / KOPRIVNICA / PUK KOPRIVNICA"]
[333433,"PLEMENITAŠ","VRBOVSKO","PUK RIJEKA","PLEMENITAŠ / VRBOVSKO / PUK RIJEKA"]
[323977,"PLEMENŠĆINA","PREGRADA","PUK KRAPINA","PLEMENŠĆINA / PREGRADA / PUK KRAPINA"]
[318957,"PLESMO","NOVSKA","PUK SISAK","PLESMO / NOVSKA / PUK SISAK"]
[331759,"PLESO","VELIKA GORICA","PUK ZAGREB","PLESO / VELIKA GORICA / PUK ZAGREB"]
[302732,"PLEŠCE","ČABAR","PUK RIJEKA","PLEŠCE / ČABAR / PUK RIJEKA"]
[312754,"PLEŠIVICA","JASTREBARSKO","PUK ZAGREB","PLEŠIVICA / JASTREBARSKO / PUK ZAGREB"]
[312762,"PLEŠIVIČKA REKA","JASTREBARSKO","PUK ZAGREB","PLEŠIVIČKA REKA / JASTREBARSKO / PUK ZAGREB"]
[327620,"PLETERNICA","POŽEGA","PUK POŽEGA","PLETERNICA / POŽEGA / PUK POŽEGA"]
[312959,"PLINA","PLOČE","PUK DUBROVNIK","PLINA / PLOČE / PUK DUBROVNIK"]
[330523,"PLITVIČKA JEZERA","KORENICA","PUK GOSPIĆ","PLITVIČKA JEZERA / KORENICA / PUK GOSPIĆ"]
[312967,"PLOČE","PLOČE","PUK DUBROVNIK","PLOČE / PLOČE / PUK DUBROVNIK"]
[306967,"PLOČICE","DUBROVNIK","PUK DUBROVNIK","PLOČICE / DUBROVNIK / PUK DUBROVNIK"]
[316601,"PLOMIN","LABIN","PUK PULA","PLOMIN / LABIN / PUK PULA"]
[322008,"PLOŠTINE","PAKRAC","PUK POŽEGA","PLOŠTINE / PAKRAC / PUK POŽEGA"]
[335738,"PLUSKA","ZAPREŠIĆ","PUK ZAGREB","PLUSKA / ZAPREŠIĆ / PUK ZAGREB"]
[303933,"POBJENIK","ČAZMA","PUK BJELOVAR","POBJENIK / ČAZMA / PUK BJELOVAR"]
[326623,"POBRĐANI","SISAK","PUK SISAK","POBRĐANI / SISAK / PUK SISAK"]
[320048,"POBRI","OPATIJA","PUK RIJEKA","POBRI / OPATIJA / PUK RIJEKA"]
[310999,"POČITELJ","GOSPIĆ","PUK GOSPIĆ","POČITELJ / GOSPIĆ / PUK GOSPIĆ"]
[312975,"PODACA","MAKARSKA","PUK SPLIT","PODACA / MAKARSKA / PUK SPLIT"]
[311928,"PODBABLJE","IMOTSKI","PUK SPLIT","PODBABLJE / IMOTSKI / PUK SPLIT"]
[303399,"PODBREST","ČAKOVEC","PUK ČAKOVEC","PODBREST / ČAKOVEC / PUK ČAKOVEC"]
[321290,"PODBREŽJE","OZALJ","PUK KARLOVAC","PODBREŽJE / OZALJ / PUK KARLOVAC"]
[328618,"PODCRKAVLJE","SLAVONSKI BROD","PUK SLAVONSKI BROD","PODCRKAVLJE / SLAVONSKI BROD / PUK SLAVONSKI BROD"]
[318612,"PODEVČEVO","NOVI MAROF","PUK VARAŽDIN","PODEVČEVO / NOVI MAROF / PUK VARAŽDIN"]
[305430,"PODGAJCI PODRAVSKI","DONJI MIHOLJAC","PUK OSIJEK","PODGAJCI PODRAVSKI / DONJI MIHOLJAC / PUK OSIJEK"]
[317071,"PODGORA","MAKARSKA","PUK SPLIT","PODGORA / MAKARSKA / PUK SPLIT"]
[336688,"PODGORAČ","NAŠICE","PUK OSIJEK","PODGORAČ / NAŠICE / PUK OSIJEK"]
[301302,"PODGORCI","BJELOVAR","PUK BJELOVAR","PODGORCI / BJELOVAR / PUK BJELOVAR"]
[314706,"PODGORJE","KORČULA","PUK DUBROVNIK","PODGORJE / KORČULA / PUK DUBROVNIK"]
[327638,"PODGORJE","POŽEGA","PUK POŽEGA","PODGORJE / POŽEGA / PUK POŽEGA"]
[333778,"PODGORJE","TOPUSKO","PUK SISAK","PODGORJE / TOPUSKO / PUK SISAK"]
[309036,"PODGORJE BRAČEVAČKO","ĐAKOVO","PUK OSIJEK","PODGORJE BRAČEVAČKO / ĐAKOVO / PUK OSIJEK"]
[319716,"PODGRAĐE","OMIŠ","PUK SPLIT","PODGRAĐE / OMIŠ / PUK SPLIT"]
[332224,"PODGRAĐE","VINKOVCI","PUK VUKOVAR","PODGRAĐE / VINKOVCI / PUK VUKOVAR"]
[336122,"PODGRAĐE BISTRIČKO","ZLATAR","PUK KRAPINA","PODGRAĐE BISTRIČKO / ZLATAR / PUK KRAPINA"]
[324701,"PODHUM","RIJEKA","PUK RIJEKA","PODHUM / RIJEKA / PUK RIJEKA"]
[306975,"PODIMOČ","DUBROVNIK","PUK DUBROVNIK","PODIMOČ / DUBROVNIK / PUK DUBROVNIK"]
[333140,"PODJALES","VRBOVEC","PUK ZAGREB","PODJALES / VRBOVEC / PUK ZAGREB"]
[330531,"PODLAPAČA","KORENICA","PUK GOSPIĆ","PODLAPAČA / KORENICA / PUK GOSPIĆ"]
[306983,"PODOBUĆE","KORČULA","PUK DUBROVNIK","PODOBUĆE / KORČULA / PUK DUBROVNIK"]
[302457,"PODOL","CRES","PUK RIJEKA","PODOL / CRES / PUK RIJEKA"]
[300268,"PODOLJE","BELI MANASTIR","PUK OSIJEK","PODOLJE / BELI MANASTIR / PUK OSIJEK"]
[325783,"PODOSOJE","SINJ","PUK SPLIT","PODOSOJE / SINJ / PUK SPLIT"]
[323446,"PODRAVSKA SLATINA","SLATINA","PUK VIROVITICA","PODRAVSKA SLATINA / SLATINA / PUK VIROVITICA"]
[309486,"PODRAVSKE SESVETE","ĐURĐEVAC","PUK KOPRIVNICA","PODRAVSKE SESVETE / ĐURĐEVAC / PUK KOPRIVNICA"]
[307866,"PODREBAR","DUGA RESA","PUK KARLOVAC","PODREBAR / DUGA RESA / PUK KARLOVAC"]
[324710,"PODRVANJ","RIJEKA","PUK RIJEKA","PODRVANJ / RIJEKA / PUK RIJEKA"]
[327646,"PODSREĆE","POŽEGA","PUK POŽEGA","PODSREĆE / POŽEGA / PUK POŽEGA"]
[335584,"PODSUSED","GU ZAGREB","PUK ZAGREB","PODSUSED / GU ZAGREB / PUK ZAGREB"]
[303402,"PODTUREN","ČAKOVEC","PUK ČAKOVEC","PODTUREN / ČAKOVEC / PUK ČAKOVEC"]
[305901,"PODUMCI","DRNIŠ","PUK ŠIBENIK","PODUMCI / DRNIŠ / PUK ŠIBENIK"]
[328626,"PODVINJE","SLAVONSKI BROD","PUK SLAVONSKI BROD","PODVINJE / SLAVONSKI BROD / PUK SLAVONSKI BROD"]
[315656,"PODVINJE MIHOLEČKO","KRIŽEVCI","PUK KOPRIVNICA","PODVINJE MIHOLEČKO / KRIŽEVCI / PUK KOPRIVNICA"]
[331767,"PODVORNICA","VELIKA GORICA","PUK ZAGREB","PODVORNICA / VELIKA GORICA / PUK ZAGREB"]
[325104,"PODVRH","SAMOBOR","PUK ZAGREB","PODVRH / SAMOBOR / PUK ZAGREB"]
[318159,"PODVRŠKO","NOVA GRADIŠKA","PUK SLAVONSKI BROD","PODVRŠKO / NOVA GRADIŠKA / PUK SLAVONSKI BROD"]
[338842,"PODVRŠKO NOVO","NOVA GRADIŠKA","PUK SLAVONSKI BROD","PODVRŠKO NOVO / NOVA GRADIŠKA / PUK SLAVONSKI BROD"]
[315664,"POFUKI","KRIŽEVCI","PUK KOPRIVNICA","POFUKI / KRIŽEVCI / PUK KOPRIVNICA"]
[317446,"POGANOVCI","NAŠICE","PUK OSIJEK","POGANOVCI / NAŠICE / PUK OSIJEK"]
[337986,"POJATNO","ZAPREŠIĆ","PUK ZAGREB",{"$f":"B2242&\" / \"&C2242&\" / \"&D2242","v":"POJATNO / ZAPREŠIĆ / PUK ZAGREB"}]
[325112,"POKLEK","SAMOBOR","PUK ZAGREB","POKLEK / SAMOBOR / PUK ZAGREB"]
[305910,"POKROVNIK","DRNIŠ","PUK ŠIBENIK","POKROVNIK / DRNIŠ / PUK ŠIBENIK"]
[321303,"POKUPJE","OZALJ","PUK KARLOVAC","POKUPJE / OZALJ / PUK KARLOVAC"]
[310387,"POKUPSKA SLATINA","GLINA","PUK SISAK","POKUPSKA SLATINA / GLINA / PUK SISAK"]
[331775,"POKUPSKO","VELIKA GORICA","PUK ZAGREB","POKUPSKO / VELIKA GORICA / PUK ZAGREB"]
[300624,"POLAČA","BENKOVAC","PUK ZADAR","POLAČA / BENKOVAC / PUK ZADAR"]
[314005,"POLAČA","KNIN","PUK ŠIBENIK","POLAČA / KNIN / PUK ŠIBENIK"]
[321311,"POLICE PIRIŠĆE","OZALJ","PUK KARLOVAC","POLICE PIRIŠĆE / OZALJ / PUK KARLOVAC"]
[334847,"POLIČNIK","ZADAR","PUK ZADAR","POLIČNIK / ZADAR / PUK ZADAR"]
[307874,"POLOJ","DUGA RESA","PUK KARLOVAC","POLOJ / DUGA RESA / PUK KARLOVAC"]
[318639,"POLJANA","NOVI MAROF","PUK VARAŽDIN","POLJANA / NOVI MAROF / PUK VARAŽDIN"]
[322016,"POLJANA","PAKRAC","PUK POŽEGA","POLJANA / PAKRAC / PUK POŽEGA"]
[336530,"POLJANA","VRBOVEC","PUK ZAGREB","POLJANA / VRBOVEC / PUK ZAGREB"]
[334855,"POLJANA","ZADAR","PUK ZADAR","POLJANA / ZADAR / PUK ZADAR"]
[337552,"POLJANA BIŠKUPEČKA","VARAŽDIN","PUK VARAŽDIN","POLJANA BIŠKUPEČKA / VARAŽDIN / PUK VARAŽDIN"]
[331783,"POLJANA ČIČKA","VELIKA GORICA","PUK ZAGREB","POLJANA ČIČKA / VELIKA GORICA / PUK ZAGREB"]
[326631,"POLJANA LEKENIČKA","SISAK","PUK SISAK","POLJANA LEKENIČKA / SISAK / PUK SISAK"]
[313688,"POLJANA SUTLANSKA","KLANJEC","PUK KRAPINA","POLJANA SUTLANSKA / KLANJEC / PUK KRAPINA"]
[313238,"POLJANA VOJNIĆKA","KARLOVAC","PUK KARLOVAC","POLJANA VOJNIĆKA / KARLOVAC / PUK KARLOVAC"]
[328634,"POLJANCI","SLAVONSKI BROD","PUK SLAVONSKI BROD","POLJANCI / SLAVONSKI BROD / PUK SLAVONSKI BROD"]
[318167,"POLJANE","NOVA GRADIŠKA","PUK SLAVONSKI BROD","POLJANE / NOVA GRADIŠKA / PUK SLAVONSKI BROD"]
[320056,"POLJANE","OPATIJA","PUK RIJEKA","POLJANE / OPATIJA / PUK RIJEKA"]
[304891,"POLJANICA BISTRIČKA","DONJA STUBICA","PUK KRAPINA","POLJANICA BISTRIČKA / DONJA STUBICA / PUK KRAPINA"]
[327654,"POLJANSKA","POŽEGA","PUK POŽEGA","POLJANSKA / POŽEGA / PUK POŽEGA"]
[336521,"POLJANSKI LUG","VRBOVEC","PUK ZAGREB","POLJANSKI LUG / VRBOVEC / PUK ZAGREB"]
[311936,"POLJICA","IMOTSKI","PUK SPLIT","POLJICA / IMOTSKI / PUK SPLIT"]
[315966,"POLJICA","KRK","PUK RIJEKA","POLJICA / KRK / PUK RIJEKA"]
[334863,"POLJICA","ZADAR","PUK ZADAR","POLJICA / ZADAR / PUK ZADAR"]
[336858,"POLJICA BRIG","ZADAR","PUK ZADAR","POLJICA BRIG / ZADAR / PUK ZADAR"]
[333930,"POLJICA KOZIČKA","VRGORAC","PUK SPLIT","POLJICA KOZIČKA / VRGORAC / PUK SPLIT"]
[306991,"POLJICE","DUBROVNIK","PUK DUBROVNIK","POLJICE / DUBROVNIK / PUK DUBROVNIK"]
[324221,"POMER","PULA","PUK PULA","POMER / PULA / PUK PULA"]
[333786,"PONIKVARI","TOPUSKO","PUK SISAK","PONIKVARI / TOPUSKO / PUK SISAK"]
[319414,"PONIKVE","OGULIN","PUK KARLOVAC","PONIKVE / OGULIN / PUK KARLOVAC"]
[329282,"PONOR","SLUNJ","PUK KARLOVAC","PONOR / SLUNJ / PUK KARLOVAC"]
[307009,"POPOVA LUKA","DUBROVNIK","PUK DUBROVNIK","POPOVA LUKA / DUBROVNIK / PUK DUBROVNIK"]
[300276,"POPOVAC","BELI MANASTIR","PUK OSIJEK","POPOVAC / BELI MANASTIR / PUK OSIJEK"]
[323454,"POPOVAC","SLATINA","PUK VIROVITICA","POPOVAC / SLATINA / PUK VIROVITICA"]
[329304,"POPOVAC","SLUNJ","PUK KARLOVAC","POPOVAC / SLUNJ / PUK KARLOVAC"]
[316270,"POPOVAČA","KUTINA","PUK SISAK","POPOVAČA / KUTINA / PUK SISAK"]
[313246,"POPOVIĆ BRDO","KARLOVAC","PUK KARLOVAC","POPOVIĆ BRDO / KARLOVAC / PUK KARLOVAC"]
[300632,"POPOVIĆI","BENKOVAC","PUK ZADAR","POPOVIĆI / BENKOVAC / PUK ZADAR"]
[307017,"POPOVIĆI","DUBROVNIK","PUK DUBROVNIK","POPOVIĆI / DUBROVNIK / PUK DUBROVNIK"]
[319422,"POPOVO SELO","OGULIN","PUK KARLOVAC","POPOVO SELO / OGULIN / PUK KARLOVAC"]
[323748,"POREČ","POREČ","PUK PULA","POREČ / POREČ / PUK PULA"]
[327662,"POREČ","POŽEGA","PUK POŽEGA","POREČ / POŽEGA / PUK POŽEGA"]
[312444,"POSAVSKI BREGI","IVANIĆ GRAD","PUK ZAGREB","POSAVSKI BREGI / IVANIĆ GRAD / PUK ZAGREB"]
[336319,"POSAVSKI PODGAJCI","ŽUPANJA","PUK VUKOVAR","POSAVSKI PODGAJCI / ŽUPANJA / PUK VUKOVAR"]
[334871,"POSEDARJE","ZADAR","PUK ZADAR","POSEDARJE / ZADAR / PUK ZADAR"]
[301663,"POSTIRA","SUPETAR","PUK SPLIT","POSTIRA / SUPETAR / PUK SPLIT"]
[311944,"POSTRANJE","IMOTSKI","PUK SPLIT","POSTRANJE / IMOTSKI / PUK SPLIT"]
[319449,"POTHUM PLAŠČANSKI","OGULIN","PUK KARLOVAC","POTHUM PLAŠČANSKI / OGULIN / PUK KARLOVAC"]
[309044,"POTNJANI","ĐAKOVO","PUK OSIJEK","POTNJANI / ĐAKOVO / PUK OSIJEK"]
[304344,"POTOČANI","DARUVAR","PUK BJELOVAR","POTOČANI / DARUVAR / PUK BJELOVAR"]
[315672,"POTOČEC","KRIŽEVCI","PUK KOPRIVNICA","POTOČEC / KRIŽEVCI / PUK KOPRIVNICA"]
[316288,"POTOK","KUTINA","PUK SISAK","POTOK / KUTINA / PUK SISAK"]
[307882,"POTOK BOSILJEVSKI","DUGA RESA","PUK KARLOVAC","POTOK BOSILJEVSKI / DUGA RESA / PUK KARLOVAC"]
[315699,"POTOK KALNIČKI","KRIŽEVCI","PUK KOPRIVNICA","POTOK KALNIČKI / KRIŽEVCI / PUK KOPRIVNICA"]
[319350,"POTOK MUSULINSKI","OGULIN","PUK KARLOVAC","POTOK MUSULINSKI / OGULIN / PUK KARLOVAC"]
[307025,"POTOMJE","KORČULA","PUK DUBROVNIK","POTOMJE / KORČULA / PUK DUBROVNIK"]
[325791,"POTRAVLJE","SINJ","PUK SPLIT","POTRAVLJE / SINJ / PUK SPLIT"]
[301671,"POVLJA","SUPETAR","PUK SPLIT","POVLJA / SUPETAR / PUK SPLIT"]
[321559,"POVLJANA","PAG","PUK ZADAR","POVLJANA / PAG / PUK ZADAR"]
[334448,"POZNANOVEC","ZABOK","PUK KRAPINA",{"$f":"B2306&\" / \"&C2306&\" / \"&D2306","v":"POZNANOVEC / ZABOK / PUK KRAPINA"}]
[337625,"POŽARI","VIROVITICA","PUK VIROVITICA","POŽARI / VIROVITICA / PUK VIROVITICA"]
[327760,"POŽEGA","POŽEGA","PUK POŽEGA","POŽEGA / POŽEGA / PUK POŽEGA"]
[327417,"POŽEŠKA KOPRIVNICA","POŽEGA","PUK POŽEGA","POŽEŠKA KOPRIVNICA / POŽEGA / PUK POŽEGA"]
[326640,"PRAČNO","SISAK","PUK SISAK","PRAČNO / SISAK / PUK SISAK"]
[330752,"PRAPATNICA","TROGIR","PUK SPLIT","PRAPATNICA / TROGIR / PUK SPLIT"]
[324728,"PRAPUTNJAK","RIJEKA","PUK RIJEKA","PRAPUTNJAK / RIJEKA / PUK RIJEKA"]
[321320,"PRAVUTINA","OZALJ","PUK KARLOVAC","PRAVUTINA / OZALJ / PUK KARLOVAC"]
[301680,"PRAŽNICA","SUPETAR","PUK SPLIT","PRAŽNICA / SUPETAR / PUK SPLIT"]
[308161,"PREČEC","DUGO SELO","PUK ZAGREB","PREČEC / DUGO SELO / PUK ZAGREB"]
[312452,"PREČNO","IVANIĆ GRAD","PUK ZAGREB","PREČNO / IVANIĆ GRAD / PUK ZAGREB"]
[301329,"PREDAVAC","BJELOVAR","PUK BJELOVAR","PREDAVAC / BJELOVAR / PUK BJELOVAR"]
[302465,"PREDOŠĆICA","CRES","PUK RIJEKA","PREDOŠĆICA / CRES / PUK RIJEKA"]
[323985,"PREGRADA","PREGRADA","PUK KRAPINA","PREGRADA / PREGRADA / PUK KRAPINA"]
[334880,"PREKO","ZADAR","PUK ZADAR","PREKO / ZADAR / PUK ZADAR"]
[310395,"PREKOPA","GLINA","PUK SISAK","PREKOPA / GLINA / PUK SISAK"]
[322024,"PREKOPAKRA","PAKRAC","PUK POŽEGA","PREKOPAKRA / PAKRAC / PUK POŽEGA"]
[312789,"PREKRIŽJE","JASTREBARSKO","PUK ZAGREB","PREKRIŽJE / JASTREBARSKO / PUK ZAGREB"]
[303429,"PRELOG","PRELOG","PUK ČAKOVEC","PRELOG / PRELOG / PUK ČAKOVEC"]
[326658,"PRELOŠĆICA","SISAK","PUK SISAK","PRELOŠĆICA / SISAK / PUK SISAK"]
[324230,"PREMANTURA","PULA","PUK PULA","PREMANTURA / PULA / PUK PULA"]
[334898,"PREMUDA","ZADAR","PUK ZADAR","PREMUDA / ZADAR / PUK ZADAR"]
[303437,"PRESEKA","ČAKOVEC","PUK ČAKOVEC","PRESEKA / ČAKOVEC / PUK ČAKOVEC"]
[333166,"PRESEKA","VRBOVEC","PUK ZAGREB","PRESEKA / VRBOVEC / PUK ZAGREB"]
[309052,"PRESLATINCI","ĐAKOVO","PUK OSIJEK","PRESLATINCI / ĐAKOVO / PUK OSIJEK"]
[301337,"PRESPA","BJELOVAR","PUK BJELOVAR","PRESPA / BJELOVAR / PUK BJELOVAR"]
[303445,"PRETETINEC","ČAKOVEC","PUK ČAKOVEC","PRETETINEC / ČAKOVEC / PUK ČAKOVEC"]
[322466,"PREVIŽ","PAZIN","PUK PULA","PREVIŽ / PAZIN / PUK PULA"]
[315036,"PREVRŠAC","HRVATSKA KOSTAJNICA","PUK SISAK","PREVRŠAC / HRVATSKA KOSTAJNICA / PUK SISAK"]
[302759,"PREZID","ČABAR","PUK RIJEKA","PREZID / ČABAR / PUK RIJEKA"]
[301345,"PRGOMELJE","BJELOVAR","PUK BJELOVAR","PRGOMELJE / BJELOVAR / PUK BJELOVAR"]
[322032,"PRGOMELJE","PAKRAC","PUK POŽEGA","PRGOMELJE / PAKRAC / PUK POŽEGA"]
[313556,"PRGOMET","KAŠTEL SUĆURAC","PUK SPLIT","PRGOMET / KAŠTEL SUĆURAC / PUK SPLIT"]
[303453,"PRHOVEC","ČAKOVEC","PUK ČAKOVEC","PRHOVEC / ČAKOVEC / PUK ČAKOVEC"]
[307904,"PRIBANJCI","DUGA RESA","PUK KARLOVAC","PRIBANJCI / DUGA RESA / PUK KARLOVAC"]
[312797,"PRIBIĆ","JASTREBARSKO","PUK ZAGREB","PRIBIĆ / JASTREBARSKO / PUK ZAGREB"]
[303461,"PRIBISLAVEC","ČAKOVEC","PUK ČAKOVEC","PRIBISLAVEC / ČAKOVEC / PUK ČAKOVEC"]
[317454,"PRIBIŠEVCI","NAŠICE","PUK OSIJEK","PRIBIŠEVCI / NAŠICE / PUK OSIJEK"]
[329681,"PRIBUDE","SOLIN","PUK SPLIT","PRIBUDE / SOLIN / PUK SPLIT"]
[311243,"PRIBUDIĆ","GRAČAC","PUK ZADAR","PRIBUDIĆ / GRAČAC / PUK ZADAR"]
[328642,"PRIČAC","SLAVONSKI BROD","PUK SLAVONSKI BROD","PRIČAC / SLAVONSKI BROD / PUK SLAVONSKI BROD"]
[334901,"PRIDRAGA","ZADAR","PUK ZADAR","PRIDRAGA / ZADAR / PUK ZADAR"]
[307033,"PRIDVORJE","DUBROVNIK","PUK DUBROVNIK","PRIDVORJE / DUBROVNIK / PUK DUBROVNIK"]
[309079,"PRIDVORJE","ĐAKOVO","PUK OSIJEK","PRIDVORJE / ĐAKOVO / PUK OSIJEK"]
[330540,"PRIJEBOJ","KORENICA","PUK GOSPIĆ","PRIJEBOJ / KORENICA / PUK GOSPIĆ"]
[310409,"PRIJEKA","GLINA","PUK SISAK","PRIJEKA / GLINA / PUK SISAK"]
[307041,"PRIJEVOR","DUBROVNIK","PUK DUBROVNIK","PRIJEVOR / DUBROVNIK / PUK DUBROVNIK"]
[313564,"PRIMORSKI DOLAC","KAŠTEL SUĆURAC","PUK SPLIT","PRIMORSKI DOLAC / KAŠTEL SUĆURAC / PUK SPLIT"]
[330167,"PRIMOŠTEN","ŠIBENIK","PUK ŠIBENIK","PRIMOŠTEN / ŠIBENIK / PUK ŠIBENIK"]
[325805,"PRISOJE","SINJ","PUK SPLIT","PRISOJE / SINJ / PUK SPLIT"]
[300659,"PRISTEG","BENKOVAC","PUK ZADAR","PRISTEG / BENKOVAC / PUK ZADAR"]
[323993,"PRIŠLIN","PREGRADA","PUK KRAPINA","PRIŠLIN / PREGRADA / PUK KRAPINA"]
[332232,"PRIVLAKA","VINKOVCI","PUK VUKOVAR","PRIVLAKA / VINKOVCI / PUK VUKOVAR"]
[334910,"PRIVLAKA","ZADAR","PUK ZADAR","PRIVLAKA / ZADAR / PUK ZADAR"]
[307050,"PRIZDRINA","KORČULA","PUK DUBROVNIK","PRIZDRINA / KORČULA / PUK DUBROVNIK"]
[325295,"PRIZNA","SENJ","PUK GOSPIĆ","PRIZNA / SENJ / PUK GOSPIĆ"]
[314480,"PRKOS","KOPRIVNICA","PUK KOPRIVNICA","PRKOS / KOPRIVNICA / PUK KOPRIVNICA"]
[332259,"PRKOVCI","VINKOVCI","PUK VUKOVAR","PRKOVCI / VINKOVCI / PUK VUKOVAR"]
[316610,"PRKUŠNICA","LABIN","PUK PULA","PRKUŠNICA / LABIN / PUK PULA"]
[311251,"PRLJEVO","GRAČAC","PUK ZADAR","PRLJEVO / GRAČAC / PUK ZADAR"]
[324248,"PRNJANI","PULA","PUK PULA","PRNJANI / PULA / PUK PULA"]
[328669,"PRNJAVOR","SLAVONSKI BROD","PUK SLAVONSKI BROD","PRNJAVOR / SLAVONSKI BROD / PUK SLAVONSKI BROD"]
[322997,"PRNJAVOR ČUNTIĆKI","PETRINJA","PUK SISAK","PRNJAVOR ČUNTIĆKI / PETRINJA / PUK SISAK"]
[320943,"PROKIKE","OTOČAC","PUK GOSPIĆ","PROKIKE / OTOČAC / PUK GOSPIĆ"]
[311952,"PROLOŽAC","IMOTSKI","PUK SPLIT",{"$f":"B2370&\" / \"&C2370&\" / \"&D2370","v":"PROLOŽAC / IMOTSKI / PUK SPLIT"}]
[335746,"PROSINEC","ZAPREŠIĆ","PUK ZAGREB","PROSINEC / ZAPREŠIĆ / PUK ZAGREB"]
[320951,"PROZOR","OTOČAC","PUK GOSPIĆ","PROZOR / OTOČAC / PUK GOSPIĆ"]
[308170,"PROZORJE","DUGO SELO","PUK ZAGREB","PROZORJE / DUGO SELO / PUK ZAGREB"]
[307068,"PROŽURA","DUBROVNIK","PUK DUBROVNIK","PROŽURA / DUBROVNIK / PUK DUBROVNIK"]
[309494,"PRUGOVAC","ĐURĐEVAC","PUK KOPRIVNICA","PRUGOVAC / ĐURĐEVAC / PUK KOPRIVNICA"]
[329690,"PRUGOVO","SOLIN","PUK SPLIT","PRUGOVO / SOLIN / PUK SPLIT"]
[318175,"PRVČA","NOVA GRADIŠKA","PUK SLAVONSKI BROD","PRVČA / NOVA GRADIŠKA / PUK SLAVONSKI BROD"]
[330175,"PRVIĆ","ŠIBENIK","PUK ŠIBENIK","PRVIĆ / ŠIBENIK / PUK ŠIBENIK"]
[335916,"PSARJEVO","SVETI IVAN ZELINA","PUK ZAGREB","PSARJEVO / SVETI IVAN ZELINA / PUK ZAGREB"]
[301698,"PUČIŠĆA","SUPETAR","PUK SPLIT","PUČIŠĆA / SUPETAR / PUK SPLIT"]
[320064,"PUHARSKA","OPATIJA","PUK RIJEKA","PUHARSKA / OPATIJA / PUK RIJEKA"]
[304352,"PUKLICA","DARUVAR","PUK BJELOVAR","PUKLICA / DARUVAR / PUK BJELOVAR"]
[324256,"PULA","PULA","PUK PULA","PULA / PULA / PUK PULA"]
[305928,"PULJANE","DRNIŠ","PUK ŠIBENIK","PULJANE / DRNIŠ / PUK ŠIBENIK"]
[315974,"PUNAT","KRK","PUK RIJEKA","PUNAT / KRK / PUK RIJEKA"]
[309087,"PUNITOVCI","ĐAKOVO","PUK OSIJEK","PUNITOVCI / ĐAKOVO / PUK OSIJEK"]
[302473,"PUNTA KRIŽA","MALI LOŠINJ","PUK RIJEKA","PUNTA KRIŽA / MALI LOŠINJ / PUK RIJEKA"]
[301353,"PUPELICA","BJELOVAR","PUK BJELOVAR","PUPELICA / BJELOVAR / PUK BJELOVAR"]
[314714,"PUPNAT","KORČULA","PUK DUBROVNIK","PUPNAT / KORČULA / PUK DUBROVNIK"]
[336149,"PURGA","ZLATAR","PUK KRAPINA","PURGA / ZLATAR / PUK KRAPINA"]
[318965,"PUSKA","NOVSKA","PUK SISAK","PUSKA / NOVSKA / PUK SISAK"]
[338389,"PUSTIKE","VELIKA GORICA","PUK ZAGREB","PUSTIKE / VELIKA GORICA / PUK ZAGREB"]
[304905,"PUSTODOL","DONJA STUBICA","PUK KRAPINA","PUSTODOL / DONJA STUBICA / PUK KRAPINA"]
[334456,"PUSTODOL","ZABOK","PUK KRAPINA","PUSTODOL / ZABOK / PUK KRAPINA"]
[335754,"PUŠĆA","ZAPREŠIĆ","PUK ZAGREB","PUŠĆA / ZAPREŠIĆ / PUK ZAGREB"]
[336998,"PUŠĆINE","ČAKOVEC","PUK ČAKOVEC","PUŠĆINE / ČAKOVEC / PUK ČAKOVEC"]
[320404,"PUŠINA","ORAHOVICA","PUK VIROVITICA","PUŠINA / ORAHOVICA / PUK VIROVITICA"]
[315206,"PUTKOVEC","KRAPINA","PUK KRAPINA","PUTKOVEC / KRAPINA / PUK KRAPINA"]
[307076,"PUTNIKOVIĆ","DUBROVNIK","PUK DUBROVNIK","PUTNIKOVIĆ / DUBROVNIK / PUK DUBROVNIK"]
[320072,"PUŽI","OPATIJA","PUK RIJEKA","PUŽI / OPATIJA / PUK RIJEKA"]
[316628,"RABAC","LABIN","PUK PULA","RABAC / LABIN / PUK PULA"]
[324434,"RAB-MUNDANIJE","RAB","PUK RIJEKA","RAB-MUNDANIJE / RAB / PUK RIJEKA"]
[302180,"RAČICE","BUZET","PUK PULA","RAČICE / BUZET / PUK PULA"]
[330183,"RAČICE","ŠIBENIK","PUK ŠIBENIK","RAČICE / ŠIBENIK / PUK ŠIBENIK"]
[336327,"RAČINOVCI","ŽUPANJA","PUK VUKOVAR","RAČINOVCI / ŽUPANJA / PUK VUKOVAR"]
[314722,"RAČIŠĆE","KORČULA","PUK DUBROVNIK","RAČIŠĆE / KORČULA / PUK DUBROVNIK"]
[313696,"RADAKOVO","KLANJEC","PUK KRAPINA","RADAKOVO / KLANJEC / PUK KRAPINA"]
[300667,"RADAŠINOVCI","BENKOVAC","PUK ZADAR","RADAŠINOVCI / BENKOVAC / PUK ZADAR"]
[305448,"RADIKOVCI","DONJI MIHOLJAC","PUK OSIJEK","RADIKOVCI / DONJI MIHOLJAC / PUK OSIJEK"]
[314013,"RADLJEVAC","KNIN","PUK ŠIBENIK","RADLJEVAC / KNIN / PUK ŠIBENIK"]
[315214,"RADOBOJ","KRAPINA","PUK KRAPINA","RADOBOJ / KRAPINA / PUK KRAPINA"]
[307912,"RADOČAJI","DUGA RESA","PUK KARLOVAC","RADOČAJI / DUGA RESA / PUK KARLOVAC"]
[335924,"RADOIŠĆE","SVETI IVAN ZELINA","PUK ZAGREB","RADOIŠĆE / SVETI IVAN ZELINA / PUK ZAGREB"]
[305936,"RADONIĆ","DRNIŠ","PUK ŠIBENIK","RADONIĆ / DRNIŠ / PUK ŠIBENIK"]
[332844,"RADONJA","VOJNIĆ","PUK KARLOVAC","RADONJA / VOJNIĆ / PUK KARLOVAC"]
[326666,"RADONJA LUKA","SISAK","PUK SISAK","RADONJA LUKA / SISAK / PUK SISAK"]
[323462,"RADOSAVCI","SLATINA","PUK VIROVITICA","RADOSAVCI / SLATINA / PUK VIROVITICA"]
[313572,"RADOŠIĆ","KAŠTEL SUĆURAC","PUK SPLIT","RADOŠIĆ / KAŠTEL SUĆURAC / PUK SPLIT"]
[325813,"RADOŠIĆ","SINJ","PUK SPLIT","RADOŠIĆ / SINJ / PUK SPLIT"]
[312240,"RADOVAN","IVANEC","PUK VARAŽDIN","RADOVAN / IVANEC / PUK VARAŽDIN"]
[327689,"RADOVANCI","POŽEGA","PUK POŽEGA","RADOVANCI / POŽEGA / PUK POŽEGA"]
[328677,"RADOVANJE","SLAVONSKI BROD","PUK SLAVONSKI BROD","RADOVANJE / SLAVONSKI BROD / PUK SLAVONSKI BROD"]
[307084,"RADOVČIĆI","DUBROVNIK","PUK DUBROVNIK","RADOVČIĆI / DUBROVNIK / PUK DUBROVNIK"]
[331287,"RADOVEC","VARAŽDIN","PUK VARAŽDIN","RADOVEC / VARAŽDIN / PUK VARAŽDIN"]
[329312,"RADOVICA","SLUNJ","PUK KARLOVAC","RADOVICA / SLUNJ / PUK KARLOVAC"]
[334928,"RADOVIN","ZADAR","PUK ZADAR","RADOVIN / ZADAR / PUK ZADAR"]
[311006,"RADUČ","LOVINAC","PUK GOSPIĆ","RADUČ / LOVINAC / PUK GOSPIĆ"]
[314021,"RADUČIĆ","KNIN","PUK ŠIBENIK","RADUČIĆ / KNIN / PUK ŠIBENIK"]
[336335,"RAJEVO SELO","ŽUPANJA","PUK VUKOVAR","RAJEVO SELO / ŽUPANJA / PUK VUKOVAR"]
[318744,"RAJIĆ DONJI","NOVSKA","PUK SISAK","RAJIĆ DONJI / NOVSKA / PUK SISAK"]
[318787,"RAJIĆ GORNJI","NOVSKA","PUK SISAK","RAJIĆ GORNJI / NOVSKA / PUK SISAK"]
[301361,"RAJIĆ GUDOVAČKI","BJELOVAR","PUK BJELOVAR","RAJIĆ GUDOVAČKI / BJELOVAR / PUK BJELOVAR"]
[324264,"RAKALJ","PULA","PUK PULA","RAKALJ / PULA / PUK PULA"]
[325139,"RAKITJE","SAMOBOR","PUK ZAGREB",{"$f":"B2434&\" / \"&C2434&\" / \"&D2434","v":"RAKITJE / SAMOBOR / PUK ZAGREB"}]
[305456,"RAKITOVICA","DONJI MIHOLJAC","PUK OSIJEK","RAKITOVICA / DONJI MIHOLJAC / PUK OSIJEK"]
[322474,"RAKOTULE","PAZIN","PUK PULA","RAKOTULE / PAZIN / PUK PULA"]
[325147,"RAKOV POTOK","SAMOBOR","PUK ZAGREB","RAKOV POTOK / SAMOBOR / PUK ZAGREB"]
[333174,"RAKOVEC","VRBOVEC","PUK ZAGREB","RAKOVEC / VRBOVEC / PUK ZAGREB"]
[325155,"RAKOVICA","SAMOBOR","PUK ZAGREB","RAKOVICA / SAMOBOR / PUK ZAGREB"]
[329339,"RAKOVICA","SLUNJ","PUK KARLOVAC","RAKOVICA / SLUNJ / PUK KARLOVAC"]
[338311,"RAKOVICA 1","SLUNJ","PUK KARLOVAC","RAKOVICA 1 / SLUNJ / PUK KARLOVAC"]
[314030,"RAMLJANE","KNIN","PUK ŠIBENIK","RAMLJANE / KNIN / PUK ŠIBENIK"]
[329703,"RAMLJANE","SOLIN","PUK SPLIT","RAMLJANE / SOLIN / PUK SPLIT"]
[320960,"RAMLJANI","OTOČAC","PUK GOSPIĆ","RAMLJANI / OTOČAC / PUK GOSPIĆ"]
[314498,"RASINJA","KOPRIVNICA","PUK KOPRIVNICA","RASINJA / KOPRIVNICA / PUK KOPRIVNICA"]
[328685,"RASTUŠJE","SLAVONSKI BROD","PUK SLAVONSKI BROD","RASTUŠJE / SLAVONSKI BROD / PUK SLAVONSKI BROD"]
[333948,"RAŠĆANE","VRGORAC","PUK SPLIT","RAŠĆANE / VRGORAC / PUK SPLIT"]
[315702,"RAŠĆANI","KRIŽEVCI","PUK KOPRIVNICA","RAŠĆANI / KRIŽEVCI / PUK KOPRIVNICA"]
[311545,"RAŠENICA","GRUBIŠNO POLJE","PUK BJELOVAR","RAŠENICA / GRUBIŠNO POLJE / PUK BJELOVAR"]
[300845,"RAŠTANE","BIOGRAD NA MORU","PUK ZADAR","RAŠTANE / BIOGRAD NA MORU / PUK ZADAR"]
[300675,"RAŠTEVIĆ","BENKOVAC","PUK ZADAR","RAŠTEVIĆ / BENKOVAC / PUK ZADAR"]
[318183,"RATKOVAC","NOVA GRADIŠKA","PUK SLAVONSKI BROD","RATKOVAC / NOVA GRADIŠKA / PUK SLAVONSKI BROD"]
[327697,"RATKOVICA","POŽEGA","PUK POŽEGA","RATKOVICA / POŽEGA / PUK POŽEGA"]
[315044,"RAUSOVAC","HRVATSKA KOSTAJNICA","PUK SISAK","RAUSOVAC / HRVATSKA KOSTAJNICA / PUK SISAK"]
[334936,"RAVA","ZADAR","PUK ZADAR","RAVA / ZADAR / PUK ZADAR"]
[333956,"RAVČA","VRGORAC","PUK SPLIT","RAVČA / VRGORAC / PUK SPLIT"]
[315729,"RAVEN","KRIŽEVCI","PUK KOPRIVNICA","RAVEN / KRIŽEVCI / PUK KOPRIVNICA"]
[304620,"RAVNA GORA","DELNICE","PUK RIJEKA","RAVNA GORA / DELNICE / PUK RIJEKA"]
[301370,"RAVNEŠ","BJELOVAR","PUK BJELOVAR","RAVNEŠ / BJELOVAR / PUK BJELOVAR"]
[313700,"RAVNO BREZJE","KLANJEC","PUK KRAPINA","RAVNO BREZJE / KLANJEC / PUK KRAPINA"]
[310417,"RAVNO RAŠĆE","GLINA","PUK SISAK","RAVNO RAŠĆE / GLINA / PUK SISAK"]
[317462,"RAZBOJIŠTE","NAŠICE","PUK OSIJEK","RAZBOJIŠTE / NAŠICE / PUK OSIJEK"]
[304638,"RAZDRTO","DELNICE","PUK RIJEKA","RAZDRTO / DELNICE / PUK RIJEKA"]
[304646,"RAZLOGE","DELNICE","PUK RIJEKA","RAZLOGE / DELNICE / PUK RIJEKA"]
[305944,"RAZVOĐE","DRNIŠ","PUK ŠIBENIK","RAZVOĐE / DRNIŠ / PUK ŠIBENIK"]
[313718,"RAZVOR","KLANJEC","PUK KRAPINA","RAZVOR / KLANJEC / PUK KRAPINA"]
[334944,"RAŽANAC","ZADAR","PUK ZADAR","RAŽANAC / ZADAR / PUK ZADAR"]
[313254,"REČICA","KARLOVAC","PUK KARLOVAC","REČICA / KARLOVAC / PUK KARLOVAC"]
[324736,"REČINA","RIJEKA","PUK RIJEKA","REČINA / RIJEKA / PUK RIJEKA"]
[314501,"REKA","KOPRIVNICA","PUK KOPRIVNICA","REKA / KOPRIVNICA / PUK KOPRIVNICA"]
[335355,"REMETE","GU ZAGREB","PUK ZAGREB","REMETE / GU ZAGREB / PUK ZAGREB"]
[318647,"REMETINEC","NOVI MAROF","PUK VARAŽDIN","REMETINEC / NOVI MAROF / PUK VARAŽDIN"]
[304379,"REMOVAC","DARUVAR","PUK BJELOVAR","REMOVAC / DARUVAR / PUK BJELOVAR"]
[316296,"REPUŠNICA","KUTINA","PUK SISAK","REPUŠNICA / KUTINA / PUK SISAK"]
[335541,"RESNIK","GU ZAGREB","PUK ZAGREB","RESNIK / GU ZAGREB / PUK ZAGREB"]
[318191,"REŠETARI","NOVA GRADIŠKA","PUK SLAVONSKI BROD","REŠETARI / NOVA GRADIŠKA / PUK SLAVONSKI BROD"]
[332267,"RETKOVCI","VINKOVCI","PUK VUKOVAR","RETKOVCI / VINKOVCI / PUK VUKOVAR"]
[332640,"REZOVAC","VIROVITICA","PUK VIROVITICA","REZOVAC / VIROVITICA / PUK VIROVITICA"]
[331791,"RIBNICA","VELIKA GORICA","PUK ZAGREB","RIBNICA / VELIKA GORICA / PUK ZAGREB"]
[321338,"RIBNIK","OZALJ","PUK KARLOVAC","RIBNIK / OZALJ / PUK KARLOVAC"]
[301388,"RIBNJAČKA","BJELOVAR","PUK BJELOVAR","RIBNJAČKA / BJELOVAR / PUK BJELOVAR"]
[311979,"RIČICE","IMOTSKI","PUK SPLIT","RIČICE / IMOTSKI / PUK SPLIT"]
[311260,"RIČICE","LOVINAC","PUK GOSPIĆ","RIČICE / LOVINAC / PUK GOSPIĆ"]
[314048,"RIĐANE","KNIN","PUK ŠIBENIK","RIĐANE / KNIN / PUK ŠIBENIK"]
[323489,"RIJENCI","SLATINA","PUK VIROVITICA","RIJENCI / SLATINA / PUK VIROVITICA"]
[333441,"RIM","VRBOVSKO","PUK RIJEKA","RIM / VRBOVSKO / PUK RIJEKA"]
[312258,"RINKOVEC","IVANEC","PUK VARAŽDIN","RINKOVEC / IVANEC / PUK VARAŽDIN"]
[316636,"RIPENDA","LABIN","PUK PULA","RIPENDA / LABIN / PUK PULA"]
[303470,"ROBADJE","ČAKOVEC","PUK ČAKOVEC","ROBADJE / ČAKOVEC / PUK ČAKOVEC"]
[302198,"ROČ","BUZET","PUK PULA","ROČ / BUZET / PUK PULA"]
[318205,"ROGOLJI","NOVA GRADIŠKA","PUK SLAVONSKI BROD","ROGOLJI / NOVA GRADIŠKA / PUK SLAVONSKI BROD"]
[336831,"ROGOTIN","PLOČE","PUK DUBROVNIK","ROGOTIN / PLOČE / PUK DUBROVNIK"]
[332658,"ROGOVAC","VIROVITICA","PUK VIROVITICA","ROGOVAC / VIROVITICA / PUK VIROVITICA"]
[319724,"ROGOZNICA","OMIŠ","PUK SPLIT","ROGOZNICA / OMIŠ / PUK SPLIT"]
[330191,"ROGOZNICA","ŠIBENIK","PUK ŠIBENIK","ROGOZNICA / ŠIBENIK / PUK ŠIBENIK"]
[308536,"ROGULJE","DVOR","PUK SISAK","ROGULJE / DVOR / PUK SISAK"]
[322059,"ROGULJE","PAKRAC","PUK POŽEGA","ROGULJE / PAKRAC / PUK POŽEGA"]
[332275,"ROKOVCI","VINKOVCI","PUK VUKOVAR",{"$f":"B2498&\" / \"&C2498&\" / \"&D2498","v":"ROKOVCI / VINKOVCI / PUK VUKOVAR"}]
[307939,"ROSOPAJNIK","DUGA RESA","PUK KARLOVAC","ROSOPAJNIK / DUGA RESA / PUK KARLOVAC"]
[324914,"ROVINJ","ROVINJ","PUK PULA","ROVINJ / ROVINJ / PUK PULA"]
[324922,"ROVINJSKO SELO","ROVINJ","PUK PULA","ROVINJSKO SELO / ROVINJ / PUK PULA"]
[301396,"ROVIŠĆE","BJELOVAR","PUK BJELOVAR","ROVIŠĆE / BJELOVAR / PUK BJELOVAR"]
[310425,"ROVIŠKA","GLINA","PUK SISAK","ROVIŠKA / GLINA / PUK SISAK"]
[307092,"ROŽAT","DUBROVNIK","PUK DUBROVNIK","ROŽAT / DUBROVNIK / PUK DUBROVNIK"]
[318973,"ROŽDANIK","NOVSKA","PUK SISAK","ROŽDANIK / NOVSKA / PUK SISAK"]
[331805,"ROŽENICA","VELIKA GORICA","PUK ZAGREB","ROŽENICA / VELIKA GORICA / PUK ZAGREB"]
[331813,"RUČA","VELIKA GORICA","PUK ZAGREB","RUČA / VELIKA GORICA / PUK ZAGREB"]
[325821,"RUDA","SINJ","PUK SPLIT","RUDA / SINJ / PUK SPLIT"]
[325163,"RUDE","SAMOBOR","PUK ZAGREB","RUDE / SAMOBOR / PUK ZAGREB"]
[335614,"RUDEŠ","GU ZAGREB","PUK ZAGREB","RUDEŠ / GU ZAGREB / PUK ZAGREB"]
[320978,"RUDOPOLJE","OTOČAC","PUK GOSPIĆ","RUDOPOLJE / OTOČAC / PUK GOSPIĆ"]
[311278,"RUDOPOLJE BRUVANJSKO","GRAČAC","PUK ZADAR","RUDOPOLJE BRUVANJSKO / GRAČAC / PUK ZADAR"]
[308188,"RUGVICA","DUGO SELO","PUK ZAGREB","RUGVICA / DUGO SELO / PUK ZAGREB"]
[308544,"RUJEVAC","DVOR","PUK SISAK","RUJEVAC / DVOR / PUK SISAK"]
[320099,"RUKAVAC DONJI","OPATIJA","PUK RIJEKA","RUKAVAC DONJI / OPATIJA / PUK RIJEKA"]
[320102,"RUKAVAC GORNJI","OPATIJA","PUK RIJEKA","RUKAVAC GORNJI / OPATIJA / PUK RIJEKA"]
[311987,"RUNOVIĆ","IMOTSKI","PUK SPLIT","RUNOVIĆ / IMOTSKI / PUK SPLIT"]
[320129,"RUPA","OPATIJA","PUK RIJEKA","RUPA / OPATIJA / PUK RIJEKA"]
[330205,"RUPE","ŠIBENIK","PUK ŠIBENIK","RUPE / ŠIBENIK / PUK ŠIBENIK"]
[332666,"RUŠANI","VIROVITICA","PUK VIROVITICA","RUŠANI / VIROVITICA / PUK VIROVITICA"]
[328693,"RUŠČICA","SLAVONSKI BROD","PUK SLAVONSKI BROD","RUŠČICA / SLAVONSKI BROD / PUK SLAVONSKI BROD"]
[315737,"RUŠEVAC","KRIŽEVCI","PUK KOPRIVNICA","RUŠEVAC / KRIŽEVCI / PUK KOPRIVNICA"]
[327719,"RUŠEVO","POŽEGA","PUK POŽEGA","RUŠEVO / POŽEGA / PUK POŽEGA"]
[309826,"RUŠKOVAC","GAREŠNICA","PUK BJELOVAR","RUŠKOVAC / GAREŠNICA / PUK BJELOVAR"]
[316300,"RUŠKOVICA","KUTINA","PUK SISAK","RUŠKOVICA / KUTINA / PUK SISAK"]
[305952,"RUŽIĆ","DRNIŠ","PUK ŠIBENIK","RUŽIĆ / DRNIŠ / PUK ŠIBENIK"]
[324744,"RUŽIĆ SELO","RIJEKA","PUK RIJEKA","RUŽIĆ SELO / RIJEKA / PUK RIJEKA"]
[319457,"SABORSKO","OGULIN","PUK KARLOVAC","SABORSKO / OGULIN / PUK KARLOVAC"]
[329347,"SADILOVAC","SLUNJ","PUK KARLOVAC","SADILOVAC / SLUNJ / PUK KARLOVAC"]
[302252,"SALEŽ","BUZET","PUK PULA","SALEŽ / BUZET / PUK PULA"]
[334952,"SALI","ZADAR","PUK ZADAR","SALI / ZADAR / PUK ZADAR"]
[339091,"SALI NOVO","ZADAR","PUK ZADAR","SALI NOVO / ZADAR / PUK ZADAR"]
[333204,"SALNIK","SVETI IVAN ZELINA","PUK ZAGREB","SALNIK / SVETI IVAN ZELINA / PUK ZAGREB"]
[303941,"SAMARICA","ČAZMA","PUK BJELOVAR","SAMARICA / ČAZMA / PUK BJELOVAR"]
[325171,"SAMOBOR","SAMOBOR","PUK ZAGREB","SAMOBOR / SAMOBOR / PUK ZAGREB"]
[333212,"SAMOBOREC","VRBOVEC","PUK ZAGREB","SAMOBOREC / VRBOVEC / PUK ZAGREB"]
[316644,"SANTALEZI","LABIN","PUK PULA","SANTALEZI / LABIN / PUK PULA"]
[328707,"SAPCI","SLAVONSKI BROD","PUK SLAVONSKI BROD","SAPCI / SLAVONSKI BROD / PUK SLAVONSKI BROD"]
[327727,"SAPNA","POŽEGA","PUK POŽEGA","SAPNA / POŽEGA / PUK POŽEGA"]
[320706,"SARVAŠ","OSIJEK","PUK OSIJEK","SARVAŠ / OSIJEK / PUK OSIJEK"]
[301400,"SASOVAC","BJELOVAR","PUK BJELOVAR","SASOVAC / BJELOVAR / PUK BJELOVAR"]
[330949,"SATNICA","VALPOVO","PUK OSIJEK","SATNICA / VALPOVO / PUK OSIJEK"]
[309095,"SATNICA ĐAKOVAČKA","ĐAKOVO","PUK OSIJEK","SATNICA ĐAKOVAČKA / ĐAKOVO / PUK OSIJEK"]
[325830,"SATRIĆ","SINJ","PUK SPLIT","SATRIĆ / SINJ / PUK SPLIT"]
[334979,"SAVAR","ZADAR","PUK ZADAR","SAVAR / ZADAR / PUK ZADAR"]
[303488,"SAVSKA VES","ČAKOVEC","PUK ČAKOVEC","SAVSKA VES / ČAKOVEC / PUK ČAKOVEC"]
[301981,"SAVUDRIJA","BUJE","PUK PULA","SAVUDRIJA / BUJE / PUK PULA"]
[327735,"SAŽIJE","POŽEGA","PUK POŽEGA","SAŽIJE / POŽEGA / PUK POŽEGA"]
[309508,"SEDLARICA","PITOMAČA","PUK VIROVITICA","SEDLARICA / PITOMAČA / PUK VIROVITICA"]
[305979,"SEDRAMIĆ","DRNIŠ","PUK ŠIBENIK","SEDRAMIĆ / DRNIŠ / PUK ŠIBENIK"]
[330680,"SEGET DONJI","TROGIR","PUK SPLIT","SEGET DONJI / TROGIR / PUK SPLIT"]
[330701,"SEGET GORNJI","TROGIR","PUK SPLIT","SEGET GORNJI / TROGIR / PUK SPLIT"]
[337633,"SEGOVINA","LUDBREG","PUK VARAŽDIN","SEGOVINA / LUDBREG / PUK VARAŽDIN"]
[321346,"SEKULIĆI","OZALJ","PUK KARLOVAC","SEKULIĆI / OZALJ / PUK KARLOVAC"]
[323497,"SEKULINCI","SLATINA","PUK VIROVITICA","SEKULINCI / SLATINA / PUK VIROVITICA"]
[326674,"SELA","SISAK","PUK SISAK","SELA / SISAK / PUK SISAK"]
[332852,"SELAKOVA POLJANA","VOJNIĆ","PUK KARLOVAC","SELAKOVA POLJANA / VOJNIĆ / PUK KARLOVAC"]
[301701,"SELCA","SUPETAR","PUK SPLIT","SELCA / SUPETAR / PUK SPLIT"]
[338770,"SELCE - NOVA","CRIKVENICA","PUK RIJEKA","SELCE - NOVA / CRIKVENICA / PUK RIJEKA"]
[302686,"SELCE","CRIKVENICA","PUK RIJEKA","SELCE / CRIKVENICA / PUK RIJEKA"]
[309109,"SELCI ĐAKOVAČKI","ĐAKOVO","PUK OSIJEK","SELCI ĐAKOVAČKI / ĐAKOVO / PUK OSIJEK"]
[334987,"SELINE","ZADAR","PUK ZADAR",{"$f":"B2562&\" / \"&C2562&\" / \"&D2562","v":"SELINE / ZADAR / PUK ZADAR"}]
[326682,"SELIŠĆE","SISAK","PUK SISAK","SELIŠĆE / SISAK / PUK SISAK"]
[316318,"SELIŠTE","KUTINA","PUK SISAK","SELIŠTE / KUTINA / PUK SISAK"]
[315052,"SELIŠTE KOSTAJNIČKO","HRVATSKA KOSTAJNICA","PUK SISAK","SELIŠTE KOSTAJNIČKO / HRVATSKA KOSTAJNICA / PUK SISAK"]
[328715,"SELNA","SLAVONSKI BROD","PUK SLAVONSKI BROD","SELNA / SLAVONSKI BROD / PUK SLAVONSKI BROD"]
[303496,"SELNICA","ČAKOVEC","PUK ČAKOVEC","SELNICA / ČAKOVEC / PUK ČAKOVEC"]
[304913,"SELNICA","DONJA STUBICA","PUK KRAPINA","SELNICA / DONJA STUBICA / PUK KRAPINA"]
[314510,"SELNICA PODRAVSKA","KOPRIVNICA","PUK KOPRIVNICA","SELNICA PODRAVSKA / KOPRIVNICA / PUK KOPRIVNICA"]
[316920,"SELNIK","LUDBREG","PUK VARAŽDIN","SELNIK / LUDBREG / PUK VARAŽDIN"]
[334464,"SELNO","ZABOK","PUK KRAPINA","SELNO / ZABOK / PUK KRAPINA"]
[309117,"SEMELJCI","ĐAKOVO","PUK OSIJEK","SEMELJCI / ĐAKOVO / PUK OSIJEK"]
[322482,"SEMIĆ","PAZIN","PUK PULA","SEMIĆ / PAZIN / PUK PULA"]
[302201,"SENJ","BUZET","PUK PULA","SENJ / BUZET / PUK PULA"]
[325309,"SENJ","SENJ","PUK GOSPIĆ","SENJ / SENJ / PUK GOSPIĆ"]
[305227,"SEOCE","DONJI LAPAC","PUK GOSPIĆ","SEOCE / DONJI LAPAC / PUK GOSPIĆ"]
[318213,"SEOCE","NOVA GRADIŠKA","PUK SLAVONSKI BROD","SEOCE / NOVA GRADIŠKA / PUK SLAVONSKI BROD"]
[327743,"SEOCI","POŽEGA","PUK POŽEGA","SEOCI / POŽEGA / PUK POŽEGA"]
[317489,"SEONA","NAŠICE","PUK OSIJEK","SEONA / NAŠICE / PUK OSIJEK"]
[334995,"SESTRUNJ","ZADAR","PUK ZADAR","SESTRUNJ / ZADAR / PUK ZADAR"]
[325422,"SESVETE","GU ZAGREB","PUK ZAGREB","SESVETE / GU ZAGREB / PUK ZAGREB"]
[327751,"SESVETE","POŽEGA","PUK POŽEGA","SESVETE / POŽEGA / PUK POŽEGA"]
[316849,"SESVETE LUDBREŠKE","LUDBREG","PUK VARAŽDIN","SESVETE LUDBREŠKE / LUDBREG / PUK VARAŽDIN"]
[338796,"SESVETE NOVO","GU ZAGREB","PUK ZAGREB","SESVETE NOVO / GU ZAGREB / PUK ZAGREB"]
[325392,"SESVETSKI KRALJEVEC","GU ZAGREB","PUK ZAGREB","SESVETSKI KRALJEVEC / GU ZAGREB / PUK ZAGREB"]
[326704,"SETUŠ","SISAK","PUK SISAK","SETUŠ / SISAK / PUK SISAK"]
[301418,"SEVERIN","BJELOVAR","PUK BJELOVAR","SEVERIN / BJELOVAR / PUK BJELOVAR"]
[333450,"SEVERIN NA KUPI","VRBOVSKO","PUK RIJEKA","SEVERIN NA KUPI / VRBOVSKO / PUK RIJEKA"]
[309516,"SEVEROVCI","ĐURĐEVAC","PUK KOPRIVNICA","SEVEROVCI / ĐURĐEVAC / PUK KOPRIVNICA"]
[330213,"SEVID","ŠIBENIK","PUK ŠIBENIK","SEVID / ŠIBENIK / PUK ŠIBENIK"]
[311553,"SIBENIK","GRUBIŠNO POLJE","PUK BJELOVAR","SIBENIK / GRUBIŠNO POLJE / PUK BJELOVAR"]
[323004,"SIBIĆ","PETRINJA","PUK SISAK","SIBIĆ / PETRINJA / PUK SISAK"]
[328723,"SIBINJ","SLAVONSKI BROD","PUK SLAVONSKI BROD","SIBINJ / SLAVONSKI BROD / PUK SLAVONSKI BROD"]
[327832,"SIBOKOVAC","POŽEGA","PUK POŽEGA","SIBOKOVAC / POŽEGA / PUK POŽEGA"]
[318230,"SIČE","NOVA GRADIŠKA","PUK SLAVONSKI BROD","SIČE / NOVA GRADIŠKA / PUK SLAVONSKI BROD"]
[318221,"SIČICE","NOVA GRADIŠKA","PUK SLAVONSKI BROD","SIČICE / NOVA GRADIŠKA / PUK SLAVONSKI BROD"]
[325848,"SIĆANE","SINJ","PUK SPLIT","SIĆANE / SINJ / PUK SPLIT"]
[314528,"SIGETEC","KOPRIVNICA","PUK KOPRIVNICA","SIGETEC / KOPRIVNICA / PUK KOPRIVNICA"]
[316865,"SIGETEC LUDBREŠKI","LUDBREG","PUK VARAŽDIN","SIGETEC LUDBREŠKI / LUDBREG / PUK VARAŽDIN"]
[328731,"SIKIREVCI","SLAVONSKI BROD","PUK SLAVONSKI BROD","SIKIREVCI / SLAVONSKI BROD / PUK SLAVONSKI BROD"]
[335002,"SILBA","ZADAR","PUK ZADAR","SILBA / ZADAR / PUK ZADAR"]
[320986,"SINAC","OTOČAC","PUK GOSPIĆ","SINAC / OTOČAC / PUK GOSPIĆ"]
[325856,"SINJ","SINJ","PUK SPLIT","SINJ / SINJ / PUK SPLIT"]
[304387,"SIRAČ","DARUVAR","PUK BJELOVAR","SIRAČ / DARUVAR / PUK BJELOVAR"]
[309524,"SIROVA KATALENA","ĐURĐEVAC","PUK KOPRIVNICA","SIROVA KATALENA / ĐURĐEVAC / PUK KOPRIVNICA"]
[326755,"SISAK STARI","SISAK","PUK SISAK","SISAK STARI / SISAK / PUK SISAK"]
[303950,"SIŠĆANI","ČAZMA","PUK BJELOVAR","SIŠĆANI / ČAZMA / PUK BJELOVAR"]
[313599,"SITNO","KAŠTEL SUĆURAC","PUK SPLIT","SITNO / KAŠTEL SUĆURAC / PUK SPLIT"]
[329819,"SITNO","SPLIT","PUK SPLIT","SITNO / SPLIT / PUK SPLIT"]
[330221,"SITNO DONJE","ŠIBENIK","PUK ŠIBENIK","SITNO DONJE / ŠIBENIK / PUK ŠIBENIK"]
[339130,"SITNO NOVA","SPLIT","PUK SPLIT","SITNO NOVA / SPLIT / PUK SPLIT"]
[305987,"SIVERIĆ","DRNIŠ","PUK ŠIBENIK","SIVERIĆ / DRNIŠ / PUK ŠIBENIK"]
[303500,"SIVICA","ČAKOVEC","PUK ČAKOVEC","SIVICA / ČAKOVEC / PUK ČAKOVEC"]
[313262,"SJENIČAK LASINJSKI","KARLOVAC","PUK KARLOVAC","SJENIČAK LASINJSKI / KARLOVAC / PUK KARLOVAC"]
[326712,"SJEVEROVAC","SISAK","PUK SISAK","SJEVEROVAC / SISAK / PUK SISAK"]
[313289,"SKAKAVAC","KARLOVAC","PUK KARLOVAC","SKAKAVAC / KARLOVAC / PUK KARLOVAC"]
[310433,"SKELA","GLINA","PUK SISAK","SKELA / GLINA / PUK SISAK"]
[322067,"SKENDEROVCI","PAKRAC","PUK POŽEGA","SKENDEROVCI / PAKRAC / PUK POŽEGA"]
[338281,"SKENDEROVCI","POŽEGA","PUK POŽEGA","SKENDEROVCI / POŽEGA / PUK POŽEGA"]
[316652,"SKITAČA","LABIN","PUK PULA","SKITAČA / LABIN / PUK PULA"]
[330230,"SKRADIN","ŠIBENIK","PUK ŠIBENIK","SKRADIN / ŠIBENIK / PUK ŠIBENIK"]
[319465,"SKRADNIK","OGULIN","PUK KARLOVAC","SKRADNIK / OGULIN / PUK KARLOVAC"]
[315982,"SKRBČIĆI","KRK","PUK RIJEKA","SKRBČIĆI / KRK / PUK RIJEKA"]
[315079,"SLABINJA","HRVATSKA KOSTAJNICA","PUK SISAK","SLABINJA / HRVATSKA KOSTAJNICA / PUK SISAK"]
[323519,"SLADOJEVCI","SLATINA","PUK VIROVITICA","SLADOJEVCI / SLATINA / PUK VIROVITICA"]
[332283,"SLAKOVCI","VINKOVCI","PUK VUKOVAR",{"$f":"B2626&\" / \"&C2626&\" / \"&D2626","v":"SLAKOVCI / VINKOVCI / PUK VUKOVAR"}]
[303518,"SLAKOVEC","ČAKOVEC","PUK ČAKOVEC","SLAKOVEC / ČAKOVEC / PUK ČAKOVEC"]
[323012,"SLANA","PETRINJA","PUK SISAK","SLANA / PETRINJA / PUK SISAK"]
[325180,"SLANI DOL","SAMOBOR","PUK ZAGREB","SLANI DOL / SAMOBOR / PUK ZAGREB"]
[304921,"SLANI POTOK","DONJA STUBICA","PUK KRAPINA","SLANI POTOK / DONJA STUBICA / PUK KRAPINA"]
[307106,"SLANO","DUBROVNIK","PUK DUBROVNIK","SLANO / DUBROVNIK / PUK DUBROVNIK"]
[316938,"SLANJE","LUDBREG","PUK VARAŽDIN","SLANJE / LUDBREG / PUK VARAŽDIN"]
[321354,"SLAPNO","OZALJ","PUK KARLOVAC","SLAPNO / OZALJ / PUK KARLOVAC"]
[329827,"SLATINE","SPLIT","PUK SPLIT","SLATINE / SPLIT / PUK SPLIT"]
[309125,"SLATINIK DRENJSKI","ĐAKOVO","PUK OSIJEK","SLATINIK DRENJSKI / ĐAKOVO / PUK OSIJEK"]
[328740,"SLATINIK MALI","SLAVONSKI BROD","PUK SLAVONSKI BROD","SLATINIK MALI / SLAVONSKI BROD / PUK SLAVONSKI BROD"]
[320412,"SLATINSKI DRENOVAC","ORAHOVICA","PUK VIROVITICA","SLATINSKI DRENOVAC / ORAHOVICA / PUK VIROVITICA"]
[323527,"SLATINSKI LIPOVAC","SLATINA","PUK VIROVITICA","SLATINSKI LIPOVAC / SLATINA / PUK VIROVITICA"]
[312819,"SLAVETIĆ","JASTREBARSKO","PUK ZAGREB","SLAVETIĆ / JASTREBARSKO / PUK ZAGREB"]
[320218,"SLAVONSKE BARE","ORAHOVICA","PUK VIROVITICA","SLAVONSKE BARE / ORAHOVICA / PUK VIROVITICA"]
[328758,"SLAVONSKI BROD","SLAVONSKI BROD","PUK SLAVONSKI BROD","SLAVONSKI BROD / SLAVONSKI BROD / PUK SLAVONSKI BROD"]
[328766,"SLAVONSKI KOBAŠ","SLAVONSKI BROD","PUK SLAVONSKI BROD","SLAVONSKI KOBAŠ / SLAVONSKI BROD / PUK SLAVONSKI BROD"]
[328863,"SLAVONSKI ŠAMAC","SLAVONSKI BROD","PUK SLAVONSKI BROD","SLAVONSKI ŠAMAC / SLAVONSKI BROD / PUK SLAVONSKI BROD"]
[333794,"SLAVSKO POLJE","TOPUSKO","PUK SISAK","SLAVSKO POLJE / TOPUSKO / PUK SISAK"]
[319732,"SLIME","OMIŠ","PUK SPLIT","SLIME / OMIŠ / PUK SPLIT"]
[335029,"SLIVNICA","ZADAR","PUK ZADAR","SLIVNICA / ZADAR / PUK ZADAR"]
[311995,"SLIVNO","IMOTSKI","PUK SPLIT","SLIVNO / IMOTSKI / PUK SPLIT"]
[317187,"SLIVNO","METKOVIĆ","PUK DUBROVNIK","SLIVNO / METKOVIĆ / PUK DUBROVNIK"]
[330248,"SLIVNO","ŠIBENIK","PUK ŠIBENIK","SLIVNO / ŠIBENIK / PUK ŠIBENIK"]
[309133,"SLOBODNA VLAST","ĐAKOVO","PUK OSIJEK","SLOBODNA VLAST / ĐAKOVO / PUK OSIJEK"]
[328774,"SLOBODNICA","SLAVONSKI BROD","PUK SLAVONSKI BROD","SLOBODNICA / SLAVONSKI BROD / PUK SLAVONSKI BROD"]
[327778,"SLOBOŠTINA","POŽEGA","PUK POŽEGA","SLOBOŠTINA / POŽEGA / PUK POŽEGA"]
[316946,"SLOKOVEC","LUDBREG","PUK VARAŽDIN","SLOKOVEC / LUDBREG / PUK VARAŽDIN"]
[326739,"SLOVINCI","SISAK","PUK SISAK","SLOVINCI / SISAK / PUK SISAK"]
[301426,"SLOVINSKA KOVAČICA","BJELOVAR","PUK BJELOVAR","SLOVINSKA KOVAČICA / BJELOVAR / PUK BJELOVAR"]
[302210,"SLUM","BUZET","PUK PULA","SLUM / BUZET / PUK PULA"]
[329355,"SLUNJ","SLUNJ","PUK KARLOVAC","SLUNJ / SLUNJ / PUK KARLOVAC"]
[337773,"SLUNJ 1","SLUNJ","PUK KARLOVAC","SLUNJ 1 / SLUNJ / PUK KARLOVAC"]
[300683,"SMILČIĆ","BENKOVAC","PUK ZADAR","SMILČIĆ / BENKOVAC / PUK ZADAR"]
[311014,"SMILJAN","GOSPIĆ","PUK GOSPIĆ","SMILJAN / GOSPIĆ / PUK GOSPIĆ"]
[335037,"SMOKOVIĆ","ZADAR","PUK ZADAR","SMOKOVIĆ / ZADAR / PUK ZADAR"]
[307114,"SMOKOVLJANI","DUBROVNIK","PUK DUBROVNIK","SMOKOVLJANI / DUBROVNIK / PUK DUBROVNIK"]
[311286,"SMOKRIĆ","LOVINAC","PUK GOSPIĆ","SMOKRIĆ / LOVINAC / PUK GOSPIĆ"]
[314749,"SMOKVICA","BLATO","PUK DUBROVNIK","SMOKVICA / BLATO / PUK DUBROVNIK"]
[330558,"SMOLJANAC","KORENICA","PUK GOSPIĆ","SMOLJANAC / KORENICA / PUK GOSPIĆ"]
[324272,"SMOLJANCI","PULA","PUK PULA","SMOLJANCI / PULA / PUK PULA"]
[314056,"SMRDELJE","KNIN","PUK ŠIBENIK","SMRDELJE / KNIN / PUK ŠIBENIK"]
[318248,"SMRTIĆ","NOVA GRADIŠKA","PUK SLAVONSKI BROD","SMRTIĆ / NOVA GRADIŠKA / PUK SLAVONSKI BROD"]
[323535,"SMUDE","SLATINA","PUK VIROVITICA","SMUDE / SLATINA / PUK VIROVITICA"]
[308552,"SOČANICA","DVOR","PUK SISAK","SOČANICA / DVOR / PUK SISAK"]
[304395,"SOKOLOVAC","DARUVAR","PUK BJELOVAR","SOKOLOVAC / DARUVAR / PUK BJELOVAR"]
[314536,"SOKOLOVAC","KOPRIVNICA","PUK KOPRIVNICA","SOKOLOVAC / KOPRIVNICA / PUK KOPRIVNICA"]
[329711,"SOLIN","SOLIN","PUK SPLIT","SOLIN / SOLIN / PUK SPLIT"]
[307122,"SOLINE","DUBROVNIK","PUK DUBROVNIK","SOLINE / DUBROVNIK / PUK DUBROVNIK"]
[316008,"SOLINE","KRK","PUK RIJEKA","SOLINE / KRK / PUK RIJEKA"]
[335045,"SOLINE","ZADAR","PUK ZADAR","SOLINE / ZADAR / PUK ZADAR"]
[336343,"SOLJANI","ŽUPANJA","PUK VUKOVAR","SOLJANI / ŽUPANJA / PUK VUKOVAR"]
[323543,"SOPJE","SLATINA","PUK VIROVITICA","SOPJE / SLATINA / PUK VIROVITICA"]
[324019,"SOPOT","PREGRADA","PUK KRAPINA","SOPOT / PREGRADA / PUK KRAPINA"]
[312827,"SOŠICE","JASTREBARSKO","PUK ZAGREB","SOŠICE / JASTREBARSKO / PUK ZAGREB"]
[324949,"SOŠIĆI","ROVINJ","PUK PULA","SOŠIĆI / ROVINJ / PUK PULA"]
[334243,"SOTIN","VUKOVAR","PUK VUKOVAR","SOTIN / VUKOVAR / PUK VUKOVAR"]
[302228,"SOVINJAK","BUZET","PUK PULA","SOVINJAK / BUZET / PUK PULA"]
[302236,"SOVIŠĆINA","BUZET","PUK PULA","SOVIŠĆINA / BUZET / PUK PULA"]
[327786,"SOVSKI DOL","POŽEGA","PUK POŽEGA","SOVSKI DOL / POŽEGA / PUK POŽEGA"]
[307149,"SPARAGOVIĆI","DUBROVNIK","PUK DUBROVNIK","SPARAGOVIĆI / DUBROVNIK / PUK DUBROVNIK"]
[329835,"SPLIT","SPLIT","PUK SPLIT","SPLIT / SPLIT / PUK SPLIT"]
[301710,"SPLITSKA","SUPETAR","PUK SPLIT","SPLITSKA / SUPETAR / PUK SPLIT"]
[321362,"SRAČAK","OZALJ","PUK KARLOVAC","SRAČAK / OZALJ / PUK KARLOVAC"]
[331295,"SRAČINEC","VARAŽDIN","PUK VARAŽDIN",{"$f":"B2690&\" / \"&C2690&\" / \"&D2690","v":"SRAČINEC / VARAŽDIN / PUK VARAŽDIN"}]
[305235,"SRB","GRAČAC","PUK ZADAR","SRB / GRAČAC / PUK ZADAR"]
[324752,"SRDOČI","RIJEKA","PUK RIJEKA","SRDOČI / RIJEKA / PUK RIJEKA"]
[328782,"SREDANCI","SLAVONSKI BROD","PUK SLAVONSKI BROD","SREDANCI / SLAVONSKI BROD / PUK SLAVONSKI BROD"]
[301060,"SREDICE GORNJE","BJELOVAR","PUK BJELOVAR","SREDICE GORNJE / BJELOVAR / PUK BJELOVAR"]
[330566,"SREDNJA GORA","KORENICA","PUK GOSPIĆ","SREDNJA GORA / KORENICA / PUK GOSPIĆ"]
[329843,"SREDNJE SELO","SPLIT","PUK SPLIT","SREDNJE SELO / SPLIT / PUK SPLIT"]
[318256,"SREDNJI LIPOVAC","NOVA GRADIŠKA","PUK SLAVONSKI BROD","SREDNJI LIPOVAC / NOVA GRADIŠKA / PUK SLAVONSKI BROD"]
[307157,"SRESER","DUBROVNIK","PUK DUBROVNIK","SRESER / DUBROVNIK / PUK DUBROVNIK"]
[319759,"SRIJANE","OMIŠ","PUK SPLIT","SRIJANE / OMIŠ / PUK SPLIT"]
[303968,"SRIJEDSKA","ČAZMA","PUK BJELOVAR","SRIJEDSKA / ČAZMA / PUK BJELOVAR"]
[314544,"SRIJEM","KOPRIVNICA","PUK KOPRIVNICA","SRIJEM / KOPRIVNICA / PUK KOPRIVNICA"]
[332291,"SRIJEMSKE LAZE","VINKOVCI","PUK VUKOVAR","SRIJEMSKE LAZE / VINKOVCI / PUK VUKOVAR"]
[330256,"SRIMA","ŠIBENIK","PUK ŠIBENIK","SRIMA / ŠIBENIK / PUK ŠIBENIK"]
[329851,"SRINJINE","SPLIT","PUK SPLIT","SRINJINE / SPLIT / PUK SPLIT"]
[321001,"STAJNICA","OTOČAC","PUK GOSPIĆ","STAJNICA / OTOČAC / PUK GOSPIĆ"]
[303526,"STANETINEC","ČAKOVEC","PUK ČAKOVEC","STANETINEC / ČAKOVEC / PUK ČAKOVEC"]
[308579,"STANIĆ POLJE","DVOR","PUK SISAK","STANIĆ POLJE / DVOR / PUK SISAK"]
[310441,"STANKOVAC","GLINA","PUK SISAK","STANKOVAC / GLINA / PUK SISAK"]
[300691,"STANKOVCI","BENKOVAC","PUK ZADAR","STANKOVCI / BENKOVAC / PUK ZADAR"]
[314757,"STANKOVIĆ","KORČULA","PUK DUBROVNIK","STANKOVIĆ / KORČULA / PUK DUBROVNIK"]
[316016,"STARA BAŠKA","KRK","PUK RIJEKA","STARA BAŠKA / KRK / PUK RIJEKA"]
[326747,"STARA DRENČINA","SISAK","PUK SISAK","STARA DRENČINA / SISAK / PUK SISAK"]
[320439,"STARA JOŠAVA","ORAHOVICA","PUK VIROVITICA","STARA JOŠAVA / ORAHOVICA / PUK VIROVITICA"]
[318264,"STARA KAPELA","NOVA GRADIŠKA","PUK SLAVONSKI BROD","STARA KAPELA / NOVA GRADIŠKA / PUK SLAVONSKI BROD"]
[327794,"STARA LIPA","POŽEGA","PUK POŽEGA","STARA LIPA / POŽEGA / PUK POŽEGA"]
[303976,"STARA PLOŠĆICA","ČAZMA","PUK BJELOVAR","STARA PLOŠĆICA / ČAZMA / PUK BJELOVAR"]
[304654,"STARA SUŠICA","DELNICE","PUK RIJEKA","STARA SUŠICA / DELNICE / PUK RIJEKA"]
[301434,"STARE PLAVNICE","BJELOVAR","PUK BJELOVAR","STARE PLAVNICE / BJELOVAR / PUK BJELOVAR"]
[333247,"STARI GLOG","VRBOVEC","PUK ZAGREB","STARI GLOG / VRBOVEC / PUK ZAGREB"]
[318990,"STARI GRABOVAC","NOVSKA","PUK SISAK","STARI GRABOVAC / NOVSKA / PUK SISAK"]
[324779,"STARI GRAD","RIJEKA","PUK RIJEKA","STARI GRAD / RIJEKA / PUK RIJEKA"]
[311723,"STARI GRAD","STARI GRAD","PUK SPLIT","STARI GRAD / STARI GRAD / PUK SPLIT"]
[309532,"STARI GRADAC","PITOMAČA","PUK VIROVITICA","STARI GRADAC / PITOMAČA / PUK VIROVITICA"]
[332305,"STARI JANKOVCI","VINKOVCI","PUK VUKOVAR","STARI JANKOVCI / VINKOVCI / PUK VUKOVAR"]
[304662,"STARI LAZ","DELNICE","PUK RIJEKA","STARI LAZ / DELNICE / PUK RIJEKA"]
[332313,"STARI MIKANOVCI","VINKOVCI","PUK VUKOVAR","STARI MIKANOVCI / VINKOVCI / PUK VUKOVAR"]
[328804,"STARI PERKOVCI","SLAVONSKI BROD","PUK SLAVONSKI BROD","STARI PERKOVCI / SLAVONSKI BROD / PUK SLAVONSKI BROD"]
[328812,"STARI SLATINIK","SLAVONSKI BROD","PUK SLAVONSKI BROD","STARI SLATINIK / SLAVONSKI BROD / PUK SLAVONSKI BROD"]
[325317,"STARIGRAD","SENJ","PUK GOSPIĆ","STARIGRAD / SENJ / PUK GOSPIĆ"]
[335053,"STARIGRAD","ZADAR","PUK ZADAR","STARIGRAD / ZADAR / PUK ZADAR"]
[323551,"STARIN","SLATINA","PUK VIROVITICA","STARIN / SLATINA / PUK VIROVITICA"]
[335509,"STARJAK","GU ZAGREB","PUK ZAGREB","STARJAK / GU ZAGREB / PUK ZAGREB"]
[331821,"STARO ČIČE","VELIKA GORICA","PUK ZAGREB","STARO ČIČE / VELIKA GORICA / PUK ZAGREB"]
[318272,"STARO PETROVO SELO","NOVA GRADIŠKA","PUK SLAVONSKI BROD","STARO PETROVO SELO / NOVA GRADIŠKA / PUK SLAVONSKI BROD"]
[326763,"STARO SELO","SISAK","PUK SISAK","STARO SELO / SISAK / PUK SISAK"]
[333808,"STARO SELO TOPUSKO","TOPUSKO","PUK SISAK","STARO SELO TOPUSKO / TOPUSKO / PUK SISAK"]
[328839,"STARO TOPOLJE","SLAVONSKI BROD","PUK SLAVONSKI BROD","STARO TOPOLJE / SLAVONSKI BROD / PUK SLAVONSKI BROD"]
[326771,"STAZA","SISAK","PUK SISAK","STAZA / SISAK / PUK SISAK"]
[335592,"STENJEVEC","GU ZAGREB","PUK ZAGREB","STENJEVEC / GU ZAGREB / PUK ZAGREB"]
[333964,"STILJA","VRGORAC","PUK SPLIT","STILJA / VRGORAC / PUK SPLIT"]
[325325,"STINICA","SENJ","PUK GOSPIĆ","STINICA / SENJ / PUK GOSPIĆ"]
[333816,"STIPAN","TOPUSKO","PUK SISAK","STIPAN / TOPUSKO / PUK SISAK"]
[336661,"STIPANOVCI","NAŠICE","PUK OSIJEK","STIPANOVCI / NAŠICE / PUK OSIJEK"]
[302481,"STIVAN","CRES","PUK RIJEKA","STIVAN / CRES / PUK RIJEKA"]
[329860,"STOBREČ","SPLIT","PUK SPLIT","STOBREČ / SPLIT / PUK SPLIT"]
[307165,"STON","DUBROVNIK","PUK DUBROVNIK","STON / DUBROVNIK / PUK DUBROVNIK"]
[303534,"STRAHONINEC","ČAKOVEC","PUK ČAKOVEC","STRAHONINEC / ČAKOVEC / PUK ČAKOVEC"]
[323039,"STRAŠNIK","PETRINJA","PUK SISAK","STRAŠNIK / PETRINJA / PUK SISAK"]
[307173,"STRAVČA","DUBROVNIK","PUK DUBROVNIK","STRAVČA / DUBROVNIK / PUK DUBROVNIK"]
[323047,"STRAŽBENICA","PETRINJA","PUK SISAK","STRAŽBENICA / PETRINJA / PUK SISAK"]
[327808,"STRAŽEMAN","POŽEGA","PUK POŽEGA","STRAŽEMAN / POŽEGA / PUK POŽEGA"]
[303542,"STRELEC","ČAKOVEC","PUK ČAKOVEC","STRELEC / ČAKOVEC / PUK ČAKOVEC"]
[325864,"STRIZIREP","SINJ","PUK SPLIT","STRIZIREP / SINJ / PUK SPLIT"]
[309141,"STRIZIVOJNA","ĐAKOVO","PUK OSIJEK",{"$f":"B2754&\" / \"&C2754&\" / \"&D2754","v":"STRIZIVOJNA / ĐAKOVO / PUK OSIJEK"}]
[322075,"STRIŽIČEVAC","PAKRAC","PUK POŽEGA","STRIŽIČEVAC / PAKRAC / PUK POŽEGA"]
[334472,"STRMEC","ZABOK","PUK KRAPINA","STRMEC / ZABOK / PUK KRAPINA"]
[331830,"STRMEC BUKEVSKI","VELIKA GORICA","PUK ZAGREB","STRMEC BUKEVSKI / VELIKA GORICA / PUK ZAGREB"]
[325198,"STRMEC SAMOBORSKI","SAMOBOR","PUK ZAGREB","STRMEC SAMOBORSKI / SAMOBOR / PUK ZAGREB"]
[304930,"STRMEC STUBIČKI","DONJA STUBICA","PUK KRAPINA","STRMEC STUBIČKI / DONJA STUBICA / PUK KRAPINA"]
[326780,"STRMEN","SISAK","PUK SISAK","STRMEN / SISAK / PUK SISAK"]
[314064,"STRMICA","KNIN","PUK ŠIBENIK","STRMICA / KNIN / PUK ŠIBENIK"]
[336351,"STROŠINCI","ŽUPANJA","PUK VUKOVAR","STROŠINCI / ŽUPANJA / PUK VUKOVAR"]
[308587,"STRUGA","DVOR","PUK SISAK","STRUGA / DVOR / PUK SISAK"]
[316954,"STRUGA","LUDBREG","PUK VARAŽDIN","STRUGA / LUDBREG / PUK VARAŽDIN"]
[317195,"STRUGE","METKOVIĆ","PUK DUBROVNIK","STRUGE / METKOVIĆ / PUK DUBROVNIK"]
[328847,"STRUŽANI","SLAVONSKI BROD","PUK SLAVONSKI BROD","STRUŽANI / SLAVONSKI BROD / PUK SLAVONSKI BROD"]
[316326,"STRUŽEC","KUTINA","PUK SISAK","STRUŽEC / KUTINA / PUK SISAK"]
[315087,"STUBALJ","HRVATSKA KOSTAJNICA","PUK SISAK","STUBALJ / HRVATSKA KOSTAJNICA / PUK SISAK"]
[304948,"STUBIČKA SLATINA","DONJA STUBICA","PUK KRAPINA","STUBIČKA SLATINA / DONJA STUBICA / PUK KRAPINA"]
[304964,"STUBIČKO PODGORJE","DONJA STUBICA","PUK KRAPINA","STUBIČKO PODGORJE / DONJA STUBICA / PUK KRAPINA"]
[324787,"STUDENA","RIJEKA","PUK RIJEKA","STUDENA / RIJEKA / PUK RIJEKA"]
[338079,"STUDENA-NOVA","RIJEKA","PUK RIJEKA","STUDENA-NOVA / RIJEKA / PUK RIJEKA"]
[311022,"STUDENCI","GOSPIĆ","PUK GOSPIĆ","STUDENCI / GOSPIĆ / PUK GOSPIĆ"]
[312002,"STUDENCI","IMOTSKI","PUK SPLIT","STUDENCI / IMOTSKI / PUK SPLIT"]
[307181,"STUPA","DUBROVNIK","PUK DUBROVNIK","STUPA / DUBROVNIK / PUK DUBROVNIK"]
[308595,"STUPNICA","DVOR","PUK SISAK","STUPNICA / DVOR / PUK SISAK"]
[328464,"STUPNIČKI KUTI","SLAVONSKI BROD","PUK SLAVONSKI BROD","STUPNIČKI KUTI / SLAVONSKI BROD / PUK SLAVONSKI BROD"]
[338745,"STUPNIK","SAMOBOR","PUK ZAGREB","STUPNIK / SAMOBOR / PUK ZAGREB"]
[326798,"STUPNO","SISAK","PUK SISAK","STUPNO / SISAK / PUK SISAK"]
[316334,"STUPOVAČA","KUTINA","PUK SISAK","STUPOVAČA / KUTINA / PUK SISAK"]
[318981,"SUBOCKA","NOVSKA","PUK SISAK","SUBOCKA / NOVSKA / PUK SISAK"]
[322083,"SUBOCKA","PAKRAC","PUK POŽEGA","SUBOCKA / PAKRAC / PUK POŽEGA"]
[319007,"SUBOCKI GRAD","NOVSKA","PUK SISAK","SUBOCKI GRAD / NOVSKA / PUK SISAK"]
[314552,"SUBOTICA PODRAVSKA","KOPRIVNICA","PUK KOPRIVNICA","SUBOTICA PODRAVSKA / KOPRIVNICA / PUK KOPRIVNICA"]
[338656,"SUBOTICA PODRAVSKA NOVA","KOPRIVNICA","PUK KOPRIVNICA","SUBOTICA PODRAVSKA NOVA / KOPRIVNICA / PUK KOPRIVNICA"]
[311731,"SUĆURAJ","STARI GRAD","PUK SPLIT","SUĆURAJ / STARI GRAD / PUK SPLIT"]
[315745,"SUDOVEC","NOVI MAROF","PUK VARAŽDIN","SUDOVEC / NOVI MAROF / PUK VARAŽDIN"]
[307190,"SUĐURAĐ","DUBROVNIK","PUK DUBROVNIK","SUĐURAĐ / DUBROVNIK / PUK DUBROVNIK"]
[309559,"SUHA KATALENA","ĐURĐEVAC","PUK KOPRIVNICA","SUHA KATALENA / ĐURĐEVAC / PUK KOPRIVNICA"]
[320447,"SUHA MLAKA","ORAHOVICA","PUK VIROVITICA","SUHA MLAKA / ORAHOVICA / PUK VIROVITICA"]
[332674,"SUHOPOLJE","VIROVITICA","PUK VIROVITICA","SUHOPOLJE / VIROVITICA / PUK VIROVITICA"]
[335061,"SUHOVARE","ZADAR","PUK ZADAR","SUHOVARE / ZADAR / PUK ZADAR"]
[305995,"SUKNOVCI","DRNIŠ","PUK ŠIBENIK","SUKNOVCI / DRNIŠ / PUK ŠIBENIK"]
[335070,"SUKOŠAN","ZADAR","PUK ZADAR","SUKOŠAN / ZADAR / PUK ZADAR"]
[327816,"SULKOVCI","POŽEGA","PUK POŽEGA","SULKOVCI / POŽEGA / PUK POŽEGA"]
[301728,"SUMARTIN","SUPETAR","PUK SPLIT","SUMARTIN / SUPETAR / PUK SPLIT"]
[304689,"SUNGER","DELNICE","PUK RIJEKA","SUNGER / DELNICE / PUK RIJEKA"]
[326801,"SUNJA","SISAK","PUK SISAK","SUNJA / SISAK / PUK SISAK"]
[301736,"SUPETAR","SUPETAR","PUK SPLIT","SUPETAR / SUPETAR / PUK SPLIT"]
[324442,"SUPETARSKA DRAGA","RAB","PUK RIJEKA","SUPETARSKA DRAGA / RAB / PUK RIJEKA"]
[302490,"SUSAK","MALI LOŠINJ","PUK RIJEKA","SUSAK / MALI LOŠINJ / PUK RIJEKA"]
[307203,"SUSTJEPAN","DUBROVNIK","PUK DUBROVNIK","SUSTJEPAN / DUBROVNIK / PUK DUBROVNIK"]
[324795,"SUŠAK","RIJEKA","PUK RIJEKA","SUŠAK / RIJEKA / PUK RIJEKA"]
[338460,"SUŠAK-NOVA","RIJEKA","PUK RIJEKA","SUŠAK-NOVA / RIJEKA / PUK RIJEKA"]
[325872,"SUŠCI","SINJ","PUK SPLIT","SUŠCI / SINJ / PUK SPLIT"]
[336157,"SUŠOBREG","ZLATAR","PUK KRAPINA","SUŠOBREG / ZLATAR / PUK KRAPINA"]
[329720,"SUTINA","SOLIN","PUK SPLIT","SUTINA / SOLIN / PUK SPLIT"]
[301744,"SUTIVAN","SUPETAR","PUK SPLIT","SUTIVAN / SUPETAR / PUK SPLIT"]
[324299,"SUTIVANAC","PULA","PUK PULA","SUTIVANAC / PULA / PUK PULA"]
[335088,"SUTOMIŠĆICA","ZADAR","PUK ZADAR","SUTOMIŠĆICA / ZADAR / PUK ZADAR"]
[305243,"SUVAJA","GRAČAC","PUK ZADAR","SUVAJA / GRAČAC / PUK ZADAR"]
[300284,"SUZA","BELI MANASTIR","PUK OSIJEK","SUZA / BELI MANASTIR / PUK OSIJEK"]
[316024,"SUŽAN","KRK","PUK RIJEKA","SUŽAN / KRK / PUK RIJEKA"]
[315222,"SVEDRUŽA","KRAPINA","PUK KRAPINA","SVEDRUŽA / KRAPINA / PUK KRAPINA"]
[309222,"SVETA ANA","ĐURĐEVAC","PUK KOPRIVNICA","SVETA ANA / ĐURĐEVAC / PUK KOPRIVNICA"]
[315486,"SVETA HELENA","KRIŽEVCI","PUK KOPRIVNICA","SVETA HELENA / KRIŽEVCI / PUK KOPRIVNICA"]
[312835,"SVETA JANA","JASTREBARSKO","PUK ZAGREB","SVETA JANA / JASTREBARSKO / PUK ZAGREB"]
[303259,"SVETA MARIJA","PRELOG","PUK ČAKOVEC",{"$f":"B2818&\" / \"&C2818&\" / \"&D2818","v":"SVETA MARIJA / PRELOG / PUK ČAKOVEC"}]
[325066,"SVETA NEDELJA","SAMOBOR","PUK ZAGREB","SVETA NEDELJA / SAMOBOR / PUK ZAGREB"]
[316032,"SVETI ANTON","KRK","PUK RIJEKA","SVETI ANTON / KRK / PUK RIJEKA"]
[305332,"SVETI ĐURAĐ","DONJI MIHOLJAC","PUK OSIJEK","SVETI ĐURAĐ / DONJI MIHOLJAC / PUK OSIJEK"]
[316750,"SVETI ĐURĐ","LUDBREG","PUK VARAŽDIN","SVETI ĐURĐ / LUDBREG / PUK VARAŽDIN"]
[300772,"SVETI FILIP I JAKOV","BIOGRAD NA MORU","PUK ZADAR","SVETI FILIP I JAKOV / BIOGRAD NA MORU / PUK ZADAR"]
[336874,"SVETI GRGUR","RAB","PUK RIJEKA","SVETI GRGUR / RAB / PUK RIJEKA"]
[331082,"SVETI ILIJA","VARAŽDIN","PUK VARAŽDIN","SVETI ILIJA / VARAŽDIN / PUK VARAŽDIN"]
[323756,"SVETI IVAN","POREČ","PUK PULA","SVETI IVAN / POREČ / PUK PULA"]
[315826,"SVETI IVAN ŽABNO","KRIŽEVCI","PUK KOPRIVNICA","SVETI IVAN ŽABNO / KRIŽEVCI / PUK KOPRIVNICA"]
[302503,"SVETI JAKOV","MALI LOŠINJ","PUK RIJEKA","SVETI JAKOV / MALI LOŠINJ / PUK RIJEKA"]
[325236,"SVETI JURAJ","SENJ","PUK GOSPIĆ","SVETI JURAJ / SENJ / PUK GOSPIĆ"]
[303143,"SVETI JURAJ U TRNJU","PRELOG","PUK ČAKOVEC","SVETI JURAJ U TRNJU / PRELOG / PUK ČAKOVEC"]
[313653,"SVETI KRIŽ","KLANJEC","PUK KRAPINA","SVETI KRIŽ / KLANJEC / PUK KRAPINA"]
[334561,"SVETI KRIŽ ZAČRETJE","ZABOK","PUK KRAPINA","SVETI KRIŽ ZAČRETJE / ZABOK / PUK KRAPINA"]
[303267,"SVETI MARTIN NA MURI","ČAKOVEC","PUK ČAKOVEC","SVETI MARTIN NA MURI / ČAKOVEC / PUK ČAKOVEC"]
[304956,"SVETI MATEJ","DONJA STUBICA","PUK KRAPINA","SVETI MATEJ / DONJA STUBICA / PUK KRAPINA"]
[316890,"SVETI PETAR","LUDBREG","PUK VARAŽDIN","SVETI PETAR / LUDBREG / PUK VARAŽDIN"]
[319392,"SVETI PETAR","OGULIN","PUK KARLOVAC","SVETI PETAR / OGULIN / PUK KARLOVAC"]
[315346,"SVETI PETAR ČVRSTEC","KRIŽEVCI","PUK KOPRIVNICA","SVETI PETAR ČVRSTEC / KRIŽEVCI / PUK KOPRIVNICA"]
[315630,"SVETI PETAR OREHOVEC","KRIŽEVCI","PUK KOPRIVNICA","SVETI PETAR OREHOVEC / KRIŽEVCI / PUK KOPRIVNICA"]
[322458,"SVETI PETAR U ŠUMI","PAZIN","PUK PULA","SVETI PETAR U ŠUMI / PAZIN / PUK PULA"]
[311294,"SVETI ROK","LOVINAC","PUK GOSPIĆ","SVETI ROK / LOVINAC / PUK GOSPIĆ"]
[303640,"SVETI URBAN","ČAKOVEC","PUK ČAKOVEC","SVETI URBAN / ČAKOVEC / PUK ČAKOVEC"]
[323764,"SVETI VITAL","POREČ","PUK PULA","SVETI VITAL / POREČ / PUK PULA"]
[321389,"SVETICE","OZALJ","PUK KARLOVAC","SVETICE / OZALJ / PUK KARLOVAC"]
[321397,"SVETIČKO HRAŠĆE","OZALJ","PUK KARLOVAC","SVETIČKO HRAŠĆE / OZALJ / PUK KARLOVAC"]
[336785,"SVETINJA","POŽEGA","PUK POŽEGA","SVETINJA / POŽEGA / PUK POŽEGA"]
[309150,"SVETOBLAŽJE","ĐAKOVO","PUK OSIJEK","SVETOBLAŽJE / ĐAKOVO / PUK OSIJEK"]
[324302,"SVETVINČENAT","PULA","PUK PULA","SVETVINČENAT / PULA / PUK PULA"]
[302244,"SVI SVETI","BUZET","PUK PULA","SVI SVETI / BUZET / PUK PULA"]
[312029,"SVIB","IMOTSKI","PUK SPLIT","SVIB / IMOTSKI / PUK SPLIT"]
[318655,"SVIBOVEC","NOVI MAROF","PUK VARAŽDIN","SVIBOVEC / NOVI MAROF / PUK VARAŽDIN"]
[328855,"SVILAJ","SLAVONSKI BROD","PUK SLAVONSKI BROD","SVILAJ / SLAVONSKI BROD / PUK SLAVONSKI BROD"]
[315095,"SVINICA","HRVATSKA KOSTAJNICA","PUK SISAK","SVINICA / HRVATSKA KOSTAJNICA / PUK SISAK"]
[332879,"SVINICA KRSTINJSKA","VOJNIĆ","PUK KARLOVAC","SVINICA KRSTINJSKA / VOJNIĆ / PUK KARLOVAC"]
[319767,"SVINIŠĆE","OMIŠ","PUK SPLIT","SVINIŠĆE / OMIŠ / PUK SPLIT"]
[334251,"SVINJAREVCI","VUKOVAR","PUK VUKOVAR","SVINJAREVCI / VUKOVAR / PUK VUKOVAR"]
[326810,"SVINJIČKO","SISAK","PUK SISAK","SVINJIČKO / SISAK / PUK SISAK"]
[311740,"SVIRČE","STARI GRAD","PUK SPLIT","SVIRČE / STARI GRAD / PUK SPLIT"]
[307947,"SVOJIĆ","DUGA RESA","PUK KARLOVAC","SVOJIĆ / DUGA RESA / PUK KARLOVAC"]
[310450,"SVRAČICA","GLINA","PUK SISAK","SVRAČICA / GLINA / PUK SISAK"]
[330574,"SVRAČKOVO SELO","KORENICA","PUK GOSPIĆ","SVRAČKOVO SELO / KORENICA / PUK GOSPIĆ"]
[330957,"ŠAG","VALPOVO","PUK OSIJEK","ŠAG / VALPOVO / PUK OSIJEK"]
[318299,"ŠAGOVINA CERNIČKA","NOVA GRADIŠKA","PUK SLAVONSKI BROD","ŠAGOVINA CERNIČKA / NOVA GRADIŠKA / PUK SLAVONSKI BROD"]
[318302,"ŠAGOVINA MAŠIĆKA","NOVA GRADIŠKA","PUK SLAVONSKI BROD","ŠAGOVINA MAŠIĆKA / NOVA GRADIŠKA / PUK SLAVONSKI BROD"]
[324329,"ŠAJINI","PULA","PUK PULA","ŠAJINI / PULA / PUK PULA"]
[308609,"ŠAKANLIJE","DVOR","PUK SISAK","ŠAKANLIJE / DVOR / PUK SISAK"]
[330582,"ŠALAMUNIĆ","KORENICA","PUK GOSPIĆ","ŠALAMUNIĆ / KORENICA / PUK GOSPIĆ"]
[303569,"ŠANDOROVEC","ČAKOVEC","PUK ČAKOVEC","ŠANDOROVEC / ČAKOVEC / PUK ČAKOVEC"]
[301442,"ŠANDROVAC","BJELOVAR","PUK BJELOVAR","ŠANDROVAC / BJELOVAR / PUK BJELOVAR"]
[320137,"ŠAPJANE","OPATIJA","PUK RIJEKA","ŠAPJANE / OPATIJA / PUK RIJEKA"]
[317535,"ŠAPTINOVCI","NAŠICE","PUK OSIJEK","ŠAPTINOVCI / NAŠICE / PUK OSIJEK"]
[312479,"ŠARAMPOV","IVANIĆ GRAD","PUK ZAGREB","ŠARAMPOV / IVANIĆ GRAD / PUK ZAGREB"]
[334260,"ŠARENGRAD","ILOK","PUK VUKOVAR","ŠARENGRAD / ILOK / PUK VUKOVAR"]
[316342,"ŠARTOVAC","KUTINA","PUK SISAK","ŠARTOVAC / KUTINA / PUK SISAK"]
[326828,"ŠAŠ","SISAK","PUK SISAK","ŠAŠ / SISAK / PUK SISAK"]
[312266,"ŠAŠA","IVANEC","PUK VARAŽDIN","ŠAŠA / IVANEC / PUK VARAŽDIN"]
[310468,"ŠAŠEVA","GLINA","PUK SISAK","ŠAŠEVA / GLINA / PUK SISAK"]
[325449,"ŠAŠINOVEC","GU ZAGREB","PUK ZAGREB","ŠAŠINOVEC / GU ZAGREB / PUK ZAGREB"]
[310476,"ŠATORNJA","GLINA","PUK SISAK","ŠATORNJA / GLINA / PUK SISAK"]
[318663,"ŠĆEPANJE","NOVI MAROF","PUK VARAŽDIN","ŠĆEPANJE / NOVI MAROF / PUK VARAŽDIN"]
[331848,"ŠĆITARJEVO","VELIKA GORICA","PUK ZAGREB","ŠĆITARJEVO / VELIKA GORICA / PUK ZAGREB"]
[308617,"ŠEGESTIN","DVOR","PUK SISAK","ŠEGESTIN / DVOR / PUK SISAK"]
[315249,"ŠEMNICA","KRAPINA","PUK KRAPINA",{"$f":"B2882&\" / \"&C2882&\" / \"&D2882","v":"ŠEMNICA / KRAPINA / PUK KRAPINA"}]
[309567,"ŠEMOVCI","ĐURĐEVAC","PUK KOPRIVNICA","ŠEMOVCI / ĐURĐEVAC / PUK KOPRIVNICA"]
[331309,"ŠEMOVEC","VARAŽDIN","PUK VARAŽDIN","ŠEMOVEC / VARAŽDIN / PUK VARAŽDIN"]
[303577,"ŠENKOVEC","ČAKOVEC","PUK ČAKOVEC","ŠENKOVEC / ČAKOVEC / PUK ČAKOVEC"]
[327824,"ŠEOVCI","POŽEGA","PUK POŽEGA","ŠEOVCI / POŽEGA / PUK POŽEGA"]
[322091,"ŠEOVICA","PAKRAC","PUK POŽEGA","ŠEOVICA / PAKRAC / PUK POŽEGA"]
[335258,"ŠESTINE","GU ZAGREB","PUK ZAGREB","ŠESTINE / GU ZAGREB / PUK ZAGREB"]
[330264,"ŠIBENIK","ŠIBENIK","PUK ŠIBENIK","ŠIBENIK / ŠIBENIK / PUK ŠIBENIK"]
[310484,"ŠIBINE","GLINA","PUK SISAK","ŠIBINE / GLINA / PUK SISAK"]
[304409,"ŠIBOVAC","DARUVAR","PUK BJELOVAR","ŠIBOVAC / DARUVAR / PUK BJELOVAR"]
[331856,"ŠILJAKOVINA","VELIKA GORICA","PUK ZAGREB","ŠILJAKOVINA / VELIKA GORICA / PUK ZAGREB"]
[307211,"ŠILJEŠKI","DUBROVNIK","PUK DUBROVNIK","ŠILJEŠKI / DUBROVNIK / PUK DUBROVNIK"]
[309834,"ŠIMLJANA","GAREŠNICA","PUK BJELOVAR","ŠIMLJANA / GAREŠNICA / PUK BJELOVAR"]
[309842,"ŠIMLJANIK","GAREŠNICA","PUK BJELOVAR","ŠIMLJANIK / GAREŠNICA / PUK BJELOVAR"]
[325201,"ŠIPAČKI BREG","SAMOBOR","PUK ZAGREB","ŠIPAČKI BREG / SAMOBOR / PUK ZAGREB"]
[307220,"ŠIPANSKA LUKA","DUBROVNIK","PUK DUBROVNIK","ŠIPANSKA LUKA / DUBROVNIK / PUK DUBROVNIK"]
[318329,"ŠIRINCI","NOVA GRADIŠKA","PUK SLAVONSKI BROD","ŠIRINCI / NOVA GRADIŠKA / PUK SLAVONSKI BROD"]
[312487,"ŠIRINEC","IVANIĆ GRAD","PUK ZAGREB","ŠIRINEC / IVANIĆ GRAD / PUK ZAGREB"]
[306002,"ŠIRITOVCI","DRNIŠ","PUK ŠIBENIK","ŠIRITOVCI / DRNIŠ / PUK ŠIBENIK"]
[311049,"ŠIROKA KULA","GOSPIĆ","PUK GOSPIĆ","ŠIROKA KULA / GOSPIĆ / PUK GOSPIĆ"]
[332887,"ŠIROKA RIJEKA","VOJNIĆ","PUK KARLOVAC","ŠIROKA RIJEKA / VOJNIĆ / PUK KARLOVAC"]
[309168,"ŠIROKO POLJE","ĐAKOVO","PUK OSIJEK","ŠIROKO POLJE / ĐAKOVO / PUK OSIJEK"]
[324337,"ŠIŠAN","PULA","PUK PULA","ŠIŠAN / PULA / PUK PULA"]
[326836,"ŠIŠINEC","SISAK","PUK SISAK","ŠIŠINEC / SISAK / PUK SISAK"]
[336360,"ŠIŠKOVCI","ŽUPANJA","PUK VUKOVAR","ŠIŠKOVCI / ŽUPANJA / PUK VUKOVAR"]
[313297,"ŠIŠLJAVIĆ","KARLOVAC","PUK KARLOVAC","ŠIŠLJAVIĆ / KARLOVAC / PUK KARLOVAC"]
[335096,"ŠKABRNJA","ZADAR","PUK ZADAR","ŠKABRNJA / ZADAR / PUK ZADAR"]
[324809,"ŠKALNICA","RIJEKA","PUK RIJEKA","ŠKALNICA / RIJEKA / PUK RIJEKA"]
[321010,"ŠKARE","OTOČAC","PUK GOSPIĆ","ŠKARE / OTOČAC / PUK GOSPIĆ"]
[315257,"ŠKARIĆEVO","KRAPINA","PUK KRAPINA","ŠKARIĆEVO / KRAPINA / PUK KRAPINA"]
[322504,"ŠKOPLJAK","PAZIN","PUK PULA","ŠKOPLJAK / PAZIN / PUK PULA"]
[327859,"ŠKRABUTNIK","POŽEGA","PUK POŽEGA","ŠKRABUTNIK / POŽEGA / PUK POŽEGA"]
[301752,"ŠKRIP","SUPETAR","PUK SPLIT","ŠKRIP / SUPETAR / PUK SPLIT"]
[324817,"ŠKRLJEVO","RIJEKA","PUK RIJEKA","ŠKRLJEVO / RIJEKA / PUK RIJEKA"]
[338303,"ŠKRLJEVO-NOVA","RIJEKA","PUK RIJEKA","ŠKRLJEVO-NOVA / RIJEKA / PUK RIJEKA"]
[329363,"ŠLJIVNJAK","SLUNJ","PUK KARLOVAC","ŠLJIVNJAK / SLUNJ / PUK KARLOVAC"]
[305464,"ŠLJIVOŠEVCI","DONJI MIHOLJAC","PUK OSIJEK","ŠLJIVOŠEVCI / DONJI MIHOLJAC / PUK OSIJEK"]
[333824,"ŠLJIVOVAC","TOPUSKO","PUK SISAK","ŠLJIVOVAC / TOPUSKO / PUK SISAK"]
[324825,"ŠMRIKA","RIJEKA","PUK RIJEKA","ŠMRIKA / RIJEKA / PUK RIJEKA"]
[327867,"ŠNJEGAVIĆ","POŽEGA","PUK POŽEGA","ŠNJEGAVIĆ / POŽEGA / PUK POŽEGA"]
[320714,"ŠODOLOVCI","OSIJEK","PUK OSIJEK","ŠODOLOVCI / OSIJEK / PUK OSIJEK"]
[300705,"ŠOPOT","BENKOVAC","PUK ZADAR","ŠOPOT / BENKOVAC / PUK ZADAR"]
[321958,"ŠPANOVICA","PAKRAC","PUK POŽEGA","ŠPANOVICA / PAKRAC / PUK POŽEGA"]
[334499,"ŠPIČKOVINA","ZABOK","PUK KRAPINA","ŠPIČKOVINA / ZABOK / PUK KRAPINA"]
[315753,"ŠPIRANEC","KRIŽEVCI","PUK KOPRIVNICA","ŠPIRANEC / KRIŽEVCI / PUK KOPRIVNICA"]
[332682,"ŠPIŠIĆ BUKOVICA","VIROVITICA","PUK VIROVITICA","ŠPIŠIĆ BUKOVICA / VIROVITICA / PUK VIROVITICA"]
[303585,"ŠTEFANEC","ČAKOVEC","PUK ČAKOVEC","ŠTEFANEC / ČAKOVEC / PUK ČAKOVEC"]
[303984,"ŠTEFANJE","ČAZMA","PUK BJELOVAR","ŠTEFANJE / ČAZMA / PUK BJELOVAR"]
[301990,"ŠTERNA","BUJE","PUK PULA","ŠTERNA / BUJE / PUK PULA"]
[337587,"ŠTEVKOVICA","DONJI MIHOLJAC","PUK OSIJEK","ŠTEVKOVICA / DONJI MIHOLJAC / PUK OSIJEK"]
[311308,"ŠTIKADA","GRAČAC","PUK ZADAR","ŠTIKADA / GRAČAC / PUK ZADAR"]
[306029,"ŠTIKOVO","DRNIŠ","PUK ŠIBENIK","ŠTIKOVO / DRNIŠ / PUK ŠIBENIK"]
[324345,"ŠTINJAN","PULA","PUK PULA","ŠTINJAN / PULA / PUK PULA"]
[338273,"ŠTINJAN-NOVA","PULA","PUK PULA","ŠTINJAN-NOVA / PULA / PUK PULA"]
[336378,"ŠTITAR","ŽUPANJA","PUK VUKOVAR","ŠTITAR / ŽUPANJA / PUK VUKOVAR"]
[327875,"ŠTITNJAK","POŽEGA","PUK POŽEGA","ŠTITNJAK / POŽEGA / PUK POŽEGA"]
[318337,"ŠTIVICA","NOVA GRADIŠKA","PUK SLAVONSKI BROD","ŠTIVICA / NOVA GRADIŠKA / PUK SLAVONSKI BROD"]
[324353,"ŠTOKOVCI","PULA","PUK PULA","ŠTOKOVCI / PULA / PUK PULA"]
[305251,"ŠTRBCI","DONJI LAPAC","PUK GOSPIĆ","ŠTRBCI / DONJI LAPAC / PUK GOSPIĆ"]
[303593,"ŠTRIGOVA","ČAKOVEC","PUK ČAKOVEC","ŠTRIGOVA / ČAKOVEC / PUK ČAKOVEC"]
[315761,"ŠTRIGOVEC","KRIŽEVCI","PUK KOPRIVNICA","ŠTRIGOVEC / KRIŽEVCI / PUK KOPRIVNICA"]
[303607,"ŠTRUKOVEC","ČAKOVEC","PUK ČAKOVEC","ŠTRUKOVEC / ČAKOVEC / PUK ČAKOVEC"]
[300292,"ŠUMARINA","BELI MANASTIR","PUK OSIJEK","ŠUMARINA / BELI MANASTIR / PUK OSIJEK"]
[316679,"ŠUMBER","LABIN","PUK PULA","ŠUMBER / LABIN / PUK PULA"]
[312495,"ŠUMEĆANI","IVANIĆ GRAD","PUK ZAGREB",{"$f":"B2946&\" / \"&C2946&\" / \"&D2946","v":"ŠUMEĆANI / IVANIĆ GRAD / PUK ZAGREB"}]
[328871,"ŠUMEĆE","SLAVONSKI BROD","PUK SLAVONSKI BROD","ŠUMEĆE / SLAVONSKI BROD / PUK SLAVONSKI BROD"]
[320455,"ŠUMEĐE","ORAHOVICA","PUK VIROVITICA","ŠUMEĐE / ORAHOVICA / PUK VIROVITICA"]
[307238,"ŠUMET","DUBROVNIK","PUK DUBROVNIK","ŠUMET / DUBROVNIK / PUK DUBROVNIK"]
[318345,"ŠUMETLICA","NOVA GRADIŠKA","PUK SLAVONSKI BROD","ŠUMETLICA / NOVA GRADIŠKA / PUK SLAVONSKI BROD"]
[322105,"ŠUMETLICA","PAKRAC","PUK POŽEGA","ŠUMETLICA / PAKRAC / PUK POŽEGA"]
[303992,"ŠUŠNJARA","ČAZMA","PUK BJELOVAR","ŠUŠNJARA / ČAZMA / PUK BJELOVAR"]
[312509,"ŠUŠNJARI","IVANIĆ GRAD","PUK ZAGREB","ŠUŠNJARI / IVANIĆ GRAD / PUK ZAGREB"]
[328880,"ŠUŠNJEVCI","SLAVONSKI BROD","PUK SLAVONSKI BROD","ŠUŠNJEVCI / SLAVONSKI BROD / PUK SLAVONSKI BROD"]
[316687,"ŠUŠNJEVICA","LABIN","PUK PULA","ŠUŠNJEVICA / LABIN / PUK PULA"]
[334502,"ŠVALJKOVEC","ZABOK","PUK KRAPINA","ŠVALJKOVEC / ZABOK / PUK KRAPINA"]
[321028,"ŠVICA","OTOČAC","PUK GOSPIĆ","ŠVICA / OTOČAC / PUK GOSPIĆ"]
[308625,"ŠVRAKARICA","DVOR","PUK SISAK","ŠVRAKARICA / DVOR / PUK SISAK"]
[310492,"TABORIŠTE","GLINA","PUK SISAK","TABORIŠTE / GLINA / PUK SISAK"]
[323055,"TABORIŠTE","PETRINJA","PUK SISAK","TABORIŠTE / PETRINJA / PUK SISAK"]
[323772,"TAR","POREČ","PUK PULA","TAR / POREČ / PUK PULA"]
[320722,"TENJA","OSIJEK","PUK OSIJEK","TENJA / OSIJEK / PUK OSIJEK"]
[306037,"TEPLJUH","DRNIŠ","PUK ŠIBENIK","TEPLJUH / DRNIŠ / PUK ŠIBENIK"]
[322512,"TIBOLE","PAZIN","PUK PULA","TIBOLE / PAZIN / PUK PULA"]
[330965,"TIBORJANCI","VALPOVO","PUK OSIJEK","TIBORJANCI / VALPOVO / PUK OSIJEK"]
[325899,"TIJARICA","SINJ","PUK SPLIT","TIJARICA / SINJ / PUK SPLIT"]
[326844,"TIMARCI","SISAK","PUK SISAK","TIMARCI / SISAK / PUK SISAK"]
[300713,"TINJ","BENKOVAC","PUK ZADAR","TINJ / BENKOVAC / PUK ZADAR"]
[322539,"TINJAN","PAZIN","PUK PULA","TINJAN / PAZIN / PUK PULA"]
[330272,"TISNO","ŠIBENIK","PUK ŠIBENIK","TISNO / ŠIBENIK / PUK ŠIBENIK"]
[318353,"TISOVAC","NOVA GRADIŠKA","PUK SLAVONSKI BROD","TISOVAC / NOVA GRADIŠKA / PUK SLAVONSKI BROD"]
[322113,"TISOVAC","PAKRAC","PUK POŽEGA","TISOVAC / PAKRAC / PUK POŽEGA"]
[326852,"TIŠINA ERDEDSKA","SISAK","PUK SISAK","TIŠINA ERDEDSKA / SISAK / PUK SISAK"]
[305260,"TIŠKOVAC LIČKI","GRAČAC","PUK ZADAR","TIŠKOVAC LIČKI / GRAČAC / PUK ZADAR"]
[333255,"TKALEC","VRBOVEC","PUK ZAGREB","TKALEC / VRBOVEC / PUK ZAGREB"]
[300853,"TKON","BIOGRAD NA MORU","PUK ZADAR","TKON / BIOGRAD NA MORU / PUK ZADAR"]
[329371,"TOBOLIĆ","SLUNJ","PUK KARLOVAC","TOBOLIĆ / SLUNJ / PUK KARLOVAC"]
[329380,"TOČAK","SLUNJ","PUK KARLOVAC","TOČAK / SLUNJ / PUK KARLOVAC"]
[307246,"TOČIONIK","DUBROVNIK","PUK DUBROVNIK","TOČIONIK / DUBROVNIK / PUK DUBROVNIK"]
[301469,"TOMAŠ","BJELOVAR","PUK BJELOVAR","TOMAŠ / BJELOVAR / PUK BJELOVAR"]
[309176,"TOMAŠANCI","ĐAKOVO","PUK OSIJEK","TOMAŠANCI / ĐAKOVO / PUK OSIJEK"]
[313726,"TOMAŠEVEC","KLANJEC","PUK KRAPINA","TOMAŠEVEC / KLANJEC / PUK KRAPINA"]
[335932,"TOMAŠEVEC","SVETI IVAN ZELINA","PUK ZAGREB","TOMAŠEVEC / SVETI IVAN ZELINA / PUK ZAGREB"]
[309869,"TOMAŠICA","GAREŠNICA","PUK BJELOVAR","TOMAŠICA / GAREŠNICA / PUK BJELOVAR"]
[321419,"TOMAŠNICA","OZALJ","PUK KARLOVAC","TOMAŠNICA / OZALJ / PUK KARLOVAC"]
[328898,"TOMICA","SLAVONSKI BROD","PUK SLAVONSKI BROD","TOMICA / SLAVONSKI BROD / PUK SLAVONSKI BROD"]
[311316,"TOMINGAJ","GRAČAC","PUK ZADAR","TOMINGAJ / GRAČAC / PUK ZADAR"]
[327883,"TOMINOVAC","POŽEGA","PUK POŽEGA","TOMINOVAC / POŽEGA / PUK POŽEGA"]
[307254,"TOMISLAVOVAC","DUBROVNIK","PUK DUBROVNIK","TOMISLAVOVAC / DUBROVNIK / PUK DUBROVNIK"]
[334278,"TOMPOJEVCI","VUKOVAR","PUK VUKOVAR","TOMPOJEVCI / VUKOVAR / PUK VUKOVAR"]
[336408,"TOPOLINE","NAŠICE","PUK OSIJEK","TOPOLINE / NAŠICE / PUK OSIJEK"]
[307262,"TOPOLO","DUBROVNIK","PUK DUBROVNIK","TOPOLO / DUBROVNIK / PUK DUBROVNIK"]
[311561,"TOPOLOVICA","GRUBIŠNO POLJE","PUK BJELOVAR","TOPOLOVICA / GRUBIŠNO POLJE / PUK BJELOVAR"]
[300306,"TOPOLJE","BELI MANASTIR","PUK OSIJEK","TOPOLJE / BELI MANASTIR / PUK OSIJEK"]
[312517,"TOPOLJE","IVANIĆ GRAD","PUK ZAGREB","TOPOLJE / IVANIĆ GRAD / PUK ZAGREB"]
[333832,"TOPUSKO","TOPUSKO","PUK SISAK","TOPUSKO / TOPUSKO / PUK SISAK"]
[322121,"TORANJ","PAKRAC","PUK POŽEGA","TORANJ / PAKRAC / PUK POŽEGA"]
[327891,"TORANJ","POŽEGA","PUK POŽEGA","TORANJ / POŽEGA / PUK POŽEGA"]
[314579,"TORČEC","KOPRIVNICA","PUK KOPRIVNICA","TORČEC / KOPRIVNICA / PUK KOPRIVNICA"]
[332330,"TORDINCI","VINKOVCI","PUK VUKOVAR","TORDINCI / VINKOVCI / PUK VUKOVAR"]
[300314,"TORJANCI","BELI MANASTIR","PUK OSIJEK","TORJANCI / BELI MANASTIR / PUK OSIJEK"]
[303615,"TOTOVEC","ČAKOVEC","PUK ČAKOVEC","TOTOVEC / ČAKOVEC / PUK ČAKOVEC"]
[319473,"TOUNJ","OGULIN","PUK KARLOVAC","TOUNJ / OGULIN / PUK KARLOVAC"]
[334286,"TOVARNIK","ILOK","PUK VUKOVAR","TOVARNIK / ILOK / PUK VUKOVAR"]
[312274,"TRAKOŠĆAN","IVANEC","PUK VARAŽDIN","TRAKOŠĆAN / IVANEC / PUK VARAŽDIN"]
[327905,"TRAPARI","POŽEGA","PUK POŽEGA","TRAPARI / POŽEGA / PUK POŽEGA"]
[306045,"TRBOUNJE","DRNIŠ","PUK ŠIBENIK","TRBOUNJE / DRNIŠ / PUK ŠIBENIK"]
[313319,"TREBINJA","KARLOVAC","PUK KARLOVAC","TREBINJA / KARLOVAC / PUK KARLOVAC"]
[312525,"TREBOVEC","IVANIĆ GRAD","PUK ZAGREB","TREBOVEC / IVANIĆ GRAD / PUK ZAGREB"]
[315770,"TREMA","KRIŽEVCI","PUK KOPRIVNICA",{"$f":"B3010&\" / \"&C3010&\" / \"&D3010","v":"TREMA / KRIŽEVCI / PUK KOPRIVNICA"}]
[323063,"TREMUŠNJAK","PETRINJA","PUK SISAK","TREMUŠNJAK / PETRINJA / PUK SISAK"]
[327913,"TRENKOVO","POŽEGA","PUK POŽEGA","TRENKOVO / POŽEGA / PUK POŽEGA"]
[333859,"TREPČA","TOPUSKO","PUK SISAK","TREPČA / TOPUSKO / PUK SISAK"]
[335622,"TREŠNJEVKA","GU ZAGREB","PUK ZAGREB","TREŠNJEVKA / GU ZAGREB / PUK ZAGREB"]
[339270,"TREŠNJEVKA NOVA","GU ZAGREB","PUK ZAGREB","TREŠNJEVKA NOVA / GU ZAGREB / PUK ZAGREB"]
[327921,"TREŠTANOVCI","POŽEGA","PUK POŽEGA","TREŠTANOVCI / POŽEGA / PUK POŽEGA"]
[321427,"TRG","OZALJ","PUK KARLOVAC","TRG / OZALJ / PUK KARLOVAC"]
[316695,"TRGET","LABIN","PUK PULA","TRGET / LABIN / PUK PULA"]
[302015,"TRIBAN","BUJE","PUK PULA","TRIBAN / BUJE / PUK PULA"]
[335100,"TRIBANJ","ZADAR","PUK ZADAR","TRIBANJ / ZADAR / PUK ZADAR"]
[330299,"TRIBUNJ","ŠIBENIK","PUK ŠIBENIK","TRIBUNJ / ŠIBENIK / PUK ŠIBENIK"]
[318361,"TRNAKOVAC","NOVA GRADIŠKA","PUK SLAVONSKI BROD","TRNAKOVAC / NOVA GRADIŠKA / PUK SLAVONSKI BROD"]
[309184,"TRNAVA","ĐAKOVO","PUK OSIJEK","TRNAVA / ĐAKOVO / PUK OSIJEK"]
[317870,"TRNAVA","NOVA GRADIŠKA","PUK SLAVONSKI BROD","TRNAVA / NOVA GRADIŠKA / PUK SLAVONSKI BROD"]
[330612,"TRNAVAC","KORENICA","PUK GOSPIĆ","TRNAVAC / KORENICA / PUK GOSPIĆ"]
[319775,"TRNBUSI","OMIŠ","PUK SPLIT","TRNBUSI / OMIŠ / PUK SPLIT"]
[307289,"TRNOVA","DUBROVNIK","PUK DUBROVNIK","TRNOVA / DUBROVNIK / PUK DUBROVNIK"]
[311057,"TRNOVAC","GOSPIĆ","PUK GOSPIĆ","TRNOVAC / GOSPIĆ / PUK GOSPIĆ"]
[303623,"TRNOVEC","ČAKOVEC","PUK ČAKOVEC","TRNOVEC / ČAKOVEC / PUK ČAKOVEC"]
[331023,"TRNOVEC","VARAŽDIN","PUK VARAŽDIN","TRNOVEC / VARAŽDIN / PUK VARAŽDIN"]
[307297,"TRNOVICA","DUBROVNIK","PUK DUBROVNIK","TRNOVICA / DUBROVNIK / PUK DUBROVNIK"]
[309877,"TRNOVITICA","GAREŠNICA","PUK BJELOVAR","TRNOVITICA / GAREŠNICA / PUK BJELOVAR"]
[309885,"TRNOVITIČKI POPOVAC","GAREŠNICA","PUK BJELOVAR","TRNOVITIČKI POPOVAC / GAREŠNICA / PUK BJELOVAR"]
[328901,"TRNJANI","SLAVONSKI BROD","PUK SLAVONSKI BROD","TRNJANI / SLAVONSKI BROD / PUK SLAVONSKI BROD"]
[328472,"TRNJANSKI KUTI","SLAVONSKI BROD","PUK SLAVONSKI BROD","TRNJANSKI KUTI / SLAVONSKI BROD / PUK SLAVONSKI BROD"]
[335649,"TRNJE","GU ZAGREB","PUK ZAGREB","TRNJE / GU ZAGREB / PUK ZAGREB"]
[330779,"TROGIR","TROGIR","PUK SPLIT","TROGIR / TROGIR / PUK SPLIT"]
[304417,"TROJEGLAVA","DARUVAR","PUK BJELOVAR","TROJEGLAVA / DARUVAR / PUK BJELOVAR"]
[301205,"TROJSTVENI MARKOVAC","BJELOVAR","PUK BJELOVAR","TROJSTVENI MARKOVAC / BJELOVAR / PUK BJELOVAR"]
[319481,"TROJVRH","OGULIN","PUK KARLOVAC","TROJVRH / OGULIN / PUK KARLOVAC"]
[313602,"TROLOKVE","KAŠTEL SUĆURAC","PUK SPLIT","TROLOKVE / KAŠTEL SUĆURAC / PUK SPLIT"]
[307319,"TRPANJ","KORČULA","PUK DUBROVNIK","TRPANJ / KORČULA / PUK DUBROVNIK"]
[334294,"TRPINJA","VUKOVAR","PUK VUKOVAR","TRPINJA / VUKOVAR / PUK VUKOVAR"]
[335525,"TRPUCI","GU ZAGREB","PUK ZAGREB","TRPUCI / GU ZAGREB / PUK ZAGREB"]
[302279,"TRSTENIK","BUZET","PUK PULA","TRSTENIK / BUZET / PUK PULA"]
[307327,"TRSTENIK","KORČULA","PUK DUBROVNIK","TRSTENIK / KORČULA / PUK DUBROVNIK"]
[307335,"TRSTENO","DUBROVNIK","PUK DUBROVNIK","TRSTENO / DUBROVNIK / PUK DUBROVNIK"]
[310506,"TRTNIK GLINSKI","GLINA","PUK SISAK","TRTNIK GLINSKI / GLINA / PUK SISAK"]
[322547,"TRVIŽ","PAZIN","PUK PULA","TRVIŽ / PAZIN / PUK PULA"]
[329398,"TRŽIĆ PRIMIŠLJANSKI","SLUNJ","PUK KARLOVAC","TRŽIĆ PRIMIŠLJANSKI / SLUNJ / PUK KARLOVAC"]
[319490,"TRŽIĆ TOUNJSKI","OGULIN","PUK KARLOVAC","TRŽIĆ TOUNJSKI / OGULIN / PUK KARLOVAC"]
[333263,"TUČENIK","VRBOVEC","PUK ZAGREB","TUČENIK / VRBOVEC / PUK ZAGREB"]
[317080,"TUČEPI","MAKARSKA","PUK SPLIT","TUČEPI / MAKARSKA / PUK SPLIT"]
[319783,"TUGARE","OMIŠ","PUK SPLIT","TUGARE / OMIŠ / PUK SPLIT"]
[336165,"TUGONICA","ZLATAR","PUK KRAPINA","TUGONICA / ZLATAR / PUK KRAPINA"]
[313734,"TUHELJ","KLANJEC","PUK KRAPINA","TUHELJ / KLANJEC / PUK KRAPINA"]
[318671,"TUHOVEC","NOVI MAROF","PUK VARAŽDIN","TUHOVEC / NOVI MAROF / PUK VARAŽDIN"]
[320145,"TULIŠEVICA","OPATIJA","PUK RIJEKA","TULIŠEVICA / OPATIJA / PUK RIJEKA"]
[327930,"TULNIK","POŽEGA","PUK POŽEGA","TULNIK / POŽEGA / PUK POŽEGA"]
[316709,"TUPLJAK","LABIN","PUK PULA","TUPLJAK / LABIN / PUK PULA"]
[332704,"TURANOVAC","VIROVITICA","PUK VIROVITICA","TURANOVAC / VIROVITICA / PUK VIROVITICA"]
[300861,"TURANJ","BIOGRAD NA MORU","PUK ZADAR","TURANJ / BIOGRAD NA MORU / PUK ZADAR"]
[313327,"TURANJ","KARLOVAC","PUK KARLOVAC","TURANJ / KARLOVAC / PUK KARLOVAC"]
[310514,"TURČENICA","GLINA","PUK SISAK","TURČENICA / GLINA / PUK SISAK"]
[311570,"TURČEVIĆ POLJE","GRUBIŠNO POLJE","PUK BJELOVAR","TURČEVIĆ POLJE / GRUBIŠNO POLJE / PUK BJELOVAR"]
[303631,"TURČIŠĆE","ČAKOVEC","PUK ČAKOVEC","TURČIŠĆE / ČAKOVEC / PUK ČAKOVEC"]
[314072,"TURIĆ","KNIN","PUK ŠIBENIK","TURIĆ / KNIN / PUK ŠIBENIK"]
[325902,"TURJACI","SINJ","PUK SPLIT","TURJACI / SINJ / PUK SPLIT"]
[321036,"TURJANSKI","OTOČAC","PUK GOSPIĆ","TURJANSKI / OTOČAC / PUK GOSPIĆ"]
[304697,"TURKE","DELNICE","PUK RIJEKA","TURKE / DELNICE / PUK RIJEKA"]
[309575,"TURNAŠICA","PITOMAČA","PUK VIROVITICA","TURNAŠICA / PITOMAČA / PUK VIROVITICA"]
[326879,"TUROPOLJSKI LEKENIK","SISAK","PUK SISAK","TUROPOLJSKI LEKENIK / SISAK / PUK SISAK"]
[331864,"TUROPOLJSKI LUG","VELIKA GORICA","PUK ZAGREB","TUROPOLJSKI LUG / VELIKA GORICA / PUK ZAGREB"]
[313335,"TUŠILOVIĆ","KARLOVAC","PUK KARLOVAC",{"$f":"B3074&\" / \"&C3074&\" / \"&D3074","v":"TUŠILOVIĆ / KARLOVAC / PUK KARLOVAC"}]
[331317,"TUŽNO","VARAŽDIN","PUK VARAŽDIN","TUŽNO / VARAŽDIN / PUK VARAŽDIN"]
[320749,"TVRĐAVICA-PODRAVLJE","OSIJEK","PUK OSIJEK","TVRĐAVICA-PODRAVLJE / OSIJEK / PUK OSIJEK"]
[330639,"UDBINA","KORENICA","PUK GOSPIĆ","UDBINA / KORENICA / PUK GOSPIĆ"]
[308633,"UDETIN","DVOR","PUK SISAK","UDETIN / DVOR / PUK SISAK"]
[325929,"UDOVIČIĆI","SINJ","PUK SPLIT","UDOVIČIĆI / SINJ / PUK SPLIT"]
[327948,"UGARCI","POŽEGA","PUK POŽEGA","UGARCI / POŽEGA / PUK POŽEGA"]
[335118,"UGLJAN","ZADAR","PUK ZADAR","UGLJAN / ZADAR / PUK ZADAR"]
[325937,"UGLJANE","SINJ","PUK SPLIT","UGLJANE / SINJ / PUK SPLIT"]
[304425,"ULJANIK","GAREŠNICA","PUK BJELOVAR","ULJANIK / GAREŠNICA / PUK BJELOVAR"]
[302023,"UMAG","BUJE","PUK PULA","UMAG / BUJE / PUK PULA"]
[315109,"UMETIĆ","HRVATSKA KOSTAJNICA","PUK SISAK","UMETIĆ / HRVATSKA KOSTAJNICA / PUK SISAK"]
[306053,"UMLJANOVIĆ","DRNIŠ","PUK ŠIBENIK","UMLJANOVIĆ / DRNIŠ / PUK ŠIBENIK"]
[307955,"UMOL","DUGA RESA","PUK KARLOVAC","UMOL / DUGA RESA / PUK KARLOVAC"]
[308641,"UNČANI","DVOR","PUK SISAK","UNČANI / DVOR / PUK SISAK"]
[306061,"UNEŠIĆ","DRNIŠ","PUK ŠIBENIK","UNEŠIĆ / DRNIŠ / PUK ŠIBENIK"]
[302511,"UNIJE","MALI LOŠINJ","PUK RIJEKA","UNIJE / MALI LOŠINJ / PUK RIJEKA"]
[318370,"USKOCI","NOVA GRADIŠKA","PUK SLAVONSKI BROD","USKOCI / NOVA GRADIŠKA / PUK SLAVONSKI BROD"]
[307343,"USKOPLJE","DUBROVNIK","PUK DUBROVNIK","USKOPLJE / DUBROVNIK / PUK DUBROVNIK"]
[302520,"USTRINE","MALI LOŠINJ","PUK RIJEKA","USTRINE / MALI LOŠINJ / PUK RIJEKA"]
[319015,"UŠTICA","NOVSKA","PUK SISAK","UŠTICA / NOVSKA / PUK SISAK"]
[313343,"UTINJA","KARLOVAC","PUK KARLOVAC","UTINJA / KARLOVAC / PUK KARLOVAC"]
[332895,"UTINJA VRELO","VOJNIĆ","PUK KARLOVAC","UTINJA VRELO / VOJNIĆ / PUK KARLOVAC"]
[315117,"UTOLICA","HRVATSKA KOSTAJNICA","PUK SISAK","UTOLICA / HRVATSKA KOSTAJNICA / PUK SISAK"]
[314099,"UZDOLJE","KNIN","PUK ŠIBENIK","UZDOLJE / KNIN / PUK ŠIBENIK"]
[323799,"VABRIGA","POREČ","PUK PULA","VABRIGA / POREČ / PUK PULA"]
[330302,"VAĆANI","ŠIBENIK","PUK ŠIBENIK","VAĆANI / ŠIBENIK / PUK ŠIBENIK"]
[330647,"VAGANAC","KORENICA","PUK GOSPIĆ","VAGANAC / KORENICA / PUK GOSPIĆ"]
[304000,"VAGOVINA","ČAZMA","PUK BJELOVAR","VAGOVINA / ČAZMA / PUK BJELOVAR"]
[319503,"VAJIN VRH","OGULIN","PUK KARLOVAC","VAJIN VRH / OGULIN / PUK KARLOVAC"]
[336491,"VALETIĆ","VRBOVEC","PUK ZAGREB","VALETIĆ / VRBOVEC / PUK ZAGREB"]
[330973,"VALPOVO","VALPOVO","PUK OSIJEK","VALPOVO / VALPOVO / PUK OSIJEK"]
[324361,"VALTURA","PULA","PUK PULA","VALTURA / PULA / PUK PULA"]
[302538,"VALUN","CRES","PUK RIJEKA","VALUN / CRES / PUK RIJEKA"]
[331325,"VARAŽDIN","VARAŽDIN","PUK VARAŽDIN","VARAŽDIN / VARAŽDIN / PUK VARAŽDIN"]
[331333,"VARAŽDIN BREG","VARAŽDIN","PUK VARAŽDIN","VARAŽDIN BREG / VARAŽDIN / PUK VARAŽDIN"]
[338761,"VARAŽDIN II","VARAŽDIN","PUK VARAŽDIN","VARAŽDIN II / VARAŽDIN / PUK VARAŽDIN"]
[318680,"VARAŽDINSKE TOPLICE","NOVI MAROF","PUK VARAŽDIN","VARAŽDINSKE TOPLICE / NOVI MAROF / PUK VARAŽDIN"]
[300322,"VARDARAC","BELI MANASTIR","PUK OSIJEK","VARDARAC / BELI MANASTIR / PUK OSIJEK"]
[338397,"VAROŠ","GOSPIĆ","PUK GOSPIĆ","VAROŠ / GOSPIĆ / PUK GOSPIĆ"]
[323845,"VARVARI","POREČ","PUK PULA","VARVARI / POREČ / PUK PULA"]
[320153,"VASANSKA","OPATIJA","PUK RIJEKA","VASANSKA / OPATIJA / PUK RIJEKA"]
[323560,"VAŠKA","SLATINA","PUK VIROVITICA","VAŠKA / SLATINA / PUK VIROVITICA"]
[325945,"VEDRINE","SINJ","PUK SPLIT","VEDRINE / SINJ / PUK SPLIT"]
[326887,"VEDRO POLJE","SISAK","PUK SISAK","VEDRO POLJE / SISAK / PUK SISAK"]
[314765,"VELA LUKA","BLATO","PUK DUBROVNIK","VELA LUKA / BLATO / PUK DUBROVNIK"]
[331872,"VELEŠEVEC","VELIKA GORICA","PUK ZAGREB","VELEŠEVEC / VELIKA GORICA / PUK ZAGREB"]
[336173,"VELEŠKOVEC","ZLATAR","PUK KRAPINA","VELEŠKOVEC / ZLATAR / PUK KRAPINA"]
[324833,"VELI DOL","RIJEKA","PUK RIJEKA","VELI DOL / RIJEKA / PUK RIJEKA"]
[335126,"VELI IŽ","ZADAR","PUK ZADAR","VELI IŽ / ZADAR / PUK ZADAR"]
[302546,"VELI LOŠINJ","MALI LOŠINJ","PUK RIJEKA","VELI LOŠINJ / MALI LOŠINJ / PUK RIJEKA"]
[335134,"VELI RAT","ZADAR","PUK ZADAR","VELI RAT / ZADAR / PUK ZADAR"]
[325953,"VELIĆ","SINJ","PUK SPLIT","VELIĆ / SINJ / PUK SPLIT"]
[327956,"VELIKA","POŽEGA","PUK POŽEGA","VELIKA / POŽEGA / PUK POŽEGA"]
[333182,"VELIKA","VRBOVEC","PUK ZAGREB","VELIKA / VRBOVEC / PUK ZAGREB"]
[311588,"VELIKA BARNA","GRUBIŠNO POLJE","PUK BJELOVAR","VELIKA BARNA / GRUBIŠNO POLJE / PUK BJELOVAR"]
[331899,"VELIKA BUNA","VELIKA GORICA","PUK ZAGREB","VELIKA BUNA / VELIKA GORICA / PUK ZAGREB"]
[313351,"VELIKA CRKVINA","KARLOVAC","PUK KARLOVAC","VELIKA CRKVINA / KARLOVAC / PUK KARLOVAC"]
[309583,"VELIKA ČREŠNJEVICA","PITOMAČA","PUK VIROVITICA","VELIKA ČREŠNJEVICA / PITOMAČA / PUK VIROVITICA"]
[334529,"VELIKA ERPENJA","ZABOK","PUK KRAPINA","VELIKA ERPENJA / ZABOK / PUK KRAPINA"]
[330329,"VELIKA GLAVA","ŠIBENIK","PUK ŠIBENIK","VELIKA GLAVA / ŠIBENIK / PUK ŠIBENIK"]
[331902,"VELIKA GORICA","VELIKA GORICA","PUK ZAGREB","VELIKA GORICA / VELIKA GORICA / PUK ZAGREB"]
[326895,"VELIKA GRADUSA","SISAK","PUK SISAK","VELIKA GRADUSA / SISAK / PUK SISAK"]
[324027,"VELIKA HORVATSKA","PREGRADA","PUK KRAPINA","VELIKA HORVATSKA / PREGRADA / PUK KRAPINA"]
[312843,"VELIKA JAMNIČKA","JASTREBARSKO","PUK ZAGREB",{"$f":"B3138&\" / \"&C3138&\" / \"&D3138","v":"VELIKA JAMNIČKA / JASTREBARSKO / PUK ZAGREB"}]
[313360,"VELIKA JELSA","KARLOVAC","PUK KARLOVAC","VELIKA JELSA / KARLOVAC / PUK KARLOVAC"]
[328910,"VELIKA KOPANICA","SLAVONSKI BROD","PUK SLAVONSKI BROD","VELIKA KOPANICA / SLAVONSKI BROD / PUK SLAVONSKI BROD"]
[331929,"VELIKA MLAKA","VELIKA GORICA","PUK ZAGREB","VELIKA MLAKA / VELIKA GORICA / PUK ZAGREB"]
[314587,"VELIKA MUČNA","KOPRIVNICA","PUK KOPRIVNICA","VELIKA MUČNA / KOPRIVNICA / PUK KOPRIVNICA"]
[311596,"VELIKA PERATOVICA","GRUBIŠNO POLJE","PUK BJELOVAR","VELIKA PERATOVICA / GRUBIŠNO POLJE / PUK BJELOVAR"]
[301477,"VELIKA PISANICA","BJELOVAR","PUK BJELOVAR","VELIKA PISANICA / BJELOVAR / PUK BJELOVAR"]
[311324,"VELIKA POPINA","GRAČAC","PUK ZADAR","VELIKA POPINA / GRAČAC / PUK ZADAR"]
[310522,"VELIKA SOLINA","GLINA","PUK SISAK","VELIKA SOLINA / GLINA / PUK SISAK"]
[309893,"VELIKA TRNAVA","GAREŠNICA","PUK BJELOVAR","VELIKA TRNAVA / GAREŠNICA / PUK BJELOVAR"]
[338702,"VELIKA VES NOVA","KRAPINA","PUK KRAPINA","VELIKA VES NOVA / KRAPINA / PUK KRAPINA"]
[333867,"VELIKA VRANOVINA","TOPUSKO","PUK SISAK","VELIKA VRANOVINA / TOPUSKO / PUK SISAK"]
[304433,"VELIKI BASTAJI","DARUVAR","PUK BJELOVAR","VELIKI BASTAJI / DARUVAR / PUK BJELOVAR"]
[327964,"VELIKI BILAČ","POŽEGA","PUK POŽEGA","VELIKI BILAČ / POŽEGA / PUK POŽEGA"]
[329444,"VELIKI BROČANAC","SOLIN","PUK SPLIT","VELIKI BROČANAC / SOLIN / PUK SPLIT"]
[316962,"VELIKI BUKOVEC","LUDBREG","PUK VARAŽDIN","VELIKI BUKOVEC / LUDBREG / PUK VARAŽDIN"]
[314595,"VELIKI GRABIČANI","KOPRIVNICA","PUK KOPRIVNICA","VELIKI GRABIČANI / KOPRIVNICA / PUK KOPRIVNICA"]
[310549,"VELIKI GRADAC","GLINA","PUK SISAK","VELIKI GRADAC / GLINA / PUK SISAK"]
[311600,"VELIKI GRĐEVAC","GRUBIŠNO POLJE","PUK BJELOVAR","VELIKI GRĐEVAC / GRUBIŠNO POLJE / PUK BJELOVAR"]
[333476,"VELIKI JADRČ","VRBOVSKO","PUK RIJEKA","VELIKI JADRČ / VRBOVSKO / PUK RIJEKA"]
[314609,"VELIKI OTOK","KOPRIVNICA","PUK KOPRIVNICA","VELIKI OTOK / KOPRIVNICA / PUK KOPRIVNICA"]
[314617,"VELIKI POGANAC","KOPRIVNICA","PUK KOPRIVNICA","VELIKI POGANAC / KOPRIVNICA / PUK KOPRIVNICA"]
[309818,"VELIKI PROKOP","GAREŠNICA","PUK BJELOVAR","VELIKI PROKOP / GAREŠNICA / PUK BJELOVAR"]
[323071,"VELIKI ŠUŠNJAR","PETRINJA","PUK SISAK","VELIKI ŠUŠNJAR / PETRINJA / PUK SISAK"]
[311618,"VELIKI ZDENCI","GRUBIŠNO POLJE","PUK BJELOVAR","VELIKI ZDENCI / GRUBIŠNO POLJE / PUK BJELOVAR"]
[317098,"VELIKO BRDO","MAKARSKA","PUK SPLIT","VELIKO BRDO / MAKARSKA / PUK SPLIT"]
[301159,"VELIKO KORENOVO","BJELOVAR","PUK BJELOVAR","VELIKO KORENOVO / BJELOVAR / PUK BJELOVAR"]
[334537,"VELIKO TRGOVIŠĆE","ZABOK","PUK KRAPINA","VELIKO TRGOVIŠĆE / ZABOK / PUK KRAPINA"]
[301485,"VELIKO TROJSTVO","BJELOVAR","PUK BJELOVAR","VELIKO TROJSTVO / BJELOVAR / PUK BJELOVAR"]
[300721,"VELIM","BENKOVAC","PUK ZADAR","VELIM / BENKOVAC / PUK ZADAR"]
[330981,"VELIŠKOVCI","VALPOVO","PUK OSIJEK","VELIŠKOVCI / VALPOVO / PUK OSIJEK"]
[306070,"VELUŠIĆ","DRNIŠ","PUK ŠIBENIK","VELUŠIĆ / DRNIŠ / PUK ŠIBENIK"]
[329401,"VELJUN","SLUNJ","PUK KARLOVAC","VELJUN / SLUNJ / PUK KARLOVAC"]
[327972,"VENJE","POŽEGA","PUK POŽEGA","VENJE / POŽEGA / PUK POŽEGA"]
[320161,"VEPRINAC","OPATIJA","PUK RIJEKA","VEPRINAC / OPATIJA / PUK RIJEKA"]
[334308,"VERA","VUKOVAR","PUK VUKOVAR","VERA / VUKOVAR / PUK VUKOVAR"]
[336181,"VETERNICA","ZLATAR","PUK KRAPINA","VETERNICA / ZLATAR / PUK KRAPINA"]
[327999,"VETOVO","POŽEGA","PUK POŽEGA","VETOVO / POŽEGA / PUK POŽEGA"]
[317209,"VID","METKOVIĆ","PUK DUBROVNIK","VID / METKOVIĆ / PUK DUBROVNIK"]
[317217,"VIDONJE","METKOVIĆ","PUK DUBROVNIK","VIDONJE / METKOVIĆ / PUK DUBROVNIK"]
[328006,"VIDOVCI","POŽEGA","PUK POŽEGA","VIDOVCI / POŽEGA / PUK POŽEGA"]
[331341,"VIDOVEC","VARAŽDIN","PUK VARAŽDIN","VIDOVEC / VARAŽDIN / PUK VARAŽDIN"]
[316369,"VIDRENJAK","KUTINA","PUK SISAK","VIDRENJAK / KUTINA / PUK SISAK"]
[310557,"VIDUŠEVAC","GLINA","PUK SISAK","VIDUŠEVAC / GLINA / PUK SISAK"]
[338737,"VIDUŠEVAC NOVA","GLINA","PUK SISAK","VIDUŠEVAC NOVA / GLINA / PUK SISAK"]
[314773,"VIGANJ","KORČULA","PUK DUBROVNIK","VIGANJ / KORČULA / PUK DUBROVNIK"]
[328014,"VILIĆ SELO","POŽEGA","PUK POŽEGA","VILIĆ SELO / POŽEGA / PUK POŽEGA"]
[305472,"VILJEVO","DONJI MIHOLJAC","PUK OSIJEK","VILJEVO / DONJI MIHOLJAC / PUK OSIJEK"]
[324035,"VINAGORA","PREGRADA","PUK KRAPINA","VINAGORA / PREGRADA / PUK KRAPINA"]
[325961,"VINALIĆ","SINJ","PUK SPLIT","VINALIĆ / SINJ / PUK SPLIT"]
[331350,"VINICA","VARAŽDIN","PUK VARAŽDIN","VINICA / VARAŽDIN / PUK VARAŽDIN"]
[331368,"VINICA BREG","VARAŽDIN","PUK VARAŽDIN","VINICA BREG / VARAŽDIN / PUK VARAŽDIN"]
[318698,"VINIČNO","NOVI MAROF","PUK VARAŽDIN","VINIČNO / NOVI MAROF / PUK VARAŽDIN"]
[330787,"VINIŠĆE","TROGIR","PUK SPLIT","VINIŠĆE / TROGIR / PUK SPLIT"]
[332348,"VINKOVAČKI BANOVCI","VINKOVCI","PUK VUKOVAR","VINKOVAČKI BANOVCI / VINKOVCI / PUK VUKOVAR"]
[332356,"VINKOVAČKO NOVO SELO","VINKOVCI","PUK VUKOVAR","VINKOVAČKO NOVO SELO / VINKOVCI / PUK VUKOVAR"]
[332364,"VINKOVCI I","VINKOVCI","PUK VUKOVAR","VINKOVCI I / VINKOVCI / PUK VUKOVAR"]
[332372,"VINKOVCI II","VINKOVCI","PUK VUKOVAR","VINKOVCI II / VINKOVCI / PUK VUKOVAR"]
[336483,"VINKOVEC","VRBOVEC","PUK ZAGREB","VINKOVEC / VRBOVEC / PUK ZAGREB"]
[330990,"VINOGRADCI","VALPOVO","PUK OSIJEK","VINOGRADCI / VALPOVO / PUK OSIJEK"]
[316989,"VINOGRADI LUDBREŠKI","LUDBREG","PUK VARAŽDIN","VINOGRADI LUDBREŠKI / LUDBREG / PUK VARAŽDIN"]
[307963,"VINSKI VRH","DUGA RESA","PUK KARLOVAC","VINSKI VRH / DUGA RESA / PUK KARLOVAC"]
[312037,"VINJANI","IMOTSKI","PUK SPLIT","VINJANI / IMOTSKI / PUK SPLIT"]
[335142,"VINJERAC","ZADAR","PUK ZADAR","VINJERAC / ZADAR / PUK ZADAR"]
[335169,"VIR","ZADAR","PUK ZADAR",{"$f":"B3202&\" / \"&C3202&\" / \"&D3202","v":"VIR / ZADAR / PUK ZADAR"}]
[309591,"VIRJE","ĐURĐEVAC","PUK KOPRIVNICA","VIRJE / ĐURĐEVAC / PUK KOPRIVNICA"]
[332712,"VIROVITICA","VIROVITICA","PUK VIROVITICA","VIROVITICA / VIROVITICA / PUK VIROVITICA"]
[337846,"VIROVITICA-CENTAR","VIROVITICA","PUK VIROVITICA","VIROVITICA-CENTAR / VIROVITICA / PUK VIROVITICA"]
[332739,"VIROVITICA-GRAD","VIROVITICA","PUK VIROVITICA","VIROVITICA-GRAD / VIROVITICA / PUK VIROVITICA"]
[332763,"VIS","VIS","PUK SPLIT","VIS / VIS / PUK SPLIT"]
[335177,"VISOČANE","ZADAR","PUK ZADAR","VISOČANE / ZADAR / PUK ZADAR"]
[307351,"VISOČANI","DUBROVNIK","PUK DUBROVNIK","VISOČANI / DUBROVNIK / PUK DUBROVNIK"]
[306088,"VISOKA","DRNIŠ","PUK ŠIBENIK","VISOKA / DRNIŠ / PUK ŠIBENIK"]
[318701,"VISOKO","NOVI MAROF","PUK VARAŽDIN","VISOKO / NOVI MAROF / PUK VARAŽDIN"]
[330655,"VISUĆ","KORENICA","PUK GOSPIĆ","VISUĆ / KORENICA / PUK GOSPIĆ"]
[309192,"VIŠKOVCI","ĐAKOVO","PUK OSIJEK","VIŠKOVCI / ĐAKOVO / PUK OSIJEK"]
[324841,"VIŠKOVO","RIJEKA","PUK RIJEKA","VIŠKOVO / RIJEKA / PUK RIJEKA"]
[323802,"VIŠNJAN","POREČ","PUK PULA","VIŠNJAN / POREČ / PUK PULA"]
[301493,"VIŠNJEVAC","BJELOVAR","PUK BJELOVAR","VIŠNJEVAC / BJELOVAR / PUK BJELOVAR"]
[307360,"VITALJINA","DUBROVNIK","PUK DUBROVNIK","VITALJINA / DUBROVNIK / PUK DUBROVNIK"]
[319511,"VITUNJ","OGULIN","PUK KARLOVAC","VITUNJ / OGULIN / PUK KARLOVAC"]
[321435,"VIVODINA","OZALJ","PUK KARLOVAC","VIVODINA / OZALJ / PUK KARLOVAC"]
[323829,"VIŽINADA","POREČ","PUK PULA","VIŽINADA / POREČ / PUK PULA"]
[320757,"VLADISLAVCI","OSIJEK","PUK OSIJEK","VLADISLAVCI / OSIJEK / PUK OSIJEK"]
[310565,"VLAHOVIĆ","GLINA","PUK SISAK","VLAHOVIĆ / GLINA / PUK SISAK"]
[337153,"VLAKA-TUŠTEVAC","METKOVIĆ","PUK DUBROVNIK","VLAKA-TUŠTEVAC / METKOVIĆ / PUK DUBROVNIK"]
[319031,"VOĆARICA","NOVSKA","PUK SISAK","VOĆARICA / NOVSKA / PUK SISAK"]
[323578,"VOĆIN","SLATINA","PUK VIROVITICA","VOĆIN / SLATINA / PUK VIROVITICA"]
[307971,"VODENA DRAGA","DUGA RESA","PUK KARLOVAC","VODENA DRAGA / DUGA RESA / PUK KARLOVAC"]
[302287,"VODICE","BUZET","PUK PULA","VODICE / BUZET / PUK PULA"]
[330337,"VODICE","ŠIBENIK","PUK ŠIBENIK","VODICE / ŠIBENIK / PUK ŠIBENIK"]
[324370,"VODNJAN","PULA","PUK PULA","VODNJAN / PULA / PUK PULA"]
[321044,"VODOTEČ","OTOČAC","PUK GOSPIĆ","VODOTEČ / OTOČAC / PUK GOSPIĆ"]
[307378,"VODOVAĐA","DUBROVNIK","PUK DUBROVNIK","VODOVAĐA / DUBROVNIK / PUK DUBROVNIK"]
[332399,"VOĐINCI","VINKOVCI","PUK VUKOVAR","VOĐINCI / VINKOVCI / PUK VUKOVAR"]
[315788,"VOJAKOVAC","KRIŽEVCI","PUK KOPRIVNICA","VOJAKOVAC / KRIŽEVCI / PUK KOPRIVNICA"]
[315796,"VOJAKOVAČKE SESVETE","KRIŽEVCI","PUK KOPRIVNICA","VOJAKOVAČKE SESVETE / KRIŽEVCI / PUK KOPRIVNICA"]
[332909,"VOJNIĆ","VOJNIĆ","PUK KARLOVAC","VOJNIĆ / VOJNIĆ / PUK KARLOVAC"]
[325970,"VOJNIĆ SINJSKI","SINJ","PUK SPLIT","VOJNIĆ SINJSKI / SINJ / PUK SPLIT"]
[315800,"VOJNOVEC KALNIČKI","KRIŽEVCI","PUK KOPRIVNICA","VOJNOVEC KALNIČKI / KRIŽEVCI / PUK KOPRIVNICA"]
[336190,"VOJNOVEC LOBORSKI","ZLATAR","PUK KRAPINA","VOJNOVEC LOBORSKI / ZLATAR / PUK KRAPINA"]
[321052,"VOJVODUŠA","OTOČAC","PUK GOSPIĆ","VOJVODUŠA / OTOČAC / PUK GOSPIĆ"]
[312851,"VOLAVJE","JASTREBARSKO","PUK ZAGREB","VOLAVJE / JASTREBARSKO / PUK ZAGREB"]
[308650,"VOLINJA","DVOR","PUK SISAK","VOLINJA / DVOR / PUK SISAK"]
[316377,"VOLODER","KUTINA","PUK SISAK","VOLODER / KUTINA / PUK SISAK"]
[320170,"VOLOSKO","OPATIJA","PUK RIJEKA","VOLOSKO / OPATIJA / PUK RIJEKA"]
[333875,"VORKAPIĆ","TOPUSKO","PUK SISAK","VORKAPIĆ / TOPUSKO / PUK SISAK"]
[325988,"VOŠTANE","SINJ","PUK SPLIT","VOŠTANE / SINJ / PUK SPLIT"]
[300870,"VRANA","BIOGRAD NA MORU","PUK ZADAR","VRANA / BIOGRAD NA MORU / PUK ZADAR"]
[302554,"VRANA","CRES","PUK RIJEKA","VRANA / CRES / PUK RIJEKA"]
[323586,"VRANEŠEVCI","SLATINA","PUK VIROVITICA","VRANEŠEVCI / SLATINA / PUK VIROVITICA"]
[328022,"VRANIĆ","POŽEGA","PUK POŽEGA","VRANIĆ / POŽEGA / PUK POŽEGA"]
[311332,"VRANIK","LOVINAC","PUK GOSPIĆ","VRANIK / LOVINAC / PUK GOSPIĆ"]
[328928,"VRANOVCI","SLAVONSKI BROD","PUK SLAVONSKI BROD","VRANOVCI / SLAVONSKI BROD / PUK SLAVONSKI BROD"]
[322555,"VRANJA","PAZIN","PUK PULA","VRANJA / PAZIN / PUK PULA"]
[335606,"VRAPČE","GU ZAGREB","PUK ZAGREB","VRAPČE / GU ZAGREB / PUK ZAGREB"]
[304719,"VRATA","DELNICE","PUK RIJEKA","VRATA / DELNICE / PUK RIJEKA"]
[323080,"VRATEČKO","PETRINJA","PUK SISAK","VRATEČKO / PETRINJA / PUK SISAK"]
[303658,"VRATIŠINEC","ČAKOVEC","PUK ČAKOVEC","VRATIŠINEC / ČAKOVEC / PUK ČAKOVEC"]
[331376,"VRATNO","VARAŽDIN","PUK VARAŽDIN","VRATNO / VARAŽDIN / PUK VARAŽDIN"]
[328936,"VRBA","SLAVONSKI BROD","PUK SLAVONSKI BROD","VRBA / SLAVONSKI BROD / PUK SLAVONSKI BROD"]
[324043,"VRBANEC","PREGRADA","PUK KRAPINA","VRBANEC / PREGRADA / PUK KRAPINA"]
[311758,"VRBANJ","STARI GRAD","PUK SPLIT","VRBANJ / STARI GRAD / PUK SPLIT"]
[336386,"VRBANJA","ŽUPANJA","PUK VUKOVAR","VRBANJA / ŽUPANJA / PUK VUKOVAR"]
[309206,"VRBICA","ĐAKOVO","PUK OSIJEK","VRBICA / ĐAKOVO / PUK OSIJEK"]
[318388,"VRBJE","NOVA GRADIŠKA","PUK SLAVONSKI BROD","VRBJE / NOVA GRADIŠKA / PUK SLAVONSKI BROD"]
[314102,"VRBNIK","KNIN","PUK ŠIBENIK","VRBNIK / KNIN / PUK ŠIBENIK"]
[316059,"VRBNIK","KRK","PUK RIJEKA","VRBNIK / KRK / PUK RIJEKA"]
[311766,"VRBOSKA","STARI GRAD","PUK SPLIT",{"$f":"B3266&\" / \"&C3266&\" / \"&D3266","v":"VRBOSKA / STARI GRAD / PUK SPLIT"}]
[318396,"VRBOVA","NOVA GRADIŠKA","PUK SLAVONSKI BROD","VRBOVA / NOVA GRADIŠKA / PUK SLAVONSKI BROD"]
[304441,"VRBOVAC","DARUVAR","PUK BJELOVAR","VRBOVAC / DARUVAR / PUK BJELOVAR"]
[325210,"VRBOVEC","SAMOBOR","PUK ZAGREB","VRBOVEC / SAMOBOR / PUK ZAGREB"]
[333280,"VRBOVEC","VRBOVEC","PUK ZAGREB","VRBOVEC / VRBOVEC / PUK ZAGREB"]
[337854,"VRBOVEC 1","VRBOVEC","PUK ZAGREB","VRBOVEC 1 / VRBOVEC / PUK ZAGREB"]
[318400,"VRBOVLJANI","NOVA GRADIŠKA","PUK SLAVONSKI BROD","VRBOVLJANI / NOVA GRADIŠKA / PUK SLAVONSKI BROD"]
[333484,"VRBOVSKO","VRBOVSKO","PUK RIJEKA","VRBOVSKO / VRBOVSKO / PUK RIJEKA"]
[311065,"VREBAC","GOSPIĆ","PUK GOSPIĆ","VREBAC / GOSPIĆ / PUK GOSPIĆ"]
[311359,"VRELO","GRAČAC","PUK ZADAR","VRELO / GRAČAC / PUK ZADAR"]
[300888,"VRGADA","BIOGRAD NA MORU","PUK ZADAR","VRGADA / BIOGRAD NA MORU / PUK ZADAR"]
[333883,"VRGINMOST","TOPUSKO","PUK SISAK","VRGINMOST / TOPUSKO / PUK SISAK"]
[333972,"VRGORAC","VRGORAC","PUK SPLIT","VRGORAC / VRGORAC / PUK SPLIT"]
[333999,"VRGORAC I","VRGORAC","PUK SPLIT","VRGORAC I / VRGORAC / PUK SPLIT"]
[302295,"VRH","BUZET","PUK PULA","VRH / BUZET / PUK PULA"]
[316067,"VRH","KRK","PUK RIJEKA","VRH / KRK / PUK RIJEKA"]
[321443,"VRHOVAC","OZALJ","PUK KARLOVAC","VRHOVAC / OZALJ / PUK KARLOVAC"]
[337072,"VRHOVČAK","SAMOBOR","PUK ZAGREB","VRHOVČAK / SAMOBOR / PUK ZAGREB"]
[328944,"VRHOVINA","SLAVONSKI BROD","PUK SLAVONSKI BROD","VRHOVINA / SLAVONSKI BROD / PUK SLAVONSKI BROD"]
[321079,"VRHOVINE","OTOČAC","PUK GOSPIĆ","VRHOVINE / OTOČAC / PUK GOSPIĆ"]
[304450,"VRIJESKA","DARUVAR","PUK BJELOVAR","VRIJESKA / DARUVAR / PUK BJELOVAR"]
[311774,"VRISNIK","STARI GRAD","PUK SPLIT","VRISNIK / STARI GRAD / PUK SPLIT"]
[325996,"VRLIKA","SINJ","PUK SPLIT","VRLIKA / SINJ / PUK SPLIT"]
[308668,"VRPOLJE","DVOR","PUK SISAK","VRPOLJE / DVOR / PUK SISAK"]
[326003,"VRPOLJE","SINJ","PUK SPLIT","VRPOLJE / SINJ / PUK SPLIT"]
[328952,"VRPOLJE","SLAVONSKI BROD","PUK SLAVONSKI BROD","VRPOLJE / SLAVONSKI BROD / PUK SLAVONSKI BROD"]
[330345,"VRPOLJE","ŠIBENIK","PUK ŠIBENIK","VRPOLJE / ŠIBENIK / PUK ŠIBENIK"]
[323837,"VRSAR","POREČ","PUK PULA","VRSAR / POREČ / PUK PULA"]
[335185,"VRSI","ZADAR","PUK ZADAR","VRSI / ZADAR / PUK ZADAR"]
[304018,"VRTLINSKA","ČAZMA","PUK BJELOVAR","VRTLINSKA / ČAZMA / PUK BJELOVAR"]
[334545,"VRTNJAKOVEC","ZABOK","PUK KRAPINA","VRTNJAKOVEC / ZABOK / PUK KRAPINA"]
[309214,"VUČEVCI","ĐAKOVO","PUK OSIJEK","VUČEVCI / ĐAKOVO / PUK OSIJEK"]
[329738,"VUČEVICA","SOLIN","PUK SPLIT","VUČEVICA / SOLIN / PUK SPLIT"]
[326011,"VUČIPOLJE","SINJ","PUK SPLIT","VUČIPOLJE / SINJ / PUK SPLIT"]
[325457,"VUGROVEC","GU ZAGREB","PUK ZAGREB","VUGROVEC / GU ZAGREB / PUK ZAGREB"]
[320765,"VUKA","OSIJEK","PUK OSIJEK","VUKA / OSIJEK / PUK OSIJEK"]
[303666,"VUKANOVEC","ČAKOVEC","PUK ČAKOVEC","VUKANOVEC / ČAKOVEC / PUK ČAKOVEC"]
[313378,"VUKMANIĆ","KARLOVAC","PUK KARLOVAC","VUKMANIĆ / KARLOVAC / PUK KARLOVAC"]
[326909,"VUKOJEVAC","SISAK","PUK SISAK","VUKOJEVAC / SISAK / PUK SISAK"]
[317543,"VUKOJEVCI","NAŠICE","PUK OSIJEK","VUKOJEVCI / NAŠICE / PUK OSIJEK"]
[331937,"VUKOMERIĆ","VELIKA GORICA","PUK ZAGREB","VUKOMERIĆ / VELIKA GORICA / PUK ZAGREB"]
[332747,"VUKOSAVLJEVICA","VIROVITICA","PUK VIROVITICA","VUKOSAVLJEVICA / VIROVITICA / PUK VIROVITICA"]
[326917,"VUKOŠEVAC","SISAK","PUK SISAK","VUKOŠEVAC / SISAK / PUK SISAK"]
[307980,"VUKOVA GORICA","DUGA RESA","PUK KARLOVAC","VUKOVA GORICA / DUGA RESA / PUK KARLOVAC"]
[334316,"VUKOVAR","VUKOVAR","PUK VUKOVAR","VUKOVAR / VUKOVAR / PUK VUKOVAR"]
[304026,"VUKOVIJE","DARUVAR","PUK BJELOVAR","VUKOVIJE / DARUVAR / PUK BJELOVAR"]
[331945,"VUKOVINA","VELIKA GORICA","PUK ZAGREB","VUKOVINA / VELIKA GORICA / PUK ZAGREB"]
[309907,"VUKOVJE","GAREŠNICA","PUK BJELOVAR","VUKOVJE / GAREŠNICA / PUK BJELOVAR"]
[300730,"VUKŠIĆ","BENKOVAC","PUK ZADAR","VUKŠIĆ / BENKOVAC / PUK ZADAR"]
[333301,"VUKŠINAC","VRBOVEC","PUK ZAGREB","VUKŠINAC / VRBOVEC / PUK ZAGREB"]
[303674,"VULARIJA","ČAKOVEC","PUK ČAKOVEC","VULARIJA / ČAKOVEC / PUK ČAKOVEC"]
[325465,"VURNOVEC","GU ZAGREB","PUK ZAGREB","VURNOVEC / GU ZAGREB / PUK ZAGREB"]
[314625,"ZABLATJE","KOPRIVNICA","PUK KOPRIVNICA","ZABLATJE / KOPRIVNICA / PUK KOPRIVNICA"]
[334553,"ZABOK","ZABOK","PUK KRAPINA","ZABOK / ZABOK / PUK KRAPINA"]
[307386,"ZABRĐE","DUBROVNIK","PUK DUBROVNIK","ZABRĐE / DUBROVNIK / PUK DUBROVNIK"]
[333310,"ZABRĐE","VRBOVEC","PUK ZAGREB","ZABRĐE / VRBOVEC / PUK ZAGREB"]
[322563,"ZABREŽANI","PAZIN","PUK PULA","ZABREŽANI / PAZIN / PUK PULA"]
[335193,"ZADAR","ZADAR","PUK ZADAR","ZADAR / ZADAR / PUK ZADAR"]
[313386,"ZADOBARJE","KARLOVAC","PUK KARLOVAC","ZADOBARJE / KARLOVAC / PUK KARLOVAC"]
[328979,"ZADUBRAVLJE","SLAVONSKI BROD","PUK SLAVONSKI BROD","ZADUBRAVLJE / SLAVONSKI BROD / PUK SLAVONSKI BROD"]
[313394,"ZAGORJE","KARLOVAC","PUK KARLOVAC","ZAGORJE / KARLOVAC / PUK KARLOVAC"]
[319520,"ZAGORJE","OGULIN","PUK KARLOVAC","ZAGORJE / OGULIN / PUK KARLOVAC"]
[313742,"ZAGORSKA SELA","KLANJEC","PUK KRAPINA","ZAGORSKA SELA / KLANJEC / PUK KRAPINA"]
[313408,"ZAGRAD","KARLOVAC","PUK KARLOVAC","ZAGRAD / KARLOVAC / PUK KARLOVAC"]
[307998,"ZAGRADCI","DUGA RESA","PUK KARLOVAC",{"$f":"B3330&\" / \"&C3330&\" / \"&D3330","v":"ZAGRADCI / DUGA RESA / PUK KARLOVAC"}]
[328065,"ZAGRAĐE","POŽEGA","PUK POŽEGA","ZAGRAĐE / POŽEGA / PUK POŽEGA"]
[312045,"ZAGVOZD","IMOTSKI","PUK SPLIT","ZAGVOZD / IMOTSKI / PUK SPLIT"]
[304468,"ZAILE","DARUVAR","PUK BJELOVAR","ZAILE / DARUVAR / PUK BJELOVAR"]
[315818,"ZAISTOVEC","KRIŽEVCI","PUK KOPRIVNICA","ZAISTOVEC / KRIŽEVCI / PUK KOPRIVNICA"]
[321451,"ZAJAČKO SELO","OZALJ","PUK KARLOVAC","ZAJAČKO SELO / OZALJ / PUK KARLOVAC"]
[336203,"ZAJEZDA","ZLATAR","PUK KRAPINA","ZAJEZDA / ZLATAR / PUK KRAPINA"]
[305278,"ZAKLOPAC","GRAČAC","PUK ZADAR","ZAKLOPAC / GRAČAC / PUK ZADAR"]
[308676,"ZAKOPA","DVOR","PUK SISAK","ZAKOPA / DVOR / PUK SISAK"]
[328073,"ZAKORENJE","POŽEGA","PUK POŽEGA","ZAKORENJE / POŽEGA / PUK POŽEGA"]
[319791,"ZAKUČAC","OMIŠ","PUK SPLIT","ZAKUČAC / OMIŠ / PUK SPLIT"]
[310573,"ZALOJ","GLINA","PUK SISAK","ZALOJ / GLINA / PUK SISAK"]
[321460,"ZALUKA","OZALJ","PUK KARLOVAC","ZALUKA / OZALJ / PUK KARLOVAC"]
[321087,"ZALUŽNICA","OTOČAC","PUK GOSPIĆ","ZALUŽNICA / OTOČAC / PUK GOSPIĆ"]
[322571,"ZAMASK","PAZIN","PUK PULA","ZAMASK / PAZIN / PUK PULA"]
[324850,"ZAMET","RIJEKA","PUK RIJEKA","ZAMET / RIJEKA / PUK RIJEKA"]
[308684,"ZAMLAČA","DVOR","PUK SISAK","ZAMLAČA / DVOR / PUK SISAK"]
[331384,"ZAMLAČA","VARAŽDIN","PUK VARAŽDIN","ZAMLAČA / VARAŽDIN / PUK VARAŽDIN"]
[317101,"ZAOSTROG","MAKARSKA","PUK SPLIT","ZAOSTROG / MAKARSKA / PUK SPLIT"]
[335762,"ZAPREŠIĆ","ZAPREŠIĆ","PUK ZAGREB","ZAPREŠIĆ / ZAPREŠIĆ / PUK ZAGREB"]
[335495,"ZAPRUDSKI OTOK","GU ZAGREB","PUK ZAGREB","ZAPRUDSKI OTOK / GU ZAGREB / PUK ZAGREB"]
[335207,"ZAPUNTEL","ZADAR","PUK ZADAR","ZAPUNTEL / ZADAR / PUK ZADAR"]
[322580,"ZAREČJE","PAZIN","PUK PULA","ZAREČJE / PAZIN / PUK PULA"]
[328081,"ZARILAC","POŽEGA","PUK POŽEGA","ZARILAC / POŽEGA / PUK POŽEGA"]
[303682,"ZASADBREG","ČAKOVEC","PUK ČAKOVEC","ZASADBREG / ČAKOVEC / PUK ČAKOVEC"]
[307394,"ZASTOLJE","DUBROVNIK","PUK DUBROVNIK","ZASTOLJE / DUBROVNIK / PUK DUBROVNIK"]
[311782,"ZASTRAŽIŠĆE","STARI GRAD","PUK SPLIT","ZASTRAŽIŠĆE / STARI GRAD / PUK SPLIT"]
[307408,"ZATON","DUBROVNIK","PUK DUBROVNIK","ZATON / DUBROVNIK / PUK DUBROVNIK"]
[307416,"ZATON DOLI","DUBROVNIK","PUK DUBROVNIK","ZATON DOLI / DUBROVNIK / PUK DUBROVNIK"]
[319147,"ZATON OBROVAČKI","OBROVAC","PUK ZADAR","ZATON OBROVAČKI / OBROVAC / PUK ZADAR"]
[330353,"ZATON-RASLINA","ŠIBENIK","PUK ŠIBENIK","ZATON-RASLINA / ŠIBENIK / PUK ŠIBENIK"]
[334006,"ZAVOJANE","VRGORAC","PUK SPLIT","ZAVOJANE / VRGORAC / PUK SPLIT"]
[307424,"ZAVRELJE","DUBROVNIK","PUK DUBROVNIK","ZAVRELJE / DUBROVNIK / PUK DUBROVNIK"]
[302031,"ZAVRŠJE","BUJE","PUK PULA","ZAVRŠJE / BUJE / PUK PULA"]
[304727,"ZAVRŠJE","DELNICE","PUK RIJEKA","ZAVRŠJE / DELNICE / PUK RIJEKA"]
[336777,"ZAVRŠJE","POŽEGA","PUK POŽEGA","ZAVRŠJE / POŽEGA / PUK POŽEGA"]
[337218,"ZBELAVA","VARAŽDIN","PUK VARAŽDIN","ZBELAVA / VARAŽDIN / PUK VARAŽDIN"]
[328987,"ZBJEG","SLAVONSKI BROD","PUK SLAVONSKI BROD","ZBJEG / SLAVONSKI BROD / PUK SLAVONSKI BROD"]
[329410,"ZBJEG MOČILSKI","SLUNJ","PUK KARLOVAC","ZBJEG MOČILSKI / SLUNJ / PUK KARLOVAC"]
[316385,"ZBJEGOVAČA","KUTINA","PUK SISAK","ZBJEGOVAČA / KUTINA / PUK SISAK"]
[301507,"ZDELICE","BJELOVAR","PUK BJELOVAR","ZDELICE / BJELOVAR / PUK BJELOVAR"]
[319538,"ZDENAC","OGULIN","PUK KARLOVAC","ZDENAC / OGULIN / PUK KARLOVAC"]
[320463,"ZDENCI","ORAHOVICA","PUK VIROVITICA","ZDENCI / ORAHOVICA / PUK VIROVITICA"]
[312860,"ZDENČINA","JASTREBARSKO","PUK ZAGREB","ZDENČINA / JASTREBARSKO / PUK ZAGREB"]
[303704,"ZEBANEC","ČAKOVEC","PUK ČAKOVEC","ZEBANEC / ČAKOVEC / PUK ČAKOVEC"]
[331007,"ZELČIN","VALPOVO","PUK OSIJEK","ZELČIN / VALPOVO / PUK OSIJEK"]
[319155,"ZELENGRAD","OBROVAC","PUK ZADAR","ZELENGRAD / OBROVAC / PUK ZADAR"]
[335959,"ZELINA","SVETI IVAN ZELINA","PUK ZAGREB","ZELINA / SVETI IVAN ZELINA / PUK ZAGREB"]
[335215,"ZEMUNIK","ZADAR","PUK ZADAR","ZEMUNIK / ZADAR / PUK ZADAR"]
[333328,"ZETKAN","VRBOVEC","PUK ZAGREB","ZETKAN / VRBOVEC / PUK ZAGREB"]
[331953,"ZGURIĆ BRDO","VELIKA GORICA","PUK ZAGREB","ZGURIĆ BRDO / VELIKA GORICA / PUK ZAGREB"]
[313416,"ZIMIĆ","KARLOVAC","PUK KARLOVAC","ZIMIĆ / KARLOVAC / PUK KARLOVAC"]
[330361,"ZLARIN","ŠIBENIK","PUK ŠIBENIK","ZLARIN / ŠIBENIK / PUK ŠIBENIK"]
[336211,"ZLATAR","ZLATAR","PUK KRAPINA","ZLATAR / ZLATAR / PUK KRAPINA"]
[324868,"ZLOBIN","RIJEKA","PUK RIJEKA","ZLOBIN / RIJEKA / PUK RIJEKA"]
[300349,"ZMAJEVAC I","BELI MANASTIR","PUK OSIJEK","ZMAJEVAC I / BELI MANASTIR / PUK OSIJEK"]
[300357,"ZMAJEVAC II","BELI MANASTIR","PUK OSIJEK","ZMAJEVAC II / BELI MANASTIR / PUK OSIJEK"]
[317551,"ZOLJAN","NAŠICE","PUK OSIJEK","ZOLJAN / NAŠICE / PUK OSIJEK"]
[329002,"ZOLJANI","SLAVONSKI BROD","PUK SLAVONSKI BROD","ZOLJANI / SLAVONSKI BROD / PUK SLAVONSKI BROD"]
[321478,"ZORKOVAC","OZALJ","PUK KARLOVAC","ZORKOVAC / OZALJ / PUK KARLOVAC"]
[302040,"ZRENJ","BUJE","PUK PULA","ZRENJ / BUJE / PUK PULA"]
[308692,"ZRIN","DVOR","PUK SISAK","ZRIN / DVOR / PUK SISAK"]
[311626,"ZRINSKA","GRUBIŠNO POLJE","PUK BJELOVAR","ZRINSKA / GRUBIŠNO POLJE / PUK BJELOVAR"]
[301515,"ZRINSKI TOPOLOVAC","BJELOVAR","PUK BJELOVAR","ZRINSKI TOPOLOVAC / BJELOVAR / PUK BJELOVAR"]
[311367,"ZRMANJA","GRAČAC","PUK ZADAR",{"$f":"B3394&\" / \"&C3394&\" / \"&D3394","v":"ZRMANJA / GRAČAC / PUK ZADAR"}]
[322598,"ZUMESK","PAZIN","PUK PULA","ZUMESK / PAZIN / PUK PULA"]
[308706,"ZUT","DVOR","PUK SISAK","ZUT / DVOR / PUK SISAK"]
[319805,"ZVEČANJE","OMIŠ","PUK SPLIT","ZVEČANJE / OMIŠ / PUK SPLIT"]
[335223,"ZVERINAC","ZADAR","PUK ZADAR","ZVERINAC / ZADAR / PUK ZADAR"]
[314129,"ZVJERINAC","KNIN","PUK ŠIBENIK","ZVJERINAC / KNIN / PUK ŠIBENIK"]
[320188,"ZVONEĆA","OPATIJA","PUK RIJEKA","ZVONEĆA / OPATIJA / PUK RIJEKA"]
[333336,"ZVONIK","VRBOVEC","PUK ZAGREB","ZVONIK / VRBOVEC / PUK ZAGREB"]
[301523,"ŽABJAK","BJELOVAR","PUK BJELOVAR","ŽABJAK / BJELOVAR / PUK BJELOVAR"]
[331392,"ŽABNIK","VARAŽDIN","PUK VARAŽDIN","ŽABNIK / VARAŽDIN / PUK VARAŽDIN"]
[314137,"ŽAGROVIĆ","KNIN","PUK ŠIBENIK","ŽAGROVIĆ / KNIN / PUK ŠIBENIK"]
[321486,"ŽAKANJE","OZALJ","PUK KARLOVAC","ŽAKANJE / OZALJ / PUK KARLOVAC"]
[326925,"ŽAŽINA","SISAK","PUK SISAK","ŽAŽINA / SISAK / PUK SISAK"]
[323853,"ŽBANDAJ","POREČ","PUK PULA","ŽBANDAJ / POREČ / PUK PULA"]
[309605,"ŽDALA","KOPRIVNICA","PUK KOPRIVNICA","ŽDALA / KOPRIVNICA / PUK KOPRIVNICA"]
[301531,"ŽDRALOVI","BJELOVAR","PUK BJELOVAR","ŽDRALOVI / BJELOVAR / PUK BJELOVAR"]
[300896,"ŽDRELAC","BIOGRAD NA MORU","PUK ZADAR","ŽDRELAC / BIOGRAD NA MORU / PUK ZADAR"]
[330795,"ŽEDNO","TROGIR","PUK SPLIT","ŽEDNO / TROGIR / PUK SPLIT"]
[319163,"ŽEGAR","OBROVAC","PUK ZADAR","ŽEGAR / OBROVAC / PUK ZADAR"]
[320196,"ŽEJANE","OPATIJA","PUK RIJEKA","ŽEJANE / OPATIJA / PUK RIJEKA"]
[303712,"ŽELEZNA GORA","ČAKOVEC","PUK ČAKOVEC","ŽELEZNA GORA / ČAKOVEC / PUK ČAKOVEC"]
[312878,"ŽELJEZNO ŽUMBERAČKO","JASTREBARSKO","PUK ZAGREB","ŽELJEZNO ŽUMBERAČKO / JASTREBARSKO / PUK ZAGREB"]
[336866,"ŽERAVA","ZADAR","PUK ZADAR","ŽERAVA / ZADAR / PUK ZADAR"]
[319813,"ŽEŽEVICA","OMIŠ","PUK SPLIT","ŽEŽEVICA / OMIŠ / PUK SPLIT"]
[326933,"ŽIRČICA","SISAK","PUK SISAK","ŽIRČICA / SISAK / PUK SISAK"]
[330370,"ŽIRJE","ŠIBENIK","PUK ŠIBENIK","ŽIRJE / ŠIBENIK / PUK ŠIBENIK"]
[308714,"ŽIROVAC","DVOR","PUK SISAK","ŽIROVAC / DVOR / PUK SISAK"]
[303739,"ŽIŠKOVEC","ČAKOVEC","PUK ČAKOVEC","ŽIŠKOVEC / ČAKOVEC / PUK ČAKOVEC"]
[306096,"ŽITNIĆ","DRNIŠ","PUK ŠIBENIK","ŽITNIĆ / DRNIŠ / PUK ŠIBENIK"]
[335550,"ŽITNJAK","GU ZAGREB","PUK ZAGREB","ŽITNJAK / GU ZAGREB / PUK ZAGREB"]
[336467,"ŽITOMIR","SVETI IVAN ZELINA","PUK ZAGREB","ŽITOMIR / SVETI IVAN ZELINA / PUK ZAGREB"]
[315125,"ŽIVAJA","HRVATSKA KOSTAJNICA","PUK SISAK","ŽIVAJA / HRVATSKA KOSTAJNICA / PUK SISAK"]
[329029,"ŽIVIKE","SLAVONSKI BROD","PUK SLAVONSKI BROD","ŽIVIKE / SLAVONSKI BROD / PUK SLAVONSKI BROD"]
[317110,"ŽIVOGOŠĆE","MAKARSKA","PUK SPLIT","ŽIVOGOŠĆE / MAKARSKA / PUK SPLIT"]
[335231,"ŽMAN","ZADAR","PUK ZADAR","ŽMAN / ZADAR / PUK ZADAR"]
[324957,"ŽMINJ","ROVINJ","PUK PULA","ŽMINJ / ROVINJ / PUK PULA"]
[326941,"ŽREME","SISAK","PUK SISAK","ŽREME / SISAK / PUK SISAK"]
[329878,"ŽRNOVNICA","SPLIT","PUK SPLIT","ŽRNOVNICA / SPLIT / PUK SPLIT"]
[314781,"ŽRNOVO","KORČULA","PUK DUBROVNIK","ŽRNOVO / KORČULA / PUK DUBROVNIK"]
[318418,"ŽUBERKOVAC","NOVA GRADIŠKA","PUK SLAVONSKI BROD","ŽUBERKOVAC / NOVA GRADIŠKA / PUK SLAVONSKI BROD"]
[308005,"ŽUBRINCI","DUGA RESA","PUK KARLOVAC","ŽUBRINCI / DUGA RESA / PUK KARLOVAC"]
[307432,"ŽULJANA","DUBROVNIK","PUK DUBROVNIK","ŽULJANA / DUBROVNIK / PUK DUBROVNIK"]
[312886,"ŽUMBERAK","JASTREBARSKO","PUK ZAGREB","ŽUMBERAK / JASTREBARSKO / PUK ZAGREB"]
[312053,"ŽUPA","IMOTSKI","PUK SPLIT","ŽUPA / IMOTSKI / PUK SPLIT"]
[336394,"ŽUPANJA","ŽUPANJA","PUK VUKOVAR","ŽUPANJA / ŽUPANJA / PUK VUKOVAR"]